Workbook

Sheet Navigation
B3: Table of Contents
C4: =IF(ISBLANK(D4),"",HYPERLINK("#"&D4&"!A1","GO TO -->")) -> GO TO --> | D4: Navigation
C5: =IF(ISBLANK(D5),"",HYPERLINK("#"&D5&"!A1","GO TO -->")) -> GO TO --> | D5: COPYRIGHT
C6: GO TO --> | D6: For Rate Design
C7: GO TO --> | D7: Import
C8: GO TO --> | D8: Control
C9: GO TO --> | D9: Print_Control
C10: GO TO --> | D10: Checks
C11: GO TO --> | D11: Cost_of_Service
C12: GO TO --> | D12: Functionalization
C13: GO TO --> | D13: Class_Factors
C14: GO TO --> | D14: Func_Factors
C15: GO TO --> | D15: Source_Mapping
C16: GO TO --> | D16: Scenario
C17: GO TO --> | D17: Base_Case
C18: GO TO --> | D18: Imports>>>
C19: GO TO --> | D19: KTS3_Base
C20: GO TO --> | D20: KTS3_Test
C21: GO TO --> | D21: FUNC_ALLOC_BASE
C22: GO TO --> | D22: FUNC_ALLOC_TEST
C23: GO TO --> | D23: NET_PLANT
C24: GO TO --> | D24: REG_AL
C25: GO TO --> | D25: OTH_RB
C26: GO TO --> | D26: W_CAP
C27: GO TO --> | D27: OM
C28: GO TO --> | D28: LABOR
C29: GO TO --> | D29: FUEL_TEST
C30: GO TO --> | D30: FUEL_BASE
C31: GO TO --> | D31: DEP_AMORT
C32: GO TO --> | D32: GEN_TAX
C33: GO TO --> | D33: OTH_ALL
C34: GO TO --> | D34: REV_CR
C35: GO TO --> | D35: CLASS_ALLOC_TEST
C36: GO TO --> | D36: CLASS_ALLOC_BASE
C37: GO TO --> | D37: REV_OP_BASE
C38: GO TO --> | D38: REV_OP_TEST

Sheet COPYRIGHT

Sheet Import
C1: SEE IMPORT INSTRUCTIONS BELOW
C2: Last Update | D2: Loaded by | E2: Data Subject | F2: Source File Pathname | H2: Source Sheet | I2: ColumnRange from Source | J2: Target Sheet | K2: Paste To Range | U2: This Workbook Filename: | V2: =MID(CELL("filename",A2),FIND("[",CELL("filename",A2))+1,FIND("]",CELL("filename",A2))-FIND("[",CELL("filename",A2))-1) -> COST production Allocators.xlsm
U3: This Worksheet | V3: =MID(CELL("filename",A2),FIND("]",CELL("filename",A2))+1,255) -> Import
B5: =HYPERLINK("#"&J5&"!a1","Go To Data") -> Go To Data | C5: 2024-05-13T10:57:06 | D5: Casas, Abraham | E5: Net Plant | F5: T:\01-General Rate Cases\24-xxxx-UT (2024 Rate Case)\03 - Rate Design and COST\03 - COST\COS Model for Pricing (5-11-24)\WP Plant - Net Plant Workpaper.xlsx | H5: WP Plant - 1a COS Inputs | I5: A:K | J5: NET_PLANT | K5: A:K | U5: Import Workbook Filename 1: | V5: =MID(F5,FIND("/",SUBSTITUTE(F5,"\","/",LEN(F5)-LEN(SUBSTITUTE(F5,"\",""))))+1,256) -> WP Plant - Net Plant Workpaper.xlsx
B7: =HYPERLINK("#"&J7&"!a1","Go To Data") -> Go To Data | C7: 2024-05-13T11:06:38 | D7: Casas, Abraham | E7: Reg Assets and Liabilities | F7: T:\01-General Rate Cases\24-xxxx-UT (2024 Rate Case)\03 - Rate Design and COST\03 - COST\COS Model for Pricing (5-11-24)\WP RA- Reg Asset & Liab Workpaper.xlsx | H7: WP RA-1, Base and Test | I7: A:BE | J7: Reg_AL | K7: A:BE | U7: ="Import Workbook Filename "&COUNTA($U$5:U6)+1&":" -> Import Workbook Filename 2: | V7: =MID(F7,FIND("/",SUBSTITUTE(F7,"\","/",LEN(F7)-LEN(SUBSTITUTE(F7,"\",""))))+1,256) -> WP RA- Reg Asset & Liab Workpaper.xlsx
B9: =HYPERLINK("#"&J9&"!a1","Go To Data") -> Go To Data | C9: 2024-05-13T11:08:34 | D9: Casas, Abraham | E9: Other Rate Base Items | F9: T:\01-General Rate Cases\24-xxxx-UT (2024 Rate Case)\03 - Rate Design and COST\03 - COST\COS Model for Pricing (5-11-24)\WP ORB- Other Rate Base Workpaper.xlsx | H9: WP ORB- 1 Base and Test Period | I9: A:AV | J9: OTH_RB | K9: A:AV | U9: ="Import Workbook Filename "&COUNTA($U$5:U8)+1&":" -> Import Workbook Filename 3: | V9: =MID(F9,FIND("/",SUBSTITUTE(F9,"\","/",LEN(F9)-LEN(SUBSTITUTE(F9,"\",""))))+1,256) -> WP ORB- Other Rate Base Workpaper.xlsx
B11: =HYPERLINK("#"&J11&"!a1","Go To Data") -> Go To Data | C11: 2024-05-13T11:11:16 | D11: Casas, Abraham | E11: Working Capital | F11: T:\01-General Rate Cases\24-xxxx-UT (2024 Rate Case)\03 - Rate Design and COST\03 - COST\COS Model for Pricing (5-11-24)\WP WC-Working Capital Workpaper.xlsx | H11: WP WC-1-COS Inputs | I11: A:L | J11: W_CAP | K11: A:L | U11: ="Import Workbook Filename "&COUNTA($U$5:U10)+1&":" -> Import Workbook Filename 4: | V11: =MID(F11,FIND("/",SUBSTITUTE(F11,"\","/",LEN(F11)-LEN(SUBSTITUTE(F11,"\",""))))+1,256) -> WP WC-Working Capital Workpaper.xlsx
B13: =HYPERLINK("#"&J13&"!a1","Go To Data") -> Go To Data | C13: 2024-05-13T11:15:57 | D13: Casas, Abraham | E13: O&M Fuel Test Period | F13: T:\01-General Rate Cases\24-xxxx-UT (2024 Rate Case)\03 - Rate Design and COST\03 - COST\COS Model for Pricing (5-11-24)\WP Fuel - Fuel Workpaper.xlsx | H13: WP Fuel-3-Test COS | I13: A:T | J13: FUEL_TEST | K13: A:T | U13: ="Import Workbook Filename "&COUNTA($U$5:U12)+1&":" -> Import Workbook Filename 5: | V13: =MID(F13,FIND("/",SUBSTITUTE(F13,"\","/",LEN(F13)-LEN(SUBSTITUTE(F13,"\",""))))+1,256) -> WP Fuel - Fuel Workpaper.xlsx
B15: =HYPERLINK("#"&J15&"!a1","Go To Data") -> Go To Data | C15: 2024-05-16T13:37:46 | D15: Casas, Abraham | E15: O&M Fuel Base Period | F15: T:\01-General Rate Cases\24-xxxx-UT (2024 Rate Case)\03 - Rate Design and COST\03 - COST\COS Model for Pricing (5-11-24)\Revised Fuel WP for BY\WP Fuel - Fuel Workpaper.xlsx | H15: WP Fuel-1-Base COS | I15: A:V | J15: FUEL_BASE | K15: A:V | U15: ="Import Workbook Filename "&COUNTA($U$5:U14)+1&":" -> Import Workbook Filename 6: | V15: =MID(F15,FIND("/",SUBSTITUTE(F15,"\","/",LEN(F15)-LEN(SUBSTITUTE(F15,"\",""))))+1,256) -> WP Fuel - Fuel Workpaper.xlsx
B17: =HYPERLINK("#"&J17&"!a1","Go To Data") -> Go To Data | C17: 2024-05-13T11:18:02 | D17: Casas, Abraham | E17: O&M | F17: T:\01-General Rate Cases\24-xxxx-UT (2024 Rate Case)\03 - Rate Design and COST\03 - COST\COS Model for Pricing (5-11-24)\WP OM - O&M Workpaper.xlsx | H17: WP OM-1 - COS Inputs | I17: A:I | J17: OM | K17: A:I | U17: ="Import Workbook Filename "&COUNTA($U$5:U16)+1&":" -> Import Workbook Filename 7: | V17: =MID(F17,FIND("/",SUBSTITUTE(F17,"\","/",LEN(F17)-LEN(SUBSTITUTE(F17,"\",""))))+1,256) -> WP OM - O&M Workpaper.xlsx
B19: =HYPERLINK("#"&J19&"!a1","Go To Data") -> Go To Data | C19: 2024-05-13T11:27:27 | D19: Casas, Abraham | E19: Depre & Amort Exp | F19: T:\01-General Rate Cases\24-xxxx-UT (2024 Rate Case)\03 - Rate Design and COST\03 - COST\COS Model for Pricing (5-11-24)\WP Plant - Net Plant Workpaper.xlsx | H19: WP Plant - 1b - DEP COS Inputs | I19: A:Q | J19: DEP_AMORT | K19: A:Q | U19: ="Import Workbook Filename "&COUNTA($U$5:U18)+1&":" -> Import Workbook Filename 8: | V19: =MID(F19,FIND("/",SUBSTITUTE(F19,"\","/",LEN(F19)-LEN(SUBSTITUTE(F19,"\",""))))+1,256) -> WP Plant - Net Plant Workpaper.xlsx
B21: =HYPERLINK("#"&J21&"!a1","Go To Data") -> Go To Data | C21: 2024-05-13T11:43:49 | D21: Casas, Abraham | E21: General Taxes | F21: T:\01-General Rate Cases\24-xxxx-UT (2024 Rate Case)\03 - Rate Design and COST\03 - COST\COS Model for Pricing (5-11-24)\WP GT - General Taxes Workpaper.xlsx | H21: WP GT 1 - COS Inputs | I21: A:L | J21: GEN_TAX | K21: A:L | U21: ="Import Workbook Filename "&COUNTA($U$5:U20)+1&":" -> Import Workbook Filename 9: | V21: =MID(F21,FIND("/",SUBSTITUTE(F21,"\","/",LEN(F21)-LEN(SUBSTITUTE(F21,"\",""))))+1,256) -> WP GT - General Taxes Workpaper.xlsx
B23: =HYPERLINK("#"&J23&"!a1","Go To Data") -> Go To Data | C23: 2024-05-14T11:37:55 | D23: Casas, Abraham | E23: Other Allowable Expense | F23: T:\01-General Rate Cases\24-xxxx-UT (2024 Rate Case)\03 - Rate Design and COST\03 - COST\COS Model for Pricing (5-11-24)\WP OA-Other Allowable Exp Workpaper.xlsx | H23: WP OA-1 | I23: A:N | J23: OTH_ALL | K23: A:N | U23: ="Import Workbook Filename "&COUNTA($U$5:U22)+1&":" -> Import Workbook Filename 10: | V23: =MID(F23,FIND("/",SUBSTITUTE(F23,"\","/",LEN(F23)-LEN(SUBSTITUTE(F23,"\",""))))+1,256) -> WP OA-Other Allowable Exp Workpaper.xlsx
B25: =HYPERLINK("#"&J25&"!a1","Go To Data") -> Go To Data | C25: 2024-05-13T11:14:25 | D25: Casas, Abraham | E25: Revenue Credits | F25: T:\01-General Rate Cases\24-xxxx-UT (2024 Rate Case)\03 - Rate Design and COST\03 - COST\COS Model for Pricing (5-11-24)\WP Revenue Credits.xlsx | H25: WP RC-1 Summary | I25: A:O | J25: REV_CR | K25: A:O | U25: ="Import Workbook Filename "&COUNTA($U$5:U24)+1&":" -> Import Workbook Filename 11: | V25: =MID(F25,FIND("/",SUBSTITUTE(F25,"\","/",LEN(F25)-LEN(SUBSTITUTE(F25,"\",""))))+1,256) -> WP Revenue Credits.xlsx
B27: =HYPERLINK("#"&J27&"!a1","Go To Data") -> Go To Data | C27: 2024-05-13T12:15:12 | D27: Casas, Abraham | E27: Labor | F27: T:\01-General Rate Cases\24-xxxx-UT (2024 Rate Case)\03 - Rate Design and COST\03 - COST\COS Model for Pricing (5-11-24)\WP LA - Labor Workpaper.xlsx | H27: WP-LA-1 PNM Summary | I27: A:AD | J27: LABOR | K27: A:AD | U27: ="Import Workbook Filename "&COUNTA($U$5:U26)+1&":" -> Import Workbook Filename 12: | V27: =MID(F27,FIND("/",SUBSTITUTE(F27,"\","/",LEN(F27)-LEN(SUBSTITUTE(F27,"\",""))))+1,256) -> WP LA - Labor Workpaper.xlsx
B29: =HYPERLINK("#"&J29&"!a1","Go To Data") -> Go To Data | C29: 2024-05-16T13:34:13 | D29: Casas, Abraham | E29: KTS-3 Base | F29: T:\01-General Rate Cases\24-xxxx-UT (2024 Rate Case)\03 - Rate Design and COST\03 - COST\COS Model for Pricing (5-11-24)\Revised KTS-3\Revised Base Year KTS-3 - WP COS\PNM Exhibit KTS-3 - WP COS.xlsx | H29: PNM Exhibit KTS-3 COS BASE | I29: A:Z | J29: KTS3_Base | K29: A:Z | U29: ="Import Workbook Filename "&COUNTA($U$5:U28)+1&":" -> Import Workbook Filename 13: | V29: =MID(F29,FIND("/",SUBSTITUTE(F29,"\","/",LEN(F29)-LEN(SUBSTITUTE(F29,"\",""))))+1,256) -> PNM Exhibit KTS-3 - WP COS.xlsx
B31: =HYPERLINK("#"&J31&"!a1","Go To Data") -> Go To Data | C31: 2024-05-13T11:04:15 | D31: Casas, Abraham | E31: KTS-3 Test | F31: T:\01-General Rate Cases\24-xxxx-UT (2024 Rate Case)\03 - Rate Design and COST\03 - COST\COS Model for Pricing (5-11-24)\Revised KTS-3\PNM Exhibit KTS-3 - WP COS.xlsx | H31: PNM Exhibit KTS-3 COS Test | I31: A:Z | J31: KTS3_Test | K31: A:Z | U31: ="Import Workbook Filename "&COUNTA($U$5:U30)+1&":" -> Import Workbook Filename 14: | V31: =MID(F31,FIND("/",SUBSTITUTE(F31,"\","/",LEN(F31)-LEN(SUBSTITUTE(F31,"\",""))))+1,256) -> PNM Exhibit KTS-3 - WP COS.xlsx
B33: =HYPERLINK("#"&J33&"!a1","Go To Data") -> Go To Data | U33: ="Import Workbook Filename "&COUNTA($U$5:U32)+1&":" -> Import Workbook Filename 15: | V33: =MID(F33,FIND("/",SUBSTITUTE(F33,"\","/",LEN(F33)-LEN(SUBSTITUTE(F33,"\",""))))+1,256) -> 
B35: =HYPERLINK("#"&J35&"!a1","Go To Data") -> Go To Data | U35: ="Import Workbook Filename "&COUNTA($U$5:U34)+1&":" -> Import Workbook Filename 16: | V35: =MID(F35,FIND("/",SUBSTITUTE(F35,"\","/",LEN(F35)-LEN(SUBSTITUTE(F35,"\",""))))+1,256) -> 
B37: =HYPERLINK("#"&J37&"!a1","Go To Data") -> Go To Data | U37: ="Import Workbook Filename "&COUNTA($U$5:U36)+1&":" -> Import Workbook Filename 17: | V37: =MID(F37,FIND("/",SUBSTITUTE(F37,"\","/",LEN(F37)-LEN(SUBSTITUTE(F37,"\",""))))+1,256) -> 
B39: =HYPERLINK("#"&J39&"!a1","Go To Data") -> Go To Data | U39: ="Import Workbook Filename "&COUNTA($U$5:U38)+1&":" -> Import Workbook Filename 18: | V39: =MID(F39,FIND("/",SUBSTITUTE(F39,"\","/",LEN(F39)-LEN(SUBSTITUTE(F39,"\",""))))+1,256) -> 
B41: =HYPERLINK("#"&J41&"!a1","Go To Data") -> Go To Data | U41: ="Import Workbook Filename "&COUNTA($U$5:U40)+1&":" -> Import Workbook Filename 19: | V41: =MID(F41,FIND("/",SUBSTITUTE(F41,"\","/",LEN(F41)-LEN(SUBSTITUTE(F41,"\",""))))+1,256) -> 
B43: =HYPERLINK("#"&J43&"!a1","Go To Data") -> Go To Data | U43: ="Import Workbook Filename "&COUNTA($U$5:U42)+1&":" -> Import Workbook Filename 20: | V43: =MID(F43,FIND("/",SUBSTITUTE(F43,"\","/",LEN(F43)-LEN(SUBSTITUTE(F43,"\",""))))+1,256) -> 
B45: =HYPERLINK("#"&J45&"!a1","Go To Data") -> Go To Data | U45: ="Import Workbook Filename "&COUNTA($U$5:U44)+1&":" -> Import Workbook Filename 21: | V45: =MID(F45,FIND("/",SUBSTITUTE(F45,"\","/",LEN(F45)-LEN(SUBSTITUTE(F45,"\",""))))+1,256) -> 
B47: =HYPERLINK("#"&J47&"!a1","Go To Data") -> Go To Data | U47: ="Import Workbook Filename "&COUNTA($U$5:U46)+1&":" -> Import Workbook Filename 22: | V47: =MID(F47,FIND("/",SUBSTITUTE(F47,"\","/",LEN(F47)-LEN(SUBSTITUTE(F47,"\",""))))+1,256) -> 
B49: =HYPERLINK("#"&J49&"!a1","Go To Data") -> Go To Data | U49: ="Import Workbook Filename "&COUNTA($U$5:U48)+1&":" -> Import Workbook Filename 23: | V49: =MID(F49,FIND("/",SUBSTITUTE(F49,"\","/",LEN(F49)-LEN(SUBSTITUTE(F49,"\",""))))+1,256) -> 
B51: =HYPERLINK("#"&J51&"!a1","Go To Data") -> Go To Data | U51: ="Import Workbook Filename "&COUNTA($U$5:U50)+1&":" -> Import Workbook Filename 24: | V51: =MID(F51,FIND("/",SUBSTITUTE(F51,"\","/",LEN(F51)-LEN(SUBSTITUTE(F51,"\",""))))+1,256) -> 
B53: =HYPERLINK("#"&J53&"!a1","Go To Data") -> Go To Data | U53: ="Import Workbook Filename "&COUNTA($U$5:U52)+1&":" -> Import Workbook Filename 25: | V53: =MID(F53,FIND("/",SUBSTITUTE(F53,"\","/",LEN(F53)-LEN(SUBSTITUTE(F53,"\",""))))+1,256) -> 
B55: =HYPERLINK("#"&J55&"!a1","Go To Data") -> Go To Data | U55: ="Import Workbook Filename "&COUNTA($U$5:U54)+1&":" -> Import Workbook Filename 26: | V55: =MID(F55,FIND("/",SUBSTITUTE(F55,"\","/",LEN(F55)-LEN(SUBSTITUTE(F55,"\",""))))+1,256) -> 
B57: =HYPERLINK("#"&J57&"!a1","Go To Data") -> Go To Data | U57: ="Import Workbook Filename "&COUNTA($U$5:U56)+1&":" -> Import Workbook Filename 27: | V57: =MID(F57,FIND("/",SUBSTITUTE(F57,"\","/",LEN(F57)-LEN(SUBSTITUTE(F57,"\",""))))+1,256) -> 
B59: =HYPERLINK("#"&J59&"!a1","Go To Data") -> Go To Data | U59: ="Import Workbook Filename "&COUNTA($U$5:U58)+1&":" -> Import Workbook Filename 28: | V59: =MID(F59,FIND("/",SUBSTITUTE(F59,"\","/",LEN(F59)-LEN(SUBSTITUTE(F59,"\",""))))+1,256) -> 
B61: =HYPERLINK("#"&J61&"!a1","Go To Data") -> Go To Data | U61: ="Import Workbook Filename "&COUNTA($U$5:U60)+1&":" -> Import Workbook Filename 29: | V61: =MID(F61,FIND("/",SUBSTITUTE(F61,"\","/",LEN(F61)-LEN(SUBSTITUTE(F61,"\",""))))+1,256) -> 
B63: =HYPERLINK("#"&J63&"!a1","Go To Data") -> Go To Data | U63: ="Import Workbook Filename "&COUNTA($U$5:U62)+1&":" -> Import Workbook Filename 30: | V63: =MID(F63,FIND("/",SUBSTITUTE(F63,"\","/",LEN(F63)-LEN(SUBSTITUTE(F63,"\",""))))+1,256) -> 
A66: IMPORT INSTRUCTIONS:
A67: The COST Model does not have links to outside files so data files must be loaded through the IMPORT tool. For the PNM Rate Case, if changes are
A68: made to individual workpapers and the KTS3 Revenue Requirement, then both must be uploaded for there to be consistent results.
A69: To load new files, the user must first click the Browse button to the left. A Windows dialog will open allowing the user to click on the new file.
A70: Column F will populate with the file path. The As Filed model currently shows the Excel file names for the appropriate workpapers. The info in Columns
A71: H-K should not need to be updated and are preset for the reference workpaper. Once the file pathname is set, the user then hits the Load
A72: button to load the file. The Macro will open the file, the user may get various notifications as it opens such as read only (click Read Only) and to update links (click Continue).
A73: Once the updated workpaper and the KTS3 are uploaded, the user can go to the Checks tab to see if the data is flowing accurately. On the Checks
A74: tab, if Column I has any number other than zero then retry to load the workpaper and the KTS3. If that fails to resolve the issue contact PNM.
A75: If Checks tab column G shows any value other than 0, contact PNM.
O5434: FUNCTION | P5434: SUBFUNCTION | Q5434: RATE
O5435: Production | P5435: Demand Production | Q5435: ALL OTHER
O5436: Transmission | P5436: Demand Production (RES) | Q5436: M-20
O5437: Distribution | P5437: Demand Production (Step-Up Txf Adj) | Q5437: STREET LIGHTING
O5438: Customer and Sales | P5438: Ancillary Services | Q5438: DUSK TO DAWN
O5439: System Benefits | P5439: Anc Serv - Scheduling and Dispatch | Q5439: PL-2
O5440: Wages & Salaries | P5440: Energy Production | Q5440: PL-3D TOU (0-20 kW)
O5441: P T & D | P5441: Energy Production - Fuel & PP | Q5441: PL-3 TOU
O5442: P T & D less Land | P5442: Energy Production - Fuel & PP (AG-1 GSP) | Q5442: PL-4 TOU
O5443: Specific | P5443: System Benefit (Solar) | Q5443: LPL-5 TOU
P5444: Demand Trans. Substation | Q5444: School TOU
P5445: Demand Trans. Lines | Q5445: PL-3
P5446: 562-564 Misc | Q5446: PL-3D
P5447: 569-572 Misc | Q5447: PL-4
P5448: Demand Trans. Util | Q5448: LPL-5
P5449: Demand Trans. (Step-Up Txf Adj) | Q5449: LPL-6
P5450: Demand - Substation | Q5450: LPL-7
P5451: Demand - OH Primary | Q5451: Residential Solar (Energy Rates)
P5452: Demand - OH Secondary | Q5452: Residential Solar (Demand Rates)
P5453: Demand - UG Primary | Q5453: Residential R1
P5454: Demand - UG Secondary | Q5454: Residential RT1
P5455: Demand - OH Transformer | Q5455: RESIDENTIAL RC1
P5456: Demand - UG Transformer | Q5456: NA
P5457: Demand - OH and UG Transformer | Q5457: APS
P5458: Demand - Rents
P5459: Services - OH
P5460: Services - UG
P5461: OH Primary/Secondary/Services
P5462: UG Primary/Secondary/Services
P5463: 580-589 Misc
P5464: 590-598 Misc
P5465: Meters
P5466: Dusk to Dawn
P5467: Street Lighting
P5468: Customer Accounts (Distribution)
P5469: Customer Service & Information
P5470: Customer Service & Information (DSM)
P5471: Sales
P5472: E-3 & E-4 Discount
P5473: System Benefits (Limited Income)
P5474: System Benefits (FC and Coal REC)
P5475: System Benefits (ISFSI)
P5476: System Benefits (DSM)
P5477: System Benefits (Solar & Res)
P5478: Wages & Salaries
P5479: Production
P5480: Production less Land
P5481: Transmission
P5482: Transmission less Land
P5483: Distribution
P5484: Distribution less Land
P5485: P T & D
P5486: P T & D less Land
P5487: NA
O5734: FUNCTION | P5734: SUBFUNCTION | Q5734: RATE
O5735: Production | P5735: Demand Production | Q5735: ALL OTHER
O5736: Transmission | P5736: Demand Production (RES) | Q5736: M-20
O5737: Distribution | P5737: Demand Production (Step-Up Txf Adj) | Q5737: STREET LIGHTING
O5738: Customer and Sales | P5738: Ancillary Services | Q5738: DUSK TO DAWN
O5739: System Benefits | P5739: Anc Serv - Scheduling and Dispatch | Q5739: PL-2
O5740: Wages & Salaries | P5740: Energy Production | Q5740: PL-3D TOU (0-20 kW)
O5741: P T & D | P5741: Energy Production - Fuel & PP | Q5741: PL-3 TOU
O5742: P T & D less Land | P5742: Energy Production - Fuel & PP (AG-1 GSP) | Q5742: PL-4 TOU
O5743: Specific | P5743: System Benefit (Solar) | Q5743: LPL-5 TOU
P5744: Demand Trans. Substation | Q5744: School TOU
P5745: Demand Trans. Lines | Q5745: PL-3
P5746: 562-564 Misc | Q5746: PL-3D
P5747: 569-572 Misc | Q5747: PL-4
P5748: Demand Trans. Util | Q5748: LPL-5
P5749: Demand Trans. (Step-Up Txf Adj) | Q5749: LPL-6
P5750: Demand - Substation | Q5750: LPL-7
P5751: Demand - OH Primary | Q5751: Residential Solar (Energy Rates)
P5752: Demand - OH Secondary | Q5752: Residential Solar (Demand Rates)
P5753: Demand - UG Primary | Q5753: Residential R1
P5754: Demand - UG Secondary | Q5754: Residential RT1
P5755: Demand - OH Transformer | Q5755: RESIDENTIAL RC1
P5756: Demand - UG Transformer | Q5756: NA
P5757: Demand - OH and UG Transformer | Q5757: APS
P5758: Demand - Rents
P5759: Services - OH
P5760: Services - UG
P5761: OH Primary/Secondary/Services
P5762: UG Primary/Secondary/Services
P5763: 580-589 Misc
P5764: 590-598 Misc
P5765: Meters
P5766: Dusk to Dawn
P5767: Street Lighting
P5768: Customer Accounts (Distribution)
P5769: Customer Service & Information
P5770: Customer Service & Information (DSM)
P5771: Sales
P5772: E-3 & E-4 Discount
P5773: System Benefits (Limited Income)
P5774: System Benefits (FC and Coal REC)
P5775: System Benefits (ISFSI)
P5776: System Benefits (DSM)
P5777: System Benefits (Solar & Res)
P5778: Wages & Salaries
P5779: Production
P5780: Production less Land
P5781: Transmission
P5782: Transmission less Land
P5783: Distribution
P5784: Distribution less Land
P5785: P T & D
P5786: P T & D less Land
P5787: NA
O6034: FUNCTION | P6034: SUBFUNCTION | Q6034: RATE
O6035: Production | P6035: Demand Production | Q6035: ALL OTHER
O6036: Transmission | P6036: Demand Production (RES) | Q6036: M-20
O6037: Distribution | P6037: Demand Production (Step-Up Txf Adj) | Q6037: STREET LIGHTING
O6038: Customer and Sales | P6038: Ancillary Services | Q6038: DUSK TO DAWN
O6039: System Benefits | P6039: Anc Serv - Scheduling and Dispatch | Q6039: PL-2
O6040: Wages & Salaries | P6040: Energy Production | Q6040: PL-3D TOU (0-20 kW)
O6041: Wages & Salaries less Trans. | P6041: Energy Production - Fuel & PP | Q6041: PL-3 TOU
O6042: P T & D | P6042: Energy Production - Fuel & PP (AG-1 GSP)
O6043: P T & D less Land | P6043: System Benefit (Solar)
O6044: P & D | P6044: Demand Trans. Substation
O6045: Specific | P6045: Demand Trans. Lines
P6046: Demand Trans. Util | Q6046: PL-3D
P6047: Demand Trans. (Step-Up Txf Adj) | Q6047: PL-4
P6048: Demand - Substation | Q6048: LPL-5
P6049: Demand - OH Primary | Q6049: LPL-6
P6050: Demand - OH Secondary | Q6050: LPL-7
P6051: Demand - UG Primary | Q6051: Residential Solar (Energy Rates)
P6052: Demand - UG Secondary | Q6052: Residential Solar (Demand Rates)
P6053: Demand - OH Transformer | Q6053: Residential R1
P6054: Demand - UG Transformer | Q6054: Residential RT1
P6055: Demand - OH and UG Transformer | Q6055: RESIDENTIAL RC1
P6056: Demand - Rents | Q6056: NA
P6057: Services - OH | Q6057: APS
P6058: Services - UG
P6059: OH Primary/Secondary/Services
P6060: UG Primary/Secondary/Services
P6061: 580-589 Misc
P6062: 590-598 Misc
P6063: Meters
P6064: Dusk to Dawn
P6065: Street Lighting
P6066: Customer Accounts (Distribution)
P6067: Customer Service & Information
P6068: Customer Service & Information (DSM)
P6069: Sales
P6070: E-3 & E-4 Discount
P6071: System Benefits (Limited Income)
P6072: System Benefits (FC and Coal REC)
P6073: System Benefits (ISFSI)
P6074: System Benefits (DSM)
P6075: System Benefits (Solar & Res)
P6076: System Benefits (Decom. Fund)
P6077: Wages & Salaries
P6078: Wages & Salaries less Trans.
P6079: Production
P6080: Production less Land
P6081: Transmission
P6082: Transmission less Land
... 557 more rows

Sheet Issues (hidden)
A1: No. | B1: Issue Description
A2: 1
A3: =+MAX(A$2:A2)+1 -> 2
A4: =+MAX(A$2:A3)+1 -> 3
A5: =+MAX(A$2:A4)+1 -> 4
A6: =+MAX(A$2:A5)+1 -> 5
A7: =+MAX(A$2:A6)+1 -> 6
A8: =+MAX(A$2:A7)+1 -> 7
A9: =+MAX(A$2:A8)+1 -> 8
A10: =+MAX(A$2:A9)+1 -> 9
A11: =+MAX(A$2:A10)+1 -> 10
A12: =+MAX(A$2:A11)+1 -> 11
A13: =+MAX(A$2:A12)+1 -> 12
A14: =+MAX(A$2:A13)+1 -> 13
A15: =+MAX(A$2:A14)+1 -> 14
A16: =+MAX(A$2:A15)+1 -> 15
A17: =+MAX(A$2:A16)+1 -> 16
A18: =+MAX(A$2:A17)+1 -> 17
A19: =+MAX(A$2:A18)+1 -> 18
A20: =+MAX(A$2:A19)+1 -> 19
A21: =+MAX(A$2:A20)+1 -> 20
A22: =+MAX(A$2:A21)+1 -> 21
A23: =+MAX(A$2:A22)+1 -> 22
A24: =+MAX(A$2:A23)+1 -> 23
A25: =+MAX(A$2:A24)+1 -> 24
A26: =+MAX(A$2:A25)+1 -> 25
A27: =+MAX(A$2:A26)+1 -> 26
A28: =+MAX(A$2:A27)+1 -> 27
A29: =+MAX(A$2:A28)+1 -> 28
A30: =+MAX(A$2:A29)+1 -> 29
A31: =+MAX(A$2:A30)+1 -> 30
A32: =+MAX(A$2:A31)+1 -> 31
A33: =+MAX(A$2:A32)+1 -> 32
A34: =+MAX(A$2:A33)+1 -> 33
A35: =+MAX(A$2:A34)+1 -> 34
A36: =+MAX(A$2:A35)+1 -> 35
A37: =+MAX(A$2:A36)+1 -> 36
A38: =+MAX(A$2:A37)+1 -> 37
A39: =+MAX(A$2:A38)+1 -> 38
A40: =+MAX(A$2:A39)+1 -> 39
A41: =+MAX(A$2:A40)+1 -> 40
A42: =+MAX(A$2:A41)+1 -> 41
A43: =+MAX(A$2:A42)+1 -> 42

Sheet Control
B2: Company | C2: PUBLIC SERVICE OF NEW MEXICO | G2: Test Year Title | H2: Test Period: July 2025 - June 2026
B3: Title | C3: =IF(switch_testbase="Test",H2,H3) -> Test Period: July 2025 - June 2026 | G3: Base Year Title | H3: Base Period: Calendar Year 2023
B4: Test/Base | C4: Test | K4: Scenarios
K5: Source | L5: =MID(CELL("filename",Cost_of_Service!A1),FIND("]",CELL("filename",Cost_of_Service!A1))+1,255) -> Cost_of_Service
C6: TEST YEAR | G6: BASE YEAR | K6: Base Case | L6: =MID(CELL("filename",Base_Case!A1),FIND("]",CELL("filename",Base_Case!A1))+1,255) -> Base_Case
B7: Weighted Cost of Capital | C7: FROM KTS3-TEST | D7: OVERRIDE | E7: Weighted Cost | G7: FROM KTS3-BASE | H7: OVERRIDE | I7: Weighted Cost | K7: Scenario Sheet | L7: =MID(CELL("filename",Scenario!A1),FIND("]",CELL("filename",Scenario!A1))+1,255) -> Scenario
B8: Common Equity | C8: =Source_Mapping!I590 -> 0.05486249655 | E8: =IF(ISBLANK(D8),C8,D8) -> 0.05486249655 | G8: =Source_Mapping!I593 -> 0.04641828972 | I8: =IF(ISBLANK(H8),G8,H8) -> 0.04641828972
B9: Preferred Stock | C9: =Source_Mapping!I589 -> 0.0001121873685 | E9: =IF(ISBLANK(D9),C9,D9) -> 0.0001121873685 | G9: =Source_Mapping!I592 -> 0.0001368694413 | I9: =IF(ISBLANK(H9),G9,H9) -> 0.0001368694413
B10: Long Term Debt | C10: =Source_Mapping!I588 -> 0.02004409239 | E10: 0.02004409239 | G10: =Source_Mapping!I591 -> 0.01720287308 | I10: 0.01720287308
B11: Total / Requested ROR | E11: =SUM(E8:E10) -> 0.07501877631 | I11: =SUM(I8:I10) -> 0.06375803224
B13: Long Term Debt Rate
B15: Tax Rates
B16: Revenue Tax Rate | C16: 0.00508573
B18: State Tax Rate | C18: 0.05571293673
B19: State Tax Factor | C19: =+C18/(1-C18) -> 0.059
B21: Federal Tax Rate | C21: 0.21
B22: Federal Tax Factor | C22: =+C21/(1-C21) -> 0.2658227848
B23: 1 - Incremental Tax Rate | C23: =1-C22 -> 0.7341772152
B48: Weighted Customer/Energy Allocator
B49: Annual Customers | C49: 0.8
B50: Annual kWh @ Meter | C50: =1-C49 -> 0.2
B52: Average Demand Calculation Annual Hours | C52: 8760
B55: FUNCTIONAL ALLOCATORS | E55: Production-Demand | F55: Production-Energy-Fuel | G55: Production-Energy-Non-Fuel | H55: Storage-Production-Demand | I55: Storage-Transmission-Demand | J55: Storage-Distribution-Demand-Subs | K55: Storage-Distribution-Demand-Primary | L55: Storage-Distribution-Demand-Secondary | M55: Transmission-Demand | N55: Distribution-Demand-Subs | O55: Distribution-Demand-Primary | P55: Distribution-Demand-Secondary | Q55: Distribution-Customer-Services | R55: Distribution-Customer-Meters | S55: Distribution-Customer-Meter Reading | T55: Distribution-Customer-Billing & Collections | U55: Distribution-Customer-Service & Info | V55: Distribution-Customer-Other
B56: STORAGE_Transmission Integrated | C56: DISPATCHABLE STORAGE FUNCTIONAL ALLOCATOR | D56: =SUM(E56:V56) -> 1 | H56: 0.67 | I56: 0.3 | J56: 0.01 | K56: 0.01 | L56: 0.01
B57: STORAGE_Distribution Integrated | C57: DISPATCHABLE STORAGE FUNCTIONAL ALLOCATOR Distribution Integrated | D57: =SUM(E57:V57) -> 1 | H57: 0.7 | J57: 0.06059579744 | K57: 0.2394042026

Sheet INFO (hidden)
A2: Pricing@PNM
A5: Sheets to Lock/Unlock
A6: COPYRIGHT | C6: =IFERROR(INDEX(MID(sheetnames,FIND("]",sheetnames)+1,255),ROWS(A$1:A1)),"") -> 
A7: Navigation
A8: For Rate Design
A9: Control
A10: KTS3_BaseAdj
A11: KTS3_Test
A12: Functionalization
A13: Class_Factors
A14: Func_Factors
A15: Source_Mapping
A16: Scenario_Control
A17: Scenario
A18: Base_Case
A19: Imports>>>
A20: FUNC_ALLOC_BASE
A21: FUNC_ALLOC_TEST
A22: NET_PLANT
A23: ADIT
A24: REG_AL
A25: OTH_RB
A26: W_CAP
A27: OM
A28: LABOR
A29: FUEL_TEST
A30: FUEL_BASE
A31: DEP_AMORT
A32: GEN_TAX
A33: OTH_ALL
A34: REV_CR
A35: TAX_ADJ_TEST
A36: TAX_ADJ_BASE
A37: CLASS_ALLOC_TEST
A38: CLASS_ALLOC_BASE
A39: REV_OP_BASE
A40: REV_OP_TEST
A57: =COUNTIF(A6:A56,"*") -> 35

Sheet Print_Control
A1: Single Entity
D4: Print? | F4: Repeat | G4: Repeat
A5: Schedule | B5: Tab | C5: Active | D5: (TRUE/FALSE) | E5: Range | F5: Columns | G5: Rows | H5: Orient | I5: Zoom | J5: Exhibit | K5: Title
A6: Cost of Service | B6: Cost_of_Service | E6: B3:V13450 | F6: B:C | G6: 3:4 | H6: Landscape | I6: 46 | J6: AC-4 | K6: Cost_of_Service
A7: Functionalization | B7: Functionalization | E7: B2:V838 | F7: B:D | G7: 2:3 | H7: Landscape | I7: 43 | J7: AC-4 | K7: Functionalization
A8: Class Factors | B8: Class_Factors | E8: A2:V459 | F8: A:C | G8: 2:3 | H8: Landscape | I8: 45 | J8: AC-4 | K8: Class_Factors
A9: Functional Allocators | B9: Func_Factors | E9: A2:V276 | F9: A:C | G9: 2:3 | H9: Landscape | I9: 45 | J9: AC-4 | K9: Func_Factors
A10: Copyright | B10: COPYRIGHT | E10: A1:I24 | F10: A:B | G10: 1:2 | H10: Landscape | I10: 60 | J10: AC-4 | K10: COPYRIGHT
A11: Functional Allocator Data | B11: FUNC_ALLOC_BASE | E11: B2:H15 | F11: A:A | G11: 1:1 | H11: Landscape | I11: 90
A12: Functional Allocator Data | B12: FUNC_ALLOC_TEST | E12: B2:I15 | F12: A:A | G12: 1:1 | H12: Landscape | I12: 90
A13: Net Plant | B13: NET_PLANT | E13: A1:K89 | F13: A:A | G13: 1:7 | H13: Landscape | I13: 55
A14: Reg Assets and Liabilities | B14: REG_AL | E14: A1:BD69 | F14: A:A | G14: 1:1 | H14: Landscape | I14: 47
A15: Other Rate Base Items | B15: OTH_RB | E15: A1:AU33 | F15: A:A | G15: 1:1 | H15: Landscape | I15: 60
A16: Working Capital | B16: W_CAP | E16: A1:L30 | F16: A:A | G16: 1:1 | H16: Landscape | I16: 55
A17: O&M | B17: OM | D17: TRUE | E17: A1:I151 | F17: A:A | G17: 1:6 | H17: Landscape | I17: 43
A18: Labor | B18: LABOR | D18: TRUE | E18: A1:AD443 | F18: A:A | G18: 1:9 | H18: Landscape | I18: 53
A19: O&M Fuel Test Period | B19: FUEL_TEST | D19: TRUE | E19: A1:V52 | F19: A:B | G19: 1:6 | H19: Landscape | I19: 60
A20: O&M Fuel Base Period | B20: FUEL_BASE | D20: TRUE | E20: A1:V47 | F20: A:B | G20: 1:6 | H20: Landscape | I20: 60
A21: Depr & Amort Exp | B21: DEP_AMORT | D21: TRUE | E21: A1:Q59 | F21: A:A | G21: 1:1 | H21: Landscape | I21: 44
A22: General Taxes | B22: GEN_TAX | D22: TRUE | E22: A1:L78 | F22: A:A | G22: 1:5 | H22: Landscape | I22: 55
A23: Other Allowable Expense | B23: OTH_ALL | D23: TRUE | E23: A1:N38 | F23: A:B | G23: 1:7 | H23: Landscape | I23: 51
A24: Revenue Credits | B24: REV_CR | D24: TRUE | E24: A1:O63 | F24: A:B | G24: 1:6 | H24: Landscape | I24: 43
A25: Class Allocation Test | B25: CLASS_ALLOC_TEST | D25: TRUE | E25: A1:R25 | F25: A:C | G25: 1:2 | H25: Landscape | I25: 68
A26: Class Allocation Base | B26: CLASS_ALLOC_BASE | D26: TRUE | E26: A1:R22 | F26: A:C | G26: 1:2 | H26: Landscape | I26: 68
A27: Revenue Base | B27: REV_OP_BASE | D27: TRUE | E27: A1:T5 | F27: A:C | G27: 1:2 | H27: Landscape | I27: 65
A28: Revenue Test | B28: REV_OP_TEST | D28: TRUE | E28: A1:T8 | F28: A:C | G28: 1:2 | H28: Landscape | I28: 61
A29: Revenue Rqmt Base | B29: KTS3_Base | D29: TRUE | E29: A1:M833 | F29: A:E | G29: 1:3 | H29: Landscape | I29: 50
A30: Revenue Rqmt Test | B30: KTS3_Test | D30: TRUE | E30: A1:O833 | F30: A:E | G30: 1:3 | H30: Landscape | I30: 48
B53: Report Count | D53: =COUNTIF(B6:B51,"*") -> 25

Sheet Checks
B1: KTS3_Base | C1: KTS3_Test | E1: =title -> Test Period: July 2025 - June 2026 | I1: Compare
A2: Source Column | B2: H:H | C2: J:J | E2: Cost_of_Service | F2: Functionalization | G2: Compare Cost_of_Service | I2: KTS3 to Cost of Service
A3: Source Description | B3: C:C | C3: C:C | G3: to Functionalization
A6: Total Net Plant | B6: =INDEX(INDIRECT(B$1&"!"&B$2),MATCH($A6,INDIRECT(B$1&"!"&B$3),0)) -> 2883931490 | C6: 3318012295 | E6: =Cost_of_Service!G14 -> 3318012295 | F6: =Functionalization!I56 -> 3318012295 | G6: =E6-F6 -> 0 | I6: =IF(switch_testbase="TEST",C6-E6,B6-E6) -> -9.536743164e-07
A7: Total Accumulated Deferred Income Taxes | B7: -607554159.6 | C7: -610864609.6 | E7: =Cost_of_Service!G15 -> -610864609.6 | F7: =Functionalization!I159 -> -610864609.6 | G7: =E7-F7 -> 0 | I7: 0
A8: Total Regulatory Assets & Liabilities | B8: -53631457.13 | C8: -30134885.98 | E8: =Cost_of_Service!G16 -> -30134885.98 | F8: =Functionalization!I190 -> -30134885.98 | G8: 6.332993507e-08 | I8: -6.332993507e-08
A9: Total Other Rate Base Items | B9: 131699070 | C9: 152620105 | E9: =Cost_of_Service!G17 -> 152620105 | F9: =Functionalization!I219 -> 152620105 | G9: 0 | I9: 5.960464478e-08
A10: Total Working Capital | B10: 146503105.4 | C10: 153316343.1 | E10: =Cost_of_Service!G18 -> 153316343.1 | F10: =Functionalization!I243 -> 153316343.1 | G10: 0 | I10: -2.980232239e-08
A11: Total Net Original Cost Rate Base | B11: 2500948048 | C11: 2982949247 | E11: =Cost_of_Service!G19 -> 2982949247 | F11: =Functionalization!I250 -> 2982949247 | G11: 0 | I11: -4.768371582e-07
A13: Total Fuel (net OSS) | B13: =INDEX(INDIRECT(B$1&"!"&B$2),MATCH($A13,INDIRECT(B$1&"!"&B$3),0)) -> 159424717.5 | C13: 268805228 | E13: =Cost_of_Service!G29 -> 268805228 | F13: =Functionalization!I303 -> 268805228 | G13: =E13-F13 -> 0 | I13: =IF(switch_testbase="TEST",C13-E13,B13-E13) -> 5.960464478e-08
A14: Total Operations & Maintenance Expense | B14: 332139848.2 | C14: 367466067.7 | E14: =Cost_of_Service!G49-E13 -> 367466067.7 | F14: =Functionalization!I460 -> 367466067.7 | G14: 0 | I14: -1.192092896e-07
A15: Total Depreciation and Amortization Expense | B15: 162199237.1 | C15: 220062862.1 | E15: =Cost_of_Service!G57 -> 220062862.1 | F15: =Functionalization!I511 -> 220062862.1 | G15: 0 | I15: -2.980232239e-08
A16: Total General Taxes | B16: 35258752.18 | C16: 42651651.24 | E16: =Cost_of_Service!G63 -> 42651651.24 | F16: =Functionalization!I583 -> 42651651.24 | G16: 0 | I16: 7.450580597e-09
A17: Total Other Allowable Expenses | B17: 10399715.38 | C17: 22840959.22 | E17: =Cost_of_Service!G65 -> 22840959.22 | F17: =Functionalization!I618 -> 22840959.22 | G17: 0 | I17: -3.725290298e-09
A18: Total Operating Expenses | B18: 699422270.4 | C18: 921826768.3 | E18: =SUM(E13:E17) -> 921826768.3 | F18: =Functionalization!I620 -> 921826768.3 | G18: 0 | I18: -1.192092896e-07
A20: Net Allowable State Income Tax | B20: =INDEX(INDIRECT(B$1&"!"&B$2),MATCH($A20,INDIRECT(B$1&"!"&B$3),0)) -> 7080831.873 | C20: 9515701.129 | E20: =Cost_of_Service!G104 -> 9515701.129 | F20: =Functionalization!I772 -> 9515701.129 | G20: =E20-F20 -> 0.000241972506 | I20: =IF(switch_testbase="TEST",C20-E20,B20-E20) -> -0.0002419743687
A21: Net Allowable Federal Income Tax | B21: 12150086.68 | C21: 16213365.66 | E21: =Cost_of_Service!G105 -> 16213365.66 | F21: =Functionalization!I753 -> 16213365.66 | G21: 0.0008612591773 | I21: =IF(switch_testbase="TEST",C21-E21,B21-E21) -> -0.0008612591773
A22: Revenue Tax | B22: 4194317.47 | C22: 5667768.779 | E22: =Cost_of_Service!G100 -> 5667768.78 | F22: =Functionalization!I789 -> 5667768.779 | G22: 2.208910882e-05 | I22: =IF(switch_testbase="TEST",C22-E22,B22-E22) -> -2.20881775e-05
A23: Total Revenue Credits | B23: -52518324.54 | C23: -56157274.12 | E23: =Cost_of_Service!G5168 -> -56157274.12 | F23: =Functionalization!I276 -> -56157274.12 | G23: 0 | I23: =IF(switch_testbase="TEST",C23-E23,B23-E23) -> 7.450580597e-09
A25: NON-FUEL REVENUE REQUIREMENT | B25: =INDEX(INDIRECT(B$1&"!"&B$2),MATCH($A25,INDIRECT(B$1&"!"&"A:A"),0)) -> 669492396.8 | C25: 851308014.6 | E25: =Cost_of_Service!G91 -> 851308014.6 | F25: =Functionalization!I793 -> 851308014.6 | G25: 0.004365563393 | I25: =IF(switch_testbase="TEST",C25-E25,B25-E25) -> -0.004365324974
A26: FUEL REVENUE REQUIREMENT | B26: 159424717.5 | C26: 268805228 | E26: =Cost_of_Service!G92 -> 268805228 | F26: =Functionalization!I792 -> 268805228 | G26: 0 | I26: =IF(switch_testbase="TEST",C26-E26,B26-E26) -> 5.960464478e-08
A27: TOTAL REVENUE REQUIREMENT | B27: 828917114.3 | C27: 1120113243 | E27: =E25+E26 -> 1120113243 | F27: =F25+F26 -> 1120113243 | G27: 0.004365444183 | I27: =IF(switch_testbase="TEST",C27-E27,B27-E27) -> -0.004365205765
A32: =HYPERLINK("#"&A34&"!a1","Go To Data") -> Go To Data
A33: DATA CHECK
A34: NET_PLANT | B34: <----Set to WP Tab
B35: WORKPAPER | G35: SOURCE MAPPING
B36: DATA | C36: ITEMS | G36: DATA | H36: ITEMS
B37: =IFERROR(INDEX(INDIRECT(A$34&"!"&INDEX(Source_Mapping!C:C,MATCH(A$34,Source_Mapping!B:B,0),1)),MATCH(C37,INDIRECT(A$34&"!"&INDEX(Source_Mapping!D:D,MATCH(A$34,Source_Mapping!B:B,0),1)),0),1),0) -> 0 | C37: =_xlfn.UNIQUE(INDIRECT(A34&"!"&INDEX(Source_Mapping!D:D,MATCH(A34,Source_Mapping!B:B,0),1)),,) -> 0 | G37: =_xlfn._xlws.FILTER(Source_Mapping!I:I,Source_Mapping!B:B=A34) -> 230775053.1 | H37: =_xlfn._xlws.FILTER(Source_Mapping!G:G,Source_Mapping!B:B=A34) -> Steam Production Net Plant | Q37: NET_PLANT
A38: =IF(ISBLANK(C38),"",IFERROR(MATCH(C38,_xlfn.ANCHORARRAY(H$37),0),"CHECK")) -> 1 | B38: =IFERROR(INDEX(INDIRECT(A$34&"!"&INDEX(Source_Mapping!C:C,MATCH(A$34,Source_Mapping!B:B,0),1)),MATCH(C38,INDIRECT(A$34&"!"&INDEX(Source_Mapping!D:D,MATCH(A$34,Source_Mapping!B:B,0),1)),0),1),0) -> 230775053.1 | C38: Steam Production Net Plant | G38: 347311437.3 | H38: Nuclear Production Net Plant - Palo Verde | Q38: REG_AL
A39: 2 | B39: =IFERROR(INDEX(INDIRECT(A$34&"!"&INDEX(Source_Mapping!C:C,MATCH(A$34,Source_Mapping!B:B,0),1)),MATCH(C39,INDIRECT(A$34&"!"&INDEX(Source_Mapping!D:D,MATCH(A$34,Source_Mapping!B:B,0),1)),0),1),0) -> 347311437.3 | C39: Nuclear Production Net Plant - Palo Verde | G39: 0 | H39: Nuclear Production Net Plant - Acq Adj (Drexel) | Q39: OTH_RB
A40: 3 | B40: =IFERROR(INDEX(INDIRECT(A$34&"!"&INDEX(Source_Mapping!C:C,MATCH(A$34,Source_Mapping!B:B,0),1)),MATCH(C40,INDIRECT(A$34&"!"&INDEX(Source_Mapping!D:D,MATCH(A$34,Source_Mapping!B:B,0),1)),0),1),0) -> 0 | C40: Nuclear Production Net Plant - Acq Adj (Drexel) | G40: 16779747.27 | H40: Nuclear Production Net Plant - Acq Adj (First Chicago) | Q40: W_CAP
A41: 4 | B41: =IFERROR(INDEX(INDIRECT(A$34&"!"&INDEX(Source_Mapping!C:C,MATCH(A$34,Source_Mapping!B:B,0),1)),MATCH(C41,INDIRECT(A$34&"!"&INDEX(Source_Mapping!D:D,MATCH(A$34,Source_Mapping!B:B,0),1)),0),1),0) -> 16779747.27 | C41: Nuclear Production Net Plant - Acq Adj (First Chicago) | G41: 377586968.5 | H41: Other Production Plant - Gas & 40 MW Solar | Q41: OM
A42: 5 | B42: =IFERROR(INDEX(INDIRECT(A$34&"!"&INDEX(Source_Mapping!C:C,MATCH(A$34,Source_Mapping!B:B,0),1)),MATCH(C42,INDIRECT(A$34&"!"&INDEX(Source_Mapping!D:D,MATCH(A$34,Source_Mapping!B:B,0),1)),0),1),0) -> 377586968.5 | C42: Other Production Plant - Gas & 40 MW Solar | G42: 158530056.4 | H42: Other Production Plant - Renewable | Q42: FUEL_TEST
A43: 6 | B43: =IFERROR(INDEX(INDIRECT(A$34&"!"&INDEX(Source_Mapping!C:C,MATCH(A$34,Source_Mapping!B:B,0),1)),MATCH(C43,INDIRECT(A$34&"!"&INDEX(Source_Mapping!D:D,MATCH(A$34,Source_Mapping!B:B,0),1)),0),1),0) -> 158530056.4 | C43: Other Production Plant - Renewable | G43: 20184418.42 | H43: Transmission Sited Batteries | Q43: FUEL_BASE
A44: CHECK | B44: =IFERROR(INDEX(INDIRECT(A$34&"!"&INDEX(Source_Mapping!C:C,MATCH(A$34,Source_Mapping!B:B,0),1)),MATCH(C44,INDIRECT(A$34&"!"&INDEX(Source_Mapping!D:D,MATCH(A$34,Source_Mapping!B:B,0),1)),0),1),0) -> 1130983263 | C44: Total Net Plant Production Plant | G44: 26727982.81 | H44: Distribution Sited Batteries | Q44: LABOR
A45: 7 | B45: =IFERROR(INDEX(INDIRECT(A$34&"!"&INDEX(Source_Mapping!C:C,MATCH(A$34,Source_Mapping!B:B,0),1)),MATCH(C45,INDIRECT(A$34&"!"&INDEX(Source_Mapping!D:D,MATCH(A$34,Source_Mapping!B:B,0),1)),0),1),0) -> 20184418.42 | C45: Transmission Sited Batteries | G45: 4119928.214 | H45: Step-Up Transformers & Generation Interconnections | Q45: DEP_AMORT
A46: 8 | B46: =IFERROR(INDEX(INDIRECT(A$34&"!"&INDEX(Source_Mapping!C:C,MATCH(A$34,Source_Mapping!B:B,0),1)),MATCH(C46,INDIRECT(A$34&"!"&INDEX(Source_Mapping!D:D,MATCH(A$34,Source_Mapping!B:B,0),1)),0),1),0) -> 26727982.81 | C46: Distribution Sited Batteries | G46: 1250054434 | H46: Transmission System Net Plant - Allocated | Q46: GEN_TAX
A47: 9 | B47: =IFERROR(INDEX(INDIRECT(A$34&"!"&INDEX(Source_Mapping!C:C,MATCH(A$34,Source_Mapping!B:B,0),1)),MATCH(C47,INDIRECT(A$34&"!"&INDEX(Source_Mapping!D:D,MATCH(A$34,Source_Mapping!B:B,0),1)),0),1),0) -> 4119928.214 | C47: Step-Up Transformers & Generation Interconnections | G47: 337397140.9 | H47: Transmission System Net Plant - FERC Incremental Rates | Q47: REV_CR
A48: CHECK | B48: =IFERROR(INDEX(INDIRECT(A$34&"!"&INDEX(Source_Mapping!C:C,MATCH(A$34,Source_Mapping!B:B,0),1)),MATCH(C48,INDIRECT(A$34&"!"&INDEX(Source_Mapping!D:D,MATCH(A$34,Source_Mapping!B:B,0),1)),0),1),0) -> 4119928.214 | C48: Total Transmission Station Equipment - Step-up Xfmr and Aux | G48: 6005891.411 | H48: Transmission System Net Plant - Dedicated Retail | Q48: REV_OP
A49: 10 | B49: =IFERROR(INDEX(INDIRECT(A$34&"!"&INDEX(Source_Mapping!C:C,MATCH(A$34,Source_Mapping!B:B,0),1)),MATCH(C49,INDIRECT(A$34&"!"&INDEX(Source_Mapping!D:D,MATCH(A$34,Source_Mapping!B:B,0),1)),0),1),0) -> 1250054434 | C49: Transmission System Net Plant - Allocated | G49: 78879.96385 | H49: Transmission System Net Plant - Acq Adj (EIP) | Q49: OTH_ALL
A50: 11 | B50: =IFERROR(INDEX(INDIRECT(A$34&"!"&INDEX(Source_Mapping!C:C,MATCH(A$34,Source_Mapping!B:B,0),1)),MATCH(C50,INDIRECT(A$34&"!"&INDEX(Source_Mapping!D:D,MATCH(A$34,Source_Mapping!B:B,0),1)),0),1),0) -> 337397140.9 | C50: Transmission System Net Plant - FERC Incremental Rates | G50: 199695244.1 | H50: Distribution Substations Net Plant - PNM | Q50: CLASS_ALLOC_TEST
A51: 12 | B51: =IFERROR(INDEX(INDIRECT(A$34&"!"&INDEX(Source_Mapping!C:C,MATCH(A$34,Source_Mapping!B:B,0),1)),MATCH(C51,INDIRECT(A$34&"!"&INDEX(Source_Mapping!D:D,MATCH(A$34,Source_Mapping!B:B,0),1)),0),1),0) -> 6005891.411 | C51: Transmission System Net Plant - Dedicated Retail | G51: 0 | H51: Distribution Substations Net Plant - Renewables | Q51: CLASS_ALLOC_BASEADJ
A52: 13 | B52: =IFERROR(INDEX(INDIRECT(A$34&"!"&INDEX(Source_Mapping!C:C,MATCH(A$34,Source_Mapping!B:B,0),1)),MATCH(C52,INDIRECT(A$34&"!"&INDEX(Source_Mapping!D:D,MATCH(A$34,Source_Mapping!B:B,0),1)),0),1),0) -> 78879.96385 | C52: Transmission System Net Plant - Acq Adj (EIP) | G52: 788963635.8 | H52: Primary Distribution System Net Plant - PNM | Q52: FUNC_ALLOC
A53: CHECK | B53: =IFERROR(INDEX(INDIRECT(A$34&"!"&INDEX(Source_Mapping!C:C,MATCH(A$34,Source_Mapping!B:B,0),1)),MATCH(C53,INDIRECT(A$34&"!"&INDEX(Source_Mapping!D:D,MATCH(A$34,Source_Mapping!B:B,0),1)),0),1),0) -> 1597656275 | C53: Total Net Plant Transmission Plant | G53: 4291993.471 | H53: Primary Distribution System Net Plant - Renewables
A54: 14 | B54: =IFERROR(INDEX(INDIRECT(A$34&"!"&INDEX(Source_Mapping!C:C,MATCH(A$34,Source_Mapping!B:B,0),1)),MATCH(C54,INDIRECT(A$34&"!"&INDEX(Source_Mapping!D:D,MATCH(A$34,Source_Mapping!B:B,0),1)),0),1),0) -> 199695244.1 | C54: Distribution Substations Net Plant - PNM | G54: 5857809.221 | H54: Primary Distribution System Net Plant - Grid Mod
A55: 15 | B55: =IFERROR(INDEX(INDIRECT(A$34&"!"&INDEX(Source_Mapping!C:C,MATCH(A$34,Source_Mapping!B:B,0),1)),MATCH(C55,INDIRECT(A$34&"!"&INDEX(Source_Mapping!D:D,MATCH(A$34,Source_Mapping!B:B,0),1)),0),1),0) -> 0 | C55: Distribution Substations Net Plant - Renewables | G55: 340199544.3 | H55: Secondary Distribution System Net Plant - PNM
A56: CHECK | B56: =IFERROR(INDEX(INDIRECT(A$34&"!"&INDEX(Source_Mapping!C:C,MATCH(A$34,Source_Mapping!B:B,0),1)),MATCH(C56,INDIRECT(A$34&"!"&INDEX(Source_Mapping!D:D,MATCH(A$34,Source_Mapping!B:B,0),1)),0),1),0) -> 0 | C56: Distribution Substations Net Plant - Grid Mod | G56: 1342881.469 | H56: Secondary Distribution System Net Plant - Renewables
A57: 16 | B57: =IFERROR(INDEX(INDIRECT(A$34&"!"&INDEX(Source_Mapping!C:C,MATCH(A$34,Source_Mapping!B:B,0),1)),MATCH(C57,INDIRECT(A$34&"!"&INDEX(Source_Mapping!D:D,MATCH(A$34,Source_Mapping!B:B,0),1)),0),1),0) -> 788963635.8 | C57: Primary Distribution System Net Plant - PNM | G57: 3044182.113 | H57: Secondary Distribution System Net Plant - Grid Mod
A58: 17 | B58: =IFERROR(INDEX(INDIRECT(A$34&"!"&INDEX(Source_Mapping!C:C,MATCH(A$34,Source_Mapping!B:B,0),1)),MATCH(C58,INDIRECT(A$34&"!"&INDEX(Source_Mapping!D:D,MATCH(A$34,Source_Mapping!B:B,0),1)),0),1),0) -> 4291993.471 | C58: Primary Distribution System Net Plant - Renewables | G58: 123529928.1 | H58: Services Net Plant - PNM
A59: 18 | B59: =IFERROR(INDEX(INDIRECT(A$34&"!"&INDEX(Source_Mapping!C:C,MATCH(A$34,Source_Mapping!B:B,0),1)),MATCH(C59,INDIRECT(A$34&"!"&INDEX(Source_Mapping!D:D,MATCH(A$34,Source_Mapping!B:B,0),1)),0),1),0) -> 5857809.221 | C59: Primary Distribution System Net Plant - Grid Mod | G59: 47907691.23 | H59: Meters Net Plant - PNM
A60: 19 | B60: =IFERROR(INDEX(INDIRECT(A$34&"!"&INDEX(Source_Mapping!C:C,MATCH(A$34,Source_Mapping!B:B,0),1)),MATCH(C60,INDIRECT(A$34&"!"&INDEX(Source_Mapping!D:D,MATCH(A$34,Source_Mapping!B:B,0),1)),0),1),0) -> 340199544.3 | C60: Secondary Distribution System Net Plant - PNM | G60: 10201823.4 | H60: Meters Net Plant - Grid Mod
A61: 20 | B61: =IFERROR(INDEX(INDIRECT(A$34&"!"&INDEX(Source_Mapping!C:C,MATCH(A$34,Source_Mapping!B:B,0),1)),MATCH(C61,INDIRECT(A$34&"!"&INDEX(Source_Mapping!D:D,MATCH(A$34,Source_Mapping!B:B,0),1)),0),1),0) -> 1342881.469 | C61: Secondary Distribution System Net Plant - Renewables | G61: 1163013.52 | H61: Private Lighting - 371
A62: 21 | B62: =IFERROR(INDEX(INDIRECT(A$34&"!"&INDEX(Source_Mapping!C:C,MATCH(A$34,Source_Mapping!B:B,0),1)),MATCH(C62,INDIRECT(A$34&"!"&INDEX(Source_Mapping!D:D,MATCH(A$34,Source_Mapping!B:B,0),1)),0),1),0) -> 3044182.113 | C62: Secondary Distribution System Net Plant - Grid Mod | G62: 13591316.35 | H62: Street Lighting - 373
A63: 22 | B63: =IFERROR(INDEX(INDIRECT(A$34&"!"&INDEX(Source_Mapping!C:C,MATCH(A$34,Source_Mapping!B:B,0),1)),MATCH(C63,INDIRECT(A$34&"!"&INDEX(Source_Mapping!D:D,MATCH(A$34,Source_Mapping!B:B,0),1)),0),1),0) -> 123529928.1 | C63: Services Net Plant - PNM | G63: 126756218.1 | H63: General & Intangible Net Plant
A64: 23 | B64: =IFERROR(INDEX(INDIRECT(A$34&"!"&INDEX(Source_Mapping!C:C,MATCH(A$34,Source_Mapping!B:B,0),1)),MATCH(C64,INDIRECT(A$34&"!"&INDEX(Source_Mapping!D:D,MATCH(A$34,Source_Mapping!B:B,0),1)),0),1),0) -> 47907691.23 | C64: Meters Net Plant - PNM | G64: 1207658.021 | H64: Renewables General & Intangible Net Plant
A65: 24 | B65: =IFERROR(INDEX(INDIRECT(A$34&"!"&INDEX(Source_Mapping!C:C,MATCH(A$34,Source_Mapping!B:B,0),1)),MATCH(C65,INDIRECT(A$34&"!"&INDEX(Source_Mapping!D:D,MATCH(A$34,Source_Mapping!B:B,0),1)),0),1),0) -> 10201823.4 | C65: Meters Net Plant - Grid Mod | G65: 14492490.15 | H65: Grid Mod General & Intangible Net Plant
A66: 25 | B66: =IFERROR(INDEX(INDIRECT(A$34&"!"&INDEX(Source_Mapping!C:C,MATCH(A$34,Source_Mapping!B:B,0),1)),MATCH(C66,INDIRECT(A$34&"!"&INDEX(Source_Mapping!D:D,MATCH(A$34,Source_Mapping!B:B,0),1)),0),1),0) -> 1163013.52 | C66: Private Lighting - 371 | G66: 15607279.79 | H66: Production Related (Shared Services)
A67: 26 | B67: =IFERROR(INDEX(INDIRECT(A$34&"!"&INDEX(Source_Mapping!C:C,MATCH(A$34,Source_Mapping!B:B,0),1)),MATCH(C67,INDIRECT(A$34&"!"&INDEX(Source_Mapping!D:D,MATCH(A$34,Source_Mapping!B:B,0),1)),0),1),0) -> 13591316.35 | C67: Street Lighting - 373 | G67: 12616327.43 | H67: Transmission Related (Shared Services)
A68: CHECK | B68: =IFERROR(INDEX(INDIRECT(A$34&"!"&INDEX(Source_Mapping!C:C,MATCH(A$34,Source_Mapping!B:B,0),1)),MATCH(C68,INDIRECT(A$34&"!"&INDEX(Source_Mapping!D:D,MATCH(A$34,Source_Mapping!B:B,0),1)),0),1),0) -> 1539789063 | C68: Total Net Plant Distribution Plant | G68: 80471662.67 | H68: Distribution/Customer Related (Shared Services)
A69: 27 | B69: =IFERROR(INDEX(INDIRECT(A$34&"!"&INDEX(Source_Mapping!C:C,MATCH(A$34,Source_Mapping!B:B,0),1)),MATCH(C69,INDIRECT(A$34&"!"&INDEX(Source_Mapping!D:D,MATCH(A$34,Source_Mapping!B:B,0),1)),0),1),0) -> 126756218.1 | C69: General & Intangible Net Plant
A70: 28 | B70: =IFERROR(INDEX(INDIRECT(A$34&"!"&INDEX(Source_Mapping!C:C,MATCH(A$34,Source_Mapping!B:B,0),1)),MATCH(C70,INDIRECT(A$34&"!"&INDEX(Source_Mapping!D:D,MATCH(A$34,Source_Mapping!B:B,0),1)),0),1),0) -> 1207658.021 | C70: Renewables General & Intangible Net Plant
A71: 29 | B71: =IFERROR(INDEX(INDIRECT(A$34&"!"&INDEX(Source_Mapping!C:C,MATCH(A$34,Source_Mapping!B:B,0),1)),MATCH(C71,INDIRECT(A$34&"!"&INDEX(Source_Mapping!D:D,MATCH(A$34,Source_Mapping!B:B,0),1)),0),1),0) -> 14492490.15 | C71: Grid Mod General & Intangible Net Plant
A72: 30 | B72: =IFERROR(INDEX(INDIRECT(A$34&"!"&INDEX(Source_Mapping!C:C,MATCH(A$34,Source_Mapping!B:B,0),1)),MATCH(C72,INDIRECT(A$34&"!"&INDEX(Source_Mapping!D:D,MATCH(A$34,Source_Mapping!B:B,0),1)),0),1),0) -> 15607279.79 | C72: Production Related (Shared Services)
A73: 31 | B73: =IFERROR(INDEX(INDIRECT(A$34&"!"&INDEX(Source_Mapping!C:C,MATCH(A$34,Source_Mapping!B:B,0),1)),MATCH(C73,INDIRECT(A$34&"!"&INDEX(Source_Mapping!D:D,MATCH(A$34,Source_Mapping!B:B,0),1)),0),1),0) -> 12616327.43 | C73: Transmission Related (Shared Services)
A74: 32 | B74: =IFERROR(INDEX(INDIRECT(A$34&"!"&INDEX(Source_Mapping!C:C,MATCH(A$34,Source_Mapping!B:B,0),1)),MATCH(C74,INDIRECT(A$34&"!"&INDEX(Source_Mapping!D:D,MATCH(A$34,Source_Mapping!B:B,0),1)),0),1),0) -> 80471662.67 | C74: Distribution/Customer Related (Shared Services)
B75: =IFERROR(INDEX(INDIRECT(A$34&"!"&INDEX(Source_Mapping!C:C,MATCH(A$34,Source_Mapping!B:B,0),1)),MATCH(C75,INDIRECT(A$34&"!"&INDEX(Source_Mapping!D:D,MATCH(A$34,Source_Mapping!B:B,0),1)),0),1),0) -> 0
B76: =IFERROR(INDEX(INDIRECT(A$34&"!"&INDEX(Source_Mapping!C:C,MATCH(A$34,Source_Mapping!B:B,0),1)),MATCH(C76,INDIRECT(A$34&"!"&INDEX(Source_Mapping!D:D,MATCH(A$34,Source_Mapping!B:B,0),1)),0),1),0) -> 0
A77: =IF(ISBLANK(C77),"",IFERROR(MATCH(C77,_xlfn.ANCHORARRAY(H$37),0),"CHECK")) ->  | B77: =IFERROR(INDEX(INDIRECT(A$34&"!"&INDEX(Source_Mapping!C:C,MATCH(A$34,Source_Mapping!B:B,0),1)),MATCH(C77,INDIRECT(A$34&"!"&INDEX(Source_Mapping!D:D,MATCH(A$34,Source_Mapping!B:B,0),1)),0),1),0) -> 0
B78: =IFERROR(INDEX(INDIRECT(A$34&"!"&INDEX(Source_Mapping!C:C,MATCH(A$34,Source_Mapping!B:B,0),1)),MATCH(C78,INDIRECT(A$34&"!"&INDEX(Source_Mapping!D:D,MATCH(A$34,Source_Mapping!B:B,0),1)),0),1),0) -> 0
B79: =IFERROR(INDEX(INDIRECT(A$34&"!"&INDEX(Source_Mapping!C:C,MATCH(A$34,Source_Mapping!B:B,0),1)),MATCH(C79,INDIRECT(A$34&"!"&INDEX(Source_Mapping!D:D,MATCH(A$34,Source_Mapping!B:B,0),1)),0),1),0) -> 0
B80: =IFERROR(INDEX(INDIRECT(A$34&"!"&INDEX(Source_Mapping!C:C,MATCH(A$34,Source_Mapping!B:B,0),1)),MATCH(C80,INDIRECT(A$34&"!"&INDEX(Source_Mapping!D:D,MATCH(A$34,Source_Mapping!B:B,0),1)),0),1),0) -> 0
B81: =IFERROR(INDEX(INDIRECT(A$34&"!"&INDEX(Source_Mapping!C:C,MATCH(A$34,Source_Mapping!B:B,0),1)),MATCH(C81,INDIRECT(A$34&"!"&INDEX(Source_Mapping!D:D,MATCH(A$34,Source_Mapping!B:B,0),1)),0),1),0) -> 0
B82: =IFERROR(INDEX(INDIRECT(A$34&"!"&INDEX(Source_Mapping!C:C,MATCH(A$34,Source_Mapping!B:B,0),1)),MATCH(C82,INDIRECT(A$34&"!"&INDEX(Source_Mapping!D:D,MATCH(A$34,Source_Mapping!B:B,0),1)),0),1),0) -> 0
B83: =IFERROR(INDEX(INDIRECT(A$34&"!"&INDEX(Source_Mapping!C:C,MATCH(A$34,Source_Mapping!B:B,0),1)),MATCH(C83,INDIRECT(A$34&"!"&INDEX(Source_Mapping!D:D,MATCH(A$34,Source_Mapping!B:B,0),1)),0),1),0) -> 0
B84: =IFERROR(INDEX(INDIRECT(A$34&"!"&INDEX(Source_Mapping!C:C,MATCH(A$34,Source_Mapping!B:B,0),1)),MATCH(C84,INDIRECT(A$34&"!"&INDEX(Source_Mapping!D:D,MATCH(A$34,Source_Mapping!B:B,0),1)),0),1),0) -> 0
B85: =IFERROR(INDEX(INDIRECT(A$34&"!"&INDEX(Source_Mapping!C:C,MATCH(A$34,Source_Mapping!B:B,0),1)),MATCH(C85,INDIRECT(A$34&"!"&INDEX(Source_Mapping!D:D,MATCH(A$34,Source_Mapping!B:B,0),1)),0),1),0) -> 0
B86: =IFERROR(INDEX(INDIRECT(A$34&"!"&INDEX(Source_Mapping!C:C,MATCH(A$34,Source_Mapping!B:B,0),1)),MATCH(C86,INDIRECT(A$34&"!"&INDEX(Source_Mapping!D:D,MATCH(A$34,Source_Mapping!B:B,0),1)),0),1),0) -> 0
B87: =IFERROR(INDEX(INDIRECT(A$34&"!"&INDEX(Source_Mapping!C:C,MATCH(A$34,Source_Mapping!B:B,0),1)),MATCH(C87,INDIRECT(A$34&"!"&INDEX(Source_Mapping!D:D,MATCH(A$34,Source_Mapping!B:B,0),1)),0),1),0) -> 0
B88: =IFERROR(INDEX(INDIRECT(A$34&"!"&INDEX(Source_Mapping!C:C,MATCH(A$34,Source_Mapping!B:B,0),1)),MATCH(C88,INDIRECT(A$34&"!"&INDEX(Source_Mapping!D:D,MATCH(A$34,Source_Mapping!B:B,0),1)),0),1),0) -> 0
B89: =IFERROR(INDEX(INDIRECT(A$34&"!"&INDEX(Source_Mapping!C:C,MATCH(A$34,Source_Mapping!B:B,0),1)),MATCH(C89,INDIRECT(A$34&"!"&INDEX(Source_Mapping!D:D,MATCH(A$34,Source_Mapping!B:B,0),1)),0),1),0) -> 0
B90: =IFERROR(INDEX(INDIRECT(A$34&"!"&INDEX(Source_Mapping!C:C,MATCH(A$34,Source_Mapping!B:B,0),1)),MATCH(C90,INDIRECT(A$34&"!"&INDEX(Source_Mapping!D:D,MATCH(A$34,Source_Mapping!B:B,0),1)),0),1),0) -> 0
B91: =IFERROR(INDEX(INDIRECT(A$34&"!"&INDEX(Source_Mapping!C:C,MATCH(A$34,Source_Mapping!B:B,0),1)),MATCH(C91,INDIRECT(A$34&"!"&INDEX(Source_Mapping!D:D,MATCH(A$34,Source_Mapping!B:B,0),1)),0),1),0) -> 0
B92: =IFERROR(INDEX(INDIRECT(A$34&"!"&INDEX(Source_Mapping!C:C,MATCH(A$34,Source_Mapping!B:B,0),1)),MATCH(C92,INDIRECT(A$34&"!"&INDEX(Source_Mapping!D:D,MATCH(A$34,Source_Mapping!B:B,0),1)),0),1),0) -> 0
B93: =IFERROR(INDEX(INDIRECT(A$34&"!"&INDEX(Source_Mapping!C:C,MATCH(A$34,Source_Mapping!B:B,0),1)),MATCH(C93,INDIRECT(A$34&"!"&INDEX(Source_Mapping!D:D,MATCH(A$34,Source_Mapping!B:B,0),1)),0),1),0) -> 0
B94: =IFERROR(INDEX(INDIRECT(A$34&"!"&INDEX(Source_Mapping!C:C,MATCH(A$34,Source_Mapping!B:B,0),1)),MATCH(C94,INDIRECT(A$34&"!"&INDEX(Source_Mapping!D:D,MATCH(A$34,Source_Mapping!B:B,0),1)),0),1),0) -> 0
B95: =IFERROR(INDEX(INDIRECT(A$34&"!"&INDEX(Source_Mapping!C:C,MATCH(A$34,Source_Mapping!B:B,0),1)),MATCH(C95,INDIRECT(A$34&"!"&INDEX(Source_Mapping!D:D,MATCH(A$34,Source_Mapping!B:B,0),1)),0),1),0) -> 0
B96: =IFERROR(INDEX(INDIRECT(A$34&"!"&INDEX(Source_Mapping!C:C,MATCH(A$34,Source_Mapping!B:B,0),1)),MATCH(C96,INDIRECT(A$34&"!"&INDEX(Source_Mapping!D:D,MATCH(A$34,Source_Mapping!B:B,0),1)),0),1),0) -> 0
B97: =IFERROR(INDEX(INDIRECT(A$34&"!"&INDEX(Source_Mapping!C:C,MATCH(A$34,Source_Mapping!B:B,0),1)),MATCH(C97,INDIRECT(A$34&"!"&INDEX(Source_Mapping!D:D,MATCH(A$34,Source_Mapping!B:B,0),1)),0),1),0) -> 0
B98: =IFERROR(INDEX(INDIRECT(A$34&"!"&INDEX(Source_Mapping!C:C,MATCH(A$34,Source_Mapping!B:B,0),1)),MATCH(C98,INDIRECT(A$34&"!"&INDEX(Source_Mapping!D:D,MATCH(A$34,Source_Mapping!B:B,0),1)),0),1),0) -> 0
B99: =IFERROR(INDEX(INDIRECT(A$34&"!"&INDEX(Source_Mapping!C:C,MATCH(A$34,Source_Mapping!B:B,0),1)),MATCH(C99,INDIRECT(A$34&"!"&INDEX(Source_Mapping!D:D,MATCH(A$34,Source_Mapping!B:B,0),1)),0),1),0) -> 0
B100: =IFERROR(INDEX(INDIRECT(A$34&"!"&INDEX(Source_Mapping!C:C,MATCH(A$34,Source_Mapping!B:B,0),1)),MATCH(C100,INDIRECT(A$34&"!"&INDEX(Source_Mapping!D:D,MATCH(A$34,Source_Mapping!B:B,0),1)),0),1),0) -> 0
B101: =IFERROR(INDEX(INDIRECT(A$34&"!"&INDEX(Source_Mapping!C:C,MATCH(A$34,Source_Mapping!B:B,0),1)),MATCH(C101,INDIRECT(A$34&"!"&INDEX(Source_Mapping!D:D,MATCH(A$34,Source_Mapping!B:B,0),1)),0),1),0) -> 0
B102: =IFERROR(INDEX(INDIRECT(A$34&"!"&INDEX(Source_Mapping!C:C,MATCH(A$34,Source_Mapping!B:B,0),1)),MATCH(C102,INDIRECT(A$34&"!"&INDEX(Source_Mapping!D:D,MATCH(A$34,Source_Mapping!B:B,0),1)),0),1),0) -> 0
B103: =IFERROR(INDEX(INDIRECT(A$34&"!"&INDEX(Source_Mapping!C:C,MATCH(A$34,Source_Mapping!B:B,0),1)),MATCH(C103,INDIRECT(A$34&"!"&INDEX(Source_Mapping!D:D,MATCH(A$34,Source_Mapping!B:B,0),1)),0),1),0) -> 0
B104: =IFERROR(INDEX(INDIRECT(A$34&"!"&INDEX(Source_Mapping!C:C,MATCH(A$34,Source_Mapping!B:B,0),1)),MATCH(C104,INDIRECT(A$34&"!"&INDEX(Source_Mapping!D:D,MATCH(A$34,Source_Mapping!B:B,0),1)),0),1),0) -> 0
B105: =IFERROR(INDEX(INDIRECT(A$34&"!"&INDEX(Source_Mapping!C:C,MATCH(A$34,Source_Mapping!B:B,0),1)),MATCH(C105,INDIRECT(A$34&"!"&INDEX(Source_Mapping!D:D,MATCH(A$34,Source_Mapping!B:B,0),1)),0),1),0) -> 0
B106: =IFERROR(INDEX(INDIRECT(A$34&"!"&INDEX(Source_Mapping!C:C,MATCH(A$34,Source_Mapping!B:B,0),1)),MATCH(C106,INDIRECT(A$34&"!"&INDEX(Source_Mapping!D:D,MATCH(A$34,Source_Mapping!B:B,0),1)),0),1),0) -> 0
B107: =IFERROR(INDEX(INDIRECT(A$34&"!"&INDEX(Source_Mapping!C:C,MATCH(A$34,Source_Mapping!B:B,0),1)),MATCH(C107,INDIRECT(A$34&"!"&INDEX(Source_Mapping!D:D,MATCH(A$34,Source_Mapping!B:B,0),1)),0),1),0) -> 0
B108: =IFERROR(INDEX(INDIRECT(A$34&"!"&INDEX(Source_Mapping!C:C,MATCH(A$34,Source_Mapping!B:B,0),1)),MATCH(C108,INDIRECT(A$34&"!"&INDEX(Source_Mapping!D:D,MATCH(A$34,Source_Mapping!B:B,0),1)),0),1),0) -> 0
B109: =IFERROR(INDEX(INDIRECT(A$34&"!"&INDEX(Source_Mapping!C:C,MATCH(A$34,Source_Mapping!B:B,0),1)),MATCH(C109,INDIRECT(A$34&"!"&INDEX(Source_Mapping!D:D,MATCH(A$34,Source_Mapping!B:B,0),1)),0),1),0) -> 0
B110: =IFERROR(INDEX(INDIRECT(A$34&"!"&INDEX(Source_Mapping!C:C,MATCH(A$34,Source_Mapping!B:B,0),1)),MATCH(C110,INDIRECT(A$34&"!"&INDEX(Source_Mapping!D:D,MATCH(A$34,Source_Mapping!B:B,0),1)),0),1),0) -> 0
B111: =IFERROR(INDEX(INDIRECT(A$34&"!"&INDEX(Source_Mapping!C:C,MATCH(A$34,Source_Mapping!B:B,0),1)),MATCH(C111,INDIRECT(A$34&"!"&INDEX(Source_Mapping!D:D,MATCH(A$34,Source_Mapping!B:B,0),1)),0),1),0) -> 0
B112: =IFERROR(INDEX(INDIRECT(A$34&"!"&INDEX(Source_Mapping!C:C,MATCH(A$34,Source_Mapping!B:B,0),1)),MATCH(C112,INDIRECT(A$34&"!"&INDEX(Source_Mapping!D:D,MATCH(A$34,Source_Mapping!B:B,0),1)),0),1),0) -> 0
B113: =IFERROR(INDEX(INDIRECT(A$34&"!"&INDEX(Source_Mapping!C:C,MATCH(A$34,Source_Mapping!B:B,0),1)),MATCH(C113,INDIRECT(A$34&"!"&INDEX(Source_Mapping!D:D,MATCH(A$34,Source_Mapping!B:B,0),1)),0),1),0) -> 0
B114: =IFERROR(INDEX(INDIRECT(A$34&"!"&INDEX(Source_Mapping!C:C,MATCH(A$34,Source_Mapping!B:B,0),1)),MATCH(C114,INDIRECT(A$34&"!"&INDEX(Source_Mapping!D:D,MATCH(A$34,Source_Mapping!B:B,0),1)),0),1),0) -> 0
B115: =IFERROR(INDEX(INDIRECT(A$34&"!"&INDEX(Source_Mapping!C:C,MATCH(A$34,Source_Mapping!B:B,0),1)),MATCH(C115,INDIRECT(A$34&"!"&INDEX(Source_Mapping!D:D,MATCH(A$34,Source_Mapping!B:B,0),1)),0),1),0) -> 0
B116: =IFERROR(INDEX(INDIRECT(A$34&"!"&INDEX(Source_Mapping!C:C,MATCH(A$34,Source_Mapping!B:B,0),1)),MATCH(C116,INDIRECT(A$34&"!"&INDEX(Source_Mapping!D:D,MATCH(A$34,Source_Mapping!B:B,0),1)),0),1),0) -> 0
B117: =IFERROR(INDEX(INDIRECT(A$34&"!"&INDEX(Source_Mapping!C:C,MATCH(A$34,Source_Mapping!B:B,0),1)),MATCH(C117,INDIRECT(A$34&"!"&INDEX(Source_Mapping!D:D,MATCH(A$34,Source_Mapping!B:B,0),1)),0),1),0) -> 0
B118: =IFERROR(INDEX(INDIRECT(A$34&"!"&INDEX(Source_Mapping!C:C,MATCH(A$34,Source_Mapping!B:B,0),1)),MATCH(C118,INDIRECT(A$34&"!"&INDEX(Source_Mapping!D:D,MATCH(A$34,Source_Mapping!B:B,0),1)),0),1),0) -> 0
B119: =IFERROR(INDEX(INDIRECT(A$34&"!"&INDEX(Source_Mapping!C:C,MATCH(A$34,Source_Mapping!B:B,0),1)),MATCH(C119,INDIRECT(A$34&"!"&INDEX(Source_Mapping!D:D,MATCH(A$34,Source_Mapping!B:B,0),1)),0),1),0) -> 0
B120: =IFERROR(INDEX(INDIRECT(A$34&"!"&INDEX(Source_Mapping!C:C,MATCH(A$34,Source_Mapping!B:B,0),1)),MATCH(C120,INDIRECT(A$34&"!"&INDEX(Source_Mapping!D:D,MATCH(A$34,Source_Mapping!B:B,0),1)),0),1),0) -> 0
B121: =IFERROR(INDEX(INDIRECT(A$34&"!"&INDEX(Source_Mapping!C:C,MATCH(A$34,Source_Mapping!B:B,0),1)),MATCH(C121,INDIRECT(A$34&"!"&INDEX(Source_Mapping!D:D,MATCH(A$34,Source_Mapping!B:B,0),1)),0),1),0) -> 0
B122: =IFERROR(INDEX(INDIRECT(A$34&"!"&INDEX(Source_Mapping!C:C,MATCH(A$34,Source_Mapping!B:B,0),1)),MATCH(C122,INDIRECT(A$34&"!"&INDEX(Source_Mapping!D:D,MATCH(A$34,Source_Mapping!B:B,0),1)),0),1),0) -> 0
B123: =IFERROR(INDEX(INDIRECT(A$34&"!"&INDEX(Source_Mapping!C:C,MATCH(A$34,Source_Mapping!B:B,0),1)),MATCH(C123,INDIRECT(A$34&"!"&INDEX(Source_Mapping!D:D,MATCH(A$34,Source_Mapping!B:B,0),1)),0),1),0) -> 0
B124: =IFERROR(INDEX(INDIRECT(A$34&"!"&INDEX(Source_Mapping!C:C,MATCH(A$34,Source_Mapping!B:B,0),1)),MATCH(C124,INDIRECT(A$34&"!"&INDEX(Source_Mapping!D:D,MATCH(A$34,Source_Mapping!B:B,0),1)),0),1),0) -> 0
B125: =IFERROR(INDEX(INDIRECT(A$34&"!"&INDEX(Source_Mapping!C:C,MATCH(A$34,Source_Mapping!B:B,0),1)),MATCH(C125,INDIRECT(A$34&"!"&INDEX(Source_Mapping!D:D,MATCH(A$34,Source_Mapping!B:B,0),1)),0),1),0) -> 0
B126: =IFERROR(INDEX(INDIRECT(A$34&"!"&INDEX(Source_Mapping!C:C,MATCH(A$34,Source_Mapping!B:B,0),1)),MATCH(C126,INDIRECT(A$34&"!"&INDEX(Source_Mapping!D:D,MATCH(A$34,Source_Mapping!B:B,0),1)),0),1),0) -> 0
B127: =IFERROR(INDEX(INDIRECT(A$34&"!"&INDEX(Source_Mapping!C:C,MATCH(A$34,Source_Mapping!B:B,0),1)),MATCH(C127,INDIRECT(A$34&"!"&INDEX(Source_Mapping!D:D,MATCH(A$34,Source_Mapping!B:B,0),1)),0),1),0) -> 0
B128: =IFERROR(INDEX(INDIRECT(A$34&"!"&INDEX(Source_Mapping!C:C,MATCH(A$34,Source_Mapping!B:B,0),1)),MATCH(C128,INDIRECT(A$34&"!"&INDEX(Source_Mapping!D:D,MATCH(A$34,Source_Mapping!B:B,0),1)),0),1),0) -> 0
B129: =IFERROR(INDEX(INDIRECT(A$34&"!"&INDEX(Source_Mapping!C:C,MATCH(A$34,Source_Mapping!B:B,0),1)),MATCH(C129,INDIRECT(A$34&"!"&INDEX(Source_Mapping!D:D,MATCH(A$34,Source_Mapping!B:B,0),1)),0),1),0) -> 0
B130: =IFERROR(INDEX(INDIRECT(A$34&"!"&INDEX(Source_Mapping!C:C,MATCH(A$34,Source_Mapping!B:B,0),1)),MATCH(C130,INDIRECT(A$34&"!"&INDEX(Source_Mapping!D:D,MATCH(A$34,Source_Mapping!B:B,0),1)),0),1),0) -> 0
B131: =IFERROR(INDEX(INDIRECT(A$34&"!"&INDEX(Source_Mapping!C:C,MATCH(A$34,Source_Mapping!B:B,0),1)),MATCH(C131,INDIRECT(A$34&"!"&INDEX(Source_Mapping!D:D,MATCH(A$34,Source_Mapping!B:B,0),1)),0),1),0) -> 0
B132: =IFERROR(INDEX(INDIRECT(A$34&"!"&INDEX(Source_Mapping!C:C,MATCH(A$34,Source_Mapping!B:B,0),1)),MATCH(C132,INDIRECT(A$34&"!"&INDEX(Source_Mapping!D:D,MATCH(A$34,Source_Mapping!B:B,0),1)),0),1),0) -> 0
B133: =IFERROR(INDEX(INDIRECT(A$34&"!"&INDEX(Source_Mapping!C:C,MATCH(A$34,Source_Mapping!B:B,0),1)),MATCH(C133,INDIRECT(A$34&"!"&INDEX(Source_Mapping!D:D,MATCH(A$34,Source_Mapping!B:B,0),1)),0),1),0) -> 0
B134: =IFERROR(INDEX(INDIRECT(A$34&"!"&INDEX(Source_Mapping!C:C,MATCH(A$34,Source_Mapping!B:B,0),1)),MATCH(C134,INDIRECT(A$34&"!"&INDEX(Source_Mapping!D:D,MATCH(A$34,Source_Mapping!B:B,0),1)),0),1),0) -> 0
B135: =IFERROR(INDEX(INDIRECT(A$34&"!"&INDEX(Source_Mapping!C:C,MATCH(A$34,Source_Mapping!B:B,0),1)),MATCH(C135,INDIRECT(A$34&"!"&INDEX(Source_Mapping!D:D,MATCH(A$34,Source_Mapping!B:B,0),1)),0),1),0) -> 0
B136: =IFERROR(INDEX(INDIRECT(A$34&"!"&INDEX(Source_Mapping!C:C,MATCH(A$34,Source_Mapping!B:B,0),1)),MATCH(C136,INDIRECT(A$34&"!"&INDEX(Source_Mapping!D:D,MATCH(A$34,Source_Mapping!B:B,0),1)),0),1),0) -> 0
B137: =IFERROR(INDEX(INDIRECT(A$34&"!"&INDEX(Source_Mapping!C:C,MATCH(A$34,Source_Mapping!B:B,0),1)),MATCH(C137,INDIRECT(A$34&"!"&INDEX(Source_Mapping!D:D,MATCH(A$34,Source_Mapping!B:B,0),1)),0),1),0) -> 0
B138: =IFERROR(INDEX(INDIRECT(A$34&"!"&INDEX(Source_Mapping!C:C,MATCH(A$34,Source_Mapping!B:B,0),1)),MATCH(C138,INDIRECT(A$34&"!"&INDEX(Source_Mapping!D:D,MATCH(A$34,Source_Mapping!B:B,0),1)),0),1),0) -> 0
B139: =IFERROR(INDEX(INDIRECT(A$34&"!"&INDEX(Source_Mapping!C:C,MATCH(A$34,Source_Mapping!B:B,0),1)),MATCH(C139,INDIRECT(A$34&"!"&INDEX(Source_Mapping!D:D,MATCH(A$34,Source_Mapping!B:B,0),1)),0),1),0) -> 0
B140: =IFERROR(INDEX(INDIRECT(A$34&"!"&INDEX(Source_Mapping!C:C,MATCH(A$34,Source_Mapping!B:B,0),1)),MATCH(C140,INDIRECT(A$34&"!"&INDEX(Source_Mapping!D:D,MATCH(A$34,Source_Mapping!B:B,0),1)),0),1),0) -> 0
A141: =IF(ISBLANK(C141),"",IFERROR(MATCH(C141,_xlfn.ANCHORARRAY(H$37),0),"CHECK")) ->  | B141: =IFERROR(INDEX(INDIRECT(A$34&"!"&INDEX(Source_Mapping!C:C,MATCH(A$34,Source_Mapping!B:B,0),1)),MATCH(C141,INDIRECT(A$34&"!"&INDEX(Source_Mapping!D:D,MATCH(A$34,Source_Mapping!B:B,0),1)),0),1),0) -> 0
B142: =IFERROR(INDEX(INDIRECT(A$34&"!"&INDEX(Source_Mapping!C:C,MATCH(A$34,Source_Mapping!B:B,0),1)),MATCH(C142,INDIRECT(A$34&"!"&INDEX(Source_Mapping!D:D,MATCH(A$34,Source_Mapping!B:B,0),1)),0),1),0) -> 0
B143: =IFERROR(INDEX(INDIRECT(A$34&"!"&INDEX(Source_Mapping!C:C,MATCH(A$34,Source_Mapping!B:B,0),1)),MATCH(C143,INDIRECT(A$34&"!"&INDEX(Source_Mapping!D:D,MATCH(A$34,Source_Mapping!B:B,0),1)),0),1),0) -> 0
B144: =IFERROR(INDEX(INDIRECT(A$34&"!"&INDEX(Source_Mapping!C:C,MATCH(A$34,Source_Mapping!B:B,0),1)),MATCH(C144,INDIRECT(A$34&"!"&INDEX(Source_Mapping!D:D,MATCH(A$34,Source_Mapping!B:B,0),1)),0),1),0) -> 0
B145: =IFERROR(INDEX(INDIRECT(A$34&"!"&INDEX(Source_Mapping!C:C,MATCH(A$34,Source_Mapping!B:B,0),1)),MATCH(C145,INDIRECT(A$34&"!"&INDEX(Source_Mapping!D:D,MATCH(A$34,Source_Mapping!B:B,0),1)),0),1),0) -> 0
B146: =IFERROR(INDEX(INDIRECT(A$34&"!"&INDEX(Source_Mapping!C:C,MATCH(A$34,Source_Mapping!B:B,0),1)),MATCH(C146,INDIRECT(A$34&"!"&INDEX(Source_Mapping!D:D,MATCH(A$34,Source_Mapping!B:B,0),1)),0),1),0) -> 0
B147: =IFERROR(INDEX(INDIRECT(A$34&"!"&INDEX(Source_Mapping!C:C,MATCH(A$34,Source_Mapping!B:B,0),1)),MATCH(C147,INDIRECT(A$34&"!"&INDEX(Source_Mapping!D:D,MATCH(A$34,Source_Mapping!B:B,0),1)),0),1),0) -> 0
B148: =IFERROR(INDEX(INDIRECT(A$34&"!"&INDEX(Source_Mapping!C:C,MATCH(A$34,Source_Mapping!B:B,0),1)),MATCH(C148,INDIRECT(A$34&"!"&INDEX(Source_Mapping!D:D,MATCH(A$34,Source_Mapping!B:B,0),1)),0),1),0) -> 0
B149: =IFERROR(INDEX(INDIRECT(A$34&"!"&INDEX(Source_Mapping!C:C,MATCH(A$34,Source_Mapping!B:B,0),1)),MATCH(C149,INDIRECT(A$34&"!"&INDEX(Source_Mapping!D:D,MATCH(A$34,Source_Mapping!B:B,0),1)),0),1),0) -> 0
B150: =IFERROR(INDEX(INDIRECT(A$34&"!"&INDEX(Source_Mapping!C:C,MATCH(A$34,Source_Mapping!B:B,0),1)),MATCH(C150,INDIRECT(A$34&"!"&INDEX(Source_Mapping!D:D,MATCH(A$34,Source_Mapping!B:B,0),1)),0),1),0) -> 0
B151: =IFERROR(INDEX(INDIRECT(A$34&"!"&INDEX(Source_Mapping!C:C,MATCH(A$34,Source_Mapping!B:B,0),1)),MATCH(C151,INDIRECT(A$34&"!"&INDEX(Source_Mapping!D:D,MATCH(A$34,Source_Mapping!B:B,0),1)),0),1),0) -> 0
B152: =IFERROR(INDEX(INDIRECT(A$34&"!"&INDEX(Source_Mapping!C:C,MATCH(A$34,Source_Mapping!B:B,0),1)),MATCH(C152,INDIRECT(A$34&"!"&INDEX(Source_Mapping!D:D,MATCH(A$34,Source_Mapping!B:B,0),1)),0),1),0) -> 0
B153: =IFERROR(INDEX(INDIRECT(A$34&"!"&INDEX(Source_Mapping!C:C,MATCH(A$34,Source_Mapping!B:B,0),1)),MATCH(C153,INDIRECT(A$34&"!"&INDEX(Source_Mapping!D:D,MATCH(A$34,Source_Mapping!B:B,0),1)),0),1),0) -> 0
B154: =IFERROR(INDEX(INDIRECT(A$34&"!"&INDEX(Source_Mapping!C:C,MATCH(A$34,Source_Mapping!B:B,0),1)),MATCH(C154,INDIRECT(A$34&"!"&INDEX(Source_Mapping!D:D,MATCH(A$34,Source_Mapping!B:B,0),1)),0),1),0) -> 0
B155: =IFERROR(INDEX(INDIRECT(A$34&"!"&INDEX(Source_Mapping!C:C,MATCH(A$34,Source_Mapping!B:B,0),1)),MATCH(C155,INDIRECT(A$34&"!"&INDEX(Source_Mapping!D:D,MATCH(A$34,Source_Mapping!B:B,0),1)),0),1),0) -> 0
B156: =IFERROR(INDEX(INDIRECT(A$34&"!"&INDEX(Source_Mapping!C:C,MATCH(A$34,Source_Mapping!B:B,0),1)),MATCH(C156,INDIRECT(A$34&"!"&INDEX(Source_Mapping!D:D,MATCH(A$34,Source_Mapping!B:B,0),1)),0),1),0) -> 0
B157: =IFERROR(INDEX(INDIRECT(A$34&"!"&INDEX(Source_Mapping!C:C,MATCH(A$34,Source_Mapping!B:B,0),1)),MATCH(C157,INDIRECT(A$34&"!"&INDEX(Source_Mapping!D:D,MATCH(A$34,Source_Mapping!B:B,0),1)),0),1),0) -> 0
B158: =IFERROR(INDEX(INDIRECT(A$34&"!"&INDEX(Source_Mapping!C:C,MATCH(A$34,Source_Mapping!B:B,0),1)),MATCH(C158,INDIRECT(A$34&"!"&INDEX(Source_Mapping!D:D,MATCH(A$34,Source_Mapping!B:B,0),1)),0),1),0) -> 0
B159: =IFERROR(INDEX(INDIRECT(A$34&"!"&INDEX(Source_Mapping!C:C,MATCH(A$34,Source_Mapping!B:B,0),1)),MATCH(C159,INDIRECT(A$34&"!"&INDEX(Source_Mapping!D:D,MATCH(A$34,Source_Mapping!B:B,0),1)),0),1),0) -> 0
B160: =IFERROR(INDEX(INDIRECT(A$34&"!"&INDEX(Source_Mapping!C:C,MATCH(A$34,Source_Mapping!B:B,0),1)),MATCH(C160,INDIRECT(A$34&"!"&INDEX(Source_Mapping!D:D,MATCH(A$34,Source_Mapping!B:B,0),1)),0),1),0) -> 0
B161: =IFERROR(INDEX(INDIRECT(A$34&"!"&INDEX(Source_Mapping!C:C,MATCH(A$34,Source_Mapping!B:B,0),1)),MATCH(C161,INDIRECT(A$34&"!"&INDEX(Source_Mapping!D:D,MATCH(A$34,Source_Mapping!B:B,0),1)),0),1),0) -> 0
B162: =IFERROR(INDEX(INDIRECT(A$34&"!"&INDEX(Source_Mapping!C:C,MATCH(A$34,Source_Mapping!B:B,0),1)),MATCH(C162,INDIRECT(A$34&"!"&INDEX(Source_Mapping!D:D,MATCH(A$34,Source_Mapping!B:B,0),1)),0),1),0) -> 0
B163: =IFERROR(INDEX(INDIRECT(A$34&"!"&INDEX(Source_Mapping!C:C,MATCH(A$34,Source_Mapping!B:B,0),1)),MATCH(C163,INDIRECT(A$34&"!"&INDEX(Source_Mapping!D:D,MATCH(A$34,Source_Mapping!B:B,0),1)),0),1),0) -> 0
B164: =IFERROR(INDEX(INDIRECT(A$34&"!"&INDEX(Source_Mapping!C:C,MATCH(A$34,Source_Mapping!B:B,0),1)),MATCH(C164,INDIRECT(A$34&"!"&INDEX(Source_Mapping!D:D,MATCH(A$34,Source_Mapping!B:B,0),1)),0),1),0) -> 0
B165: =IFERROR(INDEX(INDIRECT(A$34&"!"&INDEX(Source_Mapping!C:C,MATCH(A$34,Source_Mapping!B:B,0),1)),MATCH(C165,INDIRECT(A$34&"!"&INDEX(Source_Mapping!D:D,MATCH(A$34,Source_Mapping!B:B,0),1)),0),1),0) -> 0
B166: =IFERROR(INDEX(INDIRECT(A$34&"!"&INDEX(Source_Mapping!C:C,MATCH(A$34,Source_Mapping!B:B,0),1)),MATCH(C166,INDIRECT(A$34&"!"&INDEX(Source_Mapping!D:D,MATCH(A$34,Source_Mapping!B:B,0),1)),0),1),0) -> 0
B167: =IFERROR(INDEX(INDIRECT(A$34&"!"&INDEX(Source_Mapping!C:C,MATCH(A$34,Source_Mapping!B:B,0),1)),MATCH(C167,INDIRECT(A$34&"!"&INDEX(Source_Mapping!D:D,MATCH(A$34,Source_Mapping!B:B,0),1)),0),1),0) -> 0
B168: =IFERROR(INDEX(INDIRECT(A$34&"!"&INDEX(Source_Mapping!C:C,MATCH(A$34,Source_Mapping!B:B,0),1)),MATCH(C168,INDIRECT(A$34&"!"&INDEX(Source_Mapping!D:D,MATCH(A$34,Source_Mapping!B:B,0),1)),0),1),0) -> 0
B169: =IFERROR(INDEX(INDIRECT(A$34&"!"&INDEX(Source_Mapping!C:C,MATCH(A$34,Source_Mapping!B:B,0),1)),MATCH(C169,INDIRECT(A$34&"!"&INDEX(Source_Mapping!D:D,MATCH(A$34,Source_Mapping!B:B,0),1)),0),1),0) -> 0
B170: =IFERROR(INDEX(INDIRECT(A$34&"!"&INDEX(Source_Mapping!C:C,MATCH(A$34,Source_Mapping!B:B,0),1)),MATCH(C170,INDIRECT(A$34&"!"&INDEX(Source_Mapping!D:D,MATCH(A$34,Source_Mapping!B:B,0),1)),0),1),0) -> 0
B171: =IFERROR(INDEX(INDIRECT(A$34&"!"&INDEX(Source_Mapping!C:C,MATCH(A$34,Source_Mapping!B:B,0),1)),MATCH(C171,INDIRECT(A$34&"!"&INDEX(Source_Mapping!D:D,MATCH(A$34,Source_Mapping!B:B,0),1)),0),1),0) -> 0
B172: =IFERROR(INDEX(INDIRECT(A$34&"!"&INDEX(Source_Mapping!C:C,MATCH(A$34,Source_Mapping!B:B,0),1)),MATCH(C172,INDIRECT(A$34&"!"&INDEX(Source_Mapping!D:D,MATCH(A$34,Source_Mapping!B:B,0),1)),0),1),0) -> 0
B173: =IFERROR(INDEX(INDIRECT(A$34&"!"&INDEX(Source_Mapping!C:C,MATCH(A$34,Source_Mapping!B:B,0),1)),MATCH(C173,INDIRECT(A$34&"!"&INDEX(Source_Mapping!D:D,MATCH(A$34,Source_Mapping!B:B,0),1)),0),1),0) -> 0
B174: =IFERROR(INDEX(INDIRECT(A$34&"!"&INDEX(Source_Mapping!C:C,MATCH(A$34,Source_Mapping!B:B,0),1)),MATCH(C174,INDIRECT(A$34&"!"&INDEX(Source_Mapping!D:D,MATCH(A$34,Source_Mapping!B:B,0),1)),0),1),0) -> 0
B175: =IFERROR(INDEX(INDIRECT(A$34&"!"&INDEX(Source_Mapping!C:C,MATCH(A$34,Source_Mapping!B:B,0),1)),MATCH(C175,INDIRECT(A$34&"!"&INDEX(Source_Mapping!D:D,MATCH(A$34,Source_Mapping!B:B,0),1)),0),1),0) -> 0
B176: =IFERROR(INDEX(INDIRECT(A$34&"!"&INDEX(Source_Mapping!C:C,MATCH(A$34,Source_Mapping!B:B,0),1)),MATCH(C176,INDIRECT(A$34&"!"&INDEX(Source_Mapping!D:D,MATCH(A$34,Source_Mapping!B:B,0),1)),0),1),0) -> 0
B177: =IFERROR(INDEX(INDIRECT(A$34&"!"&INDEX(Source_Mapping!C:C,MATCH(A$34,Source_Mapping!B:B,0),1)),MATCH(C177,INDIRECT(A$34&"!"&INDEX(Source_Mapping!D:D,MATCH(A$34,Source_Mapping!B:B,0),1)),0),1),0) -> 0
B178: =IFERROR(INDEX(INDIRECT(A$34&"!"&INDEX(Source_Mapping!C:C,MATCH(A$34,Source_Mapping!B:B,0),1)),MATCH(C178,INDIRECT(A$34&"!"&INDEX(Source_Mapping!D:D,MATCH(A$34,Source_Mapping!B:B,0),1)),0),1),0) -> 0
B179: =IFERROR(INDEX(INDIRECT(A$34&"!"&INDEX(Source_Mapping!C:C,MATCH(A$34,Source_Mapping!B:B,0),1)),MATCH(C179,INDIRECT(A$34&"!"&INDEX(Source_Mapping!D:D,MATCH(A$34,Source_Mapping!B:B,0),1)),0),1),0) -> 0
B180: =IFERROR(INDEX(INDIRECT(A$34&"!"&INDEX(Source_Mapping!C:C,MATCH(A$34,Source_Mapping!B:B,0),1)),MATCH(C180,INDIRECT(A$34&"!"&INDEX(Source_Mapping!D:D,MATCH(A$34,Source_Mapping!B:B,0),1)),0),1),0) -> 0

Sheet Cost_of_Service
A1: =MID(CELL("filename",A1),FIND("]",CELL("filename",A1))+1,255) -> Cost_of_Service | H1: Residential | I1: Small Power | J1: General Power | K1: General Power | L1: General Power Gov | M1: GP Low LF Gov | N1: GP Charging Stations | O1: Large Power | P1: Mines | Q1: Irrigation | R1: Wtr/Swg Pumping | S1: Universities | T1: Manufacturing | U1: Industrial | X1: Private Lighting | Y1: Streetlighting
AV2: Top Row | AW2: Page
B3: Line | H3: Schedule 1 | I3: Schedule 2 | J3: Schedule 3B | K3: Schedule 3C | L3: Schedule 3D | M3: Schedule 3E | N3: Schedule 3F | O3: Schedule 4 | P3: Schedule 5 | Q3: Schedule 10 | R3: Schedule 11 | S3: Schedule 15 | T3: Schedule 30 | U3: Schedule 33B | V3: Schedule 35B | W3: Schedule 36B | X3: Schedule 6 | Y3: Schedule 20 | AU3: 1 | AV3: =SMALL(IF(B:B=1,ROW(B:B)),AU3) -> 7 | AW3: 1
B4: No. | D4: Account | F4: Allocator | G4: PNM Retail | H4: Residential | I4: Small Power | J4: General Power | K4: GP Low LF | L4: General Power Gov | M4: GP Low LF Gov | N4: GP Charging Stations | O4: Large Power | P4: Industrial Power | Q4: Irrigation | R4: Water & Sewage | S4: Industrial Power | T4: Industrial Power | U4: Large Service | V4: Lg Power Service | W4: Special Service Rate | X4: Priv. Area Light | Y4: Streetlighting | AE4: Row # | AU4: 2 | AV4: =SMALL(IF(B:B=1,ROW(B:B)),AU4) -> 59 | AW4: =AW3+2 -> 3
C5: SUMMARY OF RESULTS AT CURRENT RATES | G5: 0 | H5: 1 | I5: 2 | J5: 3 | K5: 4 | L5: 5 | M5: 6 | N5: 7 | O5: 8 | P5: 9 | Q5: 10 | R5: 11 | S5: 12 | T5: 13 | U5: 14 | V5: 15 | W5: 16 | X5: 17 | Y5: 18 | AU5: 3 | AV5: =SMALL(IF(B:B=1,ROW(B:B)),AU5) -> 112 | AW5: =AW4+2 -> 5
AU6: 4 | AV6: =SMALL(IF(B:B=1,ROW(B:B)),AU6) -> 136 | AW6: 7
B7: 1 | C7: NET ORIGINAL COST RATE BASE | AU7: 5 | AV7: =SMALL(IF(B:B=1,ROW(B:B)),AU7) -> 969 | AW7: 9
B8: =B7+1 -> 2 | C8: NET PLANT IN SERVICE | AU8: 6 | AV8: =SMALL(IF(B:B=1,ROW(B:B)),AU8) -> 2123 | AW8: 11
B9: =B8+1 -> 3 | C9: PRODUCTION PLANT | E9: =HYPERLINK("#a"&AE9,"Page "&INDEX(AW$3:AW$33,MATCH(AE9,AV$3:AV$33,1))&" Line "&INDIRECT("B"&AE9)) -> Page 7 Line 12 | G9: =G286 -> 972453206.2 | H9: =H286 -> 385052885.4 | I9: =I286 -> 86547278.97 | J9: 136945801.5 | K9: 21721527.02 | L9: =L286 -> 10017682.91 | M9: 1254967.684 | N9: =N286 -> 355711.6504 | O9: 76428745.39 | P9: 2194726.875 | Q9: 2586948.236 | R9: 13824652.34 | S9: 6095844.699 | T9: 69216392.2 | U9: 188047.6054 | V9: 14005120.16 | W9: 143468472.6 | X9: 792245.4417 | Y9: 1756155.542 | AA9: =G9-SUM(H9:Y9) -> 0 | AE9: =ROW(B286) -> 286 | AU9: 7 | AV9: =SMALL(IF(B:B=1,ROW(B:B)),AU9) -> 3029 | AW9: 13
B10: 4 | C10: BATTERY STORAGE PLANT | E10: =HYPERLINK("#a"&AE10,"Page "&INDEX(AW$3:AW$33,MATCH(AE10,AV$3:AV$33,1))&" Line "&INDIRECT("B"&AE10)) -> Page 7 Line 17 | G10: =G350 -> 46912401.23 | H10: =H350 -> 21547671.23 | I10: 4497239.478 | J10: 6748079.224 | K10: 1110780.97 | L10: 476657.6686 | M10: 62961.51551 | N10: =N350 -> 10811.2263 | O10: 3529178.047 | P10: 73729.96378 | Q10: 133021.6762 | R10: 660474.8987 | S10: 215822.9198 | T10: 2480835.73 | U10: 5636.700638 | V10: 513218.272 | W10: 4717831.921 | X10: 37255.59451 | Y10: 91194.19494 | AA10: =G10-SUM(H10:Y10) -> 0 | AE10: =ROW(B350) -> 350
B11: =B10+1 -> 5 | C11: TRANSMISSON PLANT | E11: =HYPERLINK("#a"&AE11,"Page "&INDEX(AW$3:AW$33,MATCH(AE11,AV$3:AV$33,1))&" Line "&INDIRECT("B"&AE11)) -> Page 7 Line 25 | G11: =G477 -> 566781944 | H11: =H477 -> 258609226.4 | I11: =I477 -> 52732981.8 | J11: 78909311.14 | K11: 12536188.18 | L11: =L477 -> 5462159.812 | M11: 656731.9016 | N11: =N477 -> 214578.2658 | O11: 42330644.9 | P11: 1020518.564 | Q11: 1144943.251 | R11: 5354799.429 | S11: 2198577.599 | T11: 33484009.37 | U11: 72256.55971 | V11: 6862091.783 | W11: 64219319.87 | X11: 279051.4332 | Y11: 694553.713 | AA11: 0 | AE11: =ROW(B477) -> 477 | AU11: 8 | AV11: =SMALL(IF(B:B=1,ROW(B:B)),AU11) -> 4123 | AW11: =AW9+2 -> 15
B12: 6 | C12: DISTRIBUTION PLANT | E12: =HYPERLINK("#a"&AE12,"Page "&INDEX(AW$3:AW$33,MATCH(AE12,AV$3:AV$33,1))&" Line "&INDIRECT("B"&AE12)) -> Page 7 Line 43 | G12: =G794 -> 1515050373 | H12: =H794 -> 849015953.7 | I12: 205199561.2 | J12: 227860667.2 | K12: 55015279.41 | L12: 16006084.51 | M12: 2534771.719 | N12: =N794 -> 15424.50549 | O12: 94493949.08 | P12: 5756.426972 | Q12: 4458924.608 | R12: 23480472.25 | S12: 5756.426972 | T12: 11061018.09 | U12: 5756.426972 | V12: 2623289.982 | W12: 5756.426972 | X12: 3609043.24 | Y12: 19652908.33 | AA12: 0 | AE12: =ROW(B794) -> 794 | AU12: 9 | AV12: =SMALL(IF(B:B=1,ROW(B:B)),AU12) -> 4381 | AW12: 17
B13: 7 | C13: GENERAL AND INTANGIBLE | E13: =HYPERLINK("#a"&AE13,"Page "&INDEX(AW$3:AW$33,MATCH(AE13,AV$3:AV$33,1))&" Line "&INDIRECT("B"&AE13)) -> Page 7 Line 53 | G13: =G944 -> 216814369.8 | H13: =H944 -> 137215271.1 | I13: =I944 -> 25504974.39 | J13: 20095604.3 | K13: 4364731.476 | L13: =L944 -> 1420959.379 | M13: 220595.6886 | N13: =N944 -> 27482.42048 | O13: 9308634.801 | P13: 133168.6454 | Q13: 513997.4085 | R13: 2188932.832 | S13: 343218.6771 | T13: 4690690.769 | U13: 13541.6416 | V13: 976973.1152 | W13: 7626645.084 | X13: 670046.8223 | Y13: 1498901.255 | AA13: 0 | AE13: =ROW(B944) -> 944 | AU13: 10 | AV13: =SMALL(IF(B:B=1,ROW(B:B)),AU13) -> 4746 | AW13: 19
B14: 8 | C14: TOTAL NET PLANT | E14: =HYPERLINK("#a"&AE14,"Page "&INDEX(AW$3:AW$33,MATCH(AE14,AV$3:AV$33,1))&" Line "&INDIRECT("B"&AE14)) -> Page 7 Line 55 | G14: =G966 -> 3318012295 | H14: =H966 -> 1651441008 | I14: =I966 -> 374482035.8 | J14: 470559463.3 | K14: 94748507.05 | L14: =L966 -> 33383544.28 | M14: 4730028.508 | N14: =N966 -> 624008.0685 | O14: 226091152.2 | P14: 3427900.476 | Q14: 8837835.179 | R14: 45509331.75 | S14: 8859220.322 | T14: 120932946.2 | U14: 285238.9343 | V14: 24980693.32 | W14: 220038025.9 | X14: 5387642.532 | Y14: 23693713.03 | AA14: 0 | AE14: =ROW(B966) -> 966 | AU14: 11 | AV14: =SMALL(IF(B:B=1,ROW(B:B)),AU14) -> 5194 | AW14: 21
B15: 9 | C15: ACCUMULATED DEFERRED INCOME TAXES | E15: =HYPERLINK("#a"&AE15,"Page "&INDEX(AW$3:AW$33,MATCH(AE15,AV$3:AV$33,1))&" Line "&INDIRECT("B"&AE15)) -> Page 11 Line 44 | G15: =G3026 -> -610864609.6 | H15: =H3026 -> -291302455.1 | I15: =I3026 -> -64809225.33 | J15: -84793862.01 | K15: -16029864.99 | L15: =L3026 -> -6060352.923 | M15: -831681.4084 | N15: =N3026 -> -142631.1048 | O15: -42450181.31 | P15: -823465.5459 | Q15: -1612929.487 | R15: -8272123 | S15: -2201320.716 | T15: -27636124.17 | U15: -69340.70452 | V15: -5662392.28 | W15: -54648623.57 | X15: -839695.8456 | Y15: -2678340.072 | AA15: 0 | AE15: =ROW(B3026) -> 3026 | AU15: 12 | AV15: =SMALL(IF(B:B=1,ROW(B:B)),AU15) -> 5919 | AW15: 23
B16: 10 | C16: REGULATORY ASSETS & LIABILITIES | E16: =HYPERLINK("#a"&AE16,"Page "&INDEX(AW$3:AW$33,MATCH(AE16,AV$3:AV$33,1))&" Line "&INDIRECT("B"&AE16)) -> Page 13 Line 28 | G16: =G3596 -> -30134885.98 | H16: =H3596 -> -26842491.78 | I16: =I3596 -> -6645734.15 | J16: -5183096.628 | K16: -1853199.689 | L16: =L3596 -> -325190.819 | M16: -68216.09414 | N16: =N3596 -> 17853.76115 | O16: -1008585.248 | P16: 130924.5465 | Q16: -87408.10608 | R16: -406811.933 | S16: 398155.398 | T16: 3455901.721 | U16: 11797.12603 | V16: 672851.6246 | W16: 8706763.827 | X16: -145830.7956 | Y16: -962568.7436 | AA16: 0 | AE16: =ROW(B3596) -> 3596 | AU16: 13 | AV16: =SMALL(IF(B:B=1,ROW(B:B)),AU16) -> 6794 | AW16: 25
B17: 11 | C17: OTHER RATE BASE ITEMS | E17: =HYPERLINK("#a"&AE17,"Page "&INDEX(AW$3:AW$33,MATCH(AE17,AV$3:AV$33,1))&" Line "&INDIRECT("B"&AE17)) -> Page 15 Line 10 | G17: =G4312 -> 152620105 | H17: =H4312 -> 79871102.64 | I17: =I4312 -> 22291288.53 | J17: 20731006.02 | K17: 4478453.413 | L17: =L4312 -> 1478385.805 | M17: 231465.1361 | N17: =N4312 -> 46833.32496 | O17: 7850728.085 | P17: 119750.9118 | Q17: 355171.8721 | R17: 1513640.872 | S17: 257343.9605 | T17: 4222927.106 | U17: 10044.37091 | V17: 879938.2638 | W17: 6955311.547 | X17: 397152.0745 | Y17: 929561.0281 | AA17: 0 | AE17: =ROW(B4312) -> 4312 | AU17: 14 | AV17: =SMALL(IF(B:B=1,ROW(B:B)),AU17) -> 7896 | AW17: 27
B18: 12 | C18: WORKING CAPITAL | E18: =HYPERLINK("#a"&AE18,"Page "&INDEX(AW$3:AW$33,MATCH(AE18,AV$3:AV$33,1))&" Line "&INDIRECT("B"&AE18)) -> Page 17 Line 16 | G18: =G4635 -> 153316343.1 | H18: =H4635 -> 63983580.93 | I18: =I4635 -> 16843259.29 | J18: 24003229.45 | K18: 4578915.532 | L18: =L4635 -> 1787115.796 | M18: 232667.4963 | N18: =N4635 -> 66055.4318 | O18: 13819922.66 | P18: 350577.5429 | Q18: 404496.1331 | R18: 2626185.28 | S18: 879631.3719 | T18: 11097190.14 | U18: 32597.44057 | V18: 2219618.024 | W18: 9622123.484 | X18: 210986.5754 | Y18: 558190.4813 | AA18: 0 | AE18: =ROW(B4635) -> 4635 | AU18: 15 | AV18: =SMALL(IF(B:B=1,ROW(B:B)),AU18) -> 9062 | AW18: 29
B19: 13 | C19: TOTAL NET ORIGINAL COST RATE BASE | E19: =HYPERLINK("#a"&AE19,"Page "&INDEX(AW$3:AW$33,MATCH(AE19,AV$3:AV$33,1))&" Line "&INDIRECT("B"&AE19)) -> Page 17 Line 18 | G19: =G4742 -> 2982949247 | H19: =H4742 -> 1477150745 | I19: =I4742 -> 342161624.2 | J19: 425316740.2 | K19: 85922811.32 | L19: =L4742 -> 30263502.13 | M19: 4294263.638 | N19: =N4742 -> 612119.4817 | O19: 204303036.4 | P19: 3205687.931 | Q19: 7897165.592 | R19: 40970222.97 | S19: 8193030.337 | T19: 112072841 | U19: 270337.1673 | V19: 23090708.95 | W19: 190673601.2 | X19: 5010254.54 | Y19: 21540555.73 | AA19: 0 | AE19: =ROW(B4742) -> 4742 | AU19: 16 | AV19: =SMALL(IF(B:B=1,ROW(B:B)),AU19) -> 10045 | AW19: 31
B20: 14 | AU20: 17 | AV20: =SMALL(IF(B:B=1,ROW(B:B)),AU20) -> 11064 | AW20: 33
B21: 15 | C21: OPERATING REVENUES | AU21: 18 | AV21: =SMALL(IF(B:B=1,ROW(B:B)),AU21) -> 11878 | AW21: 35
B22: 16 | C22: SALES OF ELECTRICITY - NON FUEL | E22: =HYPERLINK("#a"&AE22,"Page "&INDEX(AW$3:AW$33,MATCH(AE22,AV$3:AV$33,1))&" Line "&INDIRECT("B"&AE22)) -> Page 19 Line 3 | G22: =G4767 -> 759130626.6 | H22: =H4767 -> 366002789.5 | I22: 105207301 | J22: 106791646.8 | K22: 28215676.06 | L22: =L4767 -> 8359050.956 | M22: 1622979.971 | N22: =N4767 -> 492612.5191 | O22: 57310829.4 | P22: 1981778.081 | Q22: 1804389.803 | R22: 8192657.286 | S22: 3361727.601 | T22: 35822209.06 | U22: 230977.819 | V22: 7049919.191 | W22: 20831510.23 | X22: 2315366.392 | Y22: 3537204.871 | AA22: =G22-SUM(H22:Y22) -> 0 | AE22: =ROW(B4767) -> 4767 | AU22: 19 | AV22: =SMALL(IF(B:B=1,ROW(B:B)),AU22) -> 12056 | AW22: 37
B23: 17 | C23: SALES OF ELECTRICITY - FUEL | E23: =HYPERLINK("#a"&AE23,"Page "&INDEX(AW$3:AW$33,MATCH(AE23,AV$3:AV$33,1))&" Line "&INDIRECT("B"&AE23)) -> Page 19 Line 4 | G23: =G4788 -> 268805228 | H23: =H4788 -> 109742262.8 | I23: 28991306.09 | J23: 43930950.4 | K23: 7847938.207 | L23: =L4788 -> 3274994.692 | M23: 401578.3395 | N23: =N4788 -> 151084.0044 | O23: 26311021.29 | P23: 736606.1354 | Q23: 662661.7765 | R23: 4440845.358 | S23: 1769460.222 | T23: 23131820.77 | U23: 66984.73697 | V23: 4617467.53 | W23: 11763284.44 | X23: 309401.977 | Y23: 655559.2253 | AA23: 0 | AE23: =ROW(B4788) -> 4788 | AU23: 20 | AV23: =SMALL(IF(B:B=1,ROW(B:B)),AU23) -> 12618 | AW23: 39
B24: 18 | C24: OTHER OPERATING REVENUES | E24: =HYPERLINK("#a"&AE24,"Page "&INDEX(AW$3:AW$33,MATCH(AE24,AV$3:AV$33,1))&" Line "&INDIRECT("B"&AE24)) -> Page 19 Line 25 | G24: =-G5168 -> 56157274.12 | H24: =-H5168 -> 26664479.85 | I24: 5493044.251 | J24: 7575450.757 | K24: 1278358.318 | L24: =-L5168 -> 529683.737 | M24: 66829.81059 | N24: =-N5168 -> 18371.30227 | O24: 3982205.562 | P24: 90963.71373 | Q24: 123258.8237 | R24: 588566.8773 | S24: 207561.2224 | T24: 2997266.07 | U24: 6809.759216 | V24: 614168.4621 | W24: 5740046.049 | X24: 51234.05952 | Y24: 128975.4872 | AA24: 0 | AE24: =ROW(B5168) -> 5168 | AU24: 21 | AV24: =SMALL(IF(B:B=1,ROW(B:B)),AU24) -> 12896 | AW24: 41
B25: 19 | C25: TOTAL OPERATING REVENUES | G25: =SUM(G22:G24) -> 1084093129 | H25: =SUM(H22:H24) -> 502409532.2 | I25: 139691651.3 | J25: 158298048 | K25: 37341972.59 | L25: =SUM(L22:L24) -> 12163729.38 | M25: 2091388.121 | N25: =SUM(N22:N24) -> 662067.8258 | O25: 87604056.25 | P25: 2809347.93 | Q25: 2590310.403 | R25: 13222069.52 | S25: 5338749.046 | T25: 61951295.9 | U25: 304772.3152 | V25: 12281555.18 | W25: 38334840.73 | X25: 2676002.428 | Y25: 4321739.583 | AA25: 0 | AE25: =ROW(B5190) -> 5190 | AU25: 22 | AV25: =SMALL(IF(B:B=1,ROW(B:B)),AU25) ->  | AW25: 43
B26: 20 | AU26: 23 | AV26: =SMALL(IF(B:B=1,ROW(B:B)),AU26) ->  | AW26: 45
B27: 21 | C27: OPERATIONS EXPENSE | AU27: 24 | AV27: =SMALL(IF(B:B=1,ROW(B:B)),AU27) ->  | AW27: 47
B28: 22 | C28: POWER PRODUCTION EXPENSE | AU28: 25 | AV28: =SMALL(IF(B:B=1,ROW(B:B)),AU28) ->  | AW28: 49
B29: 23 | C29: PRODUCTION FUEL-RELATED EXPENSES | E29: =HYPERLINK("#a"&AE29,"Page "&INDEX(AW$3:AW$33,MATCH(AE29,AV$3:AV$33,1))&" Line "&INDIRECT("B"&AE29)) -> Page 21 Line 44 | G29: =G5577 -> 268805228 | H29: =H5577 -> 105181059.7 | I29: 27752196.26 | J29: 42647738.51 | K29: 7508685.804 | L29: =L5577 -> 3197863.291 | M29: 395803.3555 | N29: =N5577 -> 140900.4661 | O29: 25842680.45 | P29: 754839.3971 | Q29: 694569.7645 | R29: 4600864.207 | S29: 1898149.15 | T29: 23516564.17 | U29: 68979.90875 | V29: 4696477.982 | W29: 18946339.06 | X29: 308811.6286 | Y29: 652704.9268 | AA29: =G29-SUM(H29:Y29) -> 0 | AE29: =ROW(B5916) -> 5916 | AU29: 26 | AV29: =SMALL(IF(B:B=1,ROW(B:B)),AU29) ->  | AW29: 51
B30: 24 | C30: PRODUCTION NON FUEL-RELATED EXPENSES | G30: =G5894 -> 33650332.93 | H30: =H5894 -> 12277156.79 | I30: 3672471.948 | J30: 5610384.497 | K30: 1040596.105 | L30: =L5894 -> 430116.8829 | M30: 52923.00018 | N30: =N5894 -> 21109.18678 | O30: 3597440.959 | P30: 108740.3051 | Q30: 85631.61321 | R30: 654365.3825 | S30: 265752.4851 | T30: 3346306.741 | U30: 10371.5152 | V30: 662832.9672 | W30: 1671198.349 | X30: 46833.66552 | Y30: 96100.54335 | AA30: 0 | AE30: =ROW(B5894) -> 5894 | AU30: 27 | AV30: =SMALL(IF(B:B=1,ROW(B:B)),AU30) ->  | AW30: 53
B31: 25 | C31: PRODUCTION OPERATIONS AND MAINTENANCE | AU31: 28 | AV31: =SMALL(IF(B:B=1,ROW(B:B)),AU31) ->  | AW31: 55
B32: 26 | C32: STEAM PRODUCTION O&M | E32: =HYPERLINK("#a"&AE32,"Page "&INDEX(AW$3:AW$33,MATCH(AE32,AV$3:AV$33,1))&" Line "&INDIRECT("B"&AE32)) -> Page 23 Line 14 | G32: =G6191 -> 27547455.6 | H32: =H6191 -> 10907699.41 | I32: =I6191 -> 2451693.623 | J32: 3879372.666 | K32: 615322.9762 | L32: =L6191 -> 283778.8732 | M32: 35550.46796 | N32: =N6191 -> 10076.52691 | O32: 2165057.873 | P32: 62171.7742 | Q32: 73282.54071 | R32: 391621.9249 | S32: 172681.8423 | T32: 1960747.807 | U32: 5326.974117 | V32: 396734.1806 | W32: 4064145.558 | X32: 22442.56689 | Y32: 49748.01514 | AA32: 0 | AE32: =ROW(B6191) -> 6191 | AU32: 29 | AV32: =SMALL(IF(B:B=1,ROW(B:B)),AU32) ->  | AW32: 57
B33: 27 | C33: NUCLEAR POWER GENERATION | E33: =HYPERLINK("#a"&AE33,"Page "&INDEX(AW$3:AW$33,MATCH(AE33,AV$3:AV$33,1))&" Line "&INDIRECT("B"&AE33)) -> Page 23 Line 31 | G33: =G6487 -> 36760032.36 | H33: =H6487 -> 14555514.28 | I33: =I6487 -> 3271602.947 | J33: 5176734.535 | K33: 821102.7852 | L33: =L6487 -> 378681.8178 | M33: 47439.45763 | N33: =N6487 -> 13446.37634 | O33: 2889108.839 | P33: 82963.61249 | Q33: 97790.10472 | R33: 522590.3561 | S33: 230431.086 | T33: 2616472.239 | U33: 7108.451095 | V33: 529412.2814 | W33: 5423300.228 | X33: 29947.93774 | Y33: 66385.02927 | AA33: 0 | AE33: =ROW(B6487) -> 6487 | AU33: 30 | AV33: =SMALL(IF(B:B=1,ROW(B:B)),AU33) ->  | AW33: 59
B34: 28 | C34: OTHER POWER GENERATION | E34: =HYPERLINK("#a"&AE34,"Page "&INDEX(AW$3:AW$33,MATCH(AE34,AV$3:AV$33,1))&" Line "&INDIRECT("B"&AE34)) -> Page 23 Line 42 | G34: =G6659 -> 25494240.33 | H34: =H6659 -> 10094707.63 | I34: 2268959.695 | J34: 3590228.46 | K34: 569460.6451 | L34: 262627.7686 | M34: 32900.75814 | N34: =N6659 -> 9325.485533 | O34: 2003687.983 | P34: 57537.8785 | Q34: 67820.51788 | R34: 362432.8728 | S34: 159811.2164 | T34: 1814605.913 | U34: 4929.934741 | V34: 367164.0929 | W34: 3761229.535 | X34: 20769.83814 | Y34: 46040.10884 | AA34: 0 | AE34: =ROW(B6659) -> 6659
B35: 29 | C35: ENERGY STORAGE O&M | E35: =HYPERLINK("#a"&AE35,"Page "&INDEX(AW$3:AW$33,MATCH(AE35,AV$3:AV$33,1))&" Line "&INDIRECT("B"&AE35)) -> Page 23 Line 50 | G35: =G6768 -> 0 | H35: =H6768 -> 0 | I35: 0 | J35: 0 | K35: 0 | L35: 0 | M35: 0 | N35: =N6768 -> 0 | O35: 0 | P35: 0 | Q35: 0 | R35: 0 | S35: 0 | T35: 0 | U35: 0 | V35: 0 | W35: 0 | X35: 0 | Y35: 0 | AA35: 0 | AE35: =ROW(B6768) -> 6768
B36: =B35+1 -> 30 | C36: TOTAL PRODUCTION O&M EXPENSE | E36: =HYPERLINK("#a"&AE36,"Page "&INDEX(AW$3:AW$33,MATCH(AE36,AV$3:AV$33,1))&" Line "&INDIRECT("B"&AE36)) -> Page 23 Line 53 | G36: =G6791 -> 89801728.3 | H36: =H6791 -> 35557921.32 | I36: =I6791 -> 7992256.266 | J36: 12646335.66 | K36: 2005886.407 | L36: =L6791 -> 925088.4595 | M36: 115890.6837 | N36: =N6791 -> 32848.38878 | O36: 7057854.695 | P36: 202673.2652 | Q36: 238893.1633 | R36: 1276645.154 | S36: 562924.1448 | T36: 6391825.958 | U36: 17365.35995 | V36: 1293310.555 | W36: 13248675.32 | X36: 73160.34277 | Y36: 162173.1532 | AA36: 0 | AE36: =ROW(B6791) -> 6791
B37: 31 | C37: TOTAL POWER PRODUCTION EXPENSE | G37: =G36+G29+G30 -> 392257289.3 | H37: =H36+H29+H30 -> 153016137.8 | I37: 39416924.47 | J37: 60904458.67 | K37: 10555168.32 | L37: 4553068.633 | M37: 564617.0394 | N37: =N36+N29+N30 -> 194858.0416 | O37: 36497976.11 | P37: 1066252.967 | Q37: 1019094.541 | R37: 6531874.743 | S37: 2726825.78 | T37: 33254696.87 | U37: 96716.78391 | V37: 6652621.504 | W37: 33866212.73 | X37: 428805.6369 | Y37: 910978.6234 | AA37: 0
B38: 32
B39: 33 | C39: TRANSMISSION EXPENSE | E39: =HYPERLINK("#a"&AE39,"Page "&INDEX(AW$3:AW$33,MATCH(AE39,AV$3:AV$33,1))&" Line "&INDIRECT("B"&AE39)) -> Page 25 Line 17 | G39: =G7129 -> 48245102.98 | H39: =H7129 -> 22013102.03 | I39: =I7129 -> 4488689.459 | J39: 6716847.427 | K39: 1067094.138 | L39: =L7129 -> 464945.0559 | M39: 55901.74239 | N39: =N7129 -> 18265.13819 | O39: 3603231.091 | P39: 86867.66356 | Q39: 97458.82985 | R39: 455806.4219 | S39: 187145.3454 | T39: 2850195.736 | U39: 6150.557901 | V39: 584108.8063 | W39: 5466419.199 | X39: 23753.16517 | Y39: 59121.1766 | AA39: 0 | AE39: =ROW(B7129) -> 7129
B40: 34
B41: 35 | C41: DISTRIBUTION EXPENSES
B42: 36 | C42: DISTRIBUTION EXPENSES OPERATION | E42: =HYPERLINK("#a"&AE42,"Page "&INDEX(AW$3:AW$33,MATCH(AE42,AV$3:AV$33,1))&" Line "&INDIRECT("B"&AE42)) -> Page 25 Line 31 | G42: =G7342 -> 24663549.55 | H42: =H7342 -> 14068187.79 | I42: =I7342 -> 3729847.805 | J42: 3429846.945 | K42: 861472.4082 | L42: =L7342 -> 239093.6564 | M42: 40909.39142 | N42: =N7342 -> 928.890998 | O42: 1401080.543 | P42: 669.721967 | Q42: 92743.69071 | R42: 406302.2231 | S42: 746.1379489 | T42: 177597.9661 | U42: 621.8470336 | V42: 44033.77062 | W42: 1430.151926 | X42: 38845.18136 | Y42: 129191.4278 | AA42: =G42-SUM(H42:Y42) -> 0 | AE42: =ROW(B7342) -> 7342
B43: 37 | C43: DISTRIBUTION EXPENSES MAINTENANCE | E43: =HYPERLINK("#a"&AE43,"Page "&INDEX(AW$3:AW$33,MATCH(AE43,AV$3:AV$33,1))&" Line "&INDIRECT("B"&AE43)) -> Page 25 Line 46 | G43: =G7596 -> 19607826.64 | H43: =H7596 -> 10010794.95 | I43: =I7596 -> 2637094.755 | J43: 3112997.55 | K43: 750684.6388 | L43: =L7596 -> 218723.9164 | M43: 34553.47508 | N43: =N7596 -> 191.8214188 | O43: 1259871.279 | P43: 64.23038649 | Q43: 60209.4735 | R43: 311662.1263 | S43: 64.57397582 | T43: 91113.80823 | U43: 64.01512633 | V43: 21671.16412 | W43: 67.64950925 | X43: 355037.9103 | Y43: 742959.3083 | AA43: 0 | AE43: =ROW(B7596) -> 7596
B44: 38 | C44: TOTAL DISTRIBUTION EXPENSES | E44: =HYPERLINK("#a"&AE44,"Page "&INDEX(AW$3:AW$33,MATCH(AE44,AV$3:AV$33,1))&" Line "&INDIRECT("B"&AE44)) -> Page 25 Line 48 | G44: =G7618 -> 44271376.19 | H44: =H7618 -> 24078982.74 | I44: =I7618 -> 6366942.56 | J44: 6542844.495 | K44: 1612157.047 | L44: =L7618 -> 457817.5728 | M44: 75462.8665 | N44: =N7618 -> 1120.712417 | O44: 2660951.822 | P44: 733.9523535 | Q44: 152953.1642 | R44: 717964.3495 | S44: 810.7119247 | T44: 268711.7743 | U44: 685.8621599 | V44: 65704.93475 | W44: 1497.801435 | X44: 393883.0917 | Y44: 872150.7361 | AA44: 0 | AE44: =ROW(B7618) -> 7618
B45: 39
B46: 40 | C46: CUSTOMER ACCOUNTS AND SALES EXPENSES | E46: =HYPERLINK("#a"&AE46,"Page "&INDEX(AW$3:AW$33,MATCH(AE46,AV$3:AV$33,1))&" Line "&INDIRECT("B"&AE46)) -> Page 25 Line 64 | G46: =G7893 -> 35166743.88 | H46: =H7893 -> 30735729.06 | I46: =I7893 -> 3181089.244 | J46: 495651.4951 | K46: 123318.9785 | L46: =L7893 -> 36095.35846 | M46: 6753.698817 | N46: =N7893 -> 1693.619127 | O46: 218673.2686 | P46: 5414.560116 | Q46: 20908.66786 | R46: 40274.71171 | S46: 13155.61122 | T46: 165033.8153 | U46: 564.7591075 | V46: 32892.82645 | W46: 82447.23084 | X46: 2309.004295 | Y46: 4737.97139 | AA46: 0 | AE46: =ROW(B7893) -> 7893
B47: 41
B48: 42 | C48: ADMINISTRATIVE AND GENERAL EXPENSE | E48: =HYPERLINK("#a"&AE48,"Page "&INDEX(AW$3:AW$33,MATCH(AE48,AV$3:AV$33,1))&" Line "&INDIRECT("B"&AE48)) -> Page 27 Line 20 | G48: =G8294 -> 116330783.4 | H48: =H8294 -> 71617952.18 | I48: =I8294 -> 13478318.61 | J48: 11283764.65 | K48: 2386069.232 | L48: =L8294 -> 799403.7945 | M48: 121436.7244 | N48: =N8294 -> 16657.36133 | O48: 5322332.592 | P48: 83517.00817 | Q48: 277623.6299 | R48: 1206903.713 | S48: 216177.5438 | T48: 2891078.38 | U48: 8140.897069 | V48: 599387.2416 | W48: 4915355.149 | X48: 338114.2217 | Y48: 768550.516 | AA48: 0 | AE48: =ROW(B8294) -> 8294
B49: 43 | C49: TOTAL OPERATIONS EXPENSE | G49: =G30+G36+G39+G44+G46+G48+G29 -> 636271295.8 | H49: =H30+H36+H39+H44+H46+H48+H29 -> 301461903.8 | I49: 66931964.35 | J49: 85943566.74 | K49: 15743807.71 | L49: 6311330.415 | M49: 824172.0715 | N49: =N30+N36+N39+N44+N46+N48+N29 -> 232594.8727 | O49: 48303164.88 | P49: 1242786.152 | Q49: 1568038.833 | R49: 8952823.94 | S49: 3144114.992 | T49: 39429716.58 | U49: 112258.8601 | V49: 7934715.313 | W49: 44331932.11 | X49: 1186865.12 | Y49: 2615539.023 | AA49: 0
B50: 44
B51: 45 | C51: DEPRECIATION & AMORTIZATION EXPENSE
B52: 46 | C52: PRODUCTION DEPRECIATION & AMORTIZATION EXPENSE | E52: =HYPERLINK("#a"&AE52,"Page "&INDEX(AW$3:AW$33,MATCH(AE52,AV$3:AV$33,1))&" Line "&INDIRECT("B"&AE52)) -> Page 27 Line 37 | G52: =G8527 -> 71906052.8 | H52: =H8527 -> 28471943.87 | I52: =I8527 -> 6399560.587 | J52: 10126175.71 | K52: 1606153.652 | L52: =L8527 -> 740736.9644 | M52: 92796.00495 | N52: =N8527 -> 26302.36659 | O52: 5651366.427 | P52: 162284.5661 | Q52: 191286.5681 | R52: 1022235.491 | S52: 450744.7022 | T52: 5118063.8 | U52: 13904.79352 | V52: 1035579.814 | W52: 10608481.21 | X52: 58580.96019 | Y52: 129855.3106 | AA52: =G52-SUM(H52:Y52) -> 0 | AE52: =ROW(B8527) -> 8527
B53: 47 | C53: ENERGY STORAGE DEPRECIATION & AMORTIZATION EXPENSE | E53: =HYPERLINK("#a"&AE53,"Page "&INDEX(AW$3:AW$33,MATCH(AE53,AV$3:AV$33,1))&" Line "&INDIRECT("B"&AE53)) -> Page 27 Line 42 | G53: =G8592 -> 1207923.818 | H53: =H8592 -> 557335.3397 | I53: 117704.9198 | J53: 174870.8877 | K53: 29406.41146 | L53: 12360.74963 | M53: 1652.101226 | N53: =N8592 -> 259.5486389 | O53: 91999.77155 | P53: 1811.384697 | Q53: 3476.688923 | R53: 17722.40612 | S53: 5379.159547 | T53: 61521.195 | U53: 139.0430552 | V53: 12747.26405 | W53: 116012.2651 | X53: 1021.88883 | Y53: 2502.792538 | AA53: 0 | AE53: =ROW(B8592) -> 8592
B54: =B53+1 -> 48 | C54: TRANSMISSION DEPRECIATION & AMORTIZATION EXPENSE | E54: =HYPERLINK("#a"&AE54,"Page "&INDEX(AW$3:AW$33,MATCH(AE54,AV$3:AV$33,1))&" Line "&INDIRECT("B"&AE54)) -> Page 27 Line 50 | G54: =G8742 -> 21591862.6 | H54: =H8742 -> 9851857.39 | I54: =I8742 -> 2008891.267 | J54: 3006092.594 | K54: 477572.8225 | L54: =L8742 -> 208083.912 | M54: 25018.55455 | N54: =N8742 -> 8174.474296 | O54: 1612608.655 | P54: 38877.20287 | Q54: 43617.22814 | R54: 203993.9605 | S54: 83755.99458 | T54: 1275591.323 | U54: 2752.652454 | V54: 261415.0724 | W54: 2446469.485 | X54: 10630.61424 | Y54: 26459.39677 | AA54: 0 | AE54: =ROW(B8742) -> 8742
B55: 49 | C55: DISTRIBUTION DEPRECIATION & AMORTIZATION EXPENSE | E55: =HYPERLINK("#a"&AE55,"Page "&INDEX(AW$3:AW$33,MATCH(AE55,AV$3:AV$33,1))&" Line "&INDIRECT("B"&AE55)) -> Page 27 Line 68 | G55: =G9059 -> 71549794.59 | H55: =H9059 -> 40747084.72 | I55: =I9059 -> 9550272.208 | J55: 10302264.4 | K55: 2490425.324 | L55: =L9059 -> 723516.0956 | M55: 114853.2681 | N55: =N9059 -> 759.250705 | O55: 4405933.162 | P55: 308.0822312 | Q55: 203911.2479 | R55: 1099164.668 | S55: 308.0822312 | T55: 428472.7703 | U55: 308.0822312 | V55: 101939.2481 | W55: 308.0822312 | X55: 323588.8134 | Y55: 1056377.088 | AA55: 0 | AE55: =ROW(B9059) -> 9059
B56: 50 | C56: G&I DEPRECIATION & AMORTIZATION EXPENSE | E56: =HYPERLINK("#a"&AE56,"Page "&INDEX(AW$3:AW$33,MATCH(AE56,AV$3:AV$33,1))&" Line "&INDIRECT("B"&AE56)) -> Page 29 Line 8 | G56: =G9208 -> 53807228.27 | H56: =H9208 -> 34066042.18 | I56: =I9208 -> 6331501.161 | J56: 4983511.479 | K56: 1083049.829 | L56: =L9208 -> 352408.2771 | M56: 54736.40278 | N56: =N9208 -> 6800.287903 | O56: 2307690.296 | P56: 32961.64272 | Q56: 127596.6876 | R56: 543352.01 | S56: 85030.58442 | T56: 1161316.015 | U56: 3356.47558 | V56: 241890.2434 | W56: 1887045.261 | X56: 166496.6524 | Y56: 372442.7897 | AA56: 0 | AE56: =ROW(B9208) -> 9208
B57: 51 | C57: TOTAL DEPRECIATION & AMORTIZATION EXPENSE | E57: =HYPERLINK("#a"&AE57,"Page "&INDEX(AW$3:AW$33,MATCH(AE57,AV$3:AV$33,1))&" Line "&INDIRECT("B"&AE57)) -> Page 29 Line 10 | G57: =G9230 -> 220062862.1 | H57: =H9230 -> 113694263.5 | I57: =I9230 -> 24407930.14 | J57: 28592915.07 | K57: 5686608.039 | L57: =L9230 -> 2037105.999 | M57: 289056.3316 | N57: =N9230 -> 42295.92813 | O57: 14069598.31 | P57: 236242.8786 | Q57: 569888.4207 | R57: 2886468.536 | S57: 625218.5229 | T57: 8044965.103 | U57: 20461.04684 | V57: 1653571.642 | W57: 15058316.3 | X57: 560318.9291 | Y57: 1587637.378 | AA57: 0 | AE57: =ROW(B9230) -> 9230
B58: 52
B59: 1 | C59: GENERAL TAXES AND OTHER EXPENSES
B60: 2 | C60: PROPERTY TAX EXPENSE | E60: =HYPERLINK("#a"&AE60,"Page "&INDEX(AW$3:AW$33,MATCH(AE60,AV$3:AV$33,1))&" Line "&INDIRECT("B"&AE60)) -> Page 29 Line 66 | G60: =G10042 -> 31546657.07 | H60: =H10042 -> 15755727.18 | I60: =I10042 -> 3567816.384 | J60: 4460545.996 | K60: 900128.6885 | L60: =L10042 -> 316302.4513 | M60: 44870.73896 | N60: =N10042 -> 5895.737719 | O60: 2139376.463 | P60: 32171.85091 | Q60: 83834.77763 | R60: 430625.3938 | S60: 82752.23246 | T60: 1141783.558 | U60: 2676.525596 | V60: 236073.6763 | W60: 2063008.141 | X60: 51249.93804 | Y60: 231817.3356 | AA60: =G60-SUM(H60:Y60) -> 0 | AE60: =ROW(B10042) -> 10042
B61: 3 | C61: PAYROLL TAXES | E61: =HYPERLINK("#a"&AE61,"Page "&INDEX(AW$3:AW$33,MATCH(AE61,AV$3:AV$33,1))&" Line "&INDIRECT("B"&AE61)) -> Page 31 Line 6 | G61: =G10149 -> 7300814.214 | H61: =H10149 -> 3789229.174 | I61: =I10149 -> 971471.5432 | J61: 1006438.263 | K61: 222685.0303 | L61: =L10149 -> 70917.7029 | M61: 11109.75182 | N61: =N10149 -> 1115.514731 | O61: 458463.1928 | P61: 5384.781819 | Q61: 25196.59222 | R61: 112405.6029 | S61: 13971.96343 | T61: 198946.6617 | U61: 575.8942724 | V61: 41941.23695 | W61: 336808.9941 | X61: 10094.55677 | Y61: 24057.75697 | AA61: 0 | AE61: =ROW(B10149) -> 10149
B62: 4 | C62: OTHER TAXES | E62: =HYPERLINK("#a"&AE62,"Page "&INDEX(AW$3:AW$33,MATCH(AE62,AV$3:AV$33,1))&" Line "&INDIRECT("B"&AE62)) -> Page 31 Line 20 | G62: =G10382 -> 3804179.955 | H62: =H10382 -> 1556796.917 | I62: =I10382 -> 344878.5652 | J62: 535554.758 | K62: 85990.20697 | L62: =L10382 -> 38808.18697 | M62: 4860.88238 | N62: =N10382 -> 1370.207729 | O62: 295292.3742 | P62: 8124.131568 | Q62: 9754.943775 | R62: 51292.83077 | S62: 21882.81068 | T62: 258196.0082 | U62: 680.1106446 | V62: 52356.92677 | W62: 528366.1252 | X62: 3000.625039 | Y62: 6973.34362 | AA62: 0 | AE62: =ROW(B10382) -> 10382
B63: 5 | C63: TOTAL GENERAL TAXES | E63: =HYPERLINK("#a"&AE63,"Page "&INDEX(AW$3:AW$33,MATCH(AE63,AV$3:AV$33,1))&" Line "&INDIRECT("B"&AE63)) -> Page 31 Line 23 | G63: =G10404 -> 42651651.24 | H63: =H10404 -> 21101753.27 | I63: =I10404 -> 4884166.492 | J63: 6002539.017 | K63: 1208803.926 | L63: =L10404 -> 426028.3411 | M63: 60841.37316 | N63: =N10404 -> 8381.460178 | O63: 2893132.03 | P63: 45680.7643 | Q63: 118786.3136 | R63: 594323.8275 | S63: 118607.0066 | T63: 1598926.228 | U63: 3932.530513 | V63: 330371.84 | W63: 2928183.261 | X63: 64345.11985 | Y63: 262848.4362 | AA63: 0 | AE63: =ROW(B10404) -> 10404
B64: 6
B65: 7 | C65: OTHER ALLOWABLE EXPENSES | E65: =HYPERLINK("#a"&AE65,"Page "&INDEX(AW$3:AW$33,MATCH(AE65,AV$3:AV$33,1))&" Line "&INDIRECT("B"&AE65)) -> Page 31 Line 51 | G65: =G11039 -> 22840959.22 | H65: =H11039 -> 11117000.56 | I65: =I11039 -> 2026953.45 | J65: 2713565.254 | K65: 446616.3214 | L65: =L11039 -> 196331.7007 | M65: 24886.19298 | N65: =N11039 -> 6025.149406 | O65: 1542665.452 | P65: 40427.9421 | Q65: 56839.99098 | R65: 290377.101 | S65: 111464.2078 | T65: 1289843.165 | U65: 3499.298732 | V65: 261723.3413 | W65: 2618126.587 | X65: 27511.56842 | Y65: 67101.93412 | AA65: 0 | AE65: =ROW(B11039) -> 11039
B66: 8
B67: 9 | C67: REVENUE TAX | E67: =HYPERLINK("#a"&AE67,"Page "&INDEX(AW$3:AW$33,MATCH(AE67,AV$3:AV$33,1))&" Line "&INDIRECT("B"&AE67)) -> Page 33 Line 47 | G67: =G11705 -> 4942203.48 | H67: =H11705 -> 2283902.54 | I67: 654561.7421 | J67: 728007.7372 | K67: 176908.4197 | L67: =L11705 -> 56473.7865 | M67: 9956.478562 | N67: =N11705 -> 3180.235238 | O67: 405025.7324 | P67: 13362.35127 | Q67: 11919.89713 | R67: 61257.29118 | S67: 25040.23551 | T67: 284580.9922 | U67: 1480.724513 | V67: 56213.6837 | W67: 136576.0007 | X67: 13088.30064 | Y67: 20667.33164 | AA67: 0 | AE67: =ROW(B11705) -> 11705
B68: 10
B69: 11 | C69: OPERATING INCOME | G69: =G25-G49-G57-G63-G65-G67 -> 157324157 | H69: 52750708.51 | I69: 40786075.18 | J69: 34317454.16 | K69: 14079228.17 | L69: =L25-L49-L57-L63-L65-L67 -> 3136459.143 | M69: 882475.6729 | N69: =N25-N49-N57-N63-N65-N67 -> 369590.1802 | O69: 20390469.85 | P69: 1230847.842 | Q69: 264836.9482 | R69: 436818.8264 | S69: 1314304.081 | T69: 11303263.83 | U69: 163139.8544 | V69: 2044959.363 | W69: -26738293.54 | X69: 823873.3904 | Y69: -232054.5198 | AA69: 0 | AE69: =ROW(B11727) -> 11727
B70: 12
B71: 13 | C71: STATE INCOME TAX | E71: =HYPERLINK("#a"&AE71,"Page "&INDEX(AW$3:AW$33,MATCH(AE71,AV$3:AV$33,1))&" Line "&INDIRECT("B"&AE71)) -> Page 33 Line 61 | G71: =G11875 -> -1808805.096 | H71: =H11875 -> -2173704.001 | I71: 1166505.973 | J71: 452967.1949 | K71: 517723.2844 | L71: =L11875 -> 72005.80801 | M71: 35514.89731 | N71: =N11875 -> 17678.21623 | O71: 397126.8089 | P71: 53862.45455 | Q71: -10423.69627 | R71: -100513.021 | S71: 38380.43866 | T71: 135309.6902 | U71: 7945.574554 | V71: 12412.94734 | W71: -2406091.77 | X71: 32985.70072 | Y71: -58491.59554 | AA71: -5.192123353e-08 | AE71: =ROW(B11875) -> 11875
B72: 14 | C72: FEDERAL INCOME TAX | E72: =HYPERLINK("#a"&AE72,"Page "&INDEX(AW$3:AW$33,MATCH(AE72,AV$3:AV$33,1))&" Line "&INDIRECT("B"&AE72)) -> Page 35 Line 18 | G72: =G12029 -> -8690437.153 | H72: =H12029 -> -9378528.301 | I72: 4477391.472 | J72: 1592095.718 | K72: 2018812.366 | L72: =L12029 -> 271554.9493 | M72: 139229.598 | N72: =N12029 -> 70037.74941 | O72: 1477378.399 | P72: 212595.4161 | Q72: -45447.59909 | R72: -420448.2681 | S72: 148155.9251 | T72: 478468.7057 | U72: 31471.96489 | V72: 37057.17585 | W72: -9686701.409 | X72: 128941.7748 | Y72: -242502.7902 | AA72: 0 | AE72: =ROW(B12029) -> 12029
B73: 15
B74: 16 | C74: NET OPERATING INCOME AT CURRENT RATES | G74: =G69-G71-G72 -> 167823399.2 | H74: =H69-H71-H72 -> 64302940.82 | I74: 35142177.73 | J74: 32272391.25 | K74: 11542692.52 | L74: =L69-L71-L72 -> 2792898.386 | M74: 707731.1776 | N74: =N69-N71-N72 -> 281874.2145 | O74: 18515964.64 | P74: 964389.9714 | Q74: 320708.2436 | R74: 957780.1155 | S74: 1127767.717 | T74: 10689485.44 | U74: 123722.315 | V74: 1995489.24 | W74: -14645500.36 | X74: 661945.9149 | Y74: 68939.86593 | AA74: 0 | AE74: =ROW(B12051) -> 12051
B75: =B74+1 -> 17
B76: 18
B77: 19
B78: 20 | C78: FORECASTED RATE OF RETURN AT PRESENT RATES - NON-FUEL | F78: =(G74-G23+G29)/G19 -> 0.05626089661 | G78: =IFERROR((G74-G23+G29)/G19,0) -> 0.05626089661 | H78: =IFERROR((H74-H23+H29)/H19,0) -> 0.04044390046 | I78: 0.09908495139 | J78: 0.07286141465 | K78: 0.1303895897 | L78: =IFERROR((L74-L23+L29)/L19,0) -> 0.08973736656 | M78: =IFERROR((M74-M23+M29)/M19,0) -> 0.1634636931 | N78: 0.4438523594 | O78: 0.08833752115 | P78: 0.3065249189 | Q78: 0.04465098616 | R78: 0.02728320432 | S78: 0.153356767 | T78: 0.0988127788 | U78: 0.4650395949 | V78: 0.08984131656 | W78: -0.03913727801 | X78: 0.1320003926 | Y78: 0.00306796019
B79: 21 | C79: RELATIVE RATE OF RETURN AT PRESENT RATES - NON-FUEL | G79: =IFERROR(G78/$G78,0) -> 1 | H79: =IFERROR(H78/$G78,0) -> 0.7188634184 | I79: 1.761169078 | J79: 1.295063162 | K79: 2.317588193 | L79: =IFERROR(L78/$G78,0) -> 1.595021977 | M79: 2.905458373 | N79: 7.889180339 | O79: 1.570140657 | P79: 5.448276465 | Q79: 0.7936415672 | R79: 0.484940802 | S79: 2.725814487 | T79: 1.756331391 | U79: 8.265769351 | V79: 1.596869619 | W79: -0.6956390738 | X79: 2.346219143 | Y79: 0.05453095089
B80: 22
B81: 23 | C81: FORECASTED RATE OF RETURN AT PRESENT RATES - TOTAL | G81: =IFERROR(G74/G19,0) -> 0.05626089661 | H81: 0.0435317391 | I81: 0.1027063681 | J81: 0.0758784882 | K81: 0.1343379289 | L81: =IFERROR(L74/L19,0) -> 0.09228602735 | M81: 0.1648085067 | N81: 0.46048888 | O81: 0.09062990431 | P81: 0.3008371345 | Q81: 0.04061055069 | R81: 0.02337746896 | S81: 0.1376496449 | T81: 0.09537980251 | U81: 0.4576592861 | V81: 0.0864195744 | W81: -0.07680927128 | X81: 0.1321182207 | Y81: 0.003200468307
B82: 24 | C82: RELATIVE RATE OF RETURN AT PRESENT RATES - TOTAL | G82: =IFERROR(G81/$G81,0) -> 1 | H82: =IFERROR(H81/$G81,0) -> 0.7737476954 | I82: 1.82553735 | J82: 1.348689636 | K82: 2.387767295 | L82: =IFERROR(L81/$G81,0) -> 1.640322727 | M82: 2.929361539 | N82: 8.184883422 | O82: 1.610886242 | P82: 5.347179882 | Q82: 0.7218255153 | R82: 0.4155189548 | S82: 2.446630844 | T82: 1.695312522 | U82: 8.134589272 | V82: 1.536050429 | W82: -1.365233686 | X82: 2.348313458 | Y82: 0.0568861945
B83: 25
B84: =B83+1 -> 26
B85: 27 | C85: SUMMARY OF RESULTS AT PROPOSED RATE OF RETURN
B86: 28
B87: 29 | C87: TOTAL NET ORIGINAL COST RATE BASE | G87: =G19 -> 2982949247 | H87: 1477150745 | I87: 342161624.2 | J87: 425316740.2 | K87: 85922811.32 | L87: =L19 -> 30263502.13 | M87: 4294263.638 | N87: =N19 -> 612119.4817 | O87: 204303036.4 | P87: 3205687.931 | Q87: 7897165.592 | R87: 40970222.97 | S87: 8193030.337 | T87: 112072841 | U87: 270337.1673 | V87: 23090708.95 | W87: 190673601.2 | X87: 5010254.54 | Y87: 21540555.73 | AA87: =G87-SUM(H87:Y87) -> 0
B88: 30
B89: 31
B90: 32 | C90: OPERATING REVENUES
B91: 33 | C91: SALES OF ELECTRICITY - NON FUEL | E91: =HYPERLINK("#a"&AE91,"Page "&INDEX(AW$3:AW$33,MATCH(AE91,AV$3:AV$33,1))&" Line "&INDIRECT("B"&AE91)) -> Page 39 Line 19 | G91: =G12892 -> 851308014.6 | H91: =H12892 -> 441537249.5 | I91: 94245999 | J91: 109295099.3 | K91: 21627819.15 | L91: =L12892 -> 7825344.124 | M91: 1102655.287 | N91: =N12892 -> 183020.3669 | O91: 54426650.36 | P91: 995286.8037 | Q91: 2168341.451 | R91: 11030571.09 | S91: 2597575.316 | T91: 33475892.6 | U91: 87709.4281 | V91: 6851840.545 | W91: 56357451.86 | X91: 1910794.622 | Y91: 5588713.825 | AA91: =G91-SUM(H91:Y91) -> 0 | AE91: =ROW(B12892) -> 12892
B92: 34 | C92: SALES OF ELECTRICITY - FUEL | E92: =HYPERLINK("#a"&AE92,"Page "&INDEX(AW$3:AW$33,MATCH(AE92,AV$3:AV$33,1))&" Line "&INDIRECT("B"&AE92)) -> Page 25 Line | G92: =G12871 -> 268805228 | H92: =H12871 -> 105181059.7 | I92: 27752196.26 | J92: 42647738.51 | K92: 7508685.804 | L92: =L12871 -> 3197863.291 | M92: 395803.3555 | N92: =N12871 -> 140900.4661 | O92: 25842680.45 | P92: 754839.3971 | Q92: 694569.7645 | R92: 4600864.207 | S92: 1898149.15 | T92: 23516564.17 | U92: 68979.90875 | V92: 4696477.982 | W92: 18946339.06 | X92: 308811.6286 | Y92: 652704.9268 | AA92: 0 | AE92: 6935
B93: 35 | C93: OTHER OPERATING REVENUES | G93: =G24 -> 56157274.12 | H93: 26664479.85 | I93: 5493044.251 | J93: 7575450.757 | K93: 1278358.318 | L93: =L24 -> 529683.737 | M93: 66829.81059 | N93: =N24 -> 18371.30227 | O93: 3982205.562 | P93: 90963.71373 | Q93: 123258.8237 | R93: 588566.8773 | S93: 207561.2224 | T93: 2997266.07 | U93: 6809.759216 | V93: 614168.4621 | W93: 5740046.049 | X93: 51234.05952 | Y93: 128975.4872 | AA93: 0
B94: 36 | C94: TOTAL OPERATING REVENUES | G94: =SUM(G91:G93) -> 1176270517 | H94: =SUM(H91:H93) -> 573382789 | I94: 127491239.5 | J94: 159518288.5 | K94: 30414863.27 | L94: =SUM(L91:L93) -> 11552891.15 | M94: 1565288.453 | N94: =SUM(N91:N93) -> 342292.1352 | O94: 84251536.38 | P94: 1841089.915 | Q94: 2986170.04 | R94: 16220002.18 | S94: 4703285.688 | T94: 59989722.84 | U94: 163499.0961 | V94: 12162486.99 | W94: 81043836.97 | X94: 2270840.311 | Y94: 6370394.239 | AA94: 0
B95: 37
B96: 38 | C96: OPERATIONS EXPENSE | G96: =G49 -> 636271295.8 | H96: =H49 -> 301461903.8 | I96: 66931964.35 | J96: 85943566.74 | K96: 15743807.71 | L96: =L49 -> 6311330.415 | M96: 824172.0715 | N96: =N49 -> 232594.8727 | O96: 48303164.88 | P96: 1242786.152 | Q96: 1568038.833 | R96: 8952823.94 | S96: 3144114.992 | T96: 39429716.58 | U96: 112258.8601 | V96: 7934715.313 | W96: 44331932.11 | X96: 1186865.12 | Y96: 2615539.023 | AA96: 0
B97: 39 | C97: DEPRECIATION & AMORTIZATION EXPENSE | G97: =G57 -> 220062862.1 | H97: =H57 -> 113694263.5 | I97: 24407930.14 | J97: 28592915.07 | K97: 5686608.039 | L97: =L57 -> 2037105.999 | M97: 289056.3316 | N97: =N57 -> 42295.92813 | O97: 14069598.31 | P97: 236242.8786 | Q97: 569888.4207 | R97: 2886468.536 | S97: 625218.5229 | T97: 8044965.103 | U97: 20461.04684 | V97: 1653571.642 | W97: 15058316.3 | X97: 560318.9291 | Y97: 1587637.378 | AA97: 0
B98: 40 | C98: GENERAL TAXES AND OTHER EXPENSES | G98: =G63 -> 42651651.24 | H98: =H63 -> 21101753.27 | I98: 4884166.492 | J98: 6002539.017 | K98: 1208803.926 | L98: =L63 -> 426028.3411 | M98: 60841.37316 | N98: =N63 -> 8381.460178 | O98: 2893132.03 | P98: 45680.7643 | Q98: 118786.3136 | R98: 594323.8275 | S98: 118607.0066 | T98: 1598926.228 | U98: 3932.530513 | V98: 330371.84 | W98: 2928183.261 | X98: 64345.11985 | Y98: 262848.4362 | AA98: 0
B99: 41 | C99: OTHER ALLOWABLE EXPENSES | G99: =G65 -> 22840959.22 | H99: =H65 -> 11117000.56 | I99: 2026953.45 | J99: 2713565.254 | K99: 446616.3214 | L99: =L65 -> 196331.7007 | M99: 24886.19298 | N99: =N65 -> 6025.149406 | O99: 1542665.452 | P99: 40427.9421 | Q99: 56839.99098 | R99: 290377.101 | S99: 111464.2078 | T99: 1289843.165 | U99: 3499.298732 | V99: 261723.3413 | W99: 2618126.587 | X99: 27511.56842 | Y99: 67101.93412 | AA99: 0
B100: 42 | C100: REVENUE TAX | E100: =HYPERLINK("#a"&AE100,"Page "&INDEX(AW$3:AW$33,MATCH(AE100,AV$3:AV$33,1))&" Line "&INDIRECT("B"&AE100)) -> Page 39 Line 13 | G100: =G12828 -> 5667768.78 | H100: =H12828 -> 2766392.581 | I100: 617310.4075 | J100: 768830.1856 | K100: 147430.6051 | L100: =L12828 -> 55777.38791 | M100: 7582.195075 | N100: =N12828 -> 1639.038192 | O100: 406162.5109 | P100: 8855.63197 | Q100: 14486.31995 | R100: 79095.00362 | S100: 22748.34883 | T100: 288381.6162 | U100: 792.8474531 | V100: 58434.44816 | W100: 381036.8978 | X100: 11231.19925 | Y100: 31581.55532 | AA100: 0 | AE100: =ROW(B12828) -> 12828
B101: 43
B102: 44 | C102: OPERATING INCOME | G102: =G94-SUM(G96:G100) -> 248775979.6 | H102: =H94-SUM(H96:H100) -> 123241475.3 | I102: 28622914.67 | J102: 35496872.26 | K102: 7181596.666 | L102: =L94-SUM(L96:L100) -> 2526317.309 | M102: 358750.2888 | N102: =N94-SUM(N96:N100) -> 51355.68663 | O102: 17036813.19 | P102: 267096.5461 | Q102: 658130.1615 | R102: 3416913.772 | S102: 681132.6097 | T102: 9337890.154 | U102: 22554.51239 | V102: 1923670.405 | W102: 15726241.81 | X102: 420568.3743 | Y102: 1805685.912 | AA102: 0
B103: 45
B104: 46 | C104: STATE INCOME TAX | E104: =HYPERLINK("#a"&AE104,"Page "&INDEX(AW$3:AW$33,MATCH(AE104,AV$3:AV$33,1))&" Line "&INDIRECT("B"&AE104)) -> Page 37 Line 52 | G104: =G12613 -> 9515701.129 | H104: =H12613 -> 4713602.679 | I104: 1098443.278 | J104: 1358845.886 | K104: 275254.5981 | L104: =L12613 -> 96745.90499 | M104: 13747.16115 | N104: =N12613 -> 1985.264831 | O104: 651811.4024 | P104: 10241.74569 | Q104: 25147.7809 | R104: 130701.5273 | S104: 26057.29056 | T104: 357798.9107 | U104: 866.5372794 | V104: 73687.78854 | W104: 595203.2236 | X104: 16202.45031 | Y104: 69357.69969 | AA104: 0 | AE104: =ROW(B12613) -> 12613
B105: 47 | C105: FEDERAL INCOME TAX | E105: =HYPERLINK("#a"&AE105,"Page "&INDEX(AW$3:AW$33,MATCH(AE105,AV$3:AV$33,1))&" Line "&INDIRECT("B"&AE105)) -> Page 37 Line 29 | G105: =G12359 -> 16213365.66 | H105: =H12359 -> 8002997 | I105: 1920920.017 | J105: 2334128.057 | K105: 476830.2611 | L105: =L12359 -> 166763.5512 | M105: 23795.17558 | N105: =N12359 -> 3717.098407 | O105: 1115834.193 | P105: 18016.20277 | Q105: 42489.4188 | R105: 223058.2408 | S105: 45022.0449 | T105: 624503.7383 | U105: 1548.830952 | V105: 128263.402 | W105: 934679.8008 | X105: 29097.71701 | Y105: 121700.9121 | AA105: 0 | AE105: =ROW(B12359) -> 12359
B106: 48
B107: 49 | C107: NET OPERATING INCOME AT PROPOSED RATE OF RETURN | G107: =G102-G104-G105 -> 223046912.8 | H107: =H102-H104-H105 -> 110524875.6 | I107: 25603551.38 | J107: 31803898.32 | K107: 6429511.806 | L107: =L102-L104-L105 -> 2262807.853 | M107: 321207.9521 | N107: =N102-N104-N105 -> 45653.32339 | O107: 15269167.6 | P107: 238838.5976 | Q107: 590492.9618 | R107: 3063154.003 | S107: 610053.2742 | T107: 8355587.505 | U107: 20139.14415 | V107: 1721719.214 | W107: 14196358.79 | X107: 375268.2069 | Y107: 1614627.3 | AA107: 0
B108: 50
B109: 51 | C109: FORECASTED RATE OF RETURN AT PROPOSED RATE OF RETURN - NON-FUEL | G109: =IFERROR((G107-G92+G29)/G87,0) -> 0.07477395502 | H109: 0.07482301724 | I109: 0.07482882231 | J109: 0.07477697281 | K109: 0.07482892736 | L109: =IFERROR((L107-L92+L29)/L87,0) -> 0.07477019159 | M109: 0.07479930883 | N109: =IFERROR((N107-N92+N29)/N87,0) -> 0.07458237282 | O109: 0.07473783977 | P109: 0.07450463137 | Q109: 0.07477277194 | R109: 0.07476537304 | S109: 0.07446002873 | T109: 0.07455497187 | U109: 0.07449639411 | V109: 0.0745632894 | W109: 0.07445371935 | X109: 0.07490002831 | Y109: 0.0749575508
B110: 52 | C110: RELATIVE RATE OF RETURN AT PROPOSED RATE OF RETURN - NON-FUEL | G110: =IFERROR(G109/$G$109,0) -> 1 | H110: =IFERROR(H109/$G$109,0) -> 1.00065614 | I110: 1.000733775 | J110: 1.000040359 | K110: 1.00073518 | L110: =IFERROR(L109/$G$109,0) -> 0.9999496692 | M110: 1.000339073 | N110: =IFERROR(N109/$G$109,0) -> 0.9974378485 | O110: 0.9995170075 | P110: 0.9963981623 | Q110: 0.9999841779 | R110: 0.9998852276 | S110: 0.9958016626 | T110: 0.997071398 | U110: 0.9962880001 | V110: 0.9971826337 | W110: 0.9957172832 | X110: 1.001686059 | Y110: 1.002455344
B111: 53
B112: 1 | C112: FORECASTED RATE OF RETURN AT PROPOSED RATE OF RETURN - TOTAL | G112: =IFERROR(G107/G87,0) -> 0.07477395502 | H112: =IFERROR(H107/H87,0) -> 0.07482301724 | I112: 0.07482882231 | J112: 0.07477697281 | K112: 0.07482892736 | L112: =IFERROR(L107/L87,0) -> 0.07477019159 | M112: 0.07479930883 | N112: =IFERROR(N107/N87,0) -> 0.07458237282 | O112: 0.07473783977 | P112: 0.07450463137 | Q112: 0.07477277194 | R112: 0.07476537304 | S112: 0.07446002873 | T112: 0.07455497187 | U112: 0.07449639411 | V112: 0.0745632894 | W112: 0.07445371935 | X112: 0.07490002831 | Y112: 0.0749575508
B113: 2 | C113: RELATIVE RATE OF RETURN AT PROPOSED RATE OF RETURN - TOTAL | G113: =IFERROR(G112/$G$112,0) -> 1 | H113: =IFERROR(H112/$G$112,0) -> 1.00065614 | I113: 1.000733775 | J113: 1.000040359 | K113: 1.00073518 | L113: =IFERROR(L112/$G$112,0) -> 0.9999496692 | M113: 1.000339073 | N113: =IFERROR(N112/$G$112,0) -> 0.9974378485 | O113: 0.9995170075 | P113: 0.9963981623 | Q113: 0.9999841779 | R113: 0.9998852276 | S113: 0.9958016626 | T113: 0.997071398 | U113: 0.9962880001 | V113: 0.9971826337 | W113: 0.9957172832 | X113: 1.001686059 | Y113: 1.002455344
B114: 3
B115: 4
B116: 5 | C116: BASE NON-FUEL REVENUE REQUIREMENT | G116: =G94-G92 -> 907465288.7 | H116: =H94-H92 -> 468201729.3 | I116: 99739043.25 | J116: 116870550 | K116: 22906177.46 | L116: =L94-L92 -> 8355027.861 | M116: 1169485.098 | N116: =N94-N92 -> 201391.6692 | O116: 58408855.93 | P116: 1086250.517 | Q116: 2291600.275 | R116: 11619137.97 | S116: 2805136.538 | T116: 36473158.67 | U116: 94519.18732 | V116: 7466009.007 | W116: 62097497.91 | X116: 1962028.682 | Y116: 5717689.312 | AA116: =G116-SUM(H116:Y116) -> 0
B117: 6 | C117: FUEL REVENUE REQUIREMENT | G117: =G92 -> 268805228 | H117: =H29 -> 105181059.7 | I117: 27752196.26 | J117: 42647738.51 | K117: 7508685.804 | L117: =L29 -> 3197863.291 | M117: 395803.3555 | N117: =N29 -> 140900.4661 | O117: 25842680.45 | P117: 754839.3971 | Q117: 694569.7645 | R117: 4600864.207 | S117: 1898149.15 | T117: 23516564.17 | U117: 68979.90875 | V117: 4696477.982 | W117: 18946339.06 | X117: 308811.6286 | Y117: 652704.9268 | AA117: 0
B118: 7 | C118: TOTAL REVENUE REQUIREMENT | G118: =G116+G117 -> 1176270517 | H118: =H116+H117 -> 573382789 | I118: 127491239.5 | J118: 159518288.5 | K118: 30414863.27 | L118: =L116+L117 -> 11552891.15 | M118: 1565288.453 | N118: =N116+N117 -> 342292.1352 | O118: 84251536.38 | P118: 1841089.915 | Q118: 2986170.04 | R118: 16220002.18 | S118: 4703285.688 | T118: 59989722.84 | U118: 163499.0961 | V118: 12162486.99 | W118: 81043836.97 | X118: 2270840.311 | Y118: 6370394.239 | AA118: 0
B119: 8
B120: 9 | C120: FORECASTED NON-FUEL REVENUES | G120: =G22 -> 759130626.6 | H120: 366002789.5 | I120: 105207301 | J120: 106791646.8 | K120: 28215676.06 | L120: =L22 -> 8359050.956 | M120: 1622979.971 | N120: =N22 -> 492612.5191 | O120: 57310829.4 | P120: 1981778.081 | Q120: 1804389.803 | R120: 8192657.286 | S120: 3361727.601 | T120: 35822209.06 | U120: 230977.819 | V120: 7049919.191 | W120: 20831510.23 | X120: 2315366.392 | Y120: 3537204.871 | AA120: 0
B121: 10 | C121: FUEL REVENUES | G121: =G23 -> 268805228 | H121: 109742262.8 | I121: 28991306.09 | J121: 43930950.4 | K121: 7847938.207 | L121: =L23 -> 3274994.692 | M121: 401578.3395 | N121: =N23 -> 151084.0044 | O121: 26311021.29 | P121: 736606.1354 | Q121: 662661.7765 | R121: 4440845.358 | S121: 1769460.222 | T121: 23131820.77 | U121: 66984.73697 | V121: 4617467.53 | W121: 11763284.44 | X121: 309401.977 | Y121: 655559.2253 | AA121: 0
B122: 11 | C122: OTHER OPERATING REVENUES | G122: =G24 -> 56157274.12 | H122: 26664479.85 | I122: 5493044.251 | J122: 7575450.757 | K122: 1278358.318 | L122: =L24 -> 529683.737 | M122: 66829.81059 | N122: =N24 -> 18371.30227 | O122: 3982205.562 | P122: 90963.71373 | Q122: 123258.8237 | R122: 588566.8773 | S122: 207561.2224 | T122: 2997266.07 | U122: 6809.759216 | V122: 614168.4621 | W122: 5740046.049 | X122: 51234.05952 | Y122: 128975.4872 | AA122: 0
B123: 12 | C123: TOTAL REVENUES | G123: =SUM(G120:G122) -> 1084093129 | H123: =SUM(H120:H122) -> 502409532.2 | I123: 139691651.3 | J123: 158298048 | K123: 37341972.59 | L123: =SUM(L120:L122) -> 12163729.38 | M123: 2091388.121 | N123: =SUM(N120:N122) -> 662067.8258 | O123: 87604056.25 | P123: 2809347.93 | Q123: 2590310.403 | R123: 13222069.52 | S123: 5338749.046 | T123: 61951295.9 | U123: 304772.3152 | V123: 12281555.18 | W123: 38334840.73 | X123: 2676002.428 | Y123: 4321739.583 | AA123: 0
B124: 13
B125: 14 | C125: NON-FUEL REVENUE DEFICIENCY | G125: =G116-G120-G122 -> 92177387.98 | H125: =H116-H120-H122 -> 75534459.97 | I125: =I116-I120-I122 -> -10961302.01 | J125: 2503452.433 | K125: -6587856.917 | L125: =L116-L120-L122 -> -533706.8314 | M125: -520324.6835 | N125: =N116-N120-N122 -> -309592.1523 | O125: -2884179.034 | P125: -986491.2771 | Q125: 363951.6481 | R125: 2837913.809 | S125: -764152.2855 | T125: -2346316.461 | U125: -143268.3909 | V125: -198078.6465 | W125: 35525941.63 | X125: -404571.7692 | Y125: 2051508.954 | AA125: 0
B126: 15 | C126: FUEL REVENUE DEFICIENCY | G126: =G117-G121 -> -4.768371582e-07 | H126: =H117-H121 -> -4561203.141 | I126: -1239109.831 | J126: -1283211.889 | K126: -339252.402 | L126: =L117-L121 -> -77131.40117 | M126: -5774.984078 | N126: =N117-N121 -> -10183.53834 | O126: -468340.8402 | P126: 18233.26177 | Q126: 31907.98798 | R126: 160018.8489 | S126: 128688.9278 | T126: 384743.4052 | U126: 1995.171785 | V126: 79010.45233 | W126: 7183054.618 | X126: -590.348334 | Y126: -2854.298484 | AA126: -5.390029401e-08
B127: 16 | C127: TOTAL REVENUE DEFICIENCY | G127: =SUM(G125:G126) -> 92177387.98 | H127: =SUM(H125:H126) -> 70973256.83 | I127: -12200411.84 | J127: 1220240.544 | K127: -6927109.319 | L127: =SUM(L125:L126) -> -610838.2326 | M127: -526099.6676 | N127: =SUM(N125:N126) -> -319775.6906 | O127: -3352519.874 | P127: -968258.0154 | Q127: 395859.6361 | R127: 2997932.658 | S127: -635463.3577 | T127: -1961573.056 | U127: -141273.2191 | V127: -119068.1942 | W127: 42708996.25 | X127: -405162.1176 | Y127: 2048654.655 | AA127: 0
B128: 17
B129: 18 | C129: NON-FUEL IMPACT AS % OF TOTAL REVENUES | G129: =IFERROR(G125/G123,0) -> 0.08502718589 | H129: =IFERROR(H125/H123,0) -> 0.1503444006 | I129: -0.078467839 | J129: 0.01581480293 | K129: -0.1764196281 | L129: =IFERROR(L125/L123,0) -> -0.04387690769 | M129: -0.2487939366 | N129: =IFERROR(N125/N123,0) -> -0.4676139516 | O129: -0.03292289373 | P129: -0.3511459961 | Q129: 0.1405050328 | R129: 0.2146346156 | S129: -0.1431332095 | T129: -0.03787356547 | U129: -0.4700833499 | V129: -0.01612814042 | W129: 0.9267272527 | X129: -0.1511851278 | Y129: 0.474695181
B130: 19
B131: 20 | C131: NON-FUEL IMPACT AS % OF TOTAL NON-FUEL REVENUES | G131: =IFERROR(G125/G120,0) -> 0.1214249363 | H131: =IFERROR(H125/H120,0) -> 0.206376733 | I131: -0.1041876553 | J131: 0.02344239936 | K131: -0.2334821573 | L131: =IFERROR(L125/L120,0) -> -0.0638477782 | M131: -0.3205983394 | N131: =IFERROR(N125/N120,0) -> -0.6284699236 | O131: -0.05032520144 | P131: -0.4977809002 | Q131: 0.2017034498 | R131: 0.3463972323 | S131: -0.2273094004 | T131: -0.06549893271 | U131: -0.6202690436 | V131: -0.02809658397 | W131: 1.705394435 | X131: -0.1747333686 | Y131: 0.5799802468
B132: 21
B133: 22
B134: 23
B135: 24
A136: - | B136: 1 | C136: DETAILED COST OF SERVICE
B137: =B136+1 -> 2
B138: =IF(AW138=1,1,B137+1) -> 3 | C138: PLANT IN SERVICE
B139: 4
B140: 5 | C140: NET PRODUCTION PLANT
C141: Steam Production Net Plant | D141: 101/106
C142: Production-Demand | F142: DISP | G142: =SUMIFS(INDIRECT(Functionalization!$B$1&"!"&SUBSTITUTE(ADDRESS(1,MATCH($C142,Functionalization!$3:$3,0),4),"1","")&":"&SUBSTITUTE(ADDRESS(1,MATCH($C142,Functionalization!$3:$3,0),4),"1","")),Functionalization!$C:$C,Cost_of_Service!$C141,Functionalization!$D:$D,Cost_of_Service!$D141) -> 230775053.1 | H142: =IFERROR($G142*INDEX(Class_Alloc,MATCH($F142,Class_Factors!$C:$C,0),MATCH(H$5,CLASSNUMB,0)),0) -> 102853762.4 | I142: =IFERROR($G142*INDEX(Class_Alloc,MATCH($F142,Class_Factors!$C:$C,0),MATCH(I$5,CLASSNUMB,0)),0) -> 19904805.3 | J142: =IFERROR($G142*INDEX(Class_Alloc,MATCH($F142,Class_Factors!$C:$C,0),MATCH(J$5,CLASSNUMB,0)),0) -> 32202081.2 | K142: =IFERROR($G142*INDEX(Class_Alloc,MATCH($F142,Class_Factors!$C:$C,0),MATCH(K$5,CLASSNUMB,0)),0) -> 4577251.202 | L142: =IFERROR($G142*INDEX(Class_Alloc,MATCH($F142,Class_Factors!$C:$C,0),MATCH(L$5,CLASSNUMB,0)),0) -> 2286220.951 | M142: =IFERROR($G142*INDEX(Class_Alloc,MATCH($F142,Class_Factors!$C:$C,0),MATCH(M$5,CLASSNUMB,0)),0) -> 289785.7684 | N142: =IFERROR($G142*INDEX(Class_Alloc,MATCH($F142,Class_Factors!$C:$C,0),MATCH(N$5,CLASSNUMB,0)),0) -> 60637.65501 | O142: =IFERROR($G142*INDEX(Class_Alloc,MATCH($F142,Class_Factors!$C:$C,0),MATCH(O$5,CLASSNUMB,0)),0) -> 16330541.83 | P142: =IFERROR($G142*INDEX(Class_Alloc,MATCH($F142,Class_Factors!$C:$C,0),MATCH(P$5,CLASSNUMB,0)),0) -> 449813.8594 | Q142: =IFERROR($G142*INDEX(Class_Alloc,MATCH($F142,Class_Factors!$C:$C,0),MATCH(Q$5,CLASSNUMB,0)),0) -> 679933.4908 | R142: =IFERROR($G142*INDEX(Class_Alloc,MATCH($F142,Class_Factors!$C:$C,0),MATCH(R$5,CLASSNUMB,0)),0) -> 2941069.269 | S142: =IFERROR($G142*INDEX(Class_Alloc,MATCH($F142,Class_Factors!$C:$C,0),MATCH(S$5,CLASSNUMB,0)),0) -> 1377026.086 | T142: =IFERROR($G142*INDEX(Class_Alloc,MATCH($F142,Class_Factors!$C:$C,0),MATCH(T$5,CLASSNUMB,0)),0) -> 14478529.73 | U142: =IFERROR($G142*INDEX(Class_Alloc,MATCH($F142,Class_Factors!$C:$C,0),MATCH(U$5,CLASSNUMB,0)),0) -> 34829.33592 | V142: =IFERROR($G142*INDEX(Class_Alloc,MATCH($F142,Class_Factors!$C:$C,0),MATCH(V$5,CLASSNUMB,0)),0) -> 2979724.516 | W142: =IFERROR($G142*INDEX(Class_Alloc,MATCH($F142,Class_Factors!$C:$C,0),MATCH(W$5,CLASSNUMB,0)),0) -> 28865415.9 | X142: =IFERROR($G142*INDEX(Class_Alloc,MATCH($F142,Class_Factors!$C:$C,0),MATCH(X$5,CLASSNUMB,0)),0) -> 135689.9333 | Y142: =IFERROR($G142*INDEX(Class_Alloc,MATCH($F142,Class_Factors!$C:$C,0),MATCH(Y$5,CLASSNUMB,0)),0) -> 327934.7472 | AA142: =G142-SUM(H142:Y142) -> 0
C143: Production-Energy-Fuel | G143: =SUMIFS(INDIRECT(Functionalization!$B$1&"!"&SUBSTITUTE(ADDRESS(1,MATCH($C143,Functionalization!$3:$3,0),4),"1","")&":"&SUBSTITUTE(ADDRESS(1,MATCH($C143,Functionalization!$3:$3,0),4),"1","")),Functionalization!$C:$C,Cost_of_Service!$C141,Functionalization!$D:$D,Cost_of_Service!$D141) -> 0 | H143: =IFERROR($G143*INDEX(Class_Alloc,MATCH($F143,Class_Factors!$C:$C,0),MATCH(H$5,CLASSNUMB,0)),0) -> 0 | I143: =IFERROR($G143*INDEX(Class_Alloc,MATCH($F143,Class_Factors!$C:$C,0),MATCH(I$5,CLASSNUMB,0)),0) -> 0 | J143: =IFERROR($G143*INDEX(Class_Alloc,MATCH($F143,Class_Factors!$C:$C,0),MATCH(J$5,CLASSNUMB,0)),0) -> 0 | K143: =IFERROR($G143*INDEX(Class_Alloc,MATCH($F143,Class_Factors!$C:$C,0),MATCH(K$5,CLASSNUMB,0)),0) -> 0 | L143: =IFERROR($G143*INDEX(Class_Alloc,MATCH($F143,Class_Factors!$C:$C,0),MATCH(L$5,CLASSNUMB,0)),0) -> 0 | M143: =IFERROR($G143*INDEX(Class_Alloc,MATCH($F143,Class_Factors!$C:$C,0),MATCH(M$5,CLASSNUMB,0)),0) -> 0 | N143: =IFERROR($G143*INDEX(Class_Alloc,MATCH($F143,Class_Factors!$C:$C,0),MATCH(N$5,CLASSNUMB,0)),0) -> 0 | O143: =IFERROR($G143*INDEX(Class_Alloc,MATCH($F143,Class_Factors!$C:$C,0),MATCH(O$5,CLASSNUMB,0)),0) -> 0 | P143: =IFERROR($G143*INDEX(Class_Alloc,MATCH($F143,Class_Factors!$C:$C,0),MATCH(P$5,CLASSNUMB,0)),0) -> 0 | Q143: =IFERROR($G143*INDEX(Class_Alloc,MATCH($F143,Class_Factors!$C:$C,0),MATCH(Q$5,CLASSNUMB,0)),0) -> 0 | R143: =IFERROR($G143*INDEX(Class_Alloc,MATCH($F143,Class_Factors!$C:$C,0),MATCH(R$5,CLASSNUMB,0)),0) -> 0 | S143: =IFERROR($G143*INDEX(Class_Alloc,MATCH($F143,Class_Factors!$C:$C,0),MATCH(S$5,CLASSNUMB,0)),0) -> 0 | T143: =IFERROR($G143*INDEX(Class_Alloc,MATCH($F143,Class_Factors!$C:$C,0),MATCH(T$5,CLASSNUMB,0)),0) -> 0 | U143: =IFERROR($G143*INDEX(Class_Alloc,MATCH($F143,Class_Factors!$C:$C,0),MATCH(U$5,CLASSNUMB,0)),0) -> 0 | V143: =IFERROR($G143*INDEX(Class_Alloc,MATCH($F143,Class_Factors!$C:$C,0),MATCH(V$5,CLASSNUMB,0)),0) -> 0 | W143: =IFERROR($G143*INDEX(Class_Alloc,MATCH($F143,Class_Factors!$C:$C,0),MATCH(W$5,CLASSNUMB,0)),0) -> 0 | X143: =IFERROR($G143*INDEX(Class_Alloc,MATCH($F143,Class_Factors!$C:$C,0),MATCH(X$5,CLASSNUMB,0)),0) -> 0 | Y143: =IFERROR($G143*INDEX(Class_Alloc,MATCH($F143,Class_Factors!$C:$C,0),MATCH(Y$5,CLASSNUMB,0)),0) -> 0 | AA143: =G143-SUM(H143:Y143) -> 0
C144: Production-Energy-Non-Fuel | G144: =SUMIFS(INDIRECT(Functionalization!$B$1&"!"&SUBSTITUTE(ADDRESS(1,MATCH($C144,Functionalization!$3:$3,0),4),"1","")&":"&SUBSTITUTE(ADDRESS(1,MATCH($C144,Functionalization!$3:$3,0),4),"1","")),Functionalization!$C:$C,Cost_of_Service!$C141,Functionalization!$D:$D,Cost_of_Service!$D141) -> 0 | H144: =IFERROR($G144*INDEX(Class_Alloc,MATCH($F144,Class_Factors!$C:$C,0),MATCH(H$5,CLASSNUMB,0)),0) -> 0 | I144: =IFERROR($G144*INDEX(Class_Alloc,MATCH($F144,Class_Factors!$C:$C,0),MATCH(I$5,CLASSNUMB,0)),0) -> 0 | J144: =IFERROR($G144*INDEX(Class_Alloc,MATCH($F144,Class_Factors!$C:$C,0),MATCH(J$5,CLASSNUMB,0)),0) -> 0 | K144: =IFERROR($G144*INDEX(Class_Alloc,MATCH($F144,Class_Factors!$C:$C,0),MATCH(K$5,CLASSNUMB,0)),0) -> 0 | L144: =IFERROR($G144*INDEX(Class_Alloc,MATCH($F144,Class_Factors!$C:$C,0),MATCH(L$5,CLASSNUMB,0)),0) -> 0 | M144: =IFERROR($G144*INDEX(Class_Alloc,MATCH($F144,Class_Factors!$C:$C,0),MATCH(M$5,CLASSNUMB,0)),0) -> 0 | N144: =IFERROR($G144*INDEX(Class_Alloc,MATCH($F144,Class_Factors!$C:$C,0),MATCH(N$5,CLASSNUMB,0)),0) -> 0 | O144: =IFERROR($G144*INDEX(Class_Alloc,MATCH($F144,Class_Factors!$C:$C,0),MATCH(O$5,CLASSNUMB,0)),0) -> 0 | P144: =IFERROR($G144*INDEX(Class_Alloc,MATCH($F144,Class_Factors!$C:$C,0),MATCH(P$5,CLASSNUMB,0)),0) -> 0 | Q144: =IFERROR($G144*INDEX(Class_Alloc,MATCH($F144,Class_Factors!$C:$C,0),MATCH(Q$5,CLASSNUMB,0)),0) -> 0 | R144: =IFERROR($G144*INDEX(Class_Alloc,MATCH($F144,Class_Factors!$C:$C,0),MATCH(R$5,CLASSNUMB,0)),0) -> 0 | S144: =IFERROR($G144*INDEX(Class_Alloc,MATCH($F144,Class_Factors!$C:$C,0),MATCH(S$5,CLASSNUMB,0)),0) -> 0 | T144: =IFERROR($G144*INDEX(Class_Alloc,MATCH($F144,Class_Factors!$C:$C,0),MATCH(T$5,CLASSNUMB,0)),0) -> 0 | U144: =IFERROR($G144*INDEX(Class_Alloc,MATCH($F144,Class_Factors!$C:$C,0),MATCH(U$5,CLASSNUMB,0)),0) -> 0 | V144: =IFERROR($G144*INDEX(Class_Alloc,MATCH($F144,Class_Factors!$C:$C,0),MATCH(V$5,CLASSNUMB,0)),0) -> 0 | W144: =IFERROR($G144*INDEX(Class_Alloc,MATCH($F144,Class_Factors!$C:$C,0),MATCH(W$5,CLASSNUMB,0)),0) -> 0 | X144: =IFERROR($G144*INDEX(Class_Alloc,MATCH($F144,Class_Factors!$C:$C,0),MATCH(X$5,CLASSNUMB,0)),0) -> 0 | Y144: =IFERROR($G144*INDEX(Class_Alloc,MATCH($F144,Class_Factors!$C:$C,0),MATCH(Y$5,CLASSNUMB,0)),0) -> 0 | AA144: 0
C145: Storage-Production-Demand | G145: =SUMIFS(INDIRECT(Functionalization!$B$1&"!"&SUBSTITUTE(ADDRESS(1,MATCH($C145,Functionalization!$3:$3,0),4),"1","")&":"&SUBSTITUTE(ADDRESS(1,MATCH($C145,Functionalization!$3:$3,0),4),"1","")),Functionalization!$C:$C,Cost_of_Service!$C141,Functionalization!$D:$D,Cost_of_Service!$D141) -> 0 | H145: =IFERROR($G145*INDEX(Class_Alloc,MATCH($F145,Class_Factors!$C:$C,0),MATCH(H$5,CLASSNUMB,0)),0) -> 0 | I145: =IFERROR($G145*INDEX(Class_Alloc,MATCH($F145,Class_Factors!$C:$C,0),MATCH(I$5,CLASSNUMB,0)),0) -> 0 | J145: =IFERROR($G145*INDEX(Class_Alloc,MATCH($F145,Class_Factors!$C:$C,0),MATCH(J$5,CLASSNUMB,0)),0) -> 0 | K145: =IFERROR($G145*INDEX(Class_Alloc,MATCH($F145,Class_Factors!$C:$C,0),MATCH(K$5,CLASSNUMB,0)),0) -> 0 | L145: =IFERROR($G145*INDEX(Class_Alloc,MATCH($F145,Class_Factors!$C:$C,0),MATCH(L$5,CLASSNUMB,0)),0) -> 0 | M145: =IFERROR($G145*INDEX(Class_Alloc,MATCH($F145,Class_Factors!$C:$C,0),MATCH(M$5,CLASSNUMB,0)),0) -> 0 | N145: =IFERROR($G145*INDEX(Class_Alloc,MATCH($F145,Class_Factors!$C:$C,0),MATCH(N$5,CLASSNUMB,0)),0) -> 0 | O145: =IFERROR($G145*INDEX(Class_Alloc,MATCH($F145,Class_Factors!$C:$C,0),MATCH(O$5,CLASSNUMB,0)),0) -> 0 | P145: =IFERROR($G145*INDEX(Class_Alloc,MATCH($F145,Class_Factors!$C:$C,0),MATCH(P$5,CLASSNUMB,0)),0) -> 0 | Q145: =IFERROR($G145*INDEX(Class_Alloc,MATCH($F145,Class_Factors!$C:$C,0),MATCH(Q$5,CLASSNUMB,0)),0) -> 0 | R145: =IFERROR($G145*INDEX(Class_Alloc,MATCH($F145,Class_Factors!$C:$C,0),MATCH(R$5,CLASSNUMB,0)),0) -> 0 | S145: =IFERROR($G145*INDEX(Class_Alloc,MATCH($F145,Class_Factors!$C:$C,0),MATCH(S$5,CLASSNUMB,0)),0) -> 0 | T145: =IFERROR($G145*INDEX(Class_Alloc,MATCH($F145,Class_Factors!$C:$C,0),MATCH(T$5,CLASSNUMB,0)),0) -> 0 | U145: =IFERROR($G145*INDEX(Class_Alloc,MATCH($F145,Class_Factors!$C:$C,0),MATCH(U$5,CLASSNUMB,0)),0) -> 0 | V145: =IFERROR($G145*INDEX(Class_Alloc,MATCH($F145,Class_Factors!$C:$C,0),MATCH(V$5,CLASSNUMB,0)),0) -> 0 | W145: =IFERROR($G145*INDEX(Class_Alloc,MATCH($F145,Class_Factors!$C:$C,0),MATCH(W$5,CLASSNUMB,0)),0) -> 0 | X145: =IFERROR($G145*INDEX(Class_Alloc,MATCH($F145,Class_Factors!$C:$C,0),MATCH(X$5,CLASSNUMB,0)),0) -> 0 | Y145: =IFERROR($G145*INDEX(Class_Alloc,MATCH($F145,Class_Factors!$C:$C,0),MATCH(Y$5,CLASSNUMB,0)),0) -> 0 | AA145: 0
C146: Storage-Transmission-Demand | G146: =SUMIFS(INDIRECT(Functionalization!$B$1&"!"&SUBSTITUTE(ADDRESS(1,MATCH($C146,Functionalization!$3:$3,0),4),"1","")&":"&SUBSTITUTE(ADDRESS(1,MATCH($C146,Functionalization!$3:$3,0),4),"1","")),Functionalization!$C:$C,Cost_of_Service!$C141,Functionalization!$D:$D,Cost_of_Service!$D141) -> 0 | H146: =IFERROR($G146*INDEX(Class_Alloc,MATCH($F146,Class_Factors!$C:$C,0),MATCH(H$5,CLASSNUMB,0)),0) -> 0 | I146: =IFERROR($G146*INDEX(Class_Alloc,MATCH($F146,Class_Factors!$C:$C,0),MATCH(I$5,CLASSNUMB,0)),0) -> 0 | J146: =IFERROR($G146*INDEX(Class_Alloc,MATCH($F146,Class_Factors!$C:$C,0),MATCH(J$5,CLASSNUMB,0)),0) -> 0 | K146: =IFERROR($G146*INDEX(Class_Alloc,MATCH($F146,Class_Factors!$C:$C,0),MATCH(K$5,CLASSNUMB,0)),0) -> 0 | L146: =IFERROR($G146*INDEX(Class_Alloc,MATCH($F146,Class_Factors!$C:$C,0),MATCH(L$5,CLASSNUMB,0)),0) -> 0 | M146: =IFERROR($G146*INDEX(Class_Alloc,MATCH($F146,Class_Factors!$C:$C,0),MATCH(M$5,CLASSNUMB,0)),0) -> 0 | N146: =IFERROR($G146*INDEX(Class_Alloc,MATCH($F146,Class_Factors!$C:$C,0),MATCH(N$5,CLASSNUMB,0)),0) -> 0 | O146: =IFERROR($G146*INDEX(Class_Alloc,MATCH($F146,Class_Factors!$C:$C,0),MATCH(O$5,CLASSNUMB,0)),0) -> 0 | P146: =IFERROR($G146*INDEX(Class_Alloc,MATCH($F146,Class_Factors!$C:$C,0),MATCH(P$5,CLASSNUMB,0)),0) -> 0 | Q146: =IFERROR($G146*INDEX(Class_Alloc,MATCH($F146,Class_Factors!$C:$C,0),MATCH(Q$5,CLASSNUMB,0)),0) -> 0 | R146: =IFERROR($G146*INDEX(Class_Alloc,MATCH($F146,Class_Factors!$C:$C,0),MATCH(R$5,CLASSNUMB,0)),0) -> 0 | S146: =IFERROR($G146*INDEX(Class_Alloc,MATCH($F146,Class_Factors!$C:$C,0),MATCH(S$5,CLASSNUMB,0)),0) -> 0 | T146: =IFERROR($G146*INDEX(Class_Alloc,MATCH($F146,Class_Factors!$C:$C,0),MATCH(T$5,CLASSNUMB,0)),0) -> 0 | U146: =IFERROR($G146*INDEX(Class_Alloc,MATCH($F146,Class_Factors!$C:$C,0),MATCH(U$5,CLASSNUMB,0)),0) -> 0 | V146: =IFERROR($G146*INDEX(Class_Alloc,MATCH($F146,Class_Factors!$C:$C,0),MATCH(V$5,CLASSNUMB,0)),0) -> 0 | W146: =IFERROR($G146*INDEX(Class_Alloc,MATCH($F146,Class_Factors!$C:$C,0),MATCH(W$5,CLASSNUMB,0)),0) -> 0 | X146: =IFERROR($G146*INDEX(Class_Alloc,MATCH($F146,Class_Factors!$C:$C,0),MATCH(X$5,CLASSNUMB,0)),0) -> 0 | Y146: =IFERROR($G146*INDEX(Class_Alloc,MATCH($F146,Class_Factors!$C:$C,0),MATCH(Y$5,CLASSNUMB,0)),0) -> 0 | AA146: 0
C147: Storage-Distribution-Demand-Subs | G147: =SUMIFS(INDIRECT(Functionalization!$B$1&"!"&SUBSTITUTE(ADDRESS(1,MATCH($C147,Functionalization!$3:$3,0),4),"1","")&":"&SUBSTITUTE(ADDRESS(1,MATCH($C147,Functionalization!$3:$3,0),4),"1","")),Functionalization!$C:$C,Cost_of_Service!$C141,Functionalization!$D:$D,Cost_of_Service!$D141) -> 0 | H147: =IFERROR($G147*INDEX(Class_Alloc,MATCH($F147,Class_Factors!$C:$C,0),MATCH(H$5,CLASSNUMB,0)),0) -> 0 | I147: =IFERROR($G147*INDEX(Class_Alloc,MATCH($F147,Class_Factors!$C:$C,0),MATCH(I$5,CLASSNUMB,0)),0) -> 0 | J147: =IFERROR($G147*INDEX(Class_Alloc,MATCH($F147,Class_Factors!$C:$C,0),MATCH(J$5,CLASSNUMB,0)),0) -> 0 | K147: =IFERROR($G147*INDEX(Class_Alloc,MATCH($F147,Class_Factors!$C:$C,0),MATCH(K$5,CLASSNUMB,0)),0) -> 0 | L147: =IFERROR($G147*INDEX(Class_Alloc,MATCH($F147,Class_Factors!$C:$C,0),MATCH(L$5,CLASSNUMB,0)),0) -> 0 | M147: =IFERROR($G147*INDEX(Class_Alloc,MATCH($F147,Class_Factors!$C:$C,0),MATCH(M$5,CLASSNUMB,0)),0) -> 0 | N147: =IFERROR($G147*INDEX(Class_Alloc,MATCH($F147,Class_Factors!$C:$C,0),MATCH(N$5,CLASSNUMB,0)),0) -> 0 | O147: =IFERROR($G147*INDEX(Class_Alloc,MATCH($F147,Class_Factors!$C:$C,0),MATCH(O$5,CLASSNUMB,0)),0) -> 0 | P147: =IFERROR($G147*INDEX(Class_Alloc,MATCH($F147,Class_Factors!$C:$C,0),MATCH(P$5,CLASSNUMB,0)),0) -> 0 | Q147: =IFERROR($G147*INDEX(Class_Alloc,MATCH($F147,Class_Factors!$C:$C,0),MATCH(Q$5,CLASSNUMB,0)),0) -> 0 | R147: =IFERROR($G147*INDEX(Class_Alloc,MATCH($F147,Class_Factors!$C:$C,0),MATCH(R$5,CLASSNUMB,0)),0) -> 0 | S147: =IFERROR($G147*INDEX(Class_Alloc,MATCH($F147,Class_Factors!$C:$C,0),MATCH(S$5,CLASSNUMB,0)),0) -> 0 | T147: =IFERROR($G147*INDEX(Class_Alloc,MATCH($F147,Class_Factors!$C:$C,0),MATCH(T$5,CLASSNUMB,0)),0) -> 0 | U147: =IFERROR($G147*INDEX(Class_Alloc,MATCH($F147,Class_Factors!$C:$C,0),MATCH(U$5,CLASSNUMB,0)),0) -> 0 | V147: =IFERROR($G147*INDEX(Class_Alloc,MATCH($F147,Class_Factors!$C:$C,0),MATCH(V$5,CLASSNUMB,0)),0) -> 0 | W147: =IFERROR($G147*INDEX(Class_Alloc,MATCH($F147,Class_Factors!$C:$C,0),MATCH(W$5,CLASSNUMB,0)),0) -> 0 | X147: =IFERROR($G147*INDEX(Class_Alloc,MATCH($F147,Class_Factors!$C:$C,0),MATCH(X$5,CLASSNUMB,0)),0) -> 0 | Y147: =IFERROR($G147*INDEX(Class_Alloc,MATCH($F147,Class_Factors!$C:$C,0),MATCH(Y$5,CLASSNUMB,0)),0) -> 0 | AA147: 0
C148: Storage-Distribution-Demand-Primary | G148: =SUMIFS(INDIRECT(Functionalization!$B$1&"!"&SUBSTITUTE(ADDRESS(1,MATCH($C148,Functionalization!$3:$3,0),4),"1","")&":"&SUBSTITUTE(ADDRESS(1,MATCH($C148,Functionalization!$3:$3,0),4),"1","")),Functionalization!$C:$C,Cost_of_Service!$C141,Functionalization!$D:$D,Cost_of_Service!$D141) -> 0 | H148: =IFERROR($G148*INDEX(Class_Alloc,MATCH($F148,Class_Factors!$C:$C,0),MATCH(H$5,CLASSNUMB,0)),0) -> 0 | I148: =IFERROR($G148*INDEX(Class_Alloc,MATCH($F148,Class_Factors!$C:$C,0),MATCH(I$5,CLASSNUMB,0)),0) -> 0 | J148: =IFERROR($G148*INDEX(Class_Alloc,MATCH($F148,Class_Factors!$C:$C,0),MATCH(J$5,CLASSNUMB,0)),0) -> 0 | K148: =IFERROR($G148*INDEX(Class_Alloc,MATCH($F148,Class_Factors!$C:$C,0),MATCH(K$5,CLASSNUMB,0)),0) -> 0 | L148: =IFERROR($G148*INDEX(Class_Alloc,MATCH($F148,Class_Factors!$C:$C,0),MATCH(L$5,CLASSNUMB,0)),0) -> 0 | M148: =IFERROR($G148*INDEX(Class_Alloc,MATCH($F148,Class_Factors!$C:$C,0),MATCH(M$5,CLASSNUMB,0)),0) -> 0 | N148: =IFERROR($G148*INDEX(Class_Alloc,MATCH($F148,Class_Factors!$C:$C,0),MATCH(N$5,CLASSNUMB,0)),0) -> 0 | O148: =IFERROR($G148*INDEX(Class_Alloc,MATCH($F148,Class_Factors!$C:$C,0),MATCH(O$5,CLASSNUMB,0)),0) -> 0 | P148: =IFERROR($G148*INDEX(Class_Alloc,MATCH($F148,Class_Factors!$C:$C,0),MATCH(P$5,CLASSNUMB,0)),0) -> 0 | Q148: =IFERROR($G148*INDEX(Class_Alloc,MATCH($F148,Class_Factors!$C:$C,0),MATCH(Q$5,CLASSNUMB,0)),0) -> 0 | R148: =IFERROR($G148*INDEX(Class_Alloc,MATCH($F148,Class_Factors!$C:$C,0),MATCH(R$5,CLASSNUMB,0)),0) -> 0 | S148: =IFERROR($G148*INDEX(Class_Alloc,MATCH($F148,Class_Factors!$C:$C,0),MATCH(S$5,CLASSNUMB,0)),0) -> 0 | T148: =IFERROR($G148*INDEX(Class_Alloc,MATCH($F148,Class_Factors!$C:$C,0),MATCH(T$5,CLASSNUMB,0)),0) -> 0 | U148: =IFERROR($G148*INDEX(Class_Alloc,MATCH($F148,Class_Factors!$C:$C,0),MATCH(U$5,CLASSNUMB,0)),0) -> 0 | V148: =IFERROR($G148*INDEX(Class_Alloc,MATCH($F148,Class_Factors!$C:$C,0),MATCH(V$5,CLASSNUMB,0)),0) -> 0 | W148: =IFERROR($G148*INDEX(Class_Alloc,MATCH($F148,Class_Factors!$C:$C,0),MATCH(W$5,CLASSNUMB,0)),0) -> 0 | X148: =IFERROR($G148*INDEX(Class_Alloc,MATCH($F148,Class_Factors!$C:$C,0),MATCH(X$5,CLASSNUMB,0)),0) -> 0 | Y148: =IFERROR($G148*INDEX(Class_Alloc,MATCH($F148,Class_Factors!$C:$C,0),MATCH(Y$5,CLASSNUMB,0)),0) -> 0 | AA148: 0
C149: Storage-Distribution-Demand-Secondary | G149: =SUMIFS(INDIRECT(Functionalization!$B$1&"!"&SUBSTITUTE(ADDRESS(1,MATCH($C149,Functionalization!$3:$3,0),4),"1","")&":"&SUBSTITUTE(ADDRESS(1,MATCH($C149,Functionalization!$3:$3,0),4),"1","")),Functionalization!$C:$C,Cost_of_Service!$C141,Functionalization!$D:$D,Cost_of_Service!$D141) -> 0 | H149: =IFERROR($G149*INDEX(Class_Alloc,MATCH($F149,Class_Factors!$C:$C,0),MATCH(H$5,CLASSNUMB,0)),0) -> 0 | I149: =IFERROR($G149*INDEX(Class_Alloc,MATCH($F149,Class_Factors!$C:$C,0),MATCH(I$5,CLASSNUMB,0)),0) -> 0 | J149: =IFERROR($G149*INDEX(Class_Alloc,MATCH($F149,Class_Factors!$C:$C,0),MATCH(J$5,CLASSNUMB,0)),0) -> 0 | K149: =IFERROR($G149*INDEX(Class_Alloc,MATCH($F149,Class_Factors!$C:$C,0),MATCH(K$5,CLASSNUMB,0)),0) -> 0 | L149: =IFERROR($G149*INDEX(Class_Alloc,MATCH($F149,Class_Factors!$C:$C,0),MATCH(L$5,CLASSNUMB,0)),0) -> 0 | M149: =IFERROR($G149*INDEX(Class_Alloc,MATCH($F149,Class_Factors!$C:$C,0),MATCH(M$5,CLASSNUMB,0)),0) -> 0 | N149: =IFERROR($G149*INDEX(Class_Alloc,MATCH($F149,Class_Factors!$C:$C,0),MATCH(N$5,CLASSNUMB,0)),0) -> 0 | O149: =IFERROR($G149*INDEX(Class_Alloc,MATCH($F149,Class_Factors!$C:$C,0),MATCH(O$5,CLASSNUMB,0)),0) -> 0 | P149: =IFERROR($G149*INDEX(Class_Alloc,MATCH($F149,Class_Factors!$C:$C,0),MATCH(P$5,CLASSNUMB,0)),0) -> 0 | Q149: =IFERROR($G149*INDEX(Class_Alloc,MATCH($F149,Class_Factors!$C:$C,0),MATCH(Q$5,CLASSNUMB,0)),0) -> 0 | R149: =IFERROR($G149*INDEX(Class_Alloc,MATCH($F149,Class_Factors!$C:$C,0),MATCH(R$5,CLASSNUMB,0)),0) -> 0 | S149: =IFERROR($G149*INDEX(Class_Alloc,MATCH($F149,Class_Factors!$C:$C,0),MATCH(S$5,CLASSNUMB,0)),0) -> 0 | T149: =IFERROR($G149*INDEX(Class_Alloc,MATCH($F149,Class_Factors!$C:$C,0),MATCH(T$5,CLASSNUMB,0)),0) -> 0 | U149: =IFERROR($G149*INDEX(Class_Alloc,MATCH($F149,Class_Factors!$C:$C,0),MATCH(U$5,CLASSNUMB,0)),0) -> 0 | V149: =IFERROR($G149*INDEX(Class_Alloc,MATCH($F149,Class_Factors!$C:$C,0),MATCH(V$5,CLASSNUMB,0)),0) -> 0 | W149: =IFERROR($G149*INDEX(Class_Alloc,MATCH($F149,Class_Factors!$C:$C,0),MATCH(W$5,CLASSNUMB,0)),0) -> 0 | X149: =IFERROR($G149*INDEX(Class_Alloc,MATCH($F149,Class_Factors!$C:$C,0),MATCH(X$5,CLASSNUMB,0)),0) -> 0 | Y149: =IFERROR($G149*INDEX(Class_Alloc,MATCH($F149,Class_Factors!$C:$C,0),MATCH(Y$5,CLASSNUMB,0)),0) -> 0 | AA149: 0
C150: Transmission-Demand | G150: =SUMIFS(INDIRECT(Functionalization!$B$1&"!"&SUBSTITUTE(ADDRESS(1,MATCH($C150,Functionalization!$3:$3,0),4),"1","")&":"&SUBSTITUTE(ADDRESS(1,MATCH($C150,Functionalization!$3:$3,0),4),"1","")),Functionalization!$C:$C,Cost_of_Service!$C141,Functionalization!$D:$D,Cost_of_Service!$D141) -> 0 | H150: =IFERROR($G150*INDEX(Class_Alloc,MATCH($F150,Class_Factors!$C:$C,0),MATCH(H$5,CLASSNUMB,0)),0) -> 0 | I150: =IFERROR($G150*INDEX(Class_Alloc,MATCH($F150,Class_Factors!$C:$C,0),MATCH(I$5,CLASSNUMB,0)),0) -> 0 | J150: =IFERROR($G150*INDEX(Class_Alloc,MATCH($F150,Class_Factors!$C:$C,0),MATCH(J$5,CLASSNUMB,0)),0) -> 0 | K150: =IFERROR($G150*INDEX(Class_Alloc,MATCH($F150,Class_Factors!$C:$C,0),MATCH(K$5,CLASSNUMB,0)),0) -> 0 | L150: =IFERROR($G150*INDEX(Class_Alloc,MATCH($F150,Class_Factors!$C:$C,0),MATCH(L$5,CLASSNUMB,0)),0) -> 0 | M150: =IFERROR($G150*INDEX(Class_Alloc,MATCH($F150,Class_Factors!$C:$C,0),MATCH(M$5,CLASSNUMB,0)),0) -> 0 | N150: =IFERROR($G150*INDEX(Class_Alloc,MATCH($F150,Class_Factors!$C:$C,0),MATCH(N$5,CLASSNUMB,0)),0) -> 0 | O150: =IFERROR($G150*INDEX(Class_Alloc,MATCH($F150,Class_Factors!$C:$C,0),MATCH(O$5,CLASSNUMB,0)),0) -> 0 | P150: =IFERROR($G150*INDEX(Class_Alloc,MATCH($F150,Class_Factors!$C:$C,0),MATCH(P$5,CLASSNUMB,0)),0) -> 0 | Q150: =IFERROR($G150*INDEX(Class_Alloc,MATCH($F150,Class_Factors!$C:$C,0),MATCH(Q$5,CLASSNUMB,0)),0) -> 0 | R150: =IFERROR($G150*INDEX(Class_Alloc,MATCH($F150,Class_Factors!$C:$C,0),MATCH(R$5,CLASSNUMB,0)),0) -> 0 | S150: =IFERROR($G150*INDEX(Class_Alloc,MATCH($F150,Class_Factors!$C:$C,0),MATCH(S$5,CLASSNUMB,0)),0) -> 0 | T150: =IFERROR($G150*INDEX(Class_Alloc,MATCH($F150,Class_Factors!$C:$C,0),MATCH(T$5,CLASSNUMB,0)),0) -> 0 | U150: =IFERROR($G150*INDEX(Class_Alloc,MATCH($F150,Class_Factors!$C:$C,0),MATCH(U$5,CLASSNUMB,0)),0) -> 0 | V150: =IFERROR($G150*INDEX(Class_Alloc,MATCH($F150,Class_Factors!$C:$C,0),MATCH(V$5,CLASSNUMB,0)),0) -> 0 | W150: =IFERROR($G150*INDEX(Class_Alloc,MATCH($F150,Class_Factors!$C:$C,0),MATCH(W$5,CLASSNUMB,0)),0) -> 0 | X150: =IFERROR($G150*INDEX(Class_Alloc,MATCH($F150,Class_Factors!$C:$C,0),MATCH(X$5,CLASSNUMB,0)),0) -> 0 | Y150: =IFERROR($G150*INDEX(Class_Alloc,MATCH($F150,Class_Factors!$C:$C,0),MATCH(Y$5,CLASSNUMB,0)),0) -> 0 | AA150: 0
C151: Distribution-Demand-Subs | G151: =SUMIFS(INDIRECT(Functionalization!$B$1&"!"&SUBSTITUTE(ADDRESS(1,MATCH($C151,Functionalization!$3:$3,0),4),"1","")&":"&SUBSTITUTE(ADDRESS(1,MATCH($C151,Functionalization!$3:$3,0),4),"1","")),Functionalization!$C:$C,Cost_of_Service!$C141,Functionalization!$D:$D,Cost_of_Service!$D141) -> 0 | H151: =IFERROR($G151*INDEX(Class_Alloc,MATCH($F151,Class_Factors!$C:$C,0),MATCH(H$5,CLASSNUMB,0)),0) -> 0 | I151: =IFERROR($G151*INDEX(Class_Alloc,MATCH($F151,Class_Factors!$C:$C,0),MATCH(I$5,CLASSNUMB,0)),0) -> 0 | J151: =IFERROR($G151*INDEX(Class_Alloc,MATCH($F151,Class_Factors!$C:$C,0),MATCH(J$5,CLASSNUMB,0)),0) -> 0 | K151: =IFERROR($G151*INDEX(Class_Alloc,MATCH($F151,Class_Factors!$C:$C,0),MATCH(K$5,CLASSNUMB,0)),0) -> 0 | L151: =IFERROR($G151*INDEX(Class_Alloc,MATCH($F151,Class_Factors!$C:$C,0),MATCH(L$5,CLASSNUMB,0)),0) -> 0 | M151: =IFERROR($G151*INDEX(Class_Alloc,MATCH($F151,Class_Factors!$C:$C,0),MATCH(M$5,CLASSNUMB,0)),0) -> 0 | N151: =IFERROR($G151*INDEX(Class_Alloc,MATCH($F151,Class_Factors!$C:$C,0),MATCH(N$5,CLASSNUMB,0)),0) -> 0 | O151: =IFERROR($G151*INDEX(Class_Alloc,MATCH($F151,Class_Factors!$C:$C,0),MATCH(O$5,CLASSNUMB,0)),0) -> 0 | P151: =IFERROR($G151*INDEX(Class_Alloc,MATCH($F151,Class_Factors!$C:$C,0),MATCH(P$5,CLASSNUMB,0)),0) -> 0 | Q151: =IFERROR($G151*INDEX(Class_Alloc,MATCH($F151,Class_Factors!$C:$C,0),MATCH(Q$5,CLASSNUMB,0)),0) -> 0 | R151: =IFERROR($G151*INDEX(Class_Alloc,MATCH($F151,Class_Factors!$C:$C,0),MATCH(R$5,CLASSNUMB,0)),0) -> 0 | S151: =IFERROR($G151*INDEX(Class_Alloc,MATCH($F151,Class_Factors!$C:$C,0),MATCH(S$5,CLASSNUMB,0)),0) -> 0 | T151: =IFERROR($G151*INDEX(Class_Alloc,MATCH($F151,Class_Factors!$C:$C,0),MATCH(T$5,CLASSNUMB,0)),0) -> 0 | U151: =IFERROR($G151*INDEX(Class_Alloc,MATCH($F151,Class_Factors!$C:$C,0),MATCH(U$5,CLASSNUMB,0)),0) -> 0 | V151: =IFERROR($G151*INDEX(Class_Alloc,MATCH($F151,Class_Factors!$C:$C,0),MATCH(V$5,CLASSNUMB,0)),0) -> 0 | W151: =IFERROR($G151*INDEX(Class_Alloc,MATCH($F151,Class_Factors!$C:$C,0),MATCH(W$5,CLASSNUMB,0)),0) -> 0 | X151: =IFERROR($G151*INDEX(Class_Alloc,MATCH($F151,Class_Factors!$C:$C,0),MATCH(X$5,CLASSNUMB,0)),0) -> 0 | Y151: =IFERROR($G151*INDEX(Class_Alloc,MATCH($F151,Class_Factors!$C:$C,0),MATCH(Y$5,CLASSNUMB,0)),0) -> 0 | AA151: 0
C152: Distribution-Demand-Primary | G152: =SUMIFS(INDIRECT(Functionalization!$B$1&"!"&SUBSTITUTE(ADDRESS(1,MATCH($C152,Functionalization!$3:$3,0),4),"1","")&":"&SUBSTITUTE(ADDRESS(1,MATCH($C152,Functionalization!$3:$3,0),4),"1","")),Functionalization!$C:$C,Cost_of_Service!$C141,Functionalization!$D:$D,Cost_of_Service!$D141) -> 0 | H152: =IFERROR($G152*INDEX(Class_Alloc,MATCH($F152,Class_Factors!$C:$C,0),MATCH(H$5,CLASSNUMB,0)),0) -> 0 | I152: =IFERROR($G152*INDEX(Class_Alloc,MATCH($F152,Class_Factors!$C:$C,0),MATCH(I$5,CLASSNUMB,0)),0) -> 0 | J152: =IFERROR($G152*INDEX(Class_Alloc,MATCH($F152,Class_Factors!$C:$C,0),MATCH(J$5,CLASSNUMB,0)),0) -> 0 | K152: =IFERROR($G152*INDEX(Class_Alloc,MATCH($F152,Class_Factors!$C:$C,0),MATCH(K$5,CLASSNUMB,0)),0) -> 0 | L152: =IFERROR($G152*INDEX(Class_Alloc,MATCH($F152,Class_Factors!$C:$C,0),MATCH(L$5,CLASSNUMB,0)),0) -> 0 | M152: =IFERROR($G152*INDEX(Class_Alloc,MATCH($F152,Class_Factors!$C:$C,0),MATCH(M$5,CLASSNUMB,0)),0) -> 0 | N152: =IFERROR($G152*INDEX(Class_Alloc,MATCH($F152,Class_Factors!$C:$C,0),MATCH(N$5,CLASSNUMB,0)),0) -> 0 | O152: =IFERROR($G152*INDEX(Class_Alloc,MATCH($F152,Class_Factors!$C:$C,0),MATCH(O$5,CLASSNUMB,0)),0) -> 0 | P152: =IFERROR($G152*INDEX(Class_Alloc,MATCH($F152,Class_Factors!$C:$C,0),MATCH(P$5,CLASSNUMB,0)),0) -> 0 | Q152: =IFERROR($G152*INDEX(Class_Alloc,MATCH($F152,Class_Factors!$C:$C,0),MATCH(Q$5,CLASSNUMB,0)),0) -> 0 | R152: =IFERROR($G152*INDEX(Class_Alloc,MATCH($F152,Class_Factors!$C:$C,0),MATCH(R$5,CLASSNUMB,0)),0) -> 0 | S152: =IFERROR($G152*INDEX(Class_Alloc,MATCH($F152,Class_Factors!$C:$C,0),MATCH(S$5,CLASSNUMB,0)),0) -> 0 | T152: =IFERROR($G152*INDEX(Class_Alloc,MATCH($F152,Class_Factors!$C:$C,0),MATCH(T$5,CLASSNUMB,0)),0) -> 0 | U152: =IFERROR($G152*INDEX(Class_Alloc,MATCH($F152,Class_Factors!$C:$C,0),MATCH(U$5,CLASSNUMB,0)),0) -> 0 | V152: =IFERROR($G152*INDEX(Class_Alloc,MATCH($F152,Class_Factors!$C:$C,0),MATCH(V$5,CLASSNUMB,0)),0) -> 0 | W152: =IFERROR($G152*INDEX(Class_Alloc,MATCH($F152,Class_Factors!$C:$C,0),MATCH(W$5,CLASSNUMB,0)),0) -> 0 | X152: =IFERROR($G152*INDEX(Class_Alloc,MATCH($F152,Class_Factors!$C:$C,0),MATCH(X$5,CLASSNUMB,0)),0) -> 0 | Y152: =IFERROR($G152*INDEX(Class_Alloc,MATCH($F152,Class_Factors!$C:$C,0),MATCH(Y$5,CLASSNUMB,0)),0) -> 0 | AA152: 0
C153: Distribution-Demand-Secondary | G153: =SUMIFS(INDIRECT(Functionalization!$B$1&"!"&SUBSTITUTE(ADDRESS(1,MATCH($C153,Functionalization!$3:$3,0),4),"1","")&":"&SUBSTITUTE(ADDRESS(1,MATCH($C153,Functionalization!$3:$3,0),4),"1","")),Functionalization!$C:$C,Cost_of_Service!$C141,Functionalization!$D:$D,Cost_of_Service!$D141) -> 0 | H153: =IFERROR($G153*INDEX(Class_Alloc,MATCH($F153,Class_Factors!$C:$C,0),MATCH(H$5,CLASSNUMB,0)),0) -> 0 | I153: =IFERROR($G153*INDEX(Class_Alloc,MATCH($F153,Class_Factors!$C:$C,0),MATCH(I$5,CLASSNUMB,0)),0) -> 0 | J153: =IFERROR($G153*INDEX(Class_Alloc,MATCH($F153,Class_Factors!$C:$C,0),MATCH(J$5,CLASSNUMB,0)),0) -> 0 | K153: =IFERROR($G153*INDEX(Class_Alloc,MATCH($F153,Class_Factors!$C:$C,0),MATCH(K$5,CLASSNUMB,0)),0) -> 0 | L153: =IFERROR($G153*INDEX(Class_Alloc,MATCH($F153,Class_Factors!$C:$C,0),MATCH(L$5,CLASSNUMB,0)),0) -> 0 | M153: =IFERROR($G153*INDEX(Class_Alloc,MATCH($F153,Class_Factors!$C:$C,0),MATCH(M$5,CLASSNUMB,0)),0) -> 0 | N153: =IFERROR($G153*INDEX(Class_Alloc,MATCH($F153,Class_Factors!$C:$C,0),MATCH(N$5,CLASSNUMB,0)),0) -> 0 | O153: =IFERROR($G153*INDEX(Class_Alloc,MATCH($F153,Class_Factors!$C:$C,0),MATCH(O$5,CLASSNUMB,0)),0) -> 0 | P153: =IFERROR($G153*INDEX(Class_Alloc,MATCH($F153,Class_Factors!$C:$C,0),MATCH(P$5,CLASSNUMB,0)),0) -> 0 | Q153: =IFERROR($G153*INDEX(Class_Alloc,MATCH($F153,Class_Factors!$C:$C,0),MATCH(Q$5,CLASSNUMB,0)),0) -> 0 | R153: =IFERROR($G153*INDEX(Class_Alloc,MATCH($F153,Class_Factors!$C:$C,0),MATCH(R$5,CLASSNUMB,0)),0) -> 0 | S153: =IFERROR($G153*INDEX(Class_Alloc,MATCH($F153,Class_Factors!$C:$C,0),MATCH(S$5,CLASSNUMB,0)),0) -> 0 | T153: =IFERROR($G153*INDEX(Class_Alloc,MATCH($F153,Class_Factors!$C:$C,0),MATCH(T$5,CLASSNUMB,0)),0) -> 0 | U153: =IFERROR($G153*INDEX(Class_Alloc,MATCH($F153,Class_Factors!$C:$C,0),MATCH(U$5,CLASSNUMB,0)),0) -> 0 | V153: =IFERROR($G153*INDEX(Class_Alloc,MATCH($F153,Class_Factors!$C:$C,0),MATCH(V$5,CLASSNUMB,0)),0) -> 0 | W153: =IFERROR($G153*INDEX(Class_Alloc,MATCH($F153,Class_Factors!$C:$C,0),MATCH(W$5,CLASSNUMB,0)),0) -> 0 | X153: =IFERROR($G153*INDEX(Class_Alloc,MATCH($F153,Class_Factors!$C:$C,0),MATCH(X$5,CLASSNUMB,0)),0) -> 0 | Y153: =IFERROR($G153*INDEX(Class_Alloc,MATCH($F153,Class_Factors!$C:$C,0),MATCH(Y$5,CLASSNUMB,0)),0) -> 0 | AA153: 0
C154: Distribution-Customer-Services | G154: =SUMIFS(INDIRECT(Functionalization!$B$1&"!"&SUBSTITUTE(ADDRESS(1,MATCH($C154,Functionalization!$3:$3,0),4),"1","")&":"&SUBSTITUTE(ADDRESS(1,MATCH($C154,Functionalization!$3:$3,0),4),"1","")),Functionalization!$C:$C,Cost_of_Service!$C141,Functionalization!$D:$D,Cost_of_Service!$D141) -> 0 | H154: =IFERROR($G154*INDEX(Class_Alloc,MATCH($F154,Class_Factors!$C:$C,0),MATCH(H$5,CLASSNUMB,0)),0) -> 0 | I154: =IFERROR($G154*INDEX(Class_Alloc,MATCH($F154,Class_Factors!$C:$C,0),MATCH(I$5,CLASSNUMB,0)),0) -> 0 | J154: =IFERROR($G154*INDEX(Class_Alloc,MATCH($F154,Class_Factors!$C:$C,0),MATCH(J$5,CLASSNUMB,0)),0) -> 0 | K154: =IFERROR($G154*INDEX(Class_Alloc,MATCH($F154,Class_Factors!$C:$C,0),MATCH(K$5,CLASSNUMB,0)),0) -> 0 | L154: =IFERROR($G154*INDEX(Class_Alloc,MATCH($F154,Class_Factors!$C:$C,0),MATCH(L$5,CLASSNUMB,0)),0) -> 0 | M154: =IFERROR($G154*INDEX(Class_Alloc,MATCH($F154,Class_Factors!$C:$C,0),MATCH(M$5,CLASSNUMB,0)),0) -> 0 | N154: =IFERROR($G154*INDEX(Class_Alloc,MATCH($F154,Class_Factors!$C:$C,0),MATCH(N$5,CLASSNUMB,0)),0) -> 0 | O154: =IFERROR($G154*INDEX(Class_Alloc,MATCH($F154,Class_Factors!$C:$C,0),MATCH(O$5,CLASSNUMB,0)),0) -> 0 | P154: =IFERROR($G154*INDEX(Class_Alloc,MATCH($F154,Class_Factors!$C:$C,0),MATCH(P$5,CLASSNUMB,0)),0) -> 0 | Q154: =IFERROR($G154*INDEX(Class_Alloc,MATCH($F154,Class_Factors!$C:$C,0),MATCH(Q$5,CLASSNUMB,0)),0) -> 0 | R154: =IFERROR($G154*INDEX(Class_Alloc,MATCH($F154,Class_Factors!$C:$C,0),MATCH(R$5,CLASSNUMB,0)),0) -> 0 | S154: =IFERROR($G154*INDEX(Class_Alloc,MATCH($F154,Class_Factors!$C:$C,0),MATCH(S$5,CLASSNUMB,0)),0) -> 0 | T154: =IFERROR($G154*INDEX(Class_Alloc,MATCH($F154,Class_Factors!$C:$C,0),MATCH(T$5,CLASSNUMB,0)),0) -> 0 | U154: =IFERROR($G154*INDEX(Class_Alloc,MATCH($F154,Class_Factors!$C:$C,0),MATCH(U$5,CLASSNUMB,0)),0) -> 0 | V154: =IFERROR($G154*INDEX(Class_Alloc,MATCH($F154,Class_Factors!$C:$C,0),MATCH(V$5,CLASSNUMB,0)),0) -> 0 | W154: =IFERROR($G154*INDEX(Class_Alloc,MATCH($F154,Class_Factors!$C:$C,0),MATCH(W$5,CLASSNUMB,0)),0) -> 0 | X154: =IFERROR($G154*INDEX(Class_Alloc,MATCH($F154,Class_Factors!$C:$C,0),MATCH(X$5,CLASSNUMB,0)),0) -> 0 | Y154: =IFERROR($G154*INDEX(Class_Alloc,MATCH($F154,Class_Factors!$C:$C,0),MATCH(Y$5,CLASSNUMB,0)),0) -> 0 | AA154: 0
C155: Distribution-Customer-Meters | G155: =SUMIFS(INDIRECT(Functionalization!$B$1&"!"&SUBSTITUTE(ADDRESS(1,MATCH($C155,Functionalization!$3:$3,0),4),"1","")&":"&SUBSTITUTE(ADDRESS(1,MATCH($C155,Functionalization!$3:$3,0),4),"1","")),Functionalization!$C:$C,Cost_of_Service!$C141,Functionalization!$D:$D,Cost_of_Service!$D141) -> 0 | H155: =IFERROR($G155*INDEX(Class_Alloc,MATCH($F155,Class_Factors!$C:$C,0),MATCH(H$5,CLASSNUMB,0)),0) -> 0 | I155: =IFERROR($G155*INDEX(Class_Alloc,MATCH($F155,Class_Factors!$C:$C,0),MATCH(I$5,CLASSNUMB,0)),0) -> 0 | J155: =IFERROR($G155*INDEX(Class_Alloc,MATCH($F155,Class_Factors!$C:$C,0),MATCH(J$5,CLASSNUMB,0)),0) -> 0 | K155: =IFERROR($G155*INDEX(Class_Alloc,MATCH($F155,Class_Factors!$C:$C,0),MATCH(K$5,CLASSNUMB,0)),0) -> 0 | L155: =IFERROR($G155*INDEX(Class_Alloc,MATCH($F155,Class_Factors!$C:$C,0),MATCH(L$5,CLASSNUMB,0)),0) -> 0 | M155: =IFERROR($G155*INDEX(Class_Alloc,MATCH($F155,Class_Factors!$C:$C,0),MATCH(M$5,CLASSNUMB,0)),0) -> 0 | N155: =IFERROR($G155*INDEX(Class_Alloc,MATCH($F155,Class_Factors!$C:$C,0),MATCH(N$5,CLASSNUMB,0)),0) -> 0 | O155: =IFERROR($G155*INDEX(Class_Alloc,MATCH($F155,Class_Factors!$C:$C,0),MATCH(O$5,CLASSNUMB,0)),0) -> 0 | P155: =IFERROR($G155*INDEX(Class_Alloc,MATCH($F155,Class_Factors!$C:$C,0),MATCH(P$5,CLASSNUMB,0)),0) -> 0 | Q155: =IFERROR($G155*INDEX(Class_Alloc,MATCH($F155,Class_Factors!$C:$C,0),MATCH(Q$5,CLASSNUMB,0)),0) -> 0 | R155: =IFERROR($G155*INDEX(Class_Alloc,MATCH($F155,Class_Factors!$C:$C,0),MATCH(R$5,CLASSNUMB,0)),0) -> 0 | S155: =IFERROR($G155*INDEX(Class_Alloc,MATCH($F155,Class_Factors!$C:$C,0),MATCH(S$5,CLASSNUMB,0)),0) -> 0 | T155: =IFERROR($G155*INDEX(Class_Alloc,MATCH($F155,Class_Factors!$C:$C,0),MATCH(T$5,CLASSNUMB,0)),0) -> 0 | U155: =IFERROR($G155*INDEX(Class_Alloc,MATCH($F155,Class_Factors!$C:$C,0),MATCH(U$5,CLASSNUMB,0)),0) -> 0 | V155: =IFERROR($G155*INDEX(Class_Alloc,MATCH($F155,Class_Factors!$C:$C,0),MATCH(V$5,CLASSNUMB,0)),0) -> 0 | W155: =IFERROR($G155*INDEX(Class_Alloc,MATCH($F155,Class_Factors!$C:$C,0),MATCH(W$5,CLASSNUMB,0)),0) -> 0 | X155: =IFERROR($G155*INDEX(Class_Alloc,MATCH($F155,Class_Factors!$C:$C,0),MATCH(X$5,CLASSNUMB,0)),0) -> 0 | Y155: =IFERROR($G155*INDEX(Class_Alloc,MATCH($F155,Class_Factors!$C:$C,0),MATCH(Y$5,CLASSNUMB,0)),0) -> 0 | AA155: 0
C156: Distribution-Customer-Meter Reading | G156: =SUMIFS(INDIRECT(Functionalization!$B$1&"!"&SUBSTITUTE(ADDRESS(1,MATCH($C156,Functionalization!$3:$3,0),4),"1","")&":"&SUBSTITUTE(ADDRESS(1,MATCH($C156,Functionalization!$3:$3,0),4),"1","")),Functionalization!$C:$C,Cost_of_Service!$C141,Functionalization!$D:$D,Cost_of_Service!$D141) -> 0 | H156: =IFERROR($G156*INDEX(Class_Alloc,MATCH($F156,Class_Factors!$C:$C,0),MATCH(H$5,CLASSNUMB,0)),0) -> 0 | I156: =IFERROR($G156*INDEX(Class_Alloc,MATCH($F156,Class_Factors!$C:$C,0),MATCH(I$5,CLASSNUMB,0)),0) -> 0 | J156: =IFERROR($G156*INDEX(Class_Alloc,MATCH($F156,Class_Factors!$C:$C,0),MATCH(J$5,CLASSNUMB,0)),0) -> 0 | K156: =IFERROR($G156*INDEX(Class_Alloc,MATCH($F156,Class_Factors!$C:$C,0),MATCH(K$5,CLASSNUMB,0)),0) -> 0 | L156: =IFERROR($G156*INDEX(Class_Alloc,MATCH($F156,Class_Factors!$C:$C,0),MATCH(L$5,CLASSNUMB,0)),0) -> 0 | M156: =IFERROR($G156*INDEX(Class_Alloc,MATCH($F156,Class_Factors!$C:$C,0),MATCH(M$5,CLASSNUMB,0)),0) -> 0 | N156: =IFERROR($G156*INDEX(Class_Alloc,MATCH($F156,Class_Factors!$C:$C,0),MATCH(N$5,CLASSNUMB,0)),0) -> 0 | O156: =IFERROR($G156*INDEX(Class_Alloc,MATCH($F156,Class_Factors!$C:$C,0),MATCH(O$5,CLASSNUMB,0)),0) -> 0 | P156: =IFERROR($G156*INDEX(Class_Alloc,MATCH($F156,Class_Factors!$C:$C,0),MATCH(P$5,CLASSNUMB,0)),0) -> 0 | Q156: =IFERROR($G156*INDEX(Class_Alloc,MATCH($F156,Class_Factors!$C:$C,0),MATCH(Q$5,CLASSNUMB,0)),0) -> 0 | R156: =IFERROR($G156*INDEX(Class_Alloc,MATCH($F156,Class_Factors!$C:$C,0),MATCH(R$5,CLASSNUMB,0)),0) -> 0 | S156: =IFERROR($G156*INDEX(Class_Alloc,MATCH($F156,Class_Factors!$C:$C,0),MATCH(S$5,CLASSNUMB,0)),0) -> 0 | T156: =IFERROR($G156*INDEX(Class_Alloc,MATCH($F156,Class_Factors!$C:$C,0),MATCH(T$5,CLASSNUMB,0)),0) -> 0 | U156: =IFERROR($G156*INDEX(Class_Alloc,MATCH($F156,Class_Factors!$C:$C,0),MATCH(U$5,CLASSNUMB,0)),0) -> 0 | V156: =IFERROR($G156*INDEX(Class_Alloc,MATCH($F156,Class_Factors!$C:$C,0),MATCH(V$5,CLASSNUMB,0)),0) -> 0 | W156: =IFERROR($G156*INDEX(Class_Alloc,MATCH($F156,Class_Factors!$C:$C,0),MATCH(W$5,CLASSNUMB,0)),0) -> 0 | X156: =IFERROR($G156*INDEX(Class_Alloc,MATCH($F156,Class_Factors!$C:$C,0),MATCH(X$5,CLASSNUMB,0)),0) -> 0 | Y156: =IFERROR($G156*INDEX(Class_Alloc,MATCH($F156,Class_Factors!$C:$C,0),MATCH(Y$5,CLASSNUMB,0)),0) -> 0 | AA156: 0
C157: Distribution-Customer-Billing & Collections | G157: =SUMIFS(INDIRECT(Functionalization!$B$1&"!"&SUBSTITUTE(ADDRESS(1,MATCH($C157,Functionalization!$3:$3,0),4),"1","")&":"&SUBSTITUTE(ADDRESS(1,MATCH($C157,Functionalization!$3:$3,0),4),"1","")),Functionalization!$C:$C,Cost_of_Service!$C141,Functionalization!$D:$D,Cost_of_Service!$D141) -> 0 | H157: =IFERROR($G157*INDEX(Class_Alloc,MATCH($F157,Class_Factors!$C:$C,0),MATCH(H$5,CLASSNUMB,0)),0) -> 0 | I157: =IFERROR($G157*INDEX(Class_Alloc,MATCH($F157,Class_Factors!$C:$C,0),MATCH(I$5,CLASSNUMB,0)),0) -> 0 | J157: =IFERROR($G157*INDEX(Class_Alloc,MATCH($F157,Class_Factors!$C:$C,0),MATCH(J$5,CLASSNUMB,0)),0) -> 0 | K157: =IFERROR($G157*INDEX(Class_Alloc,MATCH($F157,Class_Factors!$C:$C,0),MATCH(K$5,CLASSNUMB,0)),0) -> 0 | L157: =IFERROR($G157*INDEX(Class_Alloc,MATCH($F157,Class_Factors!$C:$C,0),MATCH(L$5,CLASSNUMB,0)),0) -> 0 | M157: =IFERROR($G157*INDEX(Class_Alloc,MATCH($F157,Class_Factors!$C:$C,0),MATCH(M$5,CLASSNUMB,0)),0) -> 0 | N157: =IFERROR($G157*INDEX(Class_Alloc,MATCH($F157,Class_Factors!$C:$C,0),MATCH(N$5,CLASSNUMB,0)),0) -> 0 | O157: =IFERROR($G157*INDEX(Class_Alloc,MATCH($F157,Class_Factors!$C:$C,0),MATCH(O$5,CLASSNUMB,0)),0) -> 0 | P157: =IFERROR($G157*INDEX(Class_Alloc,MATCH($F157,Class_Factors!$C:$C,0),MATCH(P$5,CLASSNUMB,0)),0) -> 0 | Q157: =IFERROR($G157*INDEX(Class_Alloc,MATCH($F157,Class_Factors!$C:$C,0),MATCH(Q$5,CLASSNUMB,0)),0) -> 0 | R157: =IFERROR($G157*INDEX(Class_Alloc,MATCH($F157,Class_Factors!$C:$C,0),MATCH(R$5,CLASSNUMB,0)),0) -> 0 | S157: =IFERROR($G157*INDEX(Class_Alloc,MATCH($F157,Class_Factors!$C:$C,0),MATCH(S$5,CLASSNUMB,0)),0) -> 0 | T157: =IFERROR($G157*INDEX(Class_Alloc,MATCH($F157,Class_Factors!$C:$C,0),MATCH(T$5,CLASSNUMB,0)),0) -> 0 | U157: =IFERROR($G157*INDEX(Class_Alloc,MATCH($F157,Class_Factors!$C:$C,0),MATCH(U$5,CLASSNUMB,0)),0) -> 0 | V157: =IFERROR($G157*INDEX(Class_Alloc,MATCH($F157,Class_Factors!$C:$C,0),MATCH(V$5,CLASSNUMB,0)),0) -> 0 | W157: =IFERROR($G157*INDEX(Class_Alloc,MATCH($F157,Class_Factors!$C:$C,0),MATCH(W$5,CLASSNUMB,0)),0) -> 0 | X157: =IFERROR($G157*INDEX(Class_Alloc,MATCH($F157,Class_Factors!$C:$C,0),MATCH(X$5,CLASSNUMB,0)),0) -> 0 | Y157: =IFERROR($G157*INDEX(Class_Alloc,MATCH($F157,Class_Factors!$C:$C,0),MATCH(Y$5,CLASSNUMB,0)),0) -> 0 | AA157: 0
C158: Distribution-Customer-Service & Info | G158: =SUMIFS(INDIRECT(Functionalization!$B$1&"!"&SUBSTITUTE(ADDRESS(1,MATCH($C158,Functionalization!$3:$3,0),4),"1","")&":"&SUBSTITUTE(ADDRESS(1,MATCH($C158,Functionalization!$3:$3,0),4),"1","")),Functionalization!$C:$C,Cost_of_Service!$C141,Functionalization!$D:$D,Cost_of_Service!$D141) -> 0 | H158: =IFERROR($G158*INDEX(Class_Alloc,MATCH($F158,Class_Factors!$C:$C,0),MATCH(H$5,CLASSNUMB,0)),0) -> 0 | I158: =IFERROR($G158*INDEX(Class_Alloc,MATCH($F158,Class_Factors!$C:$C,0),MATCH(I$5,CLASSNUMB,0)),0) -> 0 | J158: =IFERROR($G158*INDEX(Class_Alloc,MATCH($F158,Class_Factors!$C:$C,0),MATCH(J$5,CLASSNUMB,0)),0) -> 0 | K158: =IFERROR($G158*INDEX(Class_Alloc,MATCH($F158,Class_Factors!$C:$C,0),MATCH(K$5,CLASSNUMB,0)),0) -> 0 | L158: =IFERROR($G158*INDEX(Class_Alloc,MATCH($F158,Class_Factors!$C:$C,0),MATCH(L$5,CLASSNUMB,0)),0) -> 0 | M158: =IFERROR($G158*INDEX(Class_Alloc,MATCH($F158,Class_Factors!$C:$C,0),MATCH(M$5,CLASSNUMB,0)),0) -> 0 | N158: =IFERROR($G158*INDEX(Class_Alloc,MATCH($F158,Class_Factors!$C:$C,0),MATCH(N$5,CLASSNUMB,0)),0) -> 0 | O158: =IFERROR($G158*INDEX(Class_Alloc,MATCH($F158,Class_Factors!$C:$C,0),MATCH(O$5,CLASSNUMB,0)),0) -> 0 | P158: =IFERROR($G158*INDEX(Class_Alloc,MATCH($F158,Class_Factors!$C:$C,0),MATCH(P$5,CLASSNUMB,0)),0) -> 0 | Q158: =IFERROR($G158*INDEX(Class_Alloc,MATCH($F158,Class_Factors!$C:$C,0),MATCH(Q$5,CLASSNUMB,0)),0) -> 0 | R158: =IFERROR($G158*INDEX(Class_Alloc,MATCH($F158,Class_Factors!$C:$C,0),MATCH(R$5,CLASSNUMB,0)),0) -> 0 | S158: =IFERROR($G158*INDEX(Class_Alloc,MATCH($F158,Class_Factors!$C:$C,0),MATCH(S$5,CLASSNUMB,0)),0) -> 0 | T158: =IFERROR($G158*INDEX(Class_Alloc,MATCH($F158,Class_Factors!$C:$C,0),MATCH(T$5,CLASSNUMB,0)),0) -> 0 | U158: =IFERROR($G158*INDEX(Class_Alloc,MATCH($F158,Class_Factors!$C:$C,0),MATCH(U$5,CLASSNUMB,0)),0) -> 0 | V158: =IFERROR($G158*INDEX(Class_Alloc,MATCH($F158,Class_Factors!$C:$C,0),MATCH(V$5,CLASSNUMB,0)),0) -> 0 | W158: =IFERROR($G158*INDEX(Class_Alloc,MATCH($F158,Class_Factors!$C:$C,0),MATCH(W$5,CLASSNUMB,0)),0) -> 0 | X158: =IFERROR($G158*INDEX(Class_Alloc,MATCH($F158,Class_Factors!$C:$C,0),MATCH(X$5,CLASSNUMB,0)),0) -> 0 | Y158: =IFERROR($G158*INDEX(Class_Alloc,MATCH($F158,Class_Factors!$C:$C,0),MATCH(Y$5,CLASSNUMB,0)),0) -> 0 | AA158: 0
C159: Distribution-Customer-Other | G159: =SUMIFS(INDIRECT(Functionalization!$B$1&"!"&SUBSTITUTE(ADDRESS(1,MATCH($C159,Functionalization!$3:$3,0),4),"1","")&":"&SUBSTITUTE(ADDRESS(1,MATCH($C159,Functionalization!$3:$3,0),4),"1","")),Functionalization!$C:$C,Cost_of_Service!$C141,Functionalization!$D:$D,Cost_of_Service!$D141) -> 0 | H159: =IFERROR($G159*INDEX(Class_Alloc,MATCH($F159,Class_Factors!$C:$C,0),MATCH(H$5,CLASSNUMB,0)),0) -> 0 | I159: =IFERROR($G159*INDEX(Class_Alloc,MATCH($F159,Class_Factors!$C:$C,0),MATCH(I$5,CLASSNUMB,0)),0) -> 0 | J159: =IFERROR($G159*INDEX(Class_Alloc,MATCH($F159,Class_Factors!$C:$C,0),MATCH(J$5,CLASSNUMB,0)),0) -> 0 | K159: =IFERROR($G159*INDEX(Class_Alloc,MATCH($F159,Class_Factors!$C:$C,0),MATCH(K$5,CLASSNUMB,0)),0) -> 0 | L159: =IFERROR($G159*INDEX(Class_Alloc,MATCH($F159,Class_Factors!$C:$C,0),MATCH(L$5,CLASSNUMB,0)),0) -> 0 | M159: =IFERROR($G159*INDEX(Class_Alloc,MATCH($F159,Class_Factors!$C:$C,0),MATCH(M$5,CLASSNUMB,0)),0) -> 0 | N159: =IFERROR($G159*INDEX(Class_Alloc,MATCH($F159,Class_Factors!$C:$C,0),MATCH(N$5,CLASSNUMB,0)),0) -> 0 | O159: =IFERROR($G159*INDEX(Class_Alloc,MATCH($F159,Class_Factors!$C:$C,0),MATCH(O$5,CLASSNUMB,0)),0) -> 0 | P159: =IFERROR($G159*INDEX(Class_Alloc,MATCH($F159,Class_Factors!$C:$C,0),MATCH(P$5,CLASSNUMB,0)),0) -> 0 | Q159: =IFERROR($G159*INDEX(Class_Alloc,MATCH($F159,Class_Factors!$C:$C,0),MATCH(Q$5,CLASSNUMB,0)),0) -> 0 | R159: =IFERROR($G159*INDEX(Class_Alloc,MATCH($F159,Class_Factors!$C:$C,0),MATCH(R$5,CLASSNUMB,0)),0) -> 0 | S159: =IFERROR($G159*INDEX(Class_Alloc,MATCH($F159,Class_Factors!$C:$C,0),MATCH(S$5,CLASSNUMB,0)),0) -> 0 | T159: =IFERROR($G159*INDEX(Class_Alloc,MATCH($F159,Class_Factors!$C:$C,0),MATCH(T$5,CLASSNUMB,0)),0) -> 0 | U159: =IFERROR($G159*INDEX(Class_Alloc,MATCH($F159,Class_Factors!$C:$C,0),MATCH(U$5,CLASSNUMB,0)),0) -> 0 | V159: =IFERROR($G159*INDEX(Class_Alloc,MATCH($F159,Class_Factors!$C:$C,0),MATCH(V$5,CLASSNUMB,0)),0) -> 0 | W159: =IFERROR($G159*INDEX(Class_Alloc,MATCH($F159,Class_Factors!$C:$C,0),MATCH(W$5,CLASSNUMB,0)),0) -> 0 | X159: =IFERROR($G159*INDEX(Class_Alloc,MATCH($F159,Class_Factors!$C:$C,0),MATCH(X$5,CLASSNUMB,0)),0) -> 0 | Y159: =IFERROR($G159*INDEX(Class_Alloc,MATCH($F159,Class_Factors!$C:$C,0),MATCH(Y$5,CLASSNUMB,0)),0) -> 0 | AA159: 0
B160: =B140+1 -> 6 | C160: Steam Production Net Plant | G160: =SUM(G142:G159) -> 230775053.1 | H160: =SUM(H142:H159) -> 102853762.4 | I160: 19904805.3 | J160: 32202081.2 | K160: 4577251.202 | L160: =SUM(L142:L159) -> 2286220.951 | M160: 289785.7684 | N160: =SUM(N142:N159) -> 60637.65501 | O160: 16330541.83 | P160: 449813.8594 | Q160: 679933.4908 | R160: 2941069.269 | S160: 1377026.086 | T160: 14478529.73 | U160: 34829.33592 | V160: 2979724.516 | W160: 28865415.9 | X160: 135689.9333 | Y160: 327934.7472 | AA160: 0
C162: Nuclear Production Net Plant - Palo Verde | D162: 101/106
C163: Production-Demand | F163: NON_DISP | G163: =SUMIFS(INDIRECT(Functionalization!$B$1&"!"&SUBSTITUTE(ADDRESS(1,MATCH($C163,Functionalization!$3:$3,0),4),"1","")&":"&SUBSTITUTE(ADDRESS(1,MATCH($C163,Functionalization!$3:$3,0),4),"1","")),Functionalization!$C:$C,Cost_of_Service!$C162,Functionalization!$D:$D,Cost_of_Service!$D162) -> 347311437.3 | H163: =IFERROR($G163*INDEX(Class_Alloc,MATCH($F163,Class_Factors!$C:$C,0),MATCH(H$5,CLASSNUMB,0)),0) -> 108663124.5 | I163: =IFERROR($G163*INDEX(Class_Alloc,MATCH($F163,Class_Factors!$C:$C,0),MATCH(I$5,CLASSNUMB,0)),0) -> 32504453.89 | J163: =IFERROR($G163*INDEX(Class_Alloc,MATCH($F163,Class_Factors!$C:$C,0),MATCH(J$5,CLASSNUMB,0)),0) -> 49656603.71 | K163: =IFERROR($G163*INDEX(Class_Alloc,MATCH($F163,Class_Factors!$C:$C,0),MATCH(K$5,CLASSNUMB,0)),0) -> 9210147.444 | L163: =IFERROR($G163*INDEX(Class_Alloc,MATCH($F163,Class_Factors!$C:$C,0),MATCH(L$5,CLASSNUMB,0)),0) -> 3806894.806 | M163: =IFERROR($G163*INDEX(Class_Alloc,MATCH($F163,Class_Factors!$C:$C,0),MATCH(M$5,CLASSNUMB,0)),0) -> 468412.8956 | N163: =IFERROR($G163*INDEX(Class_Alloc,MATCH($F163,Class_Factors!$C:$C,0),MATCH(N$5,CLASSNUMB,0)),0) -> 186833.9903 | O163: =IFERROR($G163*INDEX(Class_Alloc,MATCH($F163,Class_Factors!$C:$C,0),MATCH(O$5,CLASSNUMB,0)),0) -> 31840366.77 | P163: =IFERROR($G163*INDEX(Class_Alloc,MATCH($F163,Class_Factors!$C:$C,0),MATCH(P$5,CLASSNUMB,0)),0) -> 962442.8129 | Q163: =IFERROR($G163*INDEX(Class_Alloc,MATCH($F163,Class_Factors!$C:$C,0),MATCH(Q$5,CLASSNUMB,0)),0) -> 757911.5273 | R163: =IFERROR($G163*INDEX(Class_Alloc,MATCH($F163,Class_Factors!$C:$C,0),MATCH(R$5,CLASSNUMB,0)),0) -> 5791681.925 | S163: =IFERROR($G163*INDEX(Class_Alloc,MATCH($F163,Class_Factors!$C:$C,0),MATCH(S$5,CLASSNUMB,0)),0) -> 2352132.166 | T163: =IFERROR($G163*INDEX(Class_Alloc,MATCH($F163,Class_Factors!$C:$C,0),MATCH(T$5,CLASSNUMB,0)),0) -> 29617618.52 | U163: =IFERROR($G163*INDEX(Class_Alloc,MATCH($F163,Class_Factors!$C:$C,0),MATCH(U$5,CLASSNUMB,0)),0) -> 91796.5998 | V163: =IFERROR($G163*INDEX(Class_Alloc,MATCH($F163,Class_Factors!$C:$C,0),MATCH(V$5,CLASSNUMB,0)),0) -> 5866627.145 | W163: =IFERROR($G163*INDEX(Class_Alloc,MATCH($F163,Class_Factors!$C:$C,0),MATCH(W$5,CLASSNUMB,0)),0) -> 64269301.08 | X163: =IFERROR($G163*INDEX(Class_Alloc,MATCH($F163,Class_Factors!$C:$C,0),MATCH(X$5,CLASSNUMB,0)),0) -> 414517.1816 | Y163: =IFERROR($G163*INDEX(Class_Alloc,MATCH($F163,Class_Factors!$C:$C,0),MATCH(Y$5,CLASSNUMB,0)),0) -> 850570.3309 | AA163: =G163-SUM(H163:Y163) -> 0
C164: Production-Energy-Fuel | G164: =SUMIFS(INDIRECT(Functionalization!$B$1&"!"&SUBSTITUTE(ADDRESS(1,MATCH($C164,Functionalization!$3:$3,0),4),"1","")&":"&SUBSTITUTE(ADDRESS(1,MATCH($C164,Functionalization!$3:$3,0),4),"1","")),Functionalization!$C:$C,Cost_of_Service!$C162,Functionalization!$D:$D,Cost_of_Service!$D162) -> 0 | H164: =IFERROR($G164*INDEX(Class_Alloc,MATCH($F164,Class_Factors!$C:$C,0),MATCH(H$5,CLASSNUMB,0)),0) -> 0 | I164: =IFERROR($G164*INDEX(Class_Alloc,MATCH($F164,Class_Factors!$C:$C,0),MATCH(I$5,CLASSNUMB,0)),0) -> 0 | J164: =IFERROR($G164*INDEX(Class_Alloc,MATCH($F164,Class_Factors!$C:$C,0),MATCH(J$5,CLASSNUMB,0)),0) -> 0 | K164: =IFERROR($G164*INDEX(Class_Alloc,MATCH($F164,Class_Factors!$C:$C,0),MATCH(K$5,CLASSNUMB,0)),0) -> 0 | L164: =IFERROR($G164*INDEX(Class_Alloc,MATCH($F164,Class_Factors!$C:$C,0),MATCH(L$5,CLASSNUMB,0)),0) -> 0 | M164: =IFERROR($G164*INDEX(Class_Alloc,MATCH($F164,Class_Factors!$C:$C,0),MATCH(M$5,CLASSNUMB,0)),0) -> 0 | N164: =IFERROR($G164*INDEX(Class_Alloc,MATCH($F164,Class_Factors!$C:$C,0),MATCH(N$5,CLASSNUMB,0)),0) -> 0 | O164: =IFERROR($G164*INDEX(Class_Alloc,MATCH($F164,Class_Factors!$C:$C,0),MATCH(O$5,CLASSNUMB,0)),0) -> 0 | P164: =IFERROR($G164*INDEX(Class_Alloc,MATCH($F164,Class_Factors!$C:$C,0),MATCH(P$5,CLASSNUMB,0)),0) -> 0 | Q164: =IFERROR($G164*INDEX(Class_Alloc,MATCH($F164,Class_Factors!$C:$C,0),MATCH(Q$5,CLASSNUMB,0)),0) -> 0 | R164: =IFERROR($G164*INDEX(Class_Alloc,MATCH($F164,Class_Factors!$C:$C,0),MATCH(R$5,CLASSNUMB,0)),0) -> 0 | S164: =IFERROR($G164*INDEX(Class_Alloc,MATCH($F164,Class_Factors!$C:$C,0),MATCH(S$5,CLASSNUMB,0)),0) -> 0 | T164: =IFERROR($G164*INDEX(Class_Alloc,MATCH($F164,Class_Factors!$C:$C,0),MATCH(T$5,CLASSNUMB,0)),0) -> 0 | U164: =IFERROR($G164*INDEX(Class_Alloc,MATCH($F164,Class_Factors!$C:$C,0),MATCH(U$5,CLASSNUMB,0)),0) -> 0 | V164: =IFERROR($G164*INDEX(Class_Alloc,MATCH($F164,Class_Factors!$C:$C,0),MATCH(V$5,CLASSNUMB,0)),0) -> 0 | W164: =IFERROR($G164*INDEX(Class_Alloc,MATCH($F164,Class_Factors!$C:$C,0),MATCH(W$5,CLASSNUMB,0)),0) -> 0 | X164: =IFERROR($G164*INDEX(Class_Alloc,MATCH($F164,Class_Factors!$C:$C,0),MATCH(X$5,CLASSNUMB,0)),0) -> 0 | Y164: =IFERROR($G164*INDEX(Class_Alloc,MATCH($F164,Class_Factors!$C:$C,0),MATCH(Y$5,CLASSNUMB,0)),0) -> 0 | AA164: 0
C165: Production-Energy-Non-Fuel | G165: =SUMIFS(INDIRECT(Functionalization!$B$1&"!"&SUBSTITUTE(ADDRESS(1,MATCH($C165,Functionalization!$3:$3,0),4),"1","")&":"&SUBSTITUTE(ADDRESS(1,MATCH($C165,Functionalization!$3:$3,0),4),"1","")),Functionalization!$C:$C,Cost_of_Service!$C162,Functionalization!$D:$D,Cost_of_Service!$D162) -> 0 | H165: =IFERROR($G165*INDEX(Class_Alloc,MATCH($F165,Class_Factors!$C:$C,0),MATCH(H$5,CLASSNUMB,0)),0) -> 0 | I165: =IFERROR($G165*INDEX(Class_Alloc,MATCH($F165,Class_Factors!$C:$C,0),MATCH(I$5,CLASSNUMB,0)),0) -> 0 | J165: =IFERROR($G165*INDEX(Class_Alloc,MATCH($F165,Class_Factors!$C:$C,0),MATCH(J$5,CLASSNUMB,0)),0) -> 0 | K165: =IFERROR($G165*INDEX(Class_Alloc,MATCH($F165,Class_Factors!$C:$C,0),MATCH(K$5,CLASSNUMB,0)),0) -> 0 | L165: =IFERROR($G165*INDEX(Class_Alloc,MATCH($F165,Class_Factors!$C:$C,0),MATCH(L$5,CLASSNUMB,0)),0) -> 0 | M165: =IFERROR($G165*INDEX(Class_Alloc,MATCH($F165,Class_Factors!$C:$C,0),MATCH(M$5,CLASSNUMB,0)),0) -> 0 | N165: =IFERROR($G165*INDEX(Class_Alloc,MATCH($F165,Class_Factors!$C:$C,0),MATCH(N$5,CLASSNUMB,0)),0) -> 0 | O165: =IFERROR($G165*INDEX(Class_Alloc,MATCH($F165,Class_Factors!$C:$C,0),MATCH(O$5,CLASSNUMB,0)),0) -> 0 | P165: =IFERROR($G165*INDEX(Class_Alloc,MATCH($F165,Class_Factors!$C:$C,0),MATCH(P$5,CLASSNUMB,0)),0) -> 0 | Q165: =IFERROR($G165*INDEX(Class_Alloc,MATCH($F165,Class_Factors!$C:$C,0),MATCH(Q$5,CLASSNUMB,0)),0) -> 0 | R165: =IFERROR($G165*INDEX(Class_Alloc,MATCH($F165,Class_Factors!$C:$C,0),MATCH(R$5,CLASSNUMB,0)),0) -> 0 | S165: =IFERROR($G165*INDEX(Class_Alloc,MATCH($F165,Class_Factors!$C:$C,0),MATCH(S$5,CLASSNUMB,0)),0) -> 0 | T165: =IFERROR($G165*INDEX(Class_Alloc,MATCH($F165,Class_Factors!$C:$C,0),MATCH(T$5,CLASSNUMB,0)),0) -> 0 | U165: =IFERROR($G165*INDEX(Class_Alloc,MATCH($F165,Class_Factors!$C:$C,0),MATCH(U$5,CLASSNUMB,0)),0) -> 0 | V165: =IFERROR($G165*INDEX(Class_Alloc,MATCH($F165,Class_Factors!$C:$C,0),MATCH(V$5,CLASSNUMB,0)),0) -> 0 | W165: =IFERROR($G165*INDEX(Class_Alloc,MATCH($F165,Class_Factors!$C:$C,0),MATCH(W$5,CLASSNUMB,0)),0) -> 0 | X165: =IFERROR($G165*INDEX(Class_Alloc,MATCH($F165,Class_Factors!$C:$C,0),MATCH(X$5,CLASSNUMB,0)),0) -> 0 | Y165: =IFERROR($G165*INDEX(Class_Alloc,MATCH($F165,Class_Factors!$C:$C,0),MATCH(Y$5,CLASSNUMB,0)),0) -> 0 | AA165: 0
C166: Storage-Production-Demand | G166: =SUMIFS(INDIRECT(Functionalization!$B$1&"!"&SUBSTITUTE(ADDRESS(1,MATCH($C166,Functionalization!$3:$3,0),4),"1","")&":"&SUBSTITUTE(ADDRESS(1,MATCH($C166,Functionalization!$3:$3,0),4),"1","")),Functionalization!$C:$C,Cost_of_Service!$C162,Functionalization!$D:$D,Cost_of_Service!$D162) -> 0 | H166: =IFERROR($G166*INDEX(Class_Alloc,MATCH($F166,Class_Factors!$C:$C,0),MATCH(H$5,CLASSNUMB,0)),0) -> 0 | I166: =IFERROR($G166*INDEX(Class_Alloc,MATCH($F166,Class_Factors!$C:$C,0),MATCH(I$5,CLASSNUMB,0)),0) -> 0 | J166: =IFERROR($G166*INDEX(Class_Alloc,MATCH($F166,Class_Factors!$C:$C,0),MATCH(J$5,CLASSNUMB,0)),0) -> 0 | K166: =IFERROR($G166*INDEX(Class_Alloc,MATCH($F166,Class_Factors!$C:$C,0),MATCH(K$5,CLASSNUMB,0)),0) -> 0 | L166: =IFERROR($G166*INDEX(Class_Alloc,MATCH($F166,Class_Factors!$C:$C,0),MATCH(L$5,CLASSNUMB,0)),0) -> 0 | M166: =IFERROR($G166*INDEX(Class_Alloc,MATCH($F166,Class_Factors!$C:$C,0),MATCH(M$5,CLASSNUMB,0)),0) -> 0 | N166: =IFERROR($G166*INDEX(Class_Alloc,MATCH($F166,Class_Factors!$C:$C,0),MATCH(N$5,CLASSNUMB,0)),0) -> 0 | O166: =IFERROR($G166*INDEX(Class_Alloc,MATCH($F166,Class_Factors!$C:$C,0),MATCH(O$5,CLASSNUMB,0)),0) -> 0 | P166: =IFERROR($G166*INDEX(Class_Alloc,MATCH($F166,Class_Factors!$C:$C,0),MATCH(P$5,CLASSNUMB,0)),0) -> 0 | Q166: =IFERROR($G166*INDEX(Class_Alloc,MATCH($F166,Class_Factors!$C:$C,0),MATCH(Q$5,CLASSNUMB,0)),0) -> 0 | R166: =IFERROR($G166*INDEX(Class_Alloc,MATCH($F166,Class_Factors!$C:$C,0),MATCH(R$5,CLASSNUMB,0)),0) -> 0 | S166: =IFERROR($G166*INDEX(Class_Alloc,MATCH($F166,Class_Factors!$C:$C,0),MATCH(S$5,CLASSNUMB,0)),0) -> 0 | T166: =IFERROR($G166*INDEX(Class_Alloc,MATCH($F166,Class_Factors!$C:$C,0),MATCH(T$5,CLASSNUMB,0)),0) -> 0 | U166: =IFERROR($G166*INDEX(Class_Alloc,MATCH($F166,Class_Factors!$C:$C,0),MATCH(U$5,CLASSNUMB,0)),0) -> 0 | V166: =IFERROR($G166*INDEX(Class_Alloc,MATCH($F166,Class_Factors!$C:$C,0),MATCH(V$5,CLASSNUMB,0)),0) -> 0 | W166: =IFERROR($G166*INDEX(Class_Alloc,MATCH($F166,Class_Factors!$C:$C,0),MATCH(W$5,CLASSNUMB,0)),0) -> 0 | X166: =IFERROR($G166*INDEX(Class_Alloc,MATCH($F166,Class_Factors!$C:$C,0),MATCH(X$5,CLASSNUMB,0)),0) -> 0 | Y166: =IFERROR($G166*INDEX(Class_Alloc,MATCH($F166,Class_Factors!$C:$C,0),MATCH(Y$5,CLASSNUMB,0)),0) -> 0 | AA166: 0
C167: Storage-Transmission-Demand | G167: =SUMIFS(INDIRECT(Functionalization!$B$1&"!"&SUBSTITUTE(ADDRESS(1,MATCH($C167,Functionalization!$3:$3,0),4),"1","")&":"&SUBSTITUTE(ADDRESS(1,MATCH($C167,Functionalization!$3:$3,0),4),"1","")),Functionalization!$C:$C,Cost_of_Service!$C162,Functionalization!$D:$D,Cost_of_Service!$D162) -> 0 | H167: =IFERROR($G167*INDEX(Class_Alloc,MATCH($F167,Class_Factors!$C:$C,0),MATCH(H$5,CLASSNUMB,0)),0) -> 0 | I167: =IFERROR($G167*INDEX(Class_Alloc,MATCH($F167,Class_Factors!$C:$C,0),MATCH(I$5,CLASSNUMB,0)),0) -> 0 | J167: =IFERROR($G167*INDEX(Class_Alloc,MATCH($F167,Class_Factors!$C:$C,0),MATCH(J$5,CLASSNUMB,0)),0) -> 0 | K167: =IFERROR($G167*INDEX(Class_Alloc,MATCH($F167,Class_Factors!$C:$C,0),MATCH(K$5,CLASSNUMB,0)),0) -> 0 | L167: =IFERROR($G167*INDEX(Class_Alloc,MATCH($F167,Class_Factors!$C:$C,0),MATCH(L$5,CLASSNUMB,0)),0) -> 0 | M167: =IFERROR($G167*INDEX(Class_Alloc,MATCH($F167,Class_Factors!$C:$C,0),MATCH(M$5,CLASSNUMB,0)),0) -> 0 | N167: =IFERROR($G167*INDEX(Class_Alloc,MATCH($F167,Class_Factors!$C:$C,0),MATCH(N$5,CLASSNUMB,0)),0) -> 0 | O167: =IFERROR($G167*INDEX(Class_Alloc,MATCH($F167,Class_Factors!$C:$C,0),MATCH(O$5,CLASSNUMB,0)),0) -> 0 | P167: =IFERROR($G167*INDEX(Class_Alloc,MATCH($F167,Class_Factors!$C:$C,0),MATCH(P$5,CLASSNUMB,0)),0) -> 0 | Q167: =IFERROR($G167*INDEX(Class_Alloc,MATCH($F167,Class_Factors!$C:$C,0),MATCH(Q$5,CLASSNUMB,0)),0) -> 0 | R167: =IFERROR($G167*INDEX(Class_Alloc,MATCH($F167,Class_Factors!$C:$C,0),MATCH(R$5,CLASSNUMB,0)),0) -> 0 | S167: =IFERROR($G167*INDEX(Class_Alloc,MATCH($F167,Class_Factors!$C:$C,0),MATCH(S$5,CLASSNUMB,0)),0) -> 0 | T167: =IFERROR($G167*INDEX(Class_Alloc,MATCH($F167,Class_Factors!$C:$C,0),MATCH(T$5,CLASSNUMB,0)),0) -> 0 | U167: =IFERROR($G167*INDEX(Class_Alloc,MATCH($F167,Class_Factors!$C:$C,0),MATCH(U$5,CLASSNUMB,0)),0) -> 0 | V167: =IFERROR($G167*INDEX(Class_Alloc,MATCH($F167,Class_Factors!$C:$C,0),MATCH(V$5,CLASSNUMB,0)),0) -> 0 | W167: =IFERROR($G167*INDEX(Class_Alloc,MATCH($F167,Class_Factors!$C:$C,0),MATCH(W$5,CLASSNUMB,0)),0) -> 0 | X167: =IFERROR($G167*INDEX(Class_Alloc,MATCH($F167,Class_Factors!$C:$C,0),MATCH(X$5,CLASSNUMB,0)),0) -> 0 | Y167: =IFERROR($G167*INDEX(Class_Alloc,MATCH($F167,Class_Factors!$C:$C,0),MATCH(Y$5,CLASSNUMB,0)),0) -> 0 | AA167: 0
C168: Storage-Distribution-Demand-Subs | G168: =SUMIFS(INDIRECT(Functionalization!$B$1&"!"&SUBSTITUTE(ADDRESS(1,MATCH($C168,Functionalization!$3:$3,0),4),"1","")&":"&SUBSTITUTE(ADDRESS(1,MATCH($C168,Functionalization!$3:$3,0),4),"1","")),Functionalization!$C:$C,Cost_of_Service!$C162,Functionalization!$D:$D,Cost_of_Service!$D162) -> 0 | H168: =IFERROR($G168*INDEX(Class_Alloc,MATCH($F168,Class_Factors!$C:$C,0),MATCH(H$5,CLASSNUMB,0)),0) -> 0 | I168: =IFERROR($G168*INDEX(Class_Alloc,MATCH($F168,Class_Factors!$C:$C,0),MATCH(I$5,CLASSNUMB,0)),0) -> 0 | J168: =IFERROR($G168*INDEX(Class_Alloc,MATCH($F168,Class_Factors!$C:$C,0),MATCH(J$5,CLASSNUMB,0)),0) -> 0 | K168: =IFERROR($G168*INDEX(Class_Alloc,MATCH($F168,Class_Factors!$C:$C,0),MATCH(K$5,CLASSNUMB,0)),0) -> 0 | L168: =IFERROR($G168*INDEX(Class_Alloc,MATCH($F168,Class_Factors!$C:$C,0),MATCH(L$5,CLASSNUMB,0)),0) -> 0 | M168: =IFERROR($G168*INDEX(Class_Alloc,MATCH($F168,Class_Factors!$C:$C,0),MATCH(M$5,CLASSNUMB,0)),0) -> 0 | N168: =IFERROR($G168*INDEX(Class_Alloc,MATCH($F168,Class_Factors!$C:$C,0),MATCH(N$5,CLASSNUMB,0)),0) -> 0 | O168: =IFERROR($G168*INDEX(Class_Alloc,MATCH($F168,Class_Factors!$C:$C,0),MATCH(O$5,CLASSNUMB,0)),0) -> 0 | P168: =IFERROR($G168*INDEX(Class_Alloc,MATCH($F168,Class_Factors!$C:$C,0),MATCH(P$5,CLASSNUMB,0)),0) -> 0 | Q168: =IFERROR($G168*INDEX(Class_Alloc,MATCH($F168,Class_Factors!$C:$C,0),MATCH(Q$5,CLASSNUMB,0)),0) -> 0 | R168: =IFERROR($G168*INDEX(Class_Alloc,MATCH($F168,Class_Factors!$C:$C,0),MATCH(R$5,CLASSNUMB,0)),0) -> 0 | S168: =IFERROR($G168*INDEX(Class_Alloc,MATCH($F168,Class_Factors!$C:$C,0),MATCH(S$5,CLASSNUMB,0)),0) -> 0 | T168: =IFERROR($G168*INDEX(Class_Alloc,MATCH($F168,Class_Factors!$C:$C,0),MATCH(T$5,CLASSNUMB,0)),0) -> 0 | U168: =IFERROR($G168*INDEX(Class_Alloc,MATCH($F168,Class_Factors!$C:$C,0),MATCH(U$5,CLASSNUMB,0)),0) -> 0 | V168: =IFERROR($G168*INDEX(Class_Alloc,MATCH($F168,Class_Factors!$C:$C,0),MATCH(V$5,CLASSNUMB,0)),0) -> 0 | W168: =IFERROR($G168*INDEX(Class_Alloc,MATCH($F168,Class_Factors!$C:$C,0),MATCH(W$5,CLASSNUMB,0)),0) -> 0 | X168: =IFERROR($G168*INDEX(Class_Alloc,MATCH($F168,Class_Factors!$C:$C,0),MATCH(X$5,CLASSNUMB,0)),0) -> 0 | Y168: =IFERROR($G168*INDEX(Class_Alloc,MATCH($F168,Class_Factors!$C:$C,0),MATCH(Y$5,CLASSNUMB,0)),0) -> 0 | AA168: 0
C169: Storage-Distribution-Demand-Primary | G169: =SUMIFS(INDIRECT(Functionalization!$B$1&"!"&SUBSTITUTE(ADDRESS(1,MATCH($C169,Functionalization!$3:$3,0),4),"1","")&":"&SUBSTITUTE(ADDRESS(1,MATCH($C169,Functionalization!$3:$3,0),4),"1","")),Functionalization!$C:$C,Cost_of_Service!$C162,Functionalization!$D:$D,Cost_of_Service!$D162) -> 0 | H169: =IFERROR($G169*INDEX(Class_Alloc,MATCH($F169,Class_Factors!$C:$C,0),MATCH(H$5,CLASSNUMB,0)),0) -> 0 | I169: =IFERROR($G169*INDEX(Class_Alloc,MATCH($F169,Class_Factors!$C:$C,0),MATCH(I$5,CLASSNUMB,0)),0) -> 0 | J169: =IFERROR($G169*INDEX(Class_Alloc,MATCH($F169,Class_Factors!$C:$C,0),MATCH(J$5,CLASSNUMB,0)),0) -> 0 | K169: =IFERROR($G169*INDEX(Class_Alloc,MATCH($F169,Class_Factors!$C:$C,0),MATCH(K$5,CLASSNUMB,0)),0) -> 0 | L169: =IFERROR($G169*INDEX(Class_Alloc,MATCH($F169,Class_Factors!$C:$C,0),MATCH(L$5,CLASSNUMB,0)),0) -> 0 | M169: =IFERROR($G169*INDEX(Class_Alloc,MATCH($F169,Class_Factors!$C:$C,0),MATCH(M$5,CLASSNUMB,0)),0) -> 0 | N169: =IFERROR($G169*INDEX(Class_Alloc,MATCH($F169,Class_Factors!$C:$C,0),MATCH(N$5,CLASSNUMB,0)),0) -> 0 | O169: =IFERROR($G169*INDEX(Class_Alloc,MATCH($F169,Class_Factors!$C:$C,0),MATCH(O$5,CLASSNUMB,0)),0) -> 0 | P169: =IFERROR($G169*INDEX(Class_Alloc,MATCH($F169,Class_Factors!$C:$C,0),MATCH(P$5,CLASSNUMB,0)),0) -> 0 | Q169: =IFERROR($G169*INDEX(Class_Alloc,MATCH($F169,Class_Factors!$C:$C,0),MATCH(Q$5,CLASSNUMB,0)),0) -> 0 | R169: =IFERROR($G169*INDEX(Class_Alloc,MATCH($F169,Class_Factors!$C:$C,0),MATCH(R$5,CLASSNUMB,0)),0) -> 0 | S169: =IFERROR($G169*INDEX(Class_Alloc,MATCH($F169,Class_Factors!$C:$C,0),MATCH(S$5,CLASSNUMB,0)),0) -> 0 | T169: =IFERROR($G169*INDEX(Class_Alloc,MATCH($F169,Class_Factors!$C:$C,0),MATCH(T$5,CLASSNUMB,0)),0) -> 0 | U169: =IFERROR($G169*INDEX(Class_Alloc,MATCH($F169,Class_Factors!$C:$C,0),MATCH(U$5,CLASSNUMB,0)),0) -> 0 | V169: =IFERROR($G169*INDEX(Class_Alloc,MATCH($F169,Class_Factors!$C:$C,0),MATCH(V$5,CLASSNUMB,0)),0) -> 0 | W169: =IFERROR($G169*INDEX(Class_Alloc,MATCH($F169,Class_Factors!$C:$C,0),MATCH(W$5,CLASSNUMB,0)),0) -> 0 | X169: =IFERROR($G169*INDEX(Class_Alloc,MATCH($F169,Class_Factors!$C:$C,0),MATCH(X$5,CLASSNUMB,0)),0) -> 0 | Y169: =IFERROR($G169*INDEX(Class_Alloc,MATCH($F169,Class_Factors!$C:$C,0),MATCH(Y$5,CLASSNUMB,0)),0) -> 0 | AA169: 0
C170: Storage-Distribution-Demand-Secondary | G170: =SUMIFS(INDIRECT(Functionalization!$B$1&"!"&SUBSTITUTE(ADDRESS(1,MATCH($C170,Functionalization!$3:$3,0),4),"1","")&":"&SUBSTITUTE(ADDRESS(1,MATCH($C170,Functionalization!$3:$3,0),4),"1","")),Functionalization!$C:$C,Cost_of_Service!$C162,Functionalization!$D:$D,Cost_of_Service!$D162) -> 0 | H170: =IFERROR($G170*INDEX(Class_Alloc,MATCH($F170,Class_Factors!$C:$C,0),MATCH(H$5,CLASSNUMB,0)),0) -> 0 | I170: =IFERROR($G170*INDEX(Class_Alloc,MATCH($F170,Class_Factors!$C:$C,0),MATCH(I$5,CLASSNUMB,0)),0) -> 0 | J170: =IFERROR($G170*INDEX(Class_Alloc,MATCH($F170,Class_Factors!$C:$C,0),MATCH(J$5,CLASSNUMB,0)),0) -> 0 | K170: =IFERROR($G170*INDEX(Class_Alloc,MATCH($F170,Class_Factors!$C:$C,0),MATCH(K$5,CLASSNUMB,0)),0) -> 0 | L170: =IFERROR($G170*INDEX(Class_Alloc,MATCH($F170,Class_Factors!$C:$C,0),MATCH(L$5,CLASSNUMB,0)),0) -> 0 | M170: =IFERROR($G170*INDEX(Class_Alloc,MATCH($F170,Class_Factors!$C:$C,0),MATCH(M$5,CLASSNUMB,0)),0) -> 0 | N170: =IFERROR($G170*INDEX(Class_Alloc,MATCH($F170,Class_Factors!$C:$C,0),MATCH(N$5,CLASSNUMB,0)),0) -> 0 | O170: =IFERROR($G170*INDEX(Class_Alloc,MATCH($F170,Class_Factors!$C:$C,0),MATCH(O$5,CLASSNUMB,0)),0) -> 0 | P170: =IFERROR($G170*INDEX(Class_Alloc,MATCH($F170,Class_Factors!$C:$C,0),MATCH(P$5,CLASSNUMB,0)),0) -> 0 | Q170: =IFERROR($G170*INDEX(Class_Alloc,MATCH($F170,Class_Factors!$C:$C,0),MATCH(Q$5,CLASSNUMB,0)),0) -> 0 | R170: =IFERROR($G170*INDEX(Class_Alloc,MATCH($F170,Class_Factors!$C:$C,0),MATCH(R$5,CLASSNUMB,0)),0) -> 0 | S170: =IFERROR($G170*INDEX(Class_Alloc,MATCH($F170,Class_Factors!$C:$C,0),MATCH(S$5,CLASSNUMB,0)),0) -> 0 | T170: =IFERROR($G170*INDEX(Class_Alloc,MATCH($F170,Class_Factors!$C:$C,0),MATCH(T$5,CLASSNUMB,0)),0) -> 0 | U170: =IFERROR($G170*INDEX(Class_Alloc,MATCH($F170,Class_Factors!$C:$C,0),MATCH(U$5,CLASSNUMB,0)),0) -> 0 | V170: =IFERROR($G170*INDEX(Class_Alloc,MATCH($F170,Class_Factors!$C:$C,0),MATCH(V$5,CLASSNUMB,0)),0) -> 0 | W170: =IFERROR($G170*INDEX(Class_Alloc,MATCH($F170,Class_Factors!$C:$C,0),MATCH(W$5,CLASSNUMB,0)),0) -> 0 | X170: =IFERROR($G170*INDEX(Class_Alloc,MATCH($F170,Class_Factors!$C:$C,0),MATCH(X$5,CLASSNUMB,0)),0) -> 0 | Y170: =IFERROR($G170*INDEX(Class_Alloc,MATCH($F170,Class_Factors!$C:$C,0),MATCH(Y$5,CLASSNUMB,0)),0) -> 0 | AA170: 0
C171: Transmission-Demand | G171: =SUMIFS(INDIRECT(Functionalization!$B$1&"!"&SUBSTITUTE(ADDRESS(1,MATCH($C171,Functionalization!$3:$3,0),4),"1","")&":"&SUBSTITUTE(ADDRESS(1,MATCH($C171,Functionalization!$3:$3,0),4),"1","")),Functionalization!$C:$C,Cost_of_Service!$C162,Functionalization!$D:$D,Cost_of_Service!$D162) -> 0 | H171: =IFERROR($G171*INDEX(Class_Alloc,MATCH($F171,Class_Factors!$C:$C,0),MATCH(H$5,CLASSNUMB,0)),0) -> 0 | I171: =IFERROR($G171*INDEX(Class_Alloc,MATCH($F171,Class_Factors!$C:$C,0),MATCH(I$5,CLASSNUMB,0)),0) -> 0 | J171: =IFERROR($G171*INDEX(Class_Alloc,MATCH($F171,Class_Factors!$C:$C,0),MATCH(J$5,CLASSNUMB,0)),0) -> 0 | K171: =IFERROR($G171*INDEX(Class_Alloc,MATCH($F171,Class_Factors!$C:$C,0),MATCH(K$5,CLASSNUMB,0)),0) -> 0 | L171: =IFERROR($G171*INDEX(Class_Alloc,MATCH($F171,Class_Factors!$C:$C,0),MATCH(L$5,CLASSNUMB,0)),0) -> 0 | M171: =IFERROR($G171*INDEX(Class_Alloc,MATCH($F171,Class_Factors!$C:$C,0),MATCH(M$5,CLASSNUMB,0)),0) -> 0 | N171: =IFERROR($G171*INDEX(Class_Alloc,MATCH($F171,Class_Factors!$C:$C,0),MATCH(N$5,CLASSNUMB,0)),0) -> 0 | O171: =IFERROR($G171*INDEX(Class_Alloc,MATCH($F171,Class_Factors!$C:$C,0),MATCH(O$5,CLASSNUMB,0)),0) -> 0 | P171: =IFERROR($G171*INDEX(Class_Alloc,MATCH($F171,Class_Factors!$C:$C,0),MATCH(P$5,CLASSNUMB,0)),0) -> 0 | Q171: =IFERROR($G171*INDEX(Class_Alloc,MATCH($F171,Class_Factors!$C:$C,0),MATCH(Q$5,CLASSNUMB,0)),0) -> 0 | R171: =IFERROR($G171*INDEX(Class_Alloc,MATCH($F171,Class_Factors!$C:$C,0),MATCH(R$5,CLASSNUMB,0)),0) -> 0 | S171: =IFERROR($G171*INDEX(Class_Alloc,MATCH($F171,Class_Factors!$C:$C,0),MATCH(S$5,CLASSNUMB,0)),0) -> 0 | T171: =IFERROR($G171*INDEX(Class_Alloc,MATCH($F171,Class_Factors!$C:$C,0),MATCH(T$5,CLASSNUMB,0)),0) -> 0 | U171: =IFERROR($G171*INDEX(Class_Alloc,MATCH($F171,Class_Factors!$C:$C,0),MATCH(U$5,CLASSNUMB,0)),0) -> 0 | V171: =IFERROR($G171*INDEX(Class_Alloc,MATCH($F171,Class_Factors!$C:$C,0),MATCH(V$5,CLASSNUMB,0)),0) -> 0 | W171: =IFERROR($G171*INDEX(Class_Alloc,MATCH($F171,Class_Factors!$C:$C,0),MATCH(W$5,CLASSNUMB,0)),0) -> 0 | X171: =IFERROR($G171*INDEX(Class_Alloc,MATCH($F171,Class_Factors!$C:$C,0),MATCH(X$5,CLASSNUMB,0)),0) -> 0 | Y171: =IFERROR($G171*INDEX(Class_Alloc,MATCH($F171,Class_Factors!$C:$C,0),MATCH(Y$5,CLASSNUMB,0)),0) -> 0 | AA171: 0
C172: Distribution-Demand-Subs | G172: =SUMIFS(INDIRECT(Functionalization!$B$1&"!"&SUBSTITUTE(ADDRESS(1,MATCH($C172,Functionalization!$3:$3,0),4),"1","")&":"&SUBSTITUTE(ADDRESS(1,MATCH($C172,Functionalization!$3:$3,0),4),"1","")),Functionalization!$C:$C,Cost_of_Service!$C162,Functionalization!$D:$D,Cost_of_Service!$D162) -> 0 | H172: =IFERROR($G172*INDEX(Class_Alloc,MATCH($F172,Class_Factors!$C:$C,0),MATCH(H$5,CLASSNUMB,0)),0) -> 0 | I172: =IFERROR($G172*INDEX(Class_Alloc,MATCH($F172,Class_Factors!$C:$C,0),MATCH(I$5,CLASSNUMB,0)),0) -> 0 | J172: =IFERROR($G172*INDEX(Class_Alloc,MATCH($F172,Class_Factors!$C:$C,0),MATCH(J$5,CLASSNUMB,0)),0) -> 0 | K172: =IFERROR($G172*INDEX(Class_Alloc,MATCH($F172,Class_Factors!$C:$C,0),MATCH(K$5,CLASSNUMB,0)),0) -> 0 | L172: =IFERROR($G172*INDEX(Class_Alloc,MATCH($F172,Class_Factors!$C:$C,0),MATCH(L$5,CLASSNUMB,0)),0) -> 0 | M172: =IFERROR($G172*INDEX(Class_Alloc,MATCH($F172,Class_Factors!$C:$C,0),MATCH(M$5,CLASSNUMB,0)),0) -> 0 | N172: =IFERROR($G172*INDEX(Class_Alloc,MATCH($F172,Class_Factors!$C:$C,0),MATCH(N$5,CLASSNUMB,0)),0) -> 0 | O172: =IFERROR($G172*INDEX(Class_Alloc,MATCH($F172,Class_Factors!$C:$C,0),MATCH(O$5,CLASSNUMB,0)),0) -> 0 | P172: =IFERROR($G172*INDEX(Class_Alloc,MATCH($F172,Class_Factors!$C:$C,0),MATCH(P$5,CLASSNUMB,0)),0) -> 0 | Q172: =IFERROR($G172*INDEX(Class_Alloc,MATCH($F172,Class_Factors!$C:$C,0),MATCH(Q$5,CLASSNUMB,0)),0) -> 0 | R172: =IFERROR($G172*INDEX(Class_Alloc,MATCH($F172,Class_Factors!$C:$C,0),MATCH(R$5,CLASSNUMB,0)),0) -> 0 | S172: =IFERROR($G172*INDEX(Class_Alloc,MATCH($F172,Class_Factors!$C:$C,0),MATCH(S$5,CLASSNUMB,0)),0) -> 0 | T172: =IFERROR($G172*INDEX(Class_Alloc,MATCH($F172,Class_Factors!$C:$C,0),MATCH(T$5,CLASSNUMB,0)),0) -> 0 | U172: =IFERROR($G172*INDEX(Class_Alloc,MATCH($F172,Class_Factors!$C:$C,0),MATCH(U$5,CLASSNUMB,0)),0) -> 0 | V172: =IFERROR($G172*INDEX(Class_Alloc,MATCH($F172,Class_Factors!$C:$C,0),MATCH(V$5,CLASSNUMB,0)),0) -> 0 | W172: =IFERROR($G172*INDEX(Class_Alloc,MATCH($F172,Class_Factors!$C:$C,0),MATCH(W$5,CLASSNUMB,0)),0) -> 0 | X172: =IFERROR($G172*INDEX(Class_Alloc,MATCH($F172,Class_Factors!$C:$C,0),MATCH(X$5,CLASSNUMB,0)),0) -> 0 | Y172: =IFERROR($G172*INDEX(Class_Alloc,MATCH($F172,Class_Factors!$C:$C,0),MATCH(Y$5,CLASSNUMB,0)),0) -> 0 | AA172: 0
C173: Distribution-Demand-Primary | G173: =SUMIFS(INDIRECT(Functionalization!$B$1&"!"&SUBSTITUTE(ADDRESS(1,MATCH($C173,Functionalization!$3:$3,0),4),"1","")&":"&SUBSTITUTE(ADDRESS(1,MATCH($C173,Functionalization!$3:$3,0),4),"1","")),Functionalization!$C:$C,Cost_of_Service!$C162,Functionalization!$D:$D,Cost_of_Service!$D162) -> 0 | H173: =IFERROR($G173*INDEX(Class_Alloc,MATCH($F173,Class_Factors!$C:$C,0),MATCH(H$5,CLASSNUMB,0)),0) -> 0 | I173: =IFERROR($G173*INDEX(Class_Alloc,MATCH($F173,Class_Factors!$C:$C,0),MATCH(I$5,CLASSNUMB,0)),0) -> 0 | J173: =IFERROR($G173*INDEX(Class_Alloc,MATCH($F173,Class_Factors!$C:$C,0),MATCH(J$5,CLASSNUMB,0)),0) -> 0 | K173: =IFERROR($G173*INDEX(Class_Alloc,MATCH($F173,Class_Factors!$C:$C,0),MATCH(K$5,CLASSNUMB,0)),0) -> 0 | L173: =IFERROR($G173*INDEX(Class_Alloc,MATCH($F173,Class_Factors!$C:$C,0),MATCH(L$5,CLASSNUMB,0)),0) -> 0 | M173: =IFERROR($G173*INDEX(Class_Alloc,MATCH($F173,Class_Factors!$C:$C,0),MATCH(M$5,CLASSNUMB,0)),0) -> 0 | N173: =IFERROR($G173*INDEX(Class_Alloc,MATCH($F173,Class_Factors!$C:$C,0),MATCH(N$5,CLASSNUMB,0)),0) -> 0 | O173: =IFERROR($G173*INDEX(Class_Alloc,MATCH($F173,Class_Factors!$C:$C,0),MATCH(O$5,CLASSNUMB,0)),0) -> 0 | P173: =IFERROR($G173*INDEX(Class_Alloc,MATCH($F173,Class_Factors!$C:$C,0),MATCH(P$5,CLASSNUMB,0)),0) -> 0 | Q173: =IFERROR($G173*INDEX(Class_Alloc,MATCH($F173,Class_Factors!$C:$C,0),MATCH(Q$5,CLASSNUMB,0)),0) -> 0 | R173: =IFERROR($G173*INDEX(Class_Alloc,MATCH($F173,Class_Factors!$C:$C,0),MATCH(R$5,CLASSNUMB,0)),0) -> 0 | S173: =IFERROR($G173*INDEX(Class_Alloc,MATCH($F173,Class_Factors!$C:$C,0),MATCH(S$5,CLASSNUMB,0)),0) -> 0 | T173: =IFERROR($G173*INDEX(Class_Alloc,MATCH($F173,Class_Factors!$C:$C,0),MATCH(T$5,CLASSNUMB,0)),0) -> 0 | U173: =IFERROR($G173*INDEX(Class_Alloc,MATCH($F173,Class_Factors!$C:$C,0),MATCH(U$5,CLASSNUMB,0)),0) -> 0 | V173: =IFERROR($G173*INDEX(Class_Alloc,MATCH($F173,Class_Factors!$C:$C,0),MATCH(V$5,CLASSNUMB,0)),0) -> 0 | W173: =IFERROR($G173*INDEX(Class_Alloc,MATCH($F173,Class_Factors!$C:$C,0),MATCH(W$5,CLASSNUMB,0)),0) -> 0 | X173: =IFERROR($G173*INDEX(Class_Alloc,MATCH($F173,Class_Factors!$C:$C,0),MATCH(X$5,CLASSNUMB,0)),0) -> 0 | Y173: =IFERROR($G173*INDEX(Class_Alloc,MATCH($F173,Class_Factors!$C:$C,0),MATCH(Y$5,CLASSNUMB,0)),0) -> 0 | AA173: 0
C174: Distribution-Demand-Secondary | G174: =SUMIFS(INDIRECT(Functionalization!$B$1&"!"&SUBSTITUTE(ADDRESS(1,MATCH($C174,Functionalization!$3:$3,0),4),"1","")&":"&SUBSTITUTE(ADDRESS(1,MATCH($C174,Functionalization!$3:$3,0),4),"1","")),Functionalization!$C:$C,Cost_of_Service!$C162,Functionalization!$D:$D,Cost_of_Service!$D162) -> 0 | H174: =IFERROR($G174*INDEX(Class_Alloc,MATCH($F174,Class_Factors!$C:$C,0),MATCH(H$5,CLASSNUMB,0)),0) -> 0 | I174: =IFERROR($G174*INDEX(Class_Alloc,MATCH($F174,Class_Factors!$C:$C,0),MATCH(I$5,CLASSNUMB,0)),0) -> 0 | J174: =IFERROR($G174*INDEX(Class_Alloc,MATCH($F174,Class_Factors!$C:$C,0),MATCH(J$5,CLASSNUMB,0)),0) -> 0 | K174: =IFERROR($G174*INDEX(Class_Alloc,MATCH($F174,Class_Factors!$C:$C,0),MATCH(K$5,CLASSNUMB,0)),0) -> 0 | L174: =IFERROR($G174*INDEX(Class_Alloc,MATCH($F174,Class_Factors!$C:$C,0),MATCH(L$5,CLASSNUMB,0)),0) -> 0 | M174: =IFERROR($G174*INDEX(Class_Alloc,MATCH($F174,Class_Factors!$C:$C,0),MATCH(M$5,CLASSNUMB,0)),0) -> 0 | N174: =IFERROR($G174*INDEX(Class_Alloc,MATCH($F174,Class_Factors!$C:$C,0),MATCH(N$5,CLASSNUMB,0)),0) -> 0 | O174: =IFERROR($G174*INDEX(Class_Alloc,MATCH($F174,Class_Factors!$C:$C,0),MATCH(O$5,CLASSNUMB,0)),0) -> 0 | P174: =IFERROR($G174*INDEX(Class_Alloc,MATCH($F174,Class_Factors!$C:$C,0),MATCH(P$5,CLASSNUMB,0)),0) -> 0 | Q174: =IFERROR($G174*INDEX(Class_Alloc,MATCH($F174,Class_Factors!$C:$C,0),MATCH(Q$5,CLASSNUMB,0)),0) -> 0 | R174: =IFERROR($G174*INDEX(Class_Alloc,MATCH($F174,Class_Factors!$C:$C,0),MATCH(R$5,CLASSNUMB,0)),0) -> 0 | S174: =IFERROR($G174*INDEX(Class_Alloc,MATCH($F174,Class_Factors!$C:$C,0),MATCH(S$5,CLASSNUMB,0)),0) -> 0 | T174: =IFERROR($G174*INDEX(Class_Alloc,MATCH($F174,Class_Factors!$C:$C,0),MATCH(T$5,CLASSNUMB,0)),0) -> 0 | U174: =IFERROR($G174*INDEX(Class_Alloc,MATCH($F174,Class_Factors!$C:$C,0),MATCH(U$5,CLASSNUMB,0)),0) -> 0 | V174: =IFERROR($G174*INDEX(Class_Alloc,MATCH($F174,Class_Factors!$C:$C,0),MATCH(V$5,CLASSNUMB,0)),0) -> 0 | W174: =IFERROR($G174*INDEX(Class_Alloc,MATCH($F174,Class_Factors!$C:$C,0),MATCH(W$5,CLASSNUMB,0)),0) -> 0 | X174: =IFERROR($G174*INDEX(Class_Alloc,MATCH($F174,Class_Factors!$C:$C,0),MATCH(X$5,CLASSNUMB,0)),0) -> 0 | Y174: =IFERROR($G174*INDEX(Class_Alloc,MATCH($F174,Class_Factors!$C:$C,0),MATCH(Y$5,CLASSNUMB,0)),0) -> 0 | AA174: 0
C175: Distribution-Customer-Services | G175: =SUMIFS(INDIRECT(Functionalization!$B$1&"!"&SUBSTITUTE(ADDRESS(1,MATCH($C175,Functionalization!$3:$3,0),4),"1","")&":"&SUBSTITUTE(ADDRESS(1,MATCH($C175,Functionalization!$3:$3,0),4),"1","")),Functionalization!$C:$C,Cost_of_Service!$C162,Functionalization!$D:$D,Cost_of_Service!$D162) -> 0 | H175: =IFERROR($G175*INDEX(Class_Alloc,MATCH($F175,Class_Factors!$C:$C,0),MATCH(H$5,CLASSNUMB,0)),0) -> 0 | I175: =IFERROR($G175*INDEX(Class_Alloc,MATCH($F175,Class_Factors!$C:$C,0),MATCH(I$5,CLASSNUMB,0)),0) -> 0 | J175: =IFERROR($G175*INDEX(Class_Alloc,MATCH($F175,Class_Factors!$C:$C,0),MATCH(J$5,CLASSNUMB,0)),0) -> 0 | K175: =IFERROR($G175*INDEX(Class_Alloc,MATCH($F175,Class_Factors!$C:$C,0),MATCH(K$5,CLASSNUMB,0)),0) -> 0 | L175: =IFERROR($G175*INDEX(Class_Alloc,MATCH($F175,Class_Factors!$C:$C,0),MATCH(L$5,CLASSNUMB,0)),0) -> 0 | M175: =IFERROR($G175*INDEX(Class_Alloc,MATCH($F175,Class_Factors!$C:$C,0),MATCH(M$5,CLASSNUMB,0)),0) -> 0 | N175: =IFERROR($G175*INDEX(Class_Alloc,MATCH($F175,Class_Factors!$C:$C,0),MATCH(N$5,CLASSNUMB,0)),0) -> 0 | O175: =IFERROR($G175*INDEX(Class_Alloc,MATCH($F175,Class_Factors!$C:$C,0),MATCH(O$5,CLASSNUMB,0)),0) -> 0 | P175: =IFERROR($G175*INDEX(Class_Alloc,MATCH($F175,Class_Factors!$C:$C,0),MATCH(P$5,CLASSNUMB,0)),0) -> 0 | Q175: =IFERROR($G175*INDEX(Class_Alloc,MATCH($F175,Class_Factors!$C:$C,0),MATCH(Q$5,CLASSNUMB,0)),0) -> 0 | R175: =IFERROR($G175*INDEX(Class_Alloc,MATCH($F175,Class_Factors!$C:$C,0),MATCH(R$5,CLASSNUMB,0)),0) -> 0 | S175: =IFERROR($G175*INDEX(Class_Alloc,MATCH($F175,Class_Factors!$C:$C,0),MATCH(S$5,CLASSNUMB,0)),0) -> 0 | T175: =IFERROR($G175*INDEX(Class_Alloc,MATCH($F175,Class_Factors!$C:$C,0),MATCH(T$5,CLASSNUMB,0)),0) -> 0 | U175: =IFERROR($G175*INDEX(Class_Alloc,MATCH($F175,Class_Factors!$C:$C,0),MATCH(U$5,CLASSNUMB,0)),0) -> 0 | V175: =IFERROR($G175*INDEX(Class_Alloc,MATCH($F175,Class_Factors!$C:$C,0),MATCH(V$5,CLASSNUMB,0)),0) -> 0 | W175: =IFERROR($G175*INDEX(Class_Alloc,MATCH($F175,Class_Factors!$C:$C,0),MATCH(W$5,CLASSNUMB,0)),0) -> 0 | X175: =IFERROR($G175*INDEX(Class_Alloc,MATCH($F175,Class_Factors!$C:$C,0),MATCH(X$5,CLASSNUMB,0)),0) -> 0 | Y175: =IFERROR($G175*INDEX(Class_Alloc,MATCH($F175,Class_Factors!$C:$C,0),MATCH(Y$5,CLASSNUMB,0)),0) -> 0 | AA175: 0
C176: Distribution-Customer-Meters | G176: =SUMIFS(INDIRECT(Functionalization!$B$1&"!"&SUBSTITUTE(ADDRESS(1,MATCH($C176,Functionalization!$3:$3,0),4),"1","")&":"&SUBSTITUTE(ADDRESS(1,MATCH($C176,Functionalization!$3:$3,0),4),"1","")),Functionalization!$C:$C,Cost_of_Service!$C162,Functionalization!$D:$D,Cost_of_Service!$D162) -> 0 | H176: =IFERROR($G176*INDEX(Class_Alloc,MATCH($F176,Class_Factors!$C:$C,0),MATCH(H$5,CLASSNUMB,0)),0) -> 0 | I176: =IFERROR($G176*INDEX(Class_Alloc,MATCH($F176,Class_Factors!$C:$C,0),MATCH(I$5,CLASSNUMB,0)),0) -> 0 | J176: =IFERROR($G176*INDEX(Class_Alloc,MATCH($F176,Class_Factors!$C:$C,0),MATCH(J$5,CLASSNUMB,0)),0) -> 0 | K176: =IFERROR($G176*INDEX(Class_Alloc,MATCH($F176,Class_Factors!$C:$C,0),MATCH(K$5,CLASSNUMB,0)),0) -> 0 | L176: =IFERROR($G176*INDEX(Class_Alloc,MATCH($F176,Class_Factors!$C:$C,0),MATCH(L$5,CLASSNUMB,0)),0) -> 0 | M176: =IFERROR($G176*INDEX(Class_Alloc,MATCH($F176,Class_Factors!$C:$C,0),MATCH(M$5,CLASSNUMB,0)),0) -> 0 | N176: =IFERROR($G176*INDEX(Class_Alloc,MATCH($F176,Class_Factors!$C:$C,0),MATCH(N$5,CLASSNUMB,0)),0) -> 0 | O176: =IFERROR($G176*INDEX(Class_Alloc,MATCH($F176,Class_Factors!$C:$C,0),MATCH(O$5,CLASSNUMB,0)),0) -> 0 | P176: =IFERROR($G176*INDEX(Class_Alloc,MATCH($F176,Class_Factors!$C:$C,0),MATCH(P$5,CLASSNUMB,0)),0) -> 0 | Q176: =IFERROR($G176*INDEX(Class_Alloc,MATCH($F176,Class_Factors!$C:$C,0),MATCH(Q$5,CLASSNUMB,0)),0) -> 0 | R176: =IFERROR($G176*INDEX(Class_Alloc,MATCH($F176,Class_Factors!$C:$C,0),MATCH(R$5,CLASSNUMB,0)),0) -> 0 | S176: =IFERROR($G176*INDEX(Class_Alloc,MATCH($F176,Class_Factors!$C:$C,0),MATCH(S$5,CLASSNUMB,0)),0) -> 0 | T176: =IFERROR($G176*INDEX(Class_Alloc,MATCH($F176,Class_Factors!$C:$C,0),MATCH(T$5,CLASSNUMB,0)),0) -> 0 | U176: =IFERROR($G176*INDEX(Class_Alloc,MATCH($F176,Class_Factors!$C:$C,0),MATCH(U$5,CLASSNUMB,0)),0) -> 0 | V176: =IFERROR($G176*INDEX(Class_Alloc,MATCH($F176,Class_Factors!$C:$C,0),MATCH(V$5,CLASSNUMB,0)),0) -> 0 | W176: =IFERROR($G176*INDEX(Class_Alloc,MATCH($F176,Class_Factors!$C:$C,0),MATCH(W$5,CLASSNUMB,0)),0) -> 0 | X176: =IFERROR($G176*INDEX(Class_Alloc,MATCH($F176,Class_Factors!$C:$C,0),MATCH(X$5,CLASSNUMB,0)),0) -> 0 | Y176: =IFERROR($G176*INDEX(Class_Alloc,MATCH($F176,Class_Factors!$C:$C,0),MATCH(Y$5,CLASSNUMB,0)),0) -> 0 | AA176: 0
C177: Distribution-Customer-Meter Reading | G177: =SUMIFS(INDIRECT(Functionalization!$B$1&"!"&SUBSTITUTE(ADDRESS(1,MATCH($C177,Functionalization!$3:$3,0),4),"1","")&":"&SUBSTITUTE(ADDRESS(1,MATCH($C177,Functionalization!$3:$3,0),4),"1","")),Functionalization!$C:$C,Cost_of_Service!$C162,Functionalization!$D:$D,Cost_of_Service!$D162) -> 0 | H177: =IFERROR($G177*INDEX(Class_Alloc,MATCH($F177,Class_Factors!$C:$C,0),MATCH(H$5,CLASSNUMB,0)),0) -> 0 | I177: =IFERROR($G177*INDEX(Class_Alloc,MATCH($F177,Class_Factors!$C:$C,0),MATCH(I$5,CLASSNUMB,0)),0) -> 0 | J177: =IFERROR($G177*INDEX(Class_Alloc,MATCH($F177,Class_Factors!$C:$C,0),MATCH(J$5,CLASSNUMB,0)),0) -> 0 | K177: =IFERROR($G177*INDEX(Class_Alloc,MATCH($F177,Class_Factors!$C:$C,0),MATCH(K$5,CLASSNUMB,0)),0) -> 0 | L177: =IFERROR($G177*INDEX(Class_Alloc,MATCH($F177,Class_Factors!$C:$C,0),MATCH(L$5,CLASSNUMB,0)),0) -> 0 | M177: =IFERROR($G177*INDEX(Class_Alloc,MATCH($F177,Class_Factors!$C:$C,0),MATCH(M$5,CLASSNUMB,0)),0) -> 0 | N177: =IFERROR($G177*INDEX(Class_Alloc,MATCH($F177,Class_Factors!$C:$C,0),MATCH(N$5,CLASSNUMB,0)),0) -> 0 | O177: =IFERROR($G177*INDEX(Class_Alloc,MATCH($F177,Class_Factors!$C:$C,0),MATCH(O$5,CLASSNUMB,0)),0) -> 0 | P177: =IFERROR($G177*INDEX(Class_Alloc,MATCH($F177,Class_Factors!$C:$C,0),MATCH(P$5,CLASSNUMB,0)),0) -> 0 | Q177: =IFERROR($G177*INDEX(Class_Alloc,MATCH($F177,Class_Factors!$C:$C,0),MATCH(Q$5,CLASSNUMB,0)),0) -> 0 | R177: =IFERROR($G177*INDEX(Class_Alloc,MATCH($F177,Class_Factors!$C:$C,0),MATCH(R$5,CLASSNUMB,0)),0) -> 0 | S177: =IFERROR($G177*INDEX(Class_Alloc,MATCH($F177,Class_Factors!$C:$C,0),MATCH(S$5,CLASSNUMB,0)),0) -> 0 | T177: =IFERROR($G177*INDEX(Class_Alloc,MATCH($F177,Class_Factors!$C:$C,0),MATCH(T$5,CLASSNUMB,0)),0) -> 0 | U177: =IFERROR($G177*INDEX(Class_Alloc,MATCH($F177,Class_Factors!$C:$C,0),MATCH(U$5,CLASSNUMB,0)),0) -> 0 | V177: =IFERROR($G177*INDEX(Class_Alloc,MATCH($F177,Class_Factors!$C:$C,0),MATCH(V$5,CLASSNUMB,0)),0) -> 0 | W177: =IFERROR($G177*INDEX(Class_Alloc,MATCH($F177,Class_Factors!$C:$C,0),MATCH(W$5,CLASSNUMB,0)),0) -> 0 | X177: =IFERROR($G177*INDEX(Class_Alloc,MATCH($F177,Class_Factors!$C:$C,0),MATCH(X$5,CLASSNUMB,0)),0) -> 0 | Y177: =IFERROR($G177*INDEX(Class_Alloc,MATCH($F177,Class_Factors!$C:$C,0),MATCH(Y$5,CLASSNUMB,0)),0) -> 0 | AA177: 0
C178: Distribution-Customer-Billing & Collections | G178: =SUMIFS(INDIRECT(Functionalization!$B$1&"!"&SUBSTITUTE(ADDRESS(1,MATCH($C178,Functionalization!$3:$3,0),4),"1","")&":"&SUBSTITUTE(ADDRESS(1,MATCH($C178,Functionalization!$3:$3,0),4),"1","")),Functionalization!$C:$C,Cost_of_Service!$C162,Functionalization!$D:$D,Cost_of_Service!$D162) -> 0 | H178: =IFERROR($G178*INDEX(Class_Alloc,MATCH($F178,Class_Factors!$C:$C,0),MATCH(H$5,CLASSNUMB,0)),0) -> 0 | I178: =IFERROR($G178*INDEX(Class_Alloc,MATCH($F178,Class_Factors!$C:$C,0),MATCH(I$5,CLASSNUMB,0)),0) -> 0 | J178: =IFERROR($G178*INDEX(Class_Alloc,MATCH($F178,Class_Factors!$C:$C,0),MATCH(J$5,CLASSNUMB,0)),0) -> 0 | K178: =IFERROR($G178*INDEX(Class_Alloc,MATCH($F178,Class_Factors!$C:$C,0),MATCH(K$5,CLASSNUMB,0)),0) -> 0 | L178: =IFERROR($G178*INDEX(Class_Alloc,MATCH($F178,Class_Factors!$C:$C,0),MATCH(L$5,CLASSNUMB,0)),0) -> 0 | M178: =IFERROR($G178*INDEX(Class_Alloc,MATCH($F178,Class_Factors!$C:$C,0),MATCH(M$5,CLASSNUMB,0)),0) -> 0 | N178: =IFERROR($G178*INDEX(Class_Alloc,MATCH($F178,Class_Factors!$C:$C,0),MATCH(N$5,CLASSNUMB,0)),0) -> 0 | O178: =IFERROR($G178*INDEX(Class_Alloc,MATCH($F178,Class_Factors!$C:$C,0),MATCH(O$5,CLASSNUMB,0)),0) -> 0 | P178: =IFERROR($G178*INDEX(Class_Alloc,MATCH($F178,Class_Factors!$C:$C,0),MATCH(P$5,CLASSNUMB,0)),0) -> 0 | Q178: =IFERROR($G178*INDEX(Class_Alloc,MATCH($F178,Class_Factors!$C:$C,0),MATCH(Q$5,CLASSNUMB,0)),0) -> 0 | R178: =IFERROR($G178*INDEX(Class_Alloc,MATCH($F178,Class_Factors!$C:$C,0),MATCH(R$5,CLASSNUMB,0)),0) -> 0 | S178: =IFERROR($G178*INDEX(Class_Alloc,MATCH($F178,Class_Factors!$C:$C,0),MATCH(S$5,CLASSNUMB,0)),0) -> 0 | T178: =IFERROR($G178*INDEX(Class_Alloc,MATCH($F178,Class_Factors!$C:$C,0),MATCH(T$5,CLASSNUMB,0)),0) -> 0 | U178: =IFERROR($G178*INDEX(Class_Alloc,MATCH($F178,Class_Factors!$C:$C,0),MATCH(U$5,CLASSNUMB,0)),0) -> 0 | V178: =IFERROR($G178*INDEX(Class_Alloc,MATCH($F178,Class_Factors!$C:$C,0),MATCH(V$5,CLASSNUMB,0)),0) -> 0 | W178: =IFERROR($G178*INDEX(Class_Alloc,MATCH($F178,Class_Factors!$C:$C,0),MATCH(W$5,CLASSNUMB,0)),0) -> 0 | X178: =IFERROR($G178*INDEX(Class_Alloc,MATCH($F178,Class_Factors!$C:$C,0),MATCH(X$5,CLASSNUMB,0)),0) -> 0 | Y178: =IFERROR($G178*INDEX(Class_Alloc,MATCH($F178,Class_Factors!$C:$C,0),MATCH(Y$5,CLASSNUMB,0)),0) -> 0 | AA178: 0
C179: Distribution-Customer-Service & Info | G179: =SUMIFS(INDIRECT(Functionalization!$B$1&"!"&SUBSTITUTE(ADDRESS(1,MATCH($C179,Functionalization!$3:$3,0),4),"1","")&":"&SUBSTITUTE(ADDRESS(1,MATCH($C179,Functionalization!$3:$3,0),4),"1","")),Functionalization!$C:$C,Cost_of_Service!$C162,Functionalization!$D:$D,Cost_of_Service!$D162) -> 0 | H179: =IFERROR($G179*INDEX(Class_Alloc,MATCH($F179,Class_Factors!$C:$C,0),MATCH(H$5,CLASSNUMB,0)),0) -> 0 | I179: =IFERROR($G179*INDEX(Class_Alloc,MATCH($F179,Class_Factors!$C:$C,0),MATCH(I$5,CLASSNUMB,0)),0) -> 0 | J179: =IFERROR($G179*INDEX(Class_Alloc,MATCH($F179,Class_Factors!$C:$C,0),MATCH(J$5,CLASSNUMB,0)),0) -> 0 | K179: =IFERROR($G179*INDEX(Class_Alloc,MATCH($F179,Class_Factors!$C:$C,0),MATCH(K$5,CLASSNUMB,0)),0) -> 0 | L179: =IFERROR($G179*INDEX(Class_Alloc,MATCH($F179,Class_Factors!$C:$C,0),MATCH(L$5,CLASSNUMB,0)),0) -> 0 | M179: =IFERROR($G179*INDEX(Class_Alloc,MATCH($F179,Class_Factors!$C:$C,0),MATCH(M$5,CLASSNUMB,0)),0) -> 0 | N179: =IFERROR($G179*INDEX(Class_Alloc,MATCH($F179,Class_Factors!$C:$C,0),MATCH(N$5,CLASSNUMB,0)),0) -> 0 | O179: =IFERROR($G179*INDEX(Class_Alloc,MATCH($F179,Class_Factors!$C:$C,0),MATCH(O$5,CLASSNUMB,0)),0) -> 0 | P179: =IFERROR($G179*INDEX(Class_Alloc,MATCH($F179,Class_Factors!$C:$C,0),MATCH(P$5,CLASSNUMB,0)),0) -> 0 | Q179: =IFERROR($G179*INDEX(Class_Alloc,MATCH($F179,Class_Factors!$C:$C,0),MATCH(Q$5,CLASSNUMB,0)),0) -> 0 | R179: =IFERROR($G179*INDEX(Class_Alloc,MATCH($F179,Class_Factors!$C:$C,0),MATCH(R$5,CLASSNUMB,0)),0) -> 0 | S179: =IFERROR($G179*INDEX(Class_Alloc,MATCH($F179,Class_Factors!$C:$C,0),MATCH(S$5,CLASSNUMB,0)),0) -> 0 | T179: =IFERROR($G179*INDEX(Class_Alloc,MATCH($F179,Class_Factors!$C:$C,0),MATCH(T$5,CLASSNUMB,0)),0) -> 0 | U179: =IFERROR($G179*INDEX(Class_Alloc,MATCH($F179,Class_Factors!$C:$C,0),MATCH(U$5,CLASSNUMB,0)),0) -> 0 | V179: =IFERROR($G179*INDEX(Class_Alloc,MATCH($F179,Class_Factors!$C:$C,0),MATCH(V$5,CLASSNUMB,0)),0) -> 0 | W179: =IFERROR($G179*INDEX(Class_Alloc,MATCH($F179,Class_Factors!$C:$C,0),MATCH(W$5,CLASSNUMB,0)),0) -> 0 | X179: =IFERROR($G179*INDEX(Class_Alloc,MATCH($F179,Class_Factors!$C:$C,0),MATCH(X$5,CLASSNUMB,0)),0) -> 0 | Y179: =IFERROR($G179*INDEX(Class_Alloc,MATCH($F179,Class_Factors!$C:$C,0),MATCH(Y$5,CLASSNUMB,0)),0) -> 0 | AA179: 0
C180: Distribution-Customer-Other | G180: =SUMIFS(INDIRECT(Functionalization!$B$1&"!"&SUBSTITUTE(ADDRESS(1,MATCH($C180,Functionalization!$3:$3,0),4),"1","")&":"&SUBSTITUTE(ADDRESS(1,MATCH($C180,Functionalization!$3:$3,0),4),"1","")),Functionalization!$C:$C,Cost_of_Service!$C162,Functionalization!$D:$D,Cost_of_Service!$D162) -> 0 | H180: =IFERROR($G180*INDEX(Class_Alloc,MATCH($F180,Class_Factors!$C:$C,0),MATCH(H$5,CLASSNUMB,0)),0) -> 0 | I180: =IFERROR($G180*INDEX(Class_Alloc,MATCH($F180,Class_Factors!$C:$C,0),MATCH(I$5,CLASSNUMB,0)),0) -> 0 | J180: =IFERROR($G180*INDEX(Class_Alloc,MATCH($F180,Class_Factors!$C:$C,0),MATCH(J$5,CLASSNUMB,0)),0) -> 0 | K180: =IFERROR($G180*INDEX(Class_Alloc,MATCH($F180,Class_Factors!$C:$C,0),MATCH(K$5,CLASSNUMB,0)),0) -> 0 | L180: =IFERROR($G180*INDEX(Class_Alloc,MATCH($F180,Class_Factors!$C:$C,0),MATCH(L$5,CLASSNUMB,0)),0) -> 0 | M180: =IFERROR($G180*INDEX(Class_Alloc,MATCH($F180,Class_Factors!$C:$C,0),MATCH(M$5,CLASSNUMB,0)),0) -> 0 | N180: =IFERROR($G180*INDEX(Class_Alloc,MATCH($F180,Class_Factors!$C:$C,0),MATCH(N$5,CLASSNUMB,0)),0) -> 0 | O180: =IFERROR($G180*INDEX(Class_Alloc,MATCH($F180,Class_Factors!$C:$C,0),MATCH(O$5,CLASSNUMB,0)),0) -> 0 | P180: =IFERROR($G180*INDEX(Class_Alloc,MATCH($F180,Class_Factors!$C:$C,0),MATCH(P$5,CLASSNUMB,0)),0) -> 0 | Q180: =IFERROR($G180*INDEX(Class_Alloc,MATCH($F180,Class_Factors!$C:$C,0),MATCH(Q$5,CLASSNUMB,0)),0) -> 0 | R180: =IFERROR($G180*INDEX(Class_Alloc,MATCH($F180,Class_Factors!$C:$C,0),MATCH(R$5,CLASSNUMB,0)),0) -> 0 | S180: =IFERROR($G180*INDEX(Class_Alloc,MATCH($F180,Class_Factors!$C:$C,0),MATCH(S$5,CLASSNUMB,0)),0) -> 0 | T180: =IFERROR($G180*INDEX(Class_Alloc,MATCH($F180,Class_Factors!$C:$C,0),MATCH(T$5,CLASSNUMB,0)),0) -> 0 | U180: =IFERROR($G180*INDEX(Class_Alloc,MATCH($F180,Class_Factors!$C:$C,0),MATCH(U$5,CLASSNUMB,0)),0) -> 0 | V180: =IFERROR($G180*INDEX(Class_Alloc,MATCH($F180,Class_Factors!$C:$C,0),MATCH(V$5,CLASSNUMB,0)),0) -> 0 | W180: =IFERROR($G180*INDEX(Class_Alloc,MATCH($F180,Class_Factors!$C:$C,0),MATCH(W$5,CLASSNUMB,0)),0) -> 0 | X180: =IFERROR($G180*INDEX(Class_Alloc,MATCH($F180,Class_Factors!$C:$C,0),MATCH(X$5,CLASSNUMB,0)),0) -> 0 | Y180: =IFERROR($G180*INDEX(Class_Alloc,MATCH($F180,Class_Factors!$C:$C,0),MATCH(Y$5,CLASSNUMB,0)),0) -> 0 | AA180: 0
B181: =B160+1 -> 7 | C181: Nuclear Production Net Plant - Palo Verde | G181: =SUM(G163:G180) -> 347311437.3 | H181: =SUM(H163:H180) -> 108663124.5 | I181: =SUM(I163:I180) -> 32504453.89 | J181: =SUM(J163:J180) -> 49656603.71 | K181: =SUM(K163:K180) -> 9210147.444 | L181: 3806894.806 | M181: 468412.8956 | N181: =SUM(N163:N180) -> 186833.9903 | O181: =SUM(O163:O180) -> 31840366.77 | P181: =SUM(P163:P180) -> 962442.8129 | Q181: =SUM(Q163:Q180) -> 757911.5273 | R181: =SUM(R163:R180) -> 5791681.925 | S181: =SUM(S163:S180) -> 2352132.166 | T181: =SUM(T163:T180) -> 29617618.52 | U181: =SUM(U163:U180) -> 91796.5998 | V181: =SUM(V163:V180) -> 5866627.145 | W181: =SUM(W163:W180) -> 64269301.08 | X181: =SUM(X163:X180) -> 414517.1816 | Y181: =SUM(Y163:Y180) -> 850570.3309 | AA181: 0
C183: Nuclear Production Net Plant - Acq Adj (Drexel) | D183: 114
C184: Production-Demand | F184: NON_DISP | G184: =SUMIFS(INDIRECT(Functionalization!$B$1&"!"&SUBSTITUTE(ADDRESS(1,MATCH($C184,Functionalization!$3:$3,0),4),"1","")&":"&SUBSTITUTE(ADDRESS(1,MATCH($C184,Functionalization!$3:$3,0),4),"1","")),Functionalization!$C:$C,Cost_of_Service!$C183,Functionalization!$D:$D,Cost_of_Service!$D183) -> 0 | H184: =IFERROR($G184*INDEX(Class_Alloc,MATCH($F184,Class_Factors!$C:$C,0),MATCH(H$5,CLASSNUMB,0)),0) -> 0 | I184: =IFERROR($G184*INDEX(Class_Alloc,MATCH($F184,Class_Factors!$C:$C,0),MATCH(I$5,CLASSNUMB,0)),0) -> 0 | J184: =IFERROR($G184*INDEX(Class_Alloc,MATCH($F184,Class_Factors!$C:$C,0),MATCH(J$5,CLASSNUMB,0)),0) -> 0 | K184: =IFERROR($G184*INDEX(Class_Alloc,MATCH($F184,Class_Factors!$C:$C,0),MATCH(K$5,CLASSNUMB,0)),0) -> 0 | L184: =IFERROR($G184*INDEX(Class_Alloc,MATCH($F184,Class_Factors!$C:$C,0),MATCH(L$5,CLASSNUMB,0)),0) -> 0 | M184: =IFERROR($G184*INDEX(Class_Alloc,MATCH($F184,Class_Factors!$C:$C,0),MATCH(M$5,CLASSNUMB,0)),0) -> 0 | N184: =IFERROR($G184*INDEX(Class_Alloc,MATCH($F184,Class_Factors!$C:$C,0),MATCH(N$5,CLASSNUMB,0)),0) -> 0 | O184: =IFERROR($G184*INDEX(Class_Alloc,MATCH($F184,Class_Factors!$C:$C,0),MATCH(O$5,CLASSNUMB,0)),0) -> 0 | P184: =IFERROR($G184*INDEX(Class_Alloc,MATCH($F184,Class_Factors!$C:$C,0),MATCH(P$5,CLASSNUMB,0)),0) -> 0 | Q184: =IFERROR($G184*INDEX(Class_Alloc,MATCH($F184,Class_Factors!$C:$C,0),MATCH(Q$5,CLASSNUMB,0)),0) -> 0 | R184: =IFERROR($G184*INDEX(Class_Alloc,MATCH($F184,Class_Factors!$C:$C,0),MATCH(R$5,CLASSNUMB,0)),0) -> 0 | S184: =IFERROR($G184*INDEX(Class_Alloc,MATCH($F184,Class_Factors!$C:$C,0),MATCH(S$5,CLASSNUMB,0)),0) -> 0 | T184: =IFERROR($G184*INDEX(Class_Alloc,MATCH($F184,Class_Factors!$C:$C,0),MATCH(T$5,CLASSNUMB,0)),0) -> 0 | U184: =IFERROR($G184*INDEX(Class_Alloc,MATCH($F184,Class_Factors!$C:$C,0),MATCH(U$5,CLASSNUMB,0)),0) -> 0 | V184: =IFERROR($G184*INDEX(Class_Alloc,MATCH($F184,Class_Factors!$C:$C,0),MATCH(V$5,CLASSNUMB,0)),0) -> 0 | W184: =IFERROR($G184*INDEX(Class_Alloc,MATCH($F184,Class_Factors!$C:$C,0),MATCH(W$5,CLASSNUMB,0)),0) -> 0 | X184: =IFERROR($G184*INDEX(Class_Alloc,MATCH($F184,Class_Factors!$C:$C,0),MATCH(X$5,CLASSNUMB,0)),0) -> 0 | Y184: =IFERROR($G184*INDEX(Class_Alloc,MATCH($F184,Class_Factors!$C:$C,0),MATCH(Y$5,CLASSNUMB,0)),0) -> 0 | AA184: =G184-SUM(H184:Y184) -> 0
C185: Production-Energy-Fuel | G185: =SUMIFS(INDIRECT(Functionalization!$B$1&"!"&SUBSTITUTE(ADDRESS(1,MATCH($C185,Functionalization!$3:$3,0),4),"1","")&":"&SUBSTITUTE(ADDRESS(1,MATCH($C185,Functionalization!$3:$3,0),4),"1","")),Functionalization!$C:$C,Cost_of_Service!$C183,Functionalization!$D:$D,Cost_of_Service!$D183) -> 0 | H185: =IFERROR($G185*INDEX(Class_Alloc,MATCH($F185,Class_Factors!$C:$C,0),MATCH(H$5,CLASSNUMB,0)),0) -> 0 | I185: =IFERROR($G185*INDEX(Class_Alloc,MATCH($F185,Class_Factors!$C:$C,0),MATCH(I$5,CLASSNUMB,0)),0) -> 0 | J185: =IFERROR($G185*INDEX(Class_Alloc,MATCH($F185,Class_Factors!$C:$C,0),MATCH(J$5,CLASSNUMB,0)),0) -> 0 | K185: =IFERROR($G185*INDEX(Class_Alloc,MATCH($F185,Class_Factors!$C:$C,0),MATCH(K$5,CLASSNUMB,0)),0) -> 0 | L185: =IFERROR($G185*INDEX(Class_Alloc,MATCH($F185,Class_Factors!$C:$C,0),MATCH(L$5,CLASSNUMB,0)),0) -> 0 | M185: =IFERROR($G185*INDEX(Class_Alloc,MATCH($F185,Class_Factors!$C:$C,0),MATCH(M$5,CLASSNUMB,0)),0) -> 0 | N185: =IFERROR($G185*INDEX(Class_Alloc,MATCH($F185,Class_Factors!$C:$C,0),MATCH(N$5,CLASSNUMB,0)),0) -> 0 | O185: =IFERROR($G185*INDEX(Class_Alloc,MATCH($F185,Class_Factors!$C:$C,0),MATCH(O$5,CLASSNUMB,0)),0) -> 0 | P185: =IFERROR($G185*INDEX(Class_Alloc,MATCH($F185,Class_Factors!$C:$C,0),MATCH(P$5,CLASSNUMB,0)),0) -> 0 | Q185: =IFERROR($G185*INDEX(Class_Alloc,MATCH($F185,Class_Factors!$C:$C,0),MATCH(Q$5,CLASSNUMB,0)),0) -> 0 | R185: =IFERROR($G185*INDEX(Class_Alloc,MATCH($F185,Class_Factors!$C:$C,0),MATCH(R$5,CLASSNUMB,0)),0) -> 0 | S185: =IFERROR($G185*INDEX(Class_Alloc,MATCH($F185,Class_Factors!$C:$C,0),MATCH(S$5,CLASSNUMB,0)),0) -> 0 | T185: =IFERROR($G185*INDEX(Class_Alloc,MATCH($F185,Class_Factors!$C:$C,0),MATCH(T$5,CLASSNUMB,0)),0) -> 0 | U185: =IFERROR($G185*INDEX(Class_Alloc,MATCH($F185,Class_Factors!$C:$C,0),MATCH(U$5,CLASSNUMB,0)),0) -> 0 | V185: =IFERROR($G185*INDEX(Class_Alloc,MATCH($F185,Class_Factors!$C:$C,0),MATCH(V$5,CLASSNUMB,0)),0) -> 0 | W185: =IFERROR($G185*INDEX(Class_Alloc,MATCH($F185,Class_Factors!$C:$C,0),MATCH(W$5,CLASSNUMB,0)),0) -> 0 | X185: =IFERROR($G185*INDEX(Class_Alloc,MATCH($F185,Class_Factors!$C:$C,0),MATCH(X$5,CLASSNUMB,0)),0) -> 0 | Y185: =IFERROR($G185*INDEX(Class_Alloc,MATCH($F185,Class_Factors!$C:$C,0),MATCH(Y$5,CLASSNUMB,0)),0) -> 0 | AA185: 0
C186: Production-Energy-Non-Fuel | G186: =SUMIFS(INDIRECT(Functionalization!$B$1&"!"&SUBSTITUTE(ADDRESS(1,MATCH($C186,Functionalization!$3:$3,0),4),"1","")&":"&SUBSTITUTE(ADDRESS(1,MATCH($C186,Functionalization!$3:$3,0),4),"1","")),Functionalization!$C:$C,Cost_of_Service!$C183,Functionalization!$D:$D,Cost_of_Service!$D183) -> 0 | H186: =IFERROR($G186*INDEX(Class_Alloc,MATCH($F186,Class_Factors!$C:$C,0),MATCH(H$5,CLASSNUMB,0)),0) -> 0 | I186: =IFERROR($G186*INDEX(Class_Alloc,MATCH($F186,Class_Factors!$C:$C,0),MATCH(I$5,CLASSNUMB,0)),0) -> 0 | J186: =IFERROR($G186*INDEX(Class_Alloc,MATCH($F186,Class_Factors!$C:$C,0),MATCH(J$5,CLASSNUMB,0)),0) -> 0 | K186: =IFERROR($G186*INDEX(Class_Alloc,MATCH($F186,Class_Factors!$C:$C,0),MATCH(K$5,CLASSNUMB,0)),0) -> 0 | L186: =IFERROR($G186*INDEX(Class_Alloc,MATCH($F186,Class_Factors!$C:$C,0),MATCH(L$5,CLASSNUMB,0)),0) -> 0 | M186: =IFERROR($G186*INDEX(Class_Alloc,MATCH($F186,Class_Factors!$C:$C,0),MATCH(M$5,CLASSNUMB,0)),0) -> 0 | N186: =IFERROR($G186*INDEX(Class_Alloc,MATCH($F186,Class_Factors!$C:$C,0),MATCH(N$5,CLASSNUMB,0)),0) -> 0 | O186: =IFERROR($G186*INDEX(Class_Alloc,MATCH($F186,Class_Factors!$C:$C,0),MATCH(O$5,CLASSNUMB,0)),0) -> 0 | P186: =IFERROR($G186*INDEX(Class_Alloc,MATCH($F186,Class_Factors!$C:$C,0),MATCH(P$5,CLASSNUMB,0)),0) -> 0 | Q186: =IFERROR($G186*INDEX(Class_Alloc,MATCH($F186,Class_Factors!$C:$C,0),MATCH(Q$5,CLASSNUMB,0)),0) -> 0 | R186: =IFERROR($G186*INDEX(Class_Alloc,MATCH($F186,Class_Factors!$C:$C,0),MATCH(R$5,CLASSNUMB,0)),0) -> 0 | S186: =IFERROR($G186*INDEX(Class_Alloc,MATCH($F186,Class_Factors!$C:$C,0),MATCH(S$5,CLASSNUMB,0)),0) -> 0 | T186: =IFERROR($G186*INDEX(Class_Alloc,MATCH($F186,Class_Factors!$C:$C,0),MATCH(T$5,CLASSNUMB,0)),0) -> 0 | U186: =IFERROR($G186*INDEX(Class_Alloc,MATCH($F186,Class_Factors!$C:$C,0),MATCH(U$5,CLASSNUMB,0)),0) -> 0 | V186: =IFERROR($G186*INDEX(Class_Alloc,MATCH($F186,Class_Factors!$C:$C,0),MATCH(V$5,CLASSNUMB,0)),0) -> 0 | W186: =IFERROR($G186*INDEX(Class_Alloc,MATCH($F186,Class_Factors!$C:$C,0),MATCH(W$5,CLASSNUMB,0)),0) -> 0 | X186: =IFERROR($G186*INDEX(Class_Alloc,MATCH($F186,Class_Factors!$C:$C,0),MATCH(X$5,CLASSNUMB,0)),0) -> 0 | Y186: =IFERROR($G186*INDEX(Class_Alloc,MATCH($F186,Class_Factors!$C:$C,0),MATCH(Y$5,CLASSNUMB,0)),0) -> 0 | AA186: 0
C187: Storage-Production-Demand | G187: =SUMIFS(INDIRECT(Functionalization!$B$1&"!"&SUBSTITUTE(ADDRESS(1,MATCH($C187,Functionalization!$3:$3,0),4),"1","")&":"&SUBSTITUTE(ADDRESS(1,MATCH($C187,Functionalization!$3:$3,0),4),"1","")),Functionalization!$C:$C,Cost_of_Service!$C183,Functionalization!$D:$D,Cost_of_Service!$D183) -> 0 | H187: =IFERROR($G187*INDEX(Class_Alloc,MATCH($F187,Class_Factors!$C:$C,0),MATCH(H$5,CLASSNUMB,0)),0) -> 0 | I187: =IFERROR($G187*INDEX(Class_Alloc,MATCH($F187,Class_Factors!$C:$C,0),MATCH(I$5,CLASSNUMB,0)),0) -> 0 | J187: =IFERROR($G187*INDEX(Class_Alloc,MATCH($F187,Class_Factors!$C:$C,0),MATCH(J$5,CLASSNUMB,0)),0) -> 0 | K187: =IFERROR($G187*INDEX(Class_Alloc,MATCH($F187,Class_Factors!$C:$C,0),MATCH(K$5,CLASSNUMB,0)),0) -> 0 | L187: =IFERROR($G187*INDEX(Class_Alloc,MATCH($F187,Class_Factors!$C:$C,0),MATCH(L$5,CLASSNUMB,0)),0) -> 0 | M187: =IFERROR($G187*INDEX(Class_Alloc,MATCH($F187,Class_Factors!$C:$C,0),MATCH(M$5,CLASSNUMB,0)),0) -> 0 | N187: =IFERROR($G187*INDEX(Class_Alloc,MATCH($F187,Class_Factors!$C:$C,0),MATCH(N$5,CLASSNUMB,0)),0) -> 0 | O187: =IFERROR($G187*INDEX(Class_Alloc,MATCH($F187,Class_Factors!$C:$C,0),MATCH(O$5,CLASSNUMB,0)),0) -> 0 | P187: =IFERROR($G187*INDEX(Class_Alloc,MATCH($F187,Class_Factors!$C:$C,0),MATCH(P$5,CLASSNUMB,0)),0) -> 0 | Q187: =IFERROR($G187*INDEX(Class_Alloc,MATCH($F187,Class_Factors!$C:$C,0),MATCH(Q$5,CLASSNUMB,0)),0) -> 0 | R187: =IFERROR($G187*INDEX(Class_Alloc,MATCH($F187,Class_Factors!$C:$C,0),MATCH(R$5,CLASSNUMB,0)),0) -> 0 | S187: =IFERROR($G187*INDEX(Class_Alloc,MATCH($F187,Class_Factors!$C:$C,0),MATCH(S$5,CLASSNUMB,0)),0) -> 0 | T187: =IFERROR($G187*INDEX(Class_Alloc,MATCH($F187,Class_Factors!$C:$C,0),MATCH(T$5,CLASSNUMB,0)),0) -> 0 | U187: =IFERROR($G187*INDEX(Class_Alloc,MATCH($F187,Class_Factors!$C:$C,0),MATCH(U$5,CLASSNUMB,0)),0) -> 0 | V187: =IFERROR($G187*INDEX(Class_Alloc,MATCH($F187,Class_Factors!$C:$C,0),MATCH(V$5,CLASSNUMB,0)),0) -> 0 | W187: =IFERROR($G187*INDEX(Class_Alloc,MATCH($F187,Class_Factors!$C:$C,0),MATCH(W$5,CLASSNUMB,0)),0) -> 0 | X187: =IFERROR($G187*INDEX(Class_Alloc,MATCH($F187,Class_Factors!$C:$C,0),MATCH(X$5,CLASSNUMB,0)),0) -> 0 | Y187: =IFERROR($G187*INDEX(Class_Alloc,MATCH($F187,Class_Factors!$C:$C,0),MATCH(Y$5,CLASSNUMB,0)),0) -> 0 | AA187: 0
C188: Storage-Transmission-Demand | G188: =SUMIFS(INDIRECT(Functionalization!$B$1&"!"&SUBSTITUTE(ADDRESS(1,MATCH($C188,Functionalization!$3:$3,0),4),"1","")&":"&SUBSTITUTE(ADDRESS(1,MATCH($C188,Functionalization!$3:$3,0),4),"1","")),Functionalization!$C:$C,Cost_of_Service!$C183,Functionalization!$D:$D,Cost_of_Service!$D183) -> 0 | H188: =IFERROR($G188*INDEX(Class_Alloc,MATCH($F188,Class_Factors!$C:$C,0),MATCH(H$5,CLASSNUMB,0)),0) -> 0 | I188: =IFERROR($G188*INDEX(Class_Alloc,MATCH($F188,Class_Factors!$C:$C,0),MATCH(I$5,CLASSNUMB,0)),0) -> 0 | J188: =IFERROR($G188*INDEX(Class_Alloc,MATCH($F188,Class_Factors!$C:$C,0),MATCH(J$5,CLASSNUMB,0)),0) -> 0 | K188: =IFERROR($G188*INDEX(Class_Alloc,MATCH($F188,Class_Factors!$C:$C,0),MATCH(K$5,CLASSNUMB,0)),0) -> 0 | L188: =IFERROR($G188*INDEX(Class_Alloc,MATCH($F188,Class_Factors!$C:$C,0),MATCH(L$5,CLASSNUMB,0)),0) -> 0 | M188: =IFERROR($G188*INDEX(Class_Alloc,MATCH($F188,Class_Factors!$C:$C,0),MATCH(M$5,CLASSNUMB,0)),0) -> 0 | N188: =IFERROR($G188*INDEX(Class_Alloc,MATCH($F188,Class_Factors!$C:$C,0),MATCH(N$5,CLASSNUMB,0)),0) -> 0 | O188: =IFERROR($G188*INDEX(Class_Alloc,MATCH($F188,Class_Factors!$C:$C,0),MATCH(O$5,CLASSNUMB,0)),0) -> 0 | P188: =IFERROR($G188*INDEX(Class_Alloc,MATCH($F188,Class_Factors!$C:$C,0),MATCH(P$5,CLASSNUMB,0)),0) -> 0 | Q188: =IFERROR($G188*INDEX(Class_Alloc,MATCH($F188,Class_Factors!$C:$C,0),MATCH(Q$5,CLASSNUMB,0)),0) -> 0 | R188: =IFERROR($G188*INDEX(Class_Alloc,MATCH($F188,Class_Factors!$C:$C,0),MATCH(R$5,CLASSNUMB,0)),0) -> 0 | S188: =IFERROR($G188*INDEX(Class_Alloc,MATCH($F188,Class_Factors!$C:$C,0),MATCH(S$5,CLASSNUMB,0)),0) -> 0 | T188: =IFERROR($G188*INDEX(Class_Alloc,MATCH($F188,Class_Factors!$C:$C,0),MATCH(T$5,CLASSNUMB,0)),0) -> 0 | U188: =IFERROR($G188*INDEX(Class_Alloc,MATCH($F188,Class_Factors!$C:$C,0),MATCH(U$5,CLASSNUMB,0)),0) -> 0 | V188: =IFERROR($G188*INDEX(Class_Alloc,MATCH($F188,Class_Factors!$C:$C,0),MATCH(V$5,CLASSNUMB,0)),0) -> 0 | W188: =IFERROR($G188*INDEX(Class_Alloc,MATCH($F188,Class_Factors!$C:$C,0),MATCH(W$5,CLASSNUMB,0)),0) -> 0 | X188: =IFERROR($G188*INDEX(Class_Alloc,MATCH($F188,Class_Factors!$C:$C,0),MATCH(X$5,CLASSNUMB,0)),0) -> 0 | Y188: =IFERROR($G188*INDEX(Class_Alloc,MATCH($F188,Class_Factors!$C:$C,0),MATCH(Y$5,CLASSNUMB,0)),0) -> 0 | AA188: 0
C189: Storage-Distribution-Demand-Subs | G189: =SUMIFS(INDIRECT(Functionalization!$B$1&"!"&SUBSTITUTE(ADDRESS(1,MATCH($C189,Functionalization!$3:$3,0),4),"1","")&":"&SUBSTITUTE(ADDRESS(1,MATCH($C189,Functionalization!$3:$3,0),4),"1","")),Functionalization!$C:$C,Cost_of_Service!$C183,Functionalization!$D:$D,Cost_of_Service!$D183) -> 0 | H189: =IFERROR($G189*INDEX(Class_Alloc,MATCH($F189,Class_Factors!$C:$C,0),MATCH(H$5,CLASSNUMB,0)),0) -> 0 | I189: =IFERROR($G189*INDEX(Class_Alloc,MATCH($F189,Class_Factors!$C:$C,0),MATCH(I$5,CLASSNUMB,0)),0) -> 0 | J189: =IFERROR($G189*INDEX(Class_Alloc,MATCH($F189,Class_Factors!$C:$C,0),MATCH(J$5,CLASSNUMB,0)),0) -> 0 | K189: =IFERROR($G189*INDEX(Class_Alloc,MATCH($F189,Class_Factors!$C:$C,0),MATCH(K$5,CLASSNUMB,0)),0) -> 0 | L189: =IFERROR($G189*INDEX(Class_Alloc,MATCH($F189,Class_Factors!$C:$C,0),MATCH(L$5,CLASSNUMB,0)),0) -> 0 | M189: =IFERROR($G189*INDEX(Class_Alloc,MATCH($F189,Class_Factors!$C:$C,0),MATCH(M$5,CLASSNUMB,0)),0) -> 0 | N189: =IFERROR($G189*INDEX(Class_Alloc,MATCH($F189,Class_Factors!$C:$C,0),MATCH(N$5,CLASSNUMB,0)),0) -> 0 | O189: =IFERROR($G189*INDEX(Class_Alloc,MATCH($F189,Class_Factors!$C:$C,0),MATCH(O$5,CLASSNUMB,0)),0) -> 0 | P189: =IFERROR($G189*INDEX(Class_Alloc,MATCH($F189,Class_Factors!$C:$C,0),MATCH(P$5,CLASSNUMB,0)),0) -> 0 | Q189: =IFERROR($G189*INDEX(Class_Alloc,MATCH($F189,Class_Factors!$C:$C,0),MATCH(Q$5,CLASSNUMB,0)),0) -> 0 | R189: =IFERROR($G189*INDEX(Class_Alloc,MATCH($F189,Class_Factors!$C:$C,0),MATCH(R$5,CLASSNUMB,0)),0) -> 0 | S189: =IFERROR($G189*INDEX(Class_Alloc,MATCH($F189,Class_Factors!$C:$C,0),MATCH(S$5,CLASSNUMB,0)),0) -> 0 | T189: =IFERROR($G189*INDEX(Class_Alloc,MATCH($F189,Class_Factors!$C:$C,0),MATCH(T$5,CLASSNUMB,0)),0) -> 0 | U189: =IFERROR($G189*INDEX(Class_Alloc,MATCH($F189,Class_Factors!$C:$C,0),MATCH(U$5,CLASSNUMB,0)),0) -> 0 | V189: =IFERROR($G189*INDEX(Class_Alloc,MATCH($F189,Class_Factors!$C:$C,0),MATCH(V$5,CLASSNUMB,0)),0) -> 0 | W189: =IFERROR($G189*INDEX(Class_Alloc,MATCH($F189,Class_Factors!$C:$C,0),MATCH(W$5,CLASSNUMB,0)),0) -> 0 | X189: =IFERROR($G189*INDEX(Class_Alloc,MATCH($F189,Class_Factors!$C:$C,0),MATCH(X$5,CLASSNUMB,0)),0) -> 0 | Y189: =IFERROR($G189*INDEX(Class_Alloc,MATCH($F189,Class_Factors!$C:$C,0),MATCH(Y$5,CLASSNUMB,0)),0) -> 0 | AA189: 0
C190: Storage-Distribution-Demand-Primary | G190: =SUMIFS(INDIRECT(Functionalization!$B$1&"!"&SUBSTITUTE(ADDRESS(1,MATCH($C190,Functionalization!$3:$3,0),4),"1","")&":"&SUBSTITUTE(ADDRESS(1,MATCH($C190,Functionalization!$3:$3,0),4),"1","")),Functionalization!$C:$C,Cost_of_Service!$C183,Functionalization!$D:$D,Cost_of_Service!$D183) -> 0 | H190: =IFERROR($G190*INDEX(Class_Alloc,MATCH($F190,Class_Factors!$C:$C,0),MATCH(H$5,CLASSNUMB,0)),0) -> 0 | I190: =IFERROR($G190*INDEX(Class_Alloc,MATCH($F190,Class_Factors!$C:$C,0),MATCH(I$5,CLASSNUMB,0)),0) -> 0 | J190: =IFERROR($G190*INDEX(Class_Alloc,MATCH($F190,Class_Factors!$C:$C,0),MATCH(J$5,CLASSNUMB,0)),0) -> 0 | K190: =IFERROR($G190*INDEX(Class_Alloc,MATCH($F190,Class_Factors!$C:$C,0),MATCH(K$5,CLASSNUMB,0)),0) -> 0 | L190: =IFERROR($G190*INDEX(Class_Alloc,MATCH($F190,Class_Factors!$C:$C,0),MATCH(L$5,CLASSNUMB,0)),0) -> 0 | M190: =IFERROR($G190*INDEX(Class_Alloc,MATCH($F190,Class_Factors!$C:$C,0),MATCH(M$5,CLASSNUMB,0)),0) -> 0 | N190: =IFERROR($G190*INDEX(Class_Alloc,MATCH($F190,Class_Factors!$C:$C,0),MATCH(N$5,CLASSNUMB,0)),0) -> 0 | O190: =IFERROR($G190*INDEX(Class_Alloc,MATCH($F190,Class_Factors!$C:$C,0),MATCH(O$5,CLASSNUMB,0)),0) -> 0 | P190: =IFERROR($G190*INDEX(Class_Alloc,MATCH($F190,Class_Factors!$C:$C,0),MATCH(P$5,CLASSNUMB,0)),0) -> 0 | Q190: =IFERROR($G190*INDEX(Class_Alloc,MATCH($F190,Class_Factors!$C:$C,0),MATCH(Q$5,CLASSNUMB,0)),0) -> 0 | R190: =IFERROR($G190*INDEX(Class_Alloc,MATCH($F190,Class_Factors!$C:$C,0),MATCH(R$5,CLASSNUMB,0)),0) -> 0 | S190: =IFERROR($G190*INDEX(Class_Alloc,MATCH($F190,Class_Factors!$C:$C,0),MATCH(S$5,CLASSNUMB,0)),0) -> 0 | T190: =IFERROR($G190*INDEX(Class_Alloc,MATCH($F190,Class_Factors!$C:$C,0),MATCH(T$5,CLASSNUMB,0)),0) -> 0 | U190: =IFERROR($G190*INDEX(Class_Alloc,MATCH($F190,Class_Factors!$C:$C,0),MATCH(U$5,CLASSNUMB,0)),0) -> 0 | V190: =IFERROR($G190*INDEX(Class_Alloc,MATCH($F190,Class_Factors!$C:$C,0),MATCH(V$5,CLASSNUMB,0)),0) -> 0 | W190: =IFERROR($G190*INDEX(Class_Alloc,MATCH($F190,Class_Factors!$C:$C,0),MATCH(W$5,CLASSNUMB,0)),0) -> 0 | X190: =IFERROR($G190*INDEX(Class_Alloc,MATCH($F190,Class_Factors!$C:$C,0),MATCH(X$5,CLASSNUMB,0)),0) -> 0 | Y190: =IFERROR($G190*INDEX(Class_Alloc,MATCH($F190,Class_Factors!$C:$C,0),MATCH(Y$5,CLASSNUMB,0)),0) -> 0 | AA190: 0
C191: Storage-Distribution-Demand-Secondary | G191: =SUMIFS(INDIRECT(Functionalization!$B$1&"!"&SUBSTITUTE(ADDRESS(1,MATCH($C191,Functionalization!$3:$3,0),4),"1","")&":"&SUBSTITUTE(ADDRESS(1,MATCH($C191,Functionalization!$3:$3,0),4),"1","")),Functionalization!$C:$C,Cost_of_Service!$C183,Functionalization!$D:$D,Cost_of_Service!$D183) -> 0 | H191: =IFERROR($G191*INDEX(Class_Alloc,MATCH($F191,Class_Factors!$C:$C,0),MATCH(H$5,CLASSNUMB,0)),0) -> 0 | I191: =IFERROR($G191*INDEX(Class_Alloc,MATCH($F191,Class_Factors!$C:$C,0),MATCH(I$5,CLASSNUMB,0)),0) -> 0 | J191: =IFERROR($G191*INDEX(Class_Alloc,MATCH($F191,Class_Factors!$C:$C,0),MATCH(J$5,CLASSNUMB,0)),0) -> 0 | K191: =IFERROR($G191*INDEX(Class_Alloc,MATCH($F191,Class_Factors!$C:$C,0),MATCH(K$5,CLASSNUMB,0)),0) -> 0 | L191: =IFERROR($G191*INDEX(Class_Alloc,MATCH($F191,Class_Factors!$C:$C,0),MATCH(L$5,CLASSNUMB,0)),0) -> 0 | M191: =IFERROR($G191*INDEX(Class_Alloc,MATCH($F191,Class_Factors!$C:$C,0),MATCH(M$5,CLASSNUMB,0)),0) -> 0 | N191: =IFERROR($G191*INDEX(Class_Alloc,MATCH($F191,Class_Factors!$C:$C,0),MATCH(N$5,CLASSNUMB,0)),0) -> 0 | O191: =IFERROR($G191*INDEX(Class_Alloc,MATCH($F191,Class_Factors!$C:$C,0),MATCH(O$5,CLASSNUMB,0)),0) -> 0 | P191: =IFERROR($G191*INDEX(Class_Alloc,MATCH($F191,Class_Factors!$C:$C,0),MATCH(P$5,CLASSNUMB,0)),0) -> 0 | Q191: =IFERROR($G191*INDEX(Class_Alloc,MATCH($F191,Class_Factors!$C:$C,0),MATCH(Q$5,CLASSNUMB,0)),0) -> 0 | R191: =IFERROR($G191*INDEX(Class_Alloc,MATCH($F191,Class_Factors!$C:$C,0),MATCH(R$5,CLASSNUMB,0)),0) -> 0 | S191: =IFERROR($G191*INDEX(Class_Alloc,MATCH($F191,Class_Factors!$C:$C,0),MATCH(S$5,CLASSNUMB,0)),0) -> 0 | T191: =IFERROR($G191*INDEX(Class_Alloc,MATCH($F191,Class_Factors!$C:$C,0),MATCH(T$5,CLASSNUMB,0)),0) -> 0 | U191: =IFERROR($G191*INDEX(Class_Alloc,MATCH($F191,Class_Factors!$C:$C,0),MATCH(U$5,CLASSNUMB,0)),0) -> 0 | V191: =IFERROR($G191*INDEX(Class_Alloc,MATCH($F191,Class_Factors!$C:$C,0),MATCH(V$5,CLASSNUMB,0)),0) -> 0 | W191: =IFERROR($G191*INDEX(Class_Alloc,MATCH($F191,Class_Factors!$C:$C,0),MATCH(W$5,CLASSNUMB,0)),0) -> 0 | X191: =IFERROR($G191*INDEX(Class_Alloc,MATCH($F191,Class_Factors!$C:$C,0),MATCH(X$5,CLASSNUMB,0)),0) -> 0 | Y191: =IFERROR($G191*INDEX(Class_Alloc,MATCH($F191,Class_Factors!$C:$C,0),MATCH(Y$5,CLASSNUMB,0)),0) -> 0 | AA191: 0
C192: Transmission-Demand | G192: =SUMIFS(INDIRECT(Functionalization!$B$1&"!"&SUBSTITUTE(ADDRESS(1,MATCH($C192,Functionalization!$3:$3,0),4),"1","")&":"&SUBSTITUTE(ADDRESS(1,MATCH($C192,Functionalization!$3:$3,0),4),"1","")),Functionalization!$C:$C,Cost_of_Service!$C183,Functionalization!$D:$D,Cost_of_Service!$D183) -> 0 | H192: =IFERROR($G192*INDEX(Class_Alloc,MATCH($F192,Class_Factors!$C:$C,0),MATCH(H$5,CLASSNUMB,0)),0) -> 0 | I192: =IFERROR($G192*INDEX(Class_Alloc,MATCH($F192,Class_Factors!$C:$C,0),MATCH(I$5,CLASSNUMB,0)),0) -> 0 | J192: =IFERROR($G192*INDEX(Class_Alloc,MATCH($F192,Class_Factors!$C:$C,0),MATCH(J$5,CLASSNUMB,0)),0) -> 0 | K192: =IFERROR($G192*INDEX(Class_Alloc,MATCH($F192,Class_Factors!$C:$C,0),MATCH(K$5,CLASSNUMB,0)),0) -> 0 | L192: =IFERROR($G192*INDEX(Class_Alloc,MATCH($F192,Class_Factors!$C:$C,0),MATCH(L$5,CLASSNUMB,0)),0) -> 0 | M192: =IFERROR($G192*INDEX(Class_Alloc,MATCH($F192,Class_Factors!$C:$C,0),MATCH(M$5,CLASSNUMB,0)),0) -> 0 | N192: =IFERROR($G192*INDEX(Class_Alloc,MATCH($F192,Class_Factors!$C:$C,0),MATCH(N$5,CLASSNUMB,0)),0) -> 0 | O192: =IFERROR($G192*INDEX(Class_Alloc,MATCH($F192,Class_Factors!$C:$C,0),MATCH(O$5,CLASSNUMB,0)),0) -> 0 | P192: =IFERROR($G192*INDEX(Class_Alloc,MATCH($F192,Class_Factors!$C:$C,0),MATCH(P$5,CLASSNUMB,0)),0) -> 0 | Q192: =IFERROR($G192*INDEX(Class_Alloc,MATCH($F192,Class_Factors!$C:$C,0),MATCH(Q$5,CLASSNUMB,0)),0) -> 0 | R192: =IFERROR($G192*INDEX(Class_Alloc,MATCH($F192,Class_Factors!$C:$C,0),MATCH(R$5,CLASSNUMB,0)),0) -> 0 | S192: =IFERROR($G192*INDEX(Class_Alloc,MATCH($F192,Class_Factors!$C:$C,0),MATCH(S$5,CLASSNUMB,0)),0) -> 0 | T192: =IFERROR($G192*INDEX(Class_Alloc,MATCH($F192,Class_Factors!$C:$C,0),MATCH(T$5,CLASSNUMB,0)),0) -> 0 | U192: =IFERROR($G192*INDEX(Class_Alloc,MATCH($F192,Class_Factors!$C:$C,0),MATCH(U$5,CLASSNUMB,0)),0) -> 0 | V192: =IFERROR($G192*INDEX(Class_Alloc,MATCH($F192,Class_Factors!$C:$C,0),MATCH(V$5,CLASSNUMB,0)),0) -> 0 | W192: =IFERROR($G192*INDEX(Class_Alloc,MATCH($F192,Class_Factors!$C:$C,0),MATCH(W$5,CLASSNUMB,0)),0) -> 0 | X192: =IFERROR($G192*INDEX(Class_Alloc,MATCH($F192,Class_Factors!$C:$C,0),MATCH(X$5,CLASSNUMB,0)),0) -> 0 | Y192: =IFERROR($G192*INDEX(Class_Alloc,MATCH($F192,Class_Factors!$C:$C,0),MATCH(Y$5,CLASSNUMB,0)),0) -> 0 | AA192: 0
C193: Distribution-Demand-Subs | G193: =SUMIFS(INDIRECT(Functionalization!$B$1&"!"&SUBSTITUTE(ADDRESS(1,MATCH($C193,Functionalization!$3:$3,0),4),"1","")&":"&SUBSTITUTE(ADDRESS(1,MATCH($C193,Functionalization!$3:$3,0),4),"1","")),Functionalization!$C:$C,Cost_of_Service!$C183,Functionalization!$D:$D,Cost_of_Service!$D183) -> 0 | H193: =IFERROR($G193*INDEX(Class_Alloc,MATCH($F193,Class_Factors!$C:$C,0),MATCH(H$5,CLASSNUMB,0)),0) -> 0 | I193: =IFERROR($G193*INDEX(Class_Alloc,MATCH($F193,Class_Factors!$C:$C,0),MATCH(I$5,CLASSNUMB,0)),0) -> 0 | J193: =IFERROR($G193*INDEX(Class_Alloc,MATCH($F193,Class_Factors!$C:$C,0),MATCH(J$5,CLASSNUMB,0)),0) -> 0 | K193: =IFERROR($G193*INDEX(Class_Alloc,MATCH($F193,Class_Factors!$C:$C,0),MATCH(K$5,CLASSNUMB,0)),0) -> 0 | L193: =IFERROR($G193*INDEX(Class_Alloc,MATCH($F193,Class_Factors!$C:$C,0),MATCH(L$5,CLASSNUMB,0)),0) -> 0 | M193: =IFERROR($G193*INDEX(Class_Alloc,MATCH($F193,Class_Factors!$C:$C,0),MATCH(M$5,CLASSNUMB,0)),0) -> 0 | N193: =IFERROR($G193*INDEX(Class_Alloc,MATCH($F193,Class_Factors!$C:$C,0),MATCH(N$5,CLASSNUMB,0)),0) -> 0 | O193: =IFERROR($G193*INDEX(Class_Alloc,MATCH($F193,Class_Factors!$C:$C,0),MATCH(O$5,CLASSNUMB,0)),0) -> 0 | P193: =IFERROR($G193*INDEX(Class_Alloc,MATCH($F193,Class_Factors!$C:$C,0),MATCH(P$5,CLASSNUMB,0)),0) -> 0 | Q193: =IFERROR($G193*INDEX(Class_Alloc,MATCH($F193,Class_Factors!$C:$C,0),MATCH(Q$5,CLASSNUMB,0)),0) -> 0 | R193: =IFERROR($G193*INDEX(Class_Alloc,MATCH($F193,Class_Factors!$C:$C,0),MATCH(R$5,CLASSNUMB,0)),0) -> 0 | S193: =IFERROR($G193*INDEX(Class_Alloc,MATCH($F193,Class_Factors!$C:$C,0),MATCH(S$5,CLASSNUMB,0)),0) -> 0 | T193: =IFERROR($G193*INDEX(Class_Alloc,MATCH($F193,Class_Factors!$C:$C,0),MATCH(T$5,CLASSNUMB,0)),0) -> 0 | U193: =IFERROR($G193*INDEX(Class_Alloc,MATCH($F193,Class_Factors!$C:$C,0),MATCH(U$5,CLASSNUMB,0)),0) -> 0 | V193: =IFERROR($G193*INDEX(Class_Alloc,MATCH($F193,Class_Factors!$C:$C,0),MATCH(V$5,CLASSNUMB,0)),0) -> 0 | W193: =IFERROR($G193*INDEX(Class_Alloc,MATCH($F193,Class_Factors!$C:$C,0),MATCH(W$5,CLASSNUMB,0)),0) -> 0 | X193: =IFERROR($G193*INDEX(Class_Alloc,MATCH($F193,Class_Factors!$C:$C,0),MATCH(X$5,CLASSNUMB,0)),0) -> 0 | Y193: =IFERROR($G193*INDEX(Class_Alloc,MATCH($F193,Class_Factors!$C:$C,0),MATCH(Y$5,CLASSNUMB,0)),0) -> 0 | AA193: 0
C194: Distribution-Demand-Primary | G194: =SUMIFS(INDIRECT(Functionalization!$B$1&"!"&SUBSTITUTE(ADDRESS(1,MATCH($C194,Functionalization!$3:$3,0),4),"1","")&":"&SUBSTITUTE(ADDRESS(1,MATCH($C194,Functionalization!$3:$3,0),4),"1","")),Functionalization!$C:$C,Cost_of_Service!$C183,Functionalization!$D:$D,Cost_of_Service!$D183) -> 0 | H194: =IFERROR($G194*INDEX(Class_Alloc,MATCH($F194,Class_Factors!$C:$C,0),MATCH(H$5,CLASSNUMB,0)),0) -> 0 | I194: =IFERROR($G194*INDEX(Class_Alloc,MATCH($F194,Class_Factors!$C:$C,0),MATCH(I$5,CLASSNUMB,0)),0) -> 0 | J194: =IFERROR($G194*INDEX(Class_Alloc,MATCH($F194,Class_Factors!$C:$C,0),MATCH(J$5,CLASSNUMB,0)),0) -> 0 | K194: =IFERROR($G194*INDEX(Class_Alloc,MATCH($F194,Class_Factors!$C:$C,0),MATCH(K$5,CLASSNUMB,0)),0) -> 0 | L194: =IFERROR($G194*INDEX(Class_Alloc,MATCH($F194,Class_Factors!$C:$C,0),MATCH(L$5,CLASSNUMB,0)),0) -> 0 | M194: =IFERROR($G194*INDEX(Class_Alloc,MATCH($F194,Class_Factors!$C:$C,0),MATCH(M$5,CLASSNUMB,0)),0) -> 0 | N194: =IFERROR($G194*INDEX(Class_Alloc,MATCH($F194,Class_Factors!$C:$C,0),MATCH(N$5,CLASSNUMB,0)),0) -> 0 | O194: =IFERROR($G194*INDEX(Class_Alloc,MATCH($F194,Class_Factors!$C:$C,0),MATCH(O$5,CLASSNUMB,0)),0) -> 0 | P194: =IFERROR($G194*INDEX(Class_Alloc,MATCH($F194,Class_Factors!$C:$C,0),MATCH(P$5,CLASSNUMB,0)),0) -> 0 | Q194: =IFERROR($G194*INDEX(Class_Alloc,MATCH($F194,Class_Factors!$C:$C,0),MATCH(Q$5,CLASSNUMB,0)),0) -> 0 | R194: =IFERROR($G194*INDEX(Class_Alloc,MATCH($F194,Class_Factors!$C:$C,0),MATCH(R$5,CLASSNUMB,0)),0) -> 0 | S194: =IFERROR($G194*INDEX(Class_Alloc,MATCH($F194,Class_Factors!$C:$C,0),MATCH(S$5,CLASSNUMB,0)),0) -> 0 | T194: =IFERROR($G194*INDEX(Class_Alloc,MATCH($F194,Class_Factors!$C:$C,0),MATCH(T$5,CLASSNUMB,0)),0) -> 0 | U194: =IFERROR($G194*INDEX(Class_Alloc,MATCH($F194,Class_Factors!$C:$C,0),MATCH(U$5,CLASSNUMB,0)),0) -> 0 | V194: =IFERROR($G194*INDEX(Class_Alloc,MATCH($F194,Class_Factors!$C:$C,0),MATCH(V$5,CLASSNUMB,0)),0) -> 0 | W194: =IFERROR($G194*INDEX(Class_Alloc,MATCH($F194,Class_Factors!$C:$C,0),MATCH(W$5,CLASSNUMB,0)),0) -> 0 | X194: =IFERROR($G194*INDEX(Class_Alloc,MATCH($F194,Class_Factors!$C:$C,0),MATCH(X$5,CLASSNUMB,0)),0) -> 0 | Y194: =IFERROR($G194*INDEX(Class_Alloc,MATCH($F194,Class_Factors!$C:$C,0),MATCH(Y$5,CLASSNUMB,0)),0) -> 0 | AA194: 0
C195: Distribution-Demand-Secondary | G195: =SUMIFS(INDIRECT(Functionalization!$B$1&"!"&SUBSTITUTE(ADDRESS(1,MATCH($C195,Functionalization!$3:$3,0),4),"1","")&":"&SUBSTITUTE(ADDRESS(1,MATCH($C195,Functionalization!$3:$3,0),4),"1","")),Functionalization!$C:$C,Cost_of_Service!$C183,Functionalization!$D:$D,Cost_of_Service!$D183) -> 0 | H195: =IFERROR($G195*INDEX(Class_Alloc,MATCH($F195,Class_Factors!$C:$C,0),MATCH(H$5,CLASSNUMB,0)),0) -> 0 | I195: =IFERROR($G195*INDEX(Class_Alloc,MATCH($F195,Class_Factors!$C:$C,0),MATCH(I$5,CLASSNUMB,0)),0) -> 0 | J195: =IFERROR($G195*INDEX(Class_Alloc,MATCH($F195,Class_Factors!$C:$C,0),MATCH(J$5,CLASSNUMB,0)),0) -> 0 | K195: =IFERROR($G195*INDEX(Class_Alloc,MATCH($F195,Class_Factors!$C:$C,0),MATCH(K$5,CLASSNUMB,0)),0) -> 0 | L195: =IFERROR($G195*INDEX(Class_Alloc,MATCH($F195,Class_Factors!$C:$C,0),MATCH(L$5,CLASSNUMB,0)),0) -> 0 | M195: =IFERROR($G195*INDEX(Class_Alloc,MATCH($F195,Class_Factors!$C:$C,0),MATCH(M$5,CLASSNUMB,0)),0) -> 0 | N195: =IFERROR($G195*INDEX(Class_Alloc,MATCH($F195,Class_Factors!$C:$C,0),MATCH(N$5,CLASSNUMB,0)),0) -> 0 | O195: =IFERROR($G195*INDEX(Class_Alloc,MATCH($F195,Class_Factors!$C:$C,0),MATCH(O$5,CLASSNUMB,0)),0) -> 0 | P195: =IFERROR($G195*INDEX(Class_Alloc,MATCH($F195,Class_Factors!$C:$C,0),MATCH(P$5,CLASSNUMB,0)),0) -> 0 | Q195: =IFERROR($G195*INDEX(Class_Alloc,MATCH($F195,Class_Factors!$C:$C,0),MATCH(Q$5,CLASSNUMB,0)),0) -> 0 | R195: =IFERROR($G195*INDEX(Class_Alloc,MATCH($F195,Class_Factors!$C:$C,0),MATCH(R$5,CLASSNUMB,0)),0) -> 0 | S195: =IFERROR($G195*INDEX(Class_Alloc,MATCH($F195,Class_Factors!$C:$C,0),MATCH(S$5,CLASSNUMB,0)),0) -> 0 | T195: =IFERROR($G195*INDEX(Class_Alloc,MATCH($F195,Class_Factors!$C:$C,0),MATCH(T$5,CLASSNUMB,0)),0) -> 0 | U195: =IFERROR($G195*INDEX(Class_Alloc,MATCH($F195,Class_Factors!$C:$C,0),MATCH(U$5,CLASSNUMB,0)),0) -> 0 | V195: =IFERROR($G195*INDEX(Class_Alloc,MATCH($F195,Class_Factors!$C:$C,0),MATCH(V$5,CLASSNUMB,0)),0) -> 0 | W195: =IFERROR($G195*INDEX(Class_Alloc,MATCH($F195,Class_Factors!$C:$C,0),MATCH(W$5,CLASSNUMB,0)),0) -> 0 | X195: =IFERROR($G195*INDEX(Class_Alloc,MATCH($F195,Class_Factors!$C:$C,0),MATCH(X$5,CLASSNUMB,0)),0) -> 0 | Y195: =IFERROR($G195*INDEX(Class_Alloc,MATCH($F195,Class_Factors!$C:$C,0),MATCH(Y$5,CLASSNUMB,0)),0) -> 0 | AA195: 0
C196: Distribution-Customer-Services | G196: =SUMIFS(INDIRECT(Functionalization!$B$1&"!"&SUBSTITUTE(ADDRESS(1,MATCH($C196,Functionalization!$3:$3,0),4),"1","")&":"&SUBSTITUTE(ADDRESS(1,MATCH($C196,Functionalization!$3:$3,0),4),"1","")),Functionalization!$C:$C,Cost_of_Service!$C183,Functionalization!$D:$D,Cost_of_Service!$D183) -> 0 | H196: =IFERROR($G196*INDEX(Class_Alloc,MATCH($F196,Class_Factors!$C:$C,0),MATCH(H$5,CLASSNUMB,0)),0) -> 0 | I196: =IFERROR($G196*INDEX(Class_Alloc,MATCH($F196,Class_Factors!$C:$C,0),MATCH(I$5,CLASSNUMB,0)),0) -> 0 | J196: =IFERROR($G196*INDEX(Class_Alloc,MATCH($F196,Class_Factors!$C:$C,0),MATCH(J$5,CLASSNUMB,0)),0) -> 0 | K196: =IFERROR($G196*INDEX(Class_Alloc,MATCH($F196,Class_Factors!$C:$C,0),MATCH(K$5,CLASSNUMB,0)),0) -> 0 | L196: =IFERROR($G196*INDEX(Class_Alloc,MATCH($F196,Class_Factors!$C:$C,0),MATCH(L$5,CLASSNUMB,0)),0) -> 0 | M196: =IFERROR($G196*INDEX(Class_Alloc,MATCH($F196,Class_Factors!$C:$C,0),MATCH(M$5,CLASSNUMB,0)),0) -> 0 | N196: =IFERROR($G196*INDEX(Class_Alloc,MATCH($F196,Class_Factors!$C:$C,0),MATCH(N$5,CLASSNUMB,0)),0) -> 0 | O196: =IFERROR($G196*INDEX(Class_Alloc,MATCH($F196,Class_Factors!$C:$C,0),MATCH(O$5,CLASSNUMB,0)),0) -> 0 | P196: =IFERROR($G196*INDEX(Class_Alloc,MATCH($F196,Class_Factors!$C:$C,0),MATCH(P$5,CLASSNUMB,0)),0) -> 0 | Q196: =IFERROR($G196*INDEX(Class_Alloc,MATCH($F196,Class_Factors!$C:$C,0),MATCH(Q$5,CLASSNUMB,0)),0) -> 0 | R196: =IFERROR($G196*INDEX(Class_Alloc,MATCH($F196,Class_Factors!$C:$C,0),MATCH(R$5,CLASSNUMB,0)),0) -> 0 | S196: =IFERROR($G196*INDEX(Class_Alloc,MATCH($F196,Class_Factors!$C:$C,0),MATCH(S$5,CLASSNUMB,0)),0) -> 0 | T196: =IFERROR($G196*INDEX(Class_Alloc,MATCH($F196,Class_Factors!$C:$C,0),MATCH(T$5,CLASSNUMB,0)),0) -> 0 | U196: =IFERROR($G196*INDEX(Class_Alloc,MATCH($F196,Class_Factors!$C:$C,0),MATCH(U$5,CLASSNUMB,0)),0) -> 0 | V196: =IFERROR($G196*INDEX(Class_Alloc,MATCH($F196,Class_Factors!$C:$C,0),MATCH(V$5,CLASSNUMB,0)),0) -> 0 | W196: =IFERROR($G196*INDEX(Class_Alloc,MATCH($F196,Class_Factors!$C:$C,0),MATCH(W$5,CLASSNUMB,0)),0) -> 0 | X196: =IFERROR($G196*INDEX(Class_Alloc,MATCH($F196,Class_Factors!$C:$C,0),MATCH(X$5,CLASSNUMB,0)),0) -> 0 | Y196: =IFERROR($G196*INDEX(Class_Alloc,MATCH($F196,Class_Factors!$C:$C,0),MATCH(Y$5,CLASSNUMB,0)),0) -> 0 | AA196: 0
C197: Distribution-Customer-Meters | G197: =SUMIFS(INDIRECT(Functionalization!$B$1&"!"&SUBSTITUTE(ADDRESS(1,MATCH($C197,Functionalization!$3:$3,0),4),"1","")&":"&SUBSTITUTE(ADDRESS(1,MATCH($C197,Functionalization!$3:$3,0),4),"1","")),Functionalization!$C:$C,Cost_of_Service!$C183,Functionalization!$D:$D,Cost_of_Service!$D183) -> 0 | H197: =IFERROR($G197*INDEX(Class_Alloc,MATCH($F197,Class_Factors!$C:$C,0),MATCH(H$5,CLASSNUMB,0)),0) -> 0 | I197: =IFERROR($G197*INDEX(Class_Alloc,MATCH($F197,Class_Factors!$C:$C,0),MATCH(I$5,CLASSNUMB,0)),0) -> 0 | J197: =IFERROR($G197*INDEX(Class_Alloc,MATCH($F197,Class_Factors!$C:$C,0),MATCH(J$5,CLASSNUMB,0)),0) -> 0 | K197: =IFERROR($G197*INDEX(Class_Alloc,MATCH($F197,Class_Factors!$C:$C,0),MATCH(K$5,CLASSNUMB,0)),0) -> 0 | L197: =IFERROR($G197*INDEX(Class_Alloc,MATCH($F197,Class_Factors!$C:$C,0),MATCH(L$5,CLASSNUMB,0)),0) -> 0 | M197: =IFERROR($G197*INDEX(Class_Alloc,MATCH($F197,Class_Factors!$C:$C,0),MATCH(M$5,CLASSNUMB,0)),0) -> 0 | N197: =IFERROR($G197*INDEX(Class_Alloc,MATCH($F197,Class_Factors!$C:$C,0),MATCH(N$5,CLASSNUMB,0)),0) -> 0 | O197: =IFERROR($G197*INDEX(Class_Alloc,MATCH($F197,Class_Factors!$C:$C,0),MATCH(O$5,CLASSNUMB,0)),0) -> 0 | P197: =IFERROR($G197*INDEX(Class_Alloc,MATCH($F197,Class_Factors!$C:$C,0),MATCH(P$5,CLASSNUMB,0)),0) -> 0 | Q197: =IFERROR($G197*INDEX(Class_Alloc,MATCH($F197,Class_Factors!$C:$C,0),MATCH(Q$5,CLASSNUMB,0)),0) -> 0 | R197: =IFERROR($G197*INDEX(Class_Alloc,MATCH($F197,Class_Factors!$C:$C,0),MATCH(R$5,CLASSNUMB,0)),0) -> 0 | S197: =IFERROR($G197*INDEX(Class_Alloc,MATCH($F197,Class_Factors!$C:$C,0),MATCH(S$5,CLASSNUMB,0)),0) -> 0 | T197: =IFERROR($G197*INDEX(Class_Alloc,MATCH($F197,Class_Factors!$C:$C,0),MATCH(T$5,CLASSNUMB,0)),0) -> 0 | U197: =IFERROR($G197*INDEX(Class_Alloc,MATCH($F197,Class_Factors!$C:$C,0),MATCH(U$5,CLASSNUMB,0)),0) -> 0 | V197: =IFERROR($G197*INDEX(Class_Alloc,MATCH($F197,Class_Factors!$C:$C,0),MATCH(V$5,CLASSNUMB,0)),0) -> 0 | W197: =IFERROR($G197*INDEX(Class_Alloc,MATCH($F197,Class_Factors!$C:$C,0),MATCH(W$5,CLASSNUMB,0)),0) -> 0 | X197: =IFERROR($G197*INDEX(Class_Alloc,MATCH($F197,Class_Factors!$C:$C,0),MATCH(X$5,CLASSNUMB,0)),0) -> 0 | Y197: =IFERROR($G197*INDEX(Class_Alloc,MATCH($F197,Class_Factors!$C:$C,0),MATCH(Y$5,CLASSNUMB,0)),0) -> 0 | AA197: 0
C198: Distribution-Customer-Meter Reading | G198: =SUMIFS(INDIRECT(Functionalization!$B$1&"!"&SUBSTITUTE(ADDRESS(1,MATCH($C198,Functionalization!$3:$3,0),4),"1","")&":"&SUBSTITUTE(ADDRESS(1,MATCH($C198,Functionalization!$3:$3,0),4),"1","")),Functionalization!$C:$C,Cost_of_Service!$C183,Functionalization!$D:$D,Cost_of_Service!$D183) -> 0 | H198: =IFERROR($G198*INDEX(Class_Alloc,MATCH($F198,Class_Factors!$C:$C,0),MATCH(H$5,CLASSNUMB,0)),0) -> 0 | I198: =IFERROR($G198*INDEX(Class_Alloc,MATCH($F198,Class_Factors!$C:$C,0),MATCH(I$5,CLASSNUMB,0)),0) -> 0 | J198: =IFERROR($G198*INDEX(Class_Alloc,MATCH($F198,Class_Factors!$C:$C,0),MATCH(J$5,CLASSNUMB,0)),0) -> 0 | K198: =IFERROR($G198*INDEX(Class_Alloc,MATCH($F198,Class_Factors!$C:$C,0),MATCH(K$5,CLASSNUMB,0)),0) -> 0 | L198: =IFERROR($G198*INDEX(Class_Alloc,MATCH($F198,Class_Factors!$C:$C,0),MATCH(L$5,CLASSNUMB,0)),0) -> 0 | M198: =IFERROR($G198*INDEX(Class_Alloc,MATCH($F198,Class_Factors!$C:$C,0),MATCH(M$5,CLASSNUMB,0)),0) -> 0 | N198: =IFERROR($G198*INDEX(Class_Alloc,MATCH($F198,Class_Factors!$C:$C,0),MATCH(N$5,CLASSNUMB,0)),0) -> 0 | O198: =IFERROR($G198*INDEX(Class_Alloc,MATCH($F198,Class_Factors!$C:$C,0),MATCH(O$5,CLASSNUMB,0)),0) -> 0 | P198: =IFERROR($G198*INDEX(Class_Alloc,MATCH($F198,Class_Factors!$C:$C,0),MATCH(P$5,CLASSNUMB,0)),0) -> 0 | Q198: =IFERROR($G198*INDEX(Class_Alloc,MATCH($F198,Class_Factors!$C:$C,0),MATCH(Q$5,CLASSNUMB,0)),0) -> 0 | R198: =IFERROR($G198*INDEX(Class_Alloc,MATCH($F198,Class_Factors!$C:$C,0),MATCH(R$5,CLASSNUMB,0)),0) -> 0 | S198: =IFERROR($G198*INDEX(Class_Alloc,MATCH($F198,Class_Factors!$C:$C,0),MATCH(S$5,CLASSNUMB,0)),0) -> 0 | T198: =IFERROR($G198*INDEX(Class_Alloc,MATCH($F198,Class_Factors!$C:$C,0),MATCH(T$5,CLASSNUMB,0)),0) -> 0 | U198: =IFERROR($G198*INDEX(Class_Alloc,MATCH($F198,Class_Factors!$C:$C,0),MATCH(U$5,CLASSNUMB,0)),0) -> 0 | V198: =IFERROR($G198*INDEX(Class_Alloc,MATCH($F198,Class_Factors!$C:$C,0),MATCH(V$5,CLASSNUMB,0)),0) -> 0 | W198: =IFERROR($G198*INDEX(Class_Alloc,MATCH($F198,Class_Factors!$C:$C,0),MATCH(W$5,CLASSNUMB,0)),0) -> 0 | X198: =IFERROR($G198*INDEX(Class_Alloc,MATCH($F198,Class_Factors!$C:$C,0),MATCH(X$5,CLASSNUMB,0)),0) -> 0 | Y198: =IFERROR($G198*INDEX(Class_Alloc,MATCH($F198,Class_Factors!$C:$C,0),MATCH(Y$5,CLASSNUMB,0)),0) -> 0 | AA198: 0
C199: Distribution-Customer-Billing & Collections | G199: =SUMIFS(INDIRECT(Functionalization!$B$1&"!"&SUBSTITUTE(ADDRESS(1,MATCH($C199,Functionalization!$3:$3,0),4),"1","")&":"&SUBSTITUTE(ADDRESS(1,MATCH($C199,Functionalization!$3:$3,0),4),"1","")),Functionalization!$C:$C,Cost_of_Service!$C183,Functionalization!$D:$D,Cost_of_Service!$D183) -> 0 | H199: =IFERROR($G199*INDEX(Class_Alloc,MATCH($F199,Class_Factors!$C:$C,0),MATCH(H$5,CLASSNUMB,0)),0) -> 0 | I199: =IFERROR($G199*INDEX(Class_Alloc,MATCH($F199,Class_Factors!$C:$C,0),MATCH(I$5,CLASSNUMB,0)),0) -> 0 | J199: =IFERROR($G199*INDEX(Class_Alloc,MATCH($F199,Class_Factors!$C:$C,0),MATCH(J$5,CLASSNUMB,0)),0) -> 0 | K199: =IFERROR($G199*INDEX(Class_Alloc,MATCH($F199,Class_Factors!$C:$C,0),MATCH(K$5,CLASSNUMB,0)),0) -> 0 | L199: =IFERROR($G199*INDEX(Class_Alloc,MATCH($F199,Class_Factors!$C:$C,0),MATCH(L$5,CLASSNUMB,0)),0) -> 0 | M199: =IFERROR($G199*INDEX(Class_Alloc,MATCH($F199,Class_Factors!$C:$C,0),MATCH(M$5,CLASSNUMB,0)),0) -> 0 | N199: =IFERROR($G199*INDEX(Class_Alloc,MATCH($F199,Class_Factors!$C:$C,0),MATCH(N$5,CLASSNUMB,0)),0) -> 0 | O199: =IFERROR($G199*INDEX(Class_Alloc,MATCH($F199,Class_Factors!$C:$C,0),MATCH(O$5,CLASSNUMB,0)),0) -> 0 | P199: =IFERROR($G199*INDEX(Class_Alloc,MATCH($F199,Class_Factors!$C:$C,0),MATCH(P$5,CLASSNUMB,0)),0) -> 0 | Q199: =IFERROR($G199*INDEX(Class_Alloc,MATCH($F199,Class_Factors!$C:$C,0),MATCH(Q$5,CLASSNUMB,0)),0) -> 0 | R199: =IFERROR($G199*INDEX(Class_Alloc,MATCH($F199,Class_Factors!$C:$C,0),MATCH(R$5,CLASSNUMB,0)),0) -> 0 | S199: =IFERROR($G199*INDEX(Class_Alloc,MATCH($F199,Class_Factors!$C:$C,0),MATCH(S$5,CLASSNUMB,0)),0) -> 0 | T199: =IFERROR($G199*INDEX(Class_Alloc,MATCH($F199,Class_Factors!$C:$C,0),MATCH(T$5,CLASSNUMB,0)),0) -> 0 | U199: =IFERROR($G199*INDEX(Class_Alloc,MATCH($F199,Class_Factors!$C:$C,0),MATCH(U$5,CLASSNUMB,0)),0) -> 0 | V199: =IFERROR($G199*INDEX(Class_Alloc,MATCH($F199,Class_Factors!$C:$C,0),MATCH(V$5,CLASSNUMB,0)),0) -> 0 | W199: =IFERROR($G199*INDEX(Class_Alloc,MATCH($F199,Class_Factors!$C:$C,0),MATCH(W$5,CLASSNUMB,0)),0) -> 0 | X199: =IFERROR($G199*INDEX(Class_Alloc,MATCH($F199,Class_Factors!$C:$C,0),MATCH(X$5,CLASSNUMB,0)),0) -> 0 | Y199: =IFERROR($G199*INDEX(Class_Alloc,MATCH($F199,Class_Factors!$C:$C,0),MATCH(Y$5,CLASSNUMB,0)),0) -> 0 | AA199: 0
C200: Distribution-Customer-Service & Info | G200: =SUMIFS(INDIRECT(Functionalization!$B$1&"!"&SUBSTITUTE(ADDRESS(1,MATCH($C200,Functionalization!$3:$3,0),4),"1","")&":"&SUBSTITUTE(ADDRESS(1,MATCH($C200,Functionalization!$3:$3,0),4),"1","")),Functionalization!$C:$C,Cost_of_Service!$C183,Functionalization!$D:$D,Cost_of_Service!$D183) -> 0 | H200: =IFERROR($G200*INDEX(Class_Alloc,MATCH($F200,Class_Factors!$C:$C,0),MATCH(H$5,CLASSNUMB,0)),0) -> 0 | I200: =IFERROR($G200*INDEX(Class_Alloc,MATCH($F200,Class_Factors!$C:$C,0),MATCH(I$5,CLASSNUMB,0)),0) -> 0 | J200: =IFERROR($G200*INDEX(Class_Alloc,MATCH($F200,Class_Factors!$C:$C,0),MATCH(J$5,CLASSNUMB,0)),0) -> 0 | K200: =IFERROR($G200*INDEX(Class_Alloc,MATCH($F200,Class_Factors!$C:$C,0),MATCH(K$5,CLASSNUMB,0)),0) -> 0 | L200: =IFERROR($G200*INDEX(Class_Alloc,MATCH($F200,Class_Factors!$C:$C,0),MATCH(L$5,CLASSNUMB,0)),0) -> 0 | M200: =IFERROR($G200*INDEX(Class_Alloc,MATCH($F200,Class_Factors!$C:$C,0),MATCH(M$5,CLASSNUMB,0)),0) -> 0 | N200: =IFERROR($G200*INDEX(Class_Alloc,MATCH($F200,Class_Factors!$C:$C,0),MATCH(N$5,CLASSNUMB,0)),0) -> 0 | O200: =IFERROR($G200*INDEX(Class_Alloc,MATCH($F200,Class_Factors!$C:$C,0),MATCH(O$5,CLASSNUMB,0)),0) -> 0 | P200: =IFERROR($G200*INDEX(Class_Alloc,MATCH($F200,Class_Factors!$C:$C,0),MATCH(P$5,CLASSNUMB,0)),0) -> 0 | Q200: =IFERROR($G200*INDEX(Class_Alloc,MATCH($F200,Class_Factors!$C:$C,0),MATCH(Q$5,CLASSNUMB,0)),0) -> 0 | R200: =IFERROR($G200*INDEX(Class_Alloc,MATCH($F200,Class_Factors!$C:$C,0),MATCH(R$5,CLASSNUMB,0)),0) -> 0 | S200: =IFERROR($G200*INDEX(Class_Alloc,MATCH($F200,Class_Factors!$C:$C,0),MATCH(S$5,CLASSNUMB,0)),0) -> 0 | T200: =IFERROR($G200*INDEX(Class_Alloc,MATCH($F200,Class_Factors!$C:$C,0),MATCH(T$5,CLASSNUMB,0)),0) -> 0 | U200: =IFERROR($G200*INDEX(Class_Alloc,MATCH($F200,Class_Factors!$C:$C,0),MATCH(U$5,CLASSNUMB,0)),0) -> 0 | V200: =IFERROR($G200*INDEX(Class_Alloc,MATCH($F200,Class_Factors!$C:$C,0),MATCH(V$5,CLASSNUMB,0)),0) -> 0 | W200: =IFERROR($G200*INDEX(Class_Alloc,MATCH($F200,Class_Factors!$C:$C,0),MATCH(W$5,CLASSNUMB,0)),0) -> 0 | X200: =IFERROR($G200*INDEX(Class_Alloc,MATCH($F200,Class_Factors!$C:$C,0),MATCH(X$5,CLASSNUMB,0)),0) -> 0 | Y200: =IFERROR($G200*INDEX(Class_Alloc,MATCH($F200,Class_Factors!$C:$C,0),MATCH(Y$5,CLASSNUMB,0)),0) -> 0 | AA200: 0
C201: Distribution-Customer-Other | G201: =SUMIFS(INDIRECT(Functionalization!$B$1&"!"&SUBSTITUTE(ADDRESS(1,MATCH($C201,Functionalization!$3:$3,0),4),"1","")&":"&SUBSTITUTE(ADDRESS(1,MATCH($C201,Functionalization!$3:$3,0),4),"1","")),Functionalization!$C:$C,Cost_of_Service!$C183,Functionalization!$D:$D,Cost_of_Service!$D183) -> 0 | H201: =IFERROR($G201*INDEX(Class_Alloc,MATCH($F201,Class_Factors!$C:$C,0),MATCH(H$5,CLASSNUMB,0)),0) -> 0 | I201: =IFERROR($G201*INDEX(Class_Alloc,MATCH($F201,Class_Factors!$C:$C,0),MATCH(I$5,CLASSNUMB,0)),0) -> 0 | J201: =IFERROR($G201*INDEX(Class_Alloc,MATCH($F201,Class_Factors!$C:$C,0),MATCH(J$5,CLASSNUMB,0)),0) -> 0 | K201: =IFERROR($G201*INDEX(Class_Alloc,MATCH($F201,Class_Factors!$C:$C,0),MATCH(K$5,CLASSNUMB,0)),0) -> 0 | L201: =IFERROR($G201*INDEX(Class_Alloc,MATCH($F201,Class_Factors!$C:$C,0),MATCH(L$5,CLASSNUMB,0)),0) -> 0 | M201: =IFERROR($G201*INDEX(Class_Alloc,MATCH($F201,Class_Factors!$C:$C,0),MATCH(M$5,CLASSNUMB,0)),0) -> 0 | N201: =IFERROR($G201*INDEX(Class_Alloc,MATCH($F201,Class_Factors!$C:$C,0),MATCH(N$5,CLASSNUMB,0)),0) -> 0 | O201: =IFERROR($G201*INDEX(Class_Alloc,MATCH($F201,Class_Factors!$C:$C,0),MATCH(O$5,CLASSNUMB,0)),0) -> 0 | P201: =IFERROR($G201*INDEX(Class_Alloc,MATCH($F201,Class_Factors!$C:$C,0),MATCH(P$5,CLASSNUMB,0)),0) -> 0 | Q201: =IFERROR($G201*INDEX(Class_Alloc,MATCH($F201,Class_Factors!$C:$C,0),MATCH(Q$5,CLASSNUMB,0)),0) -> 0 | R201: =IFERROR($G201*INDEX(Class_Alloc,MATCH($F201,Class_Factors!$C:$C,0),MATCH(R$5,CLASSNUMB,0)),0) -> 0 | S201: =IFERROR($G201*INDEX(Class_Alloc,MATCH($F201,Class_Factors!$C:$C,0),MATCH(S$5,CLASSNUMB,0)),0) -> 0 | T201: =IFERROR($G201*INDEX(Class_Alloc,MATCH($F201,Class_Factors!$C:$C,0),MATCH(T$5,CLASSNUMB,0)),0) -> 0 | U201: =IFERROR($G201*INDEX(Class_Alloc,MATCH($F201,Class_Factors!$C:$C,0),MATCH(U$5,CLASSNUMB,0)),0) -> 0 | V201: =IFERROR($G201*INDEX(Class_Alloc,MATCH($F201,Class_Factors!$C:$C,0),MATCH(V$5,CLASSNUMB,0)),0) -> 0 | W201: =IFERROR($G201*INDEX(Class_Alloc,MATCH($F201,Class_Factors!$C:$C,0),MATCH(W$5,CLASSNUMB,0)),0) -> 0 | X201: =IFERROR($G201*INDEX(Class_Alloc,MATCH($F201,Class_Factors!$C:$C,0),MATCH(X$5,CLASSNUMB,0)),0) -> 0 | Y201: =IFERROR($G201*INDEX(Class_Alloc,MATCH($F201,Class_Factors!$C:$C,0),MATCH(Y$5,CLASSNUMB,0)),0) -> 0 | AA201: 0
B202: =B181+1 -> 8 | C202: Nuclear Production Net Plant - Acq Adj (Drexel) | G202: =SUM(G184:G201) -> 0 | H202: =SUM(H184:H201) -> 0 | I202: =SUM(I184:I201) -> 0 | J202: =SUM(J184:J201) -> 0 | K202: =SUM(K184:K201) -> 0 | L202: 0 | M202: 0 | N202: =SUM(N184:N201) -> 0 | O202: =SUM(O184:O201) -> 0 | P202: =SUM(P184:P201) -> 0 | Q202: =SUM(Q184:Q201) -> 0 | R202: =SUM(R184:R201) -> 0 | S202: =SUM(S184:S201) -> 0 | T202: =SUM(T184:T201) -> 0 | U202: =SUM(U184:U201) -> 0 | V202: =SUM(V184:V201) -> 0 | W202: =SUM(W184:W201) -> 0 | X202: =SUM(X184:X201) -> 0 | Y202: =SUM(Y184:Y201) -> 0 | AA202: 0
... 1955 more rows

Sheet Functionalization
B1: =MID(CELL("filename",B1),FIND("]",CELL("filename",B1))+1,255) -> Functionalization | L1: 1 | M1: 2 | N1: 3 | O1: 4 | P1: 5 | Q1: 6 | R1: 7 | S1: 8 | T1: 9 | U1: 10 | V1: 11 | W1: 12 | X1: 13 | Y1: 14 | Z1: 15 | AA1: 16 | AB1: 17 | AC1: 18 | AY1: Column # for Macro | BB1: 1 | BC1: Reset Row Numbering
L2: CLASSIFICATION | AY2: =COLUMN(BA1) -> 53 | BA2: 58 | BB2: =BB1+4 -> 5 | BC2: =IF(ISNA(MATCH(ROW(),BA$2:BA$38,0)),0,1) -> 0
B3: Line No. | D3: Account | E3: Total Company | F3: Other Manual Adjustments | G3: Total Company after Adjustments | H3: Jurisdictional Factor | I3: PNM Retail | J3: Factor | L3: Production-Demand | M3: Production-Energy-Fuel | N3: Production-Energy-Non-Fuel | O3: Storage-Production-Demand | P3: Storage-Transmission-Demand | Q3: Storage-Distribution-Demand-Subs | R3: Storage-Distribution-Demand-Primary | S3: Storage-Distribution-Demand-Secondary | T3: Transmission-Demand | U3: Distribution-Demand-Subs | V3: Distribution-Demand-Primary | W3: Distribution-Demand-Secondary | X3: Distribution-Customer-Services | Y3: Distribution-Customer-Meters | Z3: Distribution-Customer-Meter Reading | AA3: Distribution-Customer-Billing & Collections | AB3: Distribution-Customer-Service & Info | AC3: Distribution-Customer-Other | BA3: 110 | BB3: =BB2+4 -> 9 | BC3: 0
BA4: 162 | BB4: 13 | BC4: 0
BA5: 221 | BB5: 17 | BC5: 0
B6: =IF(BC6=1,1,B5+1) -> 1 | C6: PLANT IN SERVICE | BA6: 253 | BB6: 21 | BC6: 0
B7: 2 | BA7: 305 | BB7: 25 | BC7: 0
B8: 3 | C8: NET PRODUCTION PLANT | BA8: 357 | BB8: 29 | BC8: 0
B9: 4 | C9: Steam Production Net Plant | D9: 101/106 | E9: =+SUMIFS(Source_Mapping!$I:$I,Source_Mapping!$H:$H,Functionalization!$C9,Source_Mapping!$F:$F,Functionalization!$D9) -> 230775053.1 | G9: =E9+F9 -> 230775053.1 | H9: R_DPRO | I9: =IFERROR($G9*INDEX(Func_Classif,MATCH($H9,Func_Factors!$C:$C,0),MATCH(Functionalization!I$3,Func_Factors!$G$2:$AA$2,0)),0) -> 230775053.1 | J9: PROD_D | L9: =IFERROR($I9*INDEX(Func_Classif,MATCH($J9,Func_Factors!$C:$C,0),MATCH(Functionalization!L$3,Func_Factors!$G$2:$AA$2,0)),0) -> 230775053.1 | M9: =IFERROR($I9*INDEX(Func_Classif,MATCH($J9,Func_Factors!$C:$C,0),MATCH(Functionalization!M$3,Func_Factors!$G$2:$AA$2,0)),0) -> 0 | N9: =IFERROR($I9*INDEX(Func_Classif,MATCH($J9,Func_Factors!$C:$C,0),MATCH(Functionalization!N$3,Func_Factors!$G$2:$AA$2,0)),0) -> 0 | O9: =IFERROR($I9*INDEX(Func_Classif,MATCH($J9,Func_Factors!$C:$C,0),MATCH(Functionalization!O$3,Func_Factors!$G$2:$AA$2,0)),0) -> 0 | P9: =IFERROR($I9*INDEX(Func_Classif,MATCH($J9,Func_Factors!$C:$C,0),MATCH(Functionalization!P$3,Func_Factors!$G$2:$AA$2,0)),0) -> 0 | Q9: =IFERROR($I9*INDEX(Func_Classif,MATCH($J9,Func_Factors!$C:$C,0),MATCH(Functionalization!Q$3,Func_Factors!$G$2:$AA$2,0)),0) -> 0 | R9: =IFERROR($I9*INDEX(Func_Classif,MATCH($J9,Func_Factors!$C:$C,0),MATCH(Functionalization!R$3,Func_Factors!$G$2:$AA$2,0)),0) -> 0 | S9: =IFERROR($I9*INDEX(Func_Classif,MATCH($J9,Func_Factors!$C:$C,0),MATCH(Functionalization!S$3,Func_Factors!$G$2:$AA$2,0)),0) -> 0 | T9: =IFERROR($I9*INDEX(Func_Classif,MATCH($J9,Func_Factors!$C:$C,0),MATCH(Functionalization!T$3,Func_Factors!$G$2:$AA$2,0)),0) -> 0 | U9: =IFERROR($I9*INDEX(Func_Classif,MATCH($J9,Func_Factors!$C:$C,0),MATCH(Functionalization!U$3,Func_Factors!$G$2:$AA$2,0)),0) -> 0 | V9: =IFERROR($I9*INDEX(Func_Classif,MATCH($J9,Func_Factors!$C:$C,0),MATCH(Functionalization!V$3,Func_Factors!$G$2:$AA$2,0)),0) -> 0 | W9: =IFERROR($I9*INDEX(Func_Classif,MATCH($J9,Func_Factors!$C:$C,0),MATCH(Functionalization!W$3,Func_Factors!$G$2:$AA$2,0)),0) -> 0 | X9: =IFERROR($I9*INDEX(Func_Classif,MATCH($J9,Func_Factors!$C:$C,0),MATCH(Functionalization!X$3,Func_Factors!$G$2:$AA$2,0)),0) -> 0 | Y9: =IFERROR($I9*INDEX(Func_Classif,MATCH($J9,Func_Factors!$C:$C,0),MATCH(Functionalization!Y$3,Func_Factors!$G$2:$AA$2,0)),0) -> 0 | Z9: =IFERROR($I9*INDEX(Func_Classif,MATCH($J9,Func_Factors!$C:$C,0),MATCH(Functionalization!Z$3,Func_Factors!$G$2:$AA$2,0)),0) -> 0 | AA9: =IFERROR($I9*INDEX(Func_Classif,MATCH($J9,Func_Factors!$C:$C,0),MATCH(Functionalization!AA$3,Func_Factors!$G$2:$AA$2,0)),0) -> 0 | AB9: =IFERROR($I9*INDEX(Func_Classif,MATCH($J9,Func_Factors!$C:$C,0),MATCH(Functionalization!AB$3,Func_Factors!$G$2:$AA$2,0)),0) -> 0 | AC9: =IFERROR($I9*INDEX(Func_Classif,MATCH($J9,Func_Factors!$C:$C,0),MATCH(Functionalization!AC$3,Func_Factors!$G$2:$AA$2,0)),0) -> 0 | AE9: =I9-SUM(L9:AC9) -> 0 | BA9: 423 | BB9: 33 | BC9: 0
B10: =IF(BC10=1,1,B9+1) -> 5 | C10: Nuclear Production Net Plant - Palo Verde | D10: 101/106 | E10: =+SUMIFS(Source_Mapping!$I:$I,Source_Mapping!$H:$H,Functionalization!$C10,Source_Mapping!$F:$F,Functionalization!$D10) -> 347311437.3 | G10: =E10+F10 -> 347311437.3 | H10: R_DPRO | I10: =IFERROR($G10*INDEX(Func_Classif,MATCH($H10,Func_Factors!$C:$C,0),MATCH(Functionalization!I$3,Func_Factors!$G$2:$AA$2,0)),0) -> 347311437.3 | J10: PROD_D | L10: =IFERROR($I10*INDEX(Func_Classif,MATCH($J10,Func_Factors!$C:$C,0),MATCH(Functionalization!L$3,Func_Factors!$G$2:$AA$2,0)),0) -> 347311437.3 | M10: =IFERROR($I10*INDEX(Func_Classif,MATCH($J10,Func_Factors!$C:$C,0),MATCH(Functionalization!M$3,Func_Factors!$G$2:$AA$2,0)),0) -> 0 | N10: =IFERROR($I10*INDEX(Func_Classif,MATCH($J10,Func_Factors!$C:$C,0),MATCH(Functionalization!N$3,Func_Factors!$G$2:$AA$2,0)),0) -> 0 | O10: =IFERROR($I10*INDEX(Func_Classif,MATCH($J10,Func_Factors!$C:$C,0),MATCH(Functionalization!O$3,Func_Factors!$G$2:$AA$2,0)),0) -> 0 | P10: =IFERROR($I10*INDEX(Func_Classif,MATCH($J10,Func_Factors!$C:$C,0),MATCH(Functionalization!P$3,Func_Factors!$G$2:$AA$2,0)),0) -> 0 | Q10: =IFERROR($I10*INDEX(Func_Classif,MATCH($J10,Func_Factors!$C:$C,0),MATCH(Functionalization!Q$3,Func_Factors!$G$2:$AA$2,0)),0) -> 0 | R10: =IFERROR($I10*INDEX(Func_Classif,MATCH($J10,Func_Factors!$C:$C,0),MATCH(Functionalization!R$3,Func_Factors!$G$2:$AA$2,0)),0) -> 0 | S10: =IFERROR($I10*INDEX(Func_Classif,MATCH($J10,Func_Factors!$C:$C,0),MATCH(Functionalization!S$3,Func_Factors!$G$2:$AA$2,0)),0) -> 0 | T10: =IFERROR($I10*INDEX(Func_Classif,MATCH($J10,Func_Factors!$C:$C,0),MATCH(Functionalization!T$3,Func_Factors!$G$2:$AA$2,0)),0) -> 0 | U10: =IFERROR($I10*INDEX(Func_Classif,MATCH($J10,Func_Factors!$C:$C,0),MATCH(Functionalization!U$3,Func_Factors!$G$2:$AA$2,0)),0) -> 0 | V10: =IFERROR($I10*INDEX(Func_Classif,MATCH($J10,Func_Factors!$C:$C,0),MATCH(Functionalization!V$3,Func_Factors!$G$2:$AA$2,0)),0) -> 0 | W10: =IFERROR($I10*INDEX(Func_Classif,MATCH($J10,Func_Factors!$C:$C,0),MATCH(Functionalization!W$3,Func_Factors!$G$2:$AA$2,0)),0) -> 0 | X10: =IFERROR($I10*INDEX(Func_Classif,MATCH($J10,Func_Factors!$C:$C,0),MATCH(Functionalization!X$3,Func_Factors!$G$2:$AA$2,0)),0) -> 0 | Y10: =IFERROR($I10*INDEX(Func_Classif,MATCH($J10,Func_Factors!$C:$C,0),MATCH(Functionalization!Y$3,Func_Factors!$G$2:$AA$2,0)),0) -> 0 | Z10: =IFERROR($I10*INDEX(Func_Classif,MATCH($J10,Func_Factors!$C:$C,0),MATCH(Functionalization!Z$3,Func_Factors!$G$2:$AA$2,0)),0) -> 0 | AA10: =IFERROR($I10*INDEX(Func_Classif,MATCH($J10,Func_Factors!$C:$C,0),MATCH(Functionalization!AA$3,Func_Factors!$G$2:$AA$2,0)),0) -> 0 | AB10: =IFERROR($I10*INDEX(Func_Classif,MATCH($J10,Func_Factors!$C:$C,0),MATCH(Functionalization!AB$3,Func_Factors!$G$2:$AA$2,0)),0) -> 0 | AC10: =IFERROR($I10*INDEX(Func_Classif,MATCH($J10,Func_Factors!$C:$C,0),MATCH(Functionalization!AC$3,Func_Factors!$G$2:$AA$2,0)),0) -> 0 | AE10: =I10-SUM(L10:AC10) -> 0 | BA10: 462 | BB10: 37 | BC10: 0
B11: 6 | C11: Nuclear Production Net Plant - Acq Adj (Drexel) | D11: 114 | E11: =+SUMIFS(Source_Mapping!$I:$I,Source_Mapping!$H:$H,Functionalization!$C11,Source_Mapping!$F:$F,Functionalization!$D11) -> 0 | G11: 0 | H11: R_DPRO | I11: =IFERROR($G11*INDEX(Func_Classif,MATCH($H11,Func_Factors!$C:$C,0),MATCH(Functionalization!I$3,Func_Factors!$G$2:$AA$2,0)),0) -> 0 | J11: PROD_D | L11: =IFERROR($I11*INDEX(Func_Classif,MATCH($J11,Func_Factors!$C:$C,0),MATCH(Functionalization!L$3,Func_Factors!$G$2:$AA$2,0)),0) -> 0 | M11: =IFERROR($I11*INDEX(Func_Classif,MATCH($J11,Func_Factors!$C:$C,0),MATCH(Functionalization!M$3,Func_Factors!$G$2:$AA$2,0)),0) -> 0 | N11: =IFERROR($I11*INDEX(Func_Classif,MATCH($J11,Func_Factors!$C:$C,0),MATCH(Functionalization!N$3,Func_Factors!$G$2:$AA$2,0)),0) -> 0 | O11: =IFERROR($I11*INDEX(Func_Classif,MATCH($J11,Func_Factors!$C:$C,0),MATCH(Functionalization!O$3,Func_Factors!$G$2:$AA$2,0)),0) -> 0 | P11: =IFERROR($I11*INDEX(Func_Classif,MATCH($J11,Func_Factors!$C:$C,0),MATCH(Functionalization!P$3,Func_Factors!$G$2:$AA$2,0)),0) -> 0 | Q11: =IFERROR($I11*INDEX(Func_Classif,MATCH($J11,Func_Factors!$C:$C,0),MATCH(Functionalization!Q$3,Func_Factors!$G$2:$AA$2,0)),0) -> 0 | R11: =IFERROR($I11*INDEX(Func_Classif,MATCH($J11,Func_Factors!$C:$C,0),MATCH(Functionalization!R$3,Func_Factors!$G$2:$AA$2,0)),0) -> 0 | S11: =IFERROR($I11*INDEX(Func_Classif,MATCH($J11,Func_Factors!$C:$C,0),MATCH(Functionalization!S$3,Func_Factors!$G$2:$AA$2,0)),0) -> 0 | T11: =IFERROR($I11*INDEX(Func_Classif,MATCH($J11,Func_Factors!$C:$C,0),MATCH(Functionalization!T$3,Func_Factors!$G$2:$AA$2,0)),0) -> 0 | U11: =IFERROR($I11*INDEX(Func_Classif,MATCH($J11,Func_Factors!$C:$C,0),MATCH(Functionalization!U$3,Func_Factors!$G$2:$AA$2,0)),0) -> 0 | V11: =IFERROR($I11*INDEX(Func_Classif,MATCH($J11,Func_Factors!$C:$C,0),MATCH(Functionalization!V$3,Func_Factors!$G$2:$AA$2,0)),0) -> 0 | W11: =IFERROR($I11*INDEX(Func_Classif,MATCH($J11,Func_Factors!$C:$C,0),MATCH(Functionalization!W$3,Func_Factors!$G$2:$AA$2,0)),0) -> 0 | X11: =IFERROR($I11*INDEX(Func_Classif,MATCH($J11,Func_Factors!$C:$C,0),MATCH(Functionalization!X$3,Func_Factors!$G$2:$AA$2,0)),0) -> 0 | Y11: =IFERROR($I11*INDEX(Func_Classif,MATCH($J11,Func_Factors!$C:$C,0),MATCH(Functionalization!Y$3,Func_Factors!$G$2:$AA$2,0)),0) -> 0 | Z11: =IFERROR($I11*INDEX(Func_Classif,MATCH($J11,Func_Factors!$C:$C,0),MATCH(Functionalization!Z$3,Func_Factors!$G$2:$AA$2,0)),0) -> 0 | AA11: =IFERROR($I11*INDEX(Func_Classif,MATCH($J11,Func_Factors!$C:$C,0),MATCH(Functionalization!AA$3,Func_Factors!$G$2:$AA$2,0)),0) -> 0 | AB11: =IFERROR($I11*INDEX(Func_Classif,MATCH($J11,Func_Factors!$C:$C,0),MATCH(Functionalization!AB$3,Func_Factors!$G$2:$AA$2,0)),0) -> 0 | AC11: =IFERROR($I11*INDEX(Func_Classif,MATCH($J11,Func_Factors!$C:$C,0),MATCH(Functionalization!AC$3,Func_Factors!$G$2:$AA$2,0)),0) -> 0 | AE11: 0 | BA11: 513 | BB11: 41 | BC11: 0
B12: 7 | C12: Nuclear Production Net Plant - Acq Adj (First Chicago) | D12: 114 | E12: =+SUMIFS(Source_Mapping!$I:$I,Source_Mapping!$H:$H,Functionalization!$C12,Source_Mapping!$F:$F,Functionalization!$D12) -> 16779747.27 | G12: 16779747.27 | H12: R_DPRO | I12: =IFERROR($G12*INDEX(Func_Classif,MATCH($H12,Func_Factors!$C:$C,0),MATCH(Functionalization!I$3,Func_Factors!$G$2:$AA$2,0)),0) -> 16779747.27 | J12: PROD_D | L12: =IFERROR($I12*INDEX(Func_Classif,MATCH($J12,Func_Factors!$C:$C,0),MATCH(Functionalization!L$3,Func_Factors!$G$2:$AA$2,0)),0) -> 16779747.27 | M12: =IFERROR($I12*INDEX(Func_Classif,MATCH($J12,Func_Factors!$C:$C,0),MATCH(Functionalization!M$3,Func_Factors!$G$2:$AA$2,0)),0) -> 0 | N12: =IFERROR($I12*INDEX(Func_Classif,MATCH($J12,Func_Factors!$C:$C,0),MATCH(Functionalization!N$3,Func_Factors!$G$2:$AA$2,0)),0) -> 0 | O12: =IFERROR($I12*INDEX(Func_Classif,MATCH($J12,Func_Factors!$C:$C,0),MATCH(Functionalization!O$3,Func_Factors!$G$2:$AA$2,0)),0) -> 0 | P12: =IFERROR($I12*INDEX(Func_Classif,MATCH($J12,Func_Factors!$C:$C,0),MATCH(Functionalization!P$3,Func_Factors!$G$2:$AA$2,0)),0) -> 0 | Q12: =IFERROR($I12*INDEX(Func_Classif,MATCH($J12,Func_Factors!$C:$C,0),MATCH(Functionalization!Q$3,Func_Factors!$G$2:$AA$2,0)),0) -> 0 | R12: =IFERROR($I12*INDEX(Func_Classif,MATCH($J12,Func_Factors!$C:$C,0),MATCH(Functionalization!R$3,Func_Factors!$G$2:$AA$2,0)),0) -> 0 | S12: =IFERROR($I12*INDEX(Func_Classif,MATCH($J12,Func_Factors!$C:$C,0),MATCH(Functionalization!S$3,Func_Factors!$G$2:$AA$2,0)),0) -> 0 | T12: =IFERROR($I12*INDEX(Func_Classif,MATCH($J12,Func_Factors!$C:$C,0),MATCH(Functionalization!T$3,Func_Factors!$G$2:$AA$2,0)),0) -> 0 | U12: =IFERROR($I12*INDEX(Func_Classif,MATCH($J12,Func_Factors!$C:$C,0),MATCH(Functionalization!U$3,Func_Factors!$G$2:$AA$2,0)),0) -> 0 | V12: =IFERROR($I12*INDEX(Func_Classif,MATCH($J12,Func_Factors!$C:$C,0),MATCH(Functionalization!V$3,Func_Factors!$G$2:$AA$2,0)),0) -> 0 | W12: =IFERROR($I12*INDEX(Func_Classif,MATCH($J12,Func_Factors!$C:$C,0),MATCH(Functionalization!W$3,Func_Factors!$G$2:$AA$2,0)),0) -> 0 | X12: =IFERROR($I12*INDEX(Func_Classif,MATCH($J12,Func_Factors!$C:$C,0),MATCH(Functionalization!X$3,Func_Factors!$G$2:$AA$2,0)),0) -> 0 | Y12: =IFERROR($I12*INDEX(Func_Classif,MATCH($J12,Func_Factors!$C:$C,0),MATCH(Functionalization!Y$3,Func_Factors!$G$2:$AA$2,0)),0) -> 0 | Z12: =IFERROR($I12*INDEX(Func_Classif,MATCH($J12,Func_Factors!$C:$C,0),MATCH(Functionalization!Z$3,Func_Factors!$G$2:$AA$2,0)),0) -> 0 | AA12: =IFERROR($I12*INDEX(Func_Classif,MATCH($J12,Func_Factors!$C:$C,0),MATCH(Functionalization!AA$3,Func_Factors!$G$2:$AA$2,0)),0) -> 0 | AB12: =IFERROR($I12*INDEX(Func_Classif,MATCH($J12,Func_Factors!$C:$C,0),MATCH(Functionalization!AB$3,Func_Factors!$G$2:$AA$2,0)),0) -> 0 | AC12: =IFERROR($I12*INDEX(Func_Classif,MATCH($J12,Func_Factors!$C:$C,0),MATCH(Functionalization!AC$3,Func_Factors!$G$2:$AA$2,0)),0) -> 0 | AE12: 0 | BA12: 569 | BB12: 45 | BC12: 0
B13: 8 | C13: Other Production Plant - Gas & 40 MW Solar | D13: 101/106 | E13: =+SUMIFS(Source_Mapping!$I:$I,Source_Mapping!$H:$H,Functionalization!$C13,Source_Mapping!$F:$F,Functionalization!$D13) -> 377586968.5 | G13: 377586968.5 | H13: R_DPRO | I13: =IFERROR($G13*INDEX(Func_Classif,MATCH($H13,Func_Factors!$C:$C,0),MATCH(Functionalization!I$3,Func_Factors!$G$2:$AA$2,0)),0) -> 377586968.5 | J13: PROD_D | L13: =IFERROR($I13*INDEX(Func_Classif,MATCH($J13,Func_Factors!$C:$C,0),MATCH(Functionalization!L$3,Func_Factors!$G$2:$AA$2,0)),0) -> 377586968.5 | M13: =IFERROR($I13*INDEX(Func_Classif,MATCH($J13,Func_Factors!$C:$C,0),MATCH(Functionalization!M$3,Func_Factors!$G$2:$AA$2,0)),0) -> 0 | N13: =IFERROR($I13*INDEX(Func_Classif,MATCH($J13,Func_Factors!$C:$C,0),MATCH(Functionalization!N$3,Func_Factors!$G$2:$AA$2,0)),0) -> 0 | O13: =IFERROR($I13*INDEX(Func_Classif,MATCH($J13,Func_Factors!$C:$C,0),MATCH(Functionalization!O$3,Func_Factors!$G$2:$AA$2,0)),0) -> 0 | P13: =IFERROR($I13*INDEX(Func_Classif,MATCH($J13,Func_Factors!$C:$C,0),MATCH(Functionalization!P$3,Func_Factors!$G$2:$AA$2,0)),0) -> 0 | Q13: =IFERROR($I13*INDEX(Func_Classif,MATCH($J13,Func_Factors!$C:$C,0),MATCH(Functionalization!Q$3,Func_Factors!$G$2:$AA$2,0)),0) -> 0 | R13: =IFERROR($I13*INDEX(Func_Classif,MATCH($J13,Func_Factors!$C:$C,0),MATCH(Functionalization!R$3,Func_Factors!$G$2:$AA$2,0)),0) -> 0 | S13: =IFERROR($I13*INDEX(Func_Classif,MATCH($J13,Func_Factors!$C:$C,0),MATCH(Functionalization!S$3,Func_Factors!$G$2:$AA$2,0)),0) -> 0 | T13: =IFERROR($I13*INDEX(Func_Classif,MATCH($J13,Func_Factors!$C:$C,0),MATCH(Functionalization!T$3,Func_Factors!$G$2:$AA$2,0)),0) -> 0 | U13: =IFERROR($I13*INDEX(Func_Classif,MATCH($J13,Func_Factors!$C:$C,0),MATCH(Functionalization!U$3,Func_Factors!$G$2:$AA$2,0)),0) -> 0 | V13: =IFERROR($I13*INDEX(Func_Classif,MATCH($J13,Func_Factors!$C:$C,0),MATCH(Functionalization!V$3,Func_Factors!$G$2:$AA$2,0)),0) -> 0 | W13: =IFERROR($I13*INDEX(Func_Classif,MATCH($J13,Func_Factors!$C:$C,0),MATCH(Functionalization!W$3,Func_Factors!$G$2:$AA$2,0)),0) -> 0 | X13: =IFERROR($I13*INDEX(Func_Classif,MATCH($J13,Func_Factors!$C:$C,0),MATCH(Functionalization!X$3,Func_Factors!$G$2:$AA$2,0)),0) -> 0 | Y13: =IFERROR($I13*INDEX(Func_Classif,MATCH($J13,Func_Factors!$C:$C,0),MATCH(Functionalization!Y$3,Func_Factors!$G$2:$AA$2,0)),0) -> 0 | Z13: =IFERROR($I13*INDEX(Func_Classif,MATCH($J13,Func_Factors!$C:$C,0),MATCH(Functionalization!Z$3,Func_Factors!$G$2:$AA$2,0)),0) -> 0 | AA13: =IFERROR($I13*INDEX(Func_Classif,MATCH($J13,Func_Factors!$C:$C,0),MATCH(Functionalization!AA$3,Func_Factors!$G$2:$AA$2,0)),0) -> 0 | AB13: =IFERROR($I13*INDEX(Func_Classif,MATCH($J13,Func_Factors!$C:$C,0),MATCH(Functionalization!AB$3,Func_Factors!$G$2:$AA$2,0)),0) -> 0 | AC13: =IFERROR($I13*INDEX(Func_Classif,MATCH($J13,Func_Factors!$C:$C,0),MATCH(Functionalization!AC$3,Func_Factors!$G$2:$AA$2,0)),0) -> 0 | AE13: 0 | BA13: 622 | BB13: 49 | BC13: 0
B14: 9 | C14: Other Production Plant - Renewable | D14: 101/106 | E14: =+SUMIFS(Source_Mapping!$I:$I,Source_Mapping!$H:$H,Functionalization!$C14,Source_Mapping!$F:$F,Functionalization!$D14) -> 158530056.4 | G14: 158530056.4 | H14: R_EXRET | I14: =IFERROR($G14*INDEX(Func_Classif,MATCH($H14,Func_Factors!$C:$C,0),MATCH(Functionalization!I$3,Func_Factors!$G$2:$AA$2,0)),0) -> 0 | J14: PROD_D | L14: =IFERROR($I14*INDEX(Func_Classif,MATCH($J14,Func_Factors!$C:$C,0),MATCH(Functionalization!L$3,Func_Factors!$G$2:$AA$2,0)),0) -> 0 | M14: =IFERROR($I14*INDEX(Func_Classif,MATCH($J14,Func_Factors!$C:$C,0),MATCH(Functionalization!M$3,Func_Factors!$G$2:$AA$2,0)),0) -> 0 | N14: =IFERROR($I14*INDEX(Func_Classif,MATCH($J14,Func_Factors!$C:$C,0),MATCH(Functionalization!N$3,Func_Factors!$G$2:$AA$2,0)),0) -> 0 | O14: =IFERROR($I14*INDEX(Func_Classif,MATCH($J14,Func_Factors!$C:$C,0),MATCH(Functionalization!O$3,Func_Factors!$G$2:$AA$2,0)),0) -> 0 | P14: =IFERROR($I14*INDEX(Func_Classif,MATCH($J14,Func_Factors!$C:$C,0),MATCH(Functionalization!P$3,Func_Factors!$G$2:$AA$2,0)),0) -> 0 | Q14: =IFERROR($I14*INDEX(Func_Classif,MATCH($J14,Func_Factors!$C:$C,0),MATCH(Functionalization!Q$3,Func_Factors!$G$2:$AA$2,0)),0) -> 0 | R14: =IFERROR($I14*INDEX(Func_Classif,MATCH($J14,Func_Factors!$C:$C,0),MATCH(Functionalization!R$3,Func_Factors!$G$2:$AA$2,0)),0) -> 0 | S14: =IFERROR($I14*INDEX(Func_Classif,MATCH($J14,Func_Factors!$C:$C,0),MATCH(Functionalization!S$3,Func_Factors!$G$2:$AA$2,0)),0) -> 0 | T14: =IFERROR($I14*INDEX(Func_Classif,MATCH($J14,Func_Factors!$C:$C,0),MATCH(Functionalization!T$3,Func_Factors!$G$2:$AA$2,0)),0) -> 0 | U14: =IFERROR($I14*INDEX(Func_Classif,MATCH($J14,Func_Factors!$C:$C,0),MATCH(Functionalization!U$3,Func_Factors!$G$2:$AA$2,0)),0) -> 0 | V14: =IFERROR($I14*INDEX(Func_Classif,MATCH($J14,Func_Factors!$C:$C,0),MATCH(Functionalization!V$3,Func_Factors!$G$2:$AA$2,0)),0) -> 0 | W14: =IFERROR($I14*INDEX(Func_Classif,MATCH($J14,Func_Factors!$C:$C,0),MATCH(Functionalization!W$3,Func_Factors!$G$2:$AA$2,0)),0) -> 0 | X14: =IFERROR($I14*INDEX(Func_Classif,MATCH($J14,Func_Factors!$C:$C,0),MATCH(Functionalization!X$3,Func_Factors!$G$2:$AA$2,0)),0) -> 0 | Y14: =IFERROR($I14*INDEX(Func_Classif,MATCH($J14,Func_Factors!$C:$C,0),MATCH(Functionalization!Y$3,Func_Factors!$G$2:$AA$2,0)),0) -> 0 | Z14: =IFERROR($I14*INDEX(Func_Classif,MATCH($J14,Func_Factors!$C:$C,0),MATCH(Functionalization!Z$3,Func_Factors!$G$2:$AA$2,0)),0) -> 0 | AA14: =IFERROR($I14*INDEX(Func_Classif,MATCH($J14,Func_Factors!$C:$C,0),MATCH(Functionalization!AA$3,Func_Factors!$G$2:$AA$2,0)),0) -> 0 | AB14: =IFERROR($I14*INDEX(Func_Classif,MATCH($J14,Func_Factors!$C:$C,0),MATCH(Functionalization!AB$3,Func_Factors!$G$2:$AA$2,0)),0) -> 0 | AC14: =IFERROR($I14*INDEX(Func_Classif,MATCH($J14,Func_Factors!$C:$C,0),MATCH(Functionalization!AC$3,Func_Factors!$G$2:$AA$2,0)),0) -> 0 | AE14: 0 | BA14: 666 | BB14: 53 | BC14: 0
B15: =IF(BC15=1,1,B14+1) -> 10 | C15: TOTAL NET PRODUCTION PLANT | E15: =+SUM(E9:E14) -> 1130983263 | G15: =+SUM(G9:G14) -> 1130983263 | I15: =+SUM(I9:I14) -> 972453206.2 | L15: =+SUM(L9:L14) -> 972453206.2 | M15: 0 | N15: 0 | O15: 0 | P15: 0 | Q15: 0 | R15: 0 | S15: 0 | T15: 0 | U15: 0 | V15: 0 | W15: 0 | X15: 0 | Y15: 0 | Z15: 0 | AA15: 0 | AB15: 0 | AC15: 0 | AE15: 0 | BA15: 716 | BB15: 57 | BC15: 0
B16: =IF(BC16=1,1,B15+1) -> 11 | BA16: 729 | BB16: =BB15+4 -> 61 | BC16: =IF(ISNA(MATCH(ROW(),BA$2:BA$38,0)),0,1) -> 0
B17: 12 | C17: NET PLANT BATTERY STORAGE | BA17: 774 | BB17: 65 | BC17: 0
B18: 13 | C18: Transmission Sited Batteries | D18: 101/106 | E18: =+SUMIFS(Source_Mapping!$I:$I,Source_Mapping!$H:$H,Functionalization!$C18,Source_Mapping!$F:$F,Functionalization!$D18) -> 20184418.42 | G18: =E18+F18 -> 20184418.42 | H18: R_DPRO | I18: =IFERROR($G18*INDEX(Func_Classif,MATCH($H18,Func_Factors!$C:$C,0),MATCH(Functionalization!I$3,Func_Factors!$G$2:$AA$2,0)),0) -> 20184418.42 | J18: STORAGE_Transmission Integrated | L18: =IFERROR($I18*INDEX(Func_Classif,MATCH($J18,Func_Factors!$C:$C,0),MATCH(Functionalization!L$3,Func_Factors!$G$2:$AA$2,0)),0) -> 0 | M18: =IFERROR($I18*INDEX(Func_Classif,MATCH($J18,Func_Factors!$C:$C,0),MATCH(Functionalization!M$3,Func_Factors!$G$2:$AA$2,0)),0) -> 0 | N18: =IFERROR($I18*INDEX(Func_Classif,MATCH($J18,Func_Factors!$C:$C,0),MATCH(Functionalization!N$3,Func_Factors!$G$2:$AA$2,0)),0) -> 0 | O18: =IFERROR($I18*INDEX(Func_Classif,MATCH($J18,Func_Factors!$C:$C,0),MATCH(Functionalization!O$3,Func_Factors!$G$2:$AA$2,0)),0) -> 13523560.34 | P18: =IFERROR($I18*INDEX(Func_Classif,MATCH($J18,Func_Factors!$C:$C,0),MATCH(Functionalization!P$3,Func_Factors!$G$2:$AA$2,0)),0) -> 6055325.527 | Q18: =IFERROR($I18*INDEX(Func_Classif,MATCH($J18,Func_Factors!$C:$C,0),MATCH(Functionalization!Q$3,Func_Factors!$G$2:$AA$2,0)),0) -> 201844.1842 | R18: =IFERROR($I18*INDEX(Func_Classif,MATCH($J18,Func_Factors!$C:$C,0),MATCH(Functionalization!R$3,Func_Factors!$G$2:$AA$2,0)),0) -> 201844.1842 | S18: =IFERROR($I18*INDEX(Func_Classif,MATCH($J18,Func_Factors!$C:$C,0),MATCH(Functionalization!S$3,Func_Factors!$G$2:$AA$2,0)),0) -> 201844.1842 | T18: =IFERROR($I18*INDEX(Func_Classif,MATCH($J18,Func_Factors!$C:$C,0),MATCH(Functionalization!T$3,Func_Factors!$G$2:$AA$2,0)),0) -> 0 | U18: =IFERROR($I18*INDEX(Func_Classif,MATCH($J18,Func_Factors!$C:$C,0),MATCH(Functionalization!U$3,Func_Factors!$G$2:$AA$2,0)),0) -> 0 | V18: =IFERROR($I18*INDEX(Func_Classif,MATCH($J18,Func_Factors!$C:$C,0),MATCH(Functionalization!V$3,Func_Factors!$G$2:$AA$2,0)),0) -> 0 | W18: =IFERROR($I18*INDEX(Func_Classif,MATCH($J18,Func_Factors!$C:$C,0),MATCH(Functionalization!W$3,Func_Factors!$G$2:$AA$2,0)),0) -> 0 | X18: =IFERROR($I18*INDEX(Func_Classif,MATCH($J18,Func_Factors!$C:$C,0),MATCH(Functionalization!X$3,Func_Factors!$G$2:$AA$2,0)),0) -> 0 | Y18: =IFERROR($I18*INDEX(Func_Classif,MATCH($J18,Func_Factors!$C:$C,0),MATCH(Functionalization!Y$3,Func_Factors!$G$2:$AA$2,0)),0) -> 0 | Z18: =IFERROR($I18*INDEX(Func_Classif,MATCH($J18,Func_Factors!$C:$C,0),MATCH(Functionalization!Z$3,Func_Factors!$G$2:$AA$2,0)),0) -> 0 | AA18: =IFERROR($I18*INDEX(Func_Classif,MATCH($J18,Func_Factors!$C:$C,0),MATCH(Functionalization!AA$3,Func_Factors!$G$2:$AA$2,0)),0) -> 0 | AB18: =IFERROR($I18*INDEX(Func_Classif,MATCH($J18,Func_Factors!$C:$C,0),MATCH(Functionalization!AB$3,Func_Factors!$G$2:$AA$2,0)),0) -> 0 | AC18: =IFERROR($I18*INDEX(Func_Classif,MATCH($J18,Func_Factors!$C:$C,0),MATCH(Functionalization!AC$3,Func_Factors!$G$2:$AA$2,0)),0) -> 0 | AE18: =I18-SUM(L18:AC18) -> 0 | BA18: 798 | BB18: 69 | BC18: 0
B19: 14 | C19: Distribution Sited Batteries | D19: 101/106 | E19: =+SUMIFS(Source_Mapping!$I:$I,Source_Mapping!$H:$H,Functionalization!$C19,Source_Mapping!$F:$F,Functionalization!$D19) -> 26727982.81 | G19: =E19+F19 -> 26727982.81 | H19: R_DPRO | I19: =IFERROR($G19*INDEX(Func_Classif,MATCH($H19,Func_Factors!$C:$C,0),MATCH(Functionalization!I$3,Func_Factors!$G$2:$AA$2,0)),0) -> 26727982.81 | J19: STORAGE_Distribution Integrated | L19: =IFERROR($I19*INDEX(Func_Classif,MATCH($J19,Func_Factors!$C:$C,0),MATCH(Functionalization!L$3,Func_Factors!$G$2:$AA$2,0)),0) -> 0 | M19: =IFERROR($I19*INDEX(Func_Classif,MATCH($J19,Func_Factors!$C:$C,0),MATCH(Functionalization!M$3,Func_Factors!$G$2:$AA$2,0)),0) -> 0 | N19: =IFERROR($I19*INDEX(Func_Classif,MATCH($J19,Func_Factors!$C:$C,0),MATCH(Functionalization!N$3,Func_Factors!$G$2:$AA$2,0)),0) -> 0 | O19: =IFERROR($I19*INDEX(Func_Classif,MATCH($J19,Func_Factors!$C:$C,0),MATCH(Functionalization!O$3,Func_Factors!$G$2:$AA$2,0)),0) -> 18709587.97 | P19: =IFERROR($I19*INDEX(Func_Classif,MATCH($J19,Func_Factors!$C:$C,0),MATCH(Functionalization!P$3,Func_Factors!$G$2:$AA$2,0)),0) -> 0 | Q19: =IFERROR($I19*INDEX(Func_Classif,MATCH($J19,Func_Factors!$C:$C,0),MATCH(Functionalization!Q$3,Func_Factors!$G$2:$AA$2,0)),0) -> 1619603.432 | R19: =IFERROR($I19*INDEX(Func_Classif,MATCH($J19,Func_Factors!$C:$C,0),MATCH(Functionalization!R$3,Func_Factors!$G$2:$AA$2,0)),0) -> 6398791.41 | S19: =IFERROR($I19*INDEX(Func_Classif,MATCH($J19,Func_Factors!$C:$C,0),MATCH(Functionalization!S$3,Func_Factors!$G$2:$AA$2,0)),0) -> 0 | T19: =IFERROR($I19*INDEX(Func_Classif,MATCH($J19,Func_Factors!$C:$C,0),MATCH(Functionalization!T$3,Func_Factors!$G$2:$AA$2,0)),0) -> 0 | U19: =IFERROR($I19*INDEX(Func_Classif,MATCH($J19,Func_Factors!$C:$C,0),MATCH(Functionalization!U$3,Func_Factors!$G$2:$AA$2,0)),0) -> 0 | V19: =IFERROR($I19*INDEX(Func_Classif,MATCH($J19,Func_Factors!$C:$C,0),MATCH(Functionalization!V$3,Func_Factors!$G$2:$AA$2,0)),0) -> 0 | W19: =IFERROR($I19*INDEX(Func_Classif,MATCH($J19,Func_Factors!$C:$C,0),MATCH(Functionalization!W$3,Func_Factors!$G$2:$AA$2,0)),0) -> 0 | X19: =IFERROR($I19*INDEX(Func_Classif,MATCH($J19,Func_Factors!$C:$C,0),MATCH(Functionalization!X$3,Func_Factors!$G$2:$AA$2,0)),0) -> 0 | Y19: =IFERROR($I19*INDEX(Func_Classif,MATCH($J19,Func_Factors!$C:$C,0),MATCH(Functionalization!Y$3,Func_Factors!$G$2:$AA$2,0)),0) -> 0 | Z19: =IFERROR($I19*INDEX(Func_Classif,MATCH($J19,Func_Factors!$C:$C,0),MATCH(Functionalization!Z$3,Func_Factors!$G$2:$AA$2,0)),0) -> 0 | AA19: =IFERROR($I19*INDEX(Func_Classif,MATCH($J19,Func_Factors!$C:$C,0),MATCH(Functionalization!AA$3,Func_Factors!$G$2:$AA$2,0)),0) -> 0 | AB19: =IFERROR($I19*INDEX(Func_Classif,MATCH($J19,Func_Factors!$C:$C,0),MATCH(Functionalization!AB$3,Func_Factors!$G$2:$AA$2,0)),0) -> 0 | AC19: =IFERROR($I19*INDEX(Func_Classif,MATCH($J19,Func_Factors!$C:$C,0),MATCH(Functionalization!AC$3,Func_Factors!$G$2:$AA$2,0)),0) -> 0 | AE19: 0 | BB19: 73 | BC19: 0
B20: 15 | C20: TOTAL BATTERY STORAGE NET PLANT | E20: =SUM(E18:E19) -> 46912401.23 | G20: =SUM(G18:G19) -> 46912401.23 | I20: =SUM(I18:I19) -> 46912401.23 | L20: =SUM(L18:L19) -> 0 | M20: 0 | N20: 0 | O20: 32233148.31 | P20: 6055325.527 | Q20: 1821447.617 | R20: 6600635.594 | S20: 201844.1842 | T20: 0 | U20: 0 | V20: 0 | W20: 0 | X20: 0 | Y20: 0 | Z20: 0 | AA20: 0 | AB20: 0 | AC20: 0 | AE20: 0 | BB20: 77 | BC20: 0
B21: 16 | BB21: 81 | BC21: 0
B22: 17 | C22: NET TRANSMISSION PLANT | BB22: 85 | BC22: 0
B23: 18 | C23: Step-Up Transformers & Generation Interconnections | D23: 101/106 | E23: =+SUMIFS(Source_Mapping!$I:$I,Source_Mapping!$H:$H,Functionalization!$C23,Source_Mapping!$F:$F,Functionalization!$D23) -> 4119928.214 | G23: 4119928.214 | H23: R_DPRO | I23: =IFERROR($G23*INDEX(Func_Classif,MATCH($H23,Func_Factors!$C:$C,0),MATCH(Functionalization!I$3,Func_Factors!$G$2:$AA$2,0)),0) -> 4119928.214 | J23: TRAN_D | L23: =IFERROR($I23*INDEX(Func_Classif,MATCH($J23,Func_Factors!$C:$C,0),MATCH(Functionalization!L$3,Func_Factors!$G$2:$AA$2,0)),0) -> 0 | M23: =IFERROR($I23*INDEX(Func_Classif,MATCH($J23,Func_Factors!$C:$C,0),MATCH(Functionalization!M$3,Func_Factors!$G$2:$AA$2,0)),0) -> 0 | N23: =IFERROR($I23*INDEX(Func_Classif,MATCH($J23,Func_Factors!$C:$C,0),MATCH(Functionalization!N$3,Func_Factors!$G$2:$AA$2,0)),0) -> 0 | O23: =IFERROR($I23*INDEX(Func_Classif,MATCH($J23,Func_Factors!$C:$C,0),MATCH(Functionalization!O$3,Func_Factors!$G$2:$AA$2,0)),0) -> 0 | P23: =IFERROR($I23*INDEX(Func_Classif,MATCH($J23,Func_Factors!$C:$C,0),MATCH(Functionalization!P$3,Func_Factors!$G$2:$AA$2,0)),0) -> 0 | Q23: =IFERROR($I23*INDEX(Func_Classif,MATCH($J23,Func_Factors!$C:$C,0),MATCH(Functionalization!Q$3,Func_Factors!$G$2:$AA$2,0)),0) -> 0 | R23: =IFERROR($I23*INDEX(Func_Classif,MATCH($J23,Func_Factors!$C:$C,0),MATCH(Functionalization!R$3,Func_Factors!$G$2:$AA$2,0)),0) -> 0 | S23: =IFERROR($I23*INDEX(Func_Classif,MATCH($J23,Func_Factors!$C:$C,0),MATCH(Functionalization!S$3,Func_Factors!$G$2:$AA$2,0)),0) -> 0 | T23: =IFERROR($I23*INDEX(Func_Classif,MATCH($J23,Func_Factors!$C:$C,0),MATCH(Functionalization!T$3,Func_Factors!$G$2:$AA$2,0)),0) -> 4119928.214 | U23: =IFERROR($I23*INDEX(Func_Classif,MATCH($J23,Func_Factors!$C:$C,0),MATCH(Functionalization!U$3,Func_Factors!$G$2:$AA$2,0)),0) -> 0 | V23: =IFERROR($I23*INDEX(Func_Classif,MATCH($J23,Func_Factors!$C:$C,0),MATCH(Functionalization!V$3,Func_Factors!$G$2:$AA$2,0)),0) -> 0 | W23: =IFERROR($I23*INDEX(Func_Classif,MATCH($J23,Func_Factors!$C:$C,0),MATCH(Functionalization!W$3,Func_Factors!$G$2:$AA$2,0)),0) -> 0 | X23: =IFERROR($I23*INDEX(Func_Classif,MATCH($J23,Func_Factors!$C:$C,0),MATCH(Functionalization!X$3,Func_Factors!$G$2:$AA$2,0)),0) -> 0 | Y23: =IFERROR($I23*INDEX(Func_Classif,MATCH($J23,Func_Factors!$C:$C,0),MATCH(Functionalization!Y$3,Func_Factors!$G$2:$AA$2,0)),0) -> 0 | Z23: =IFERROR($I23*INDEX(Func_Classif,MATCH($J23,Func_Factors!$C:$C,0),MATCH(Functionalization!Z$3,Func_Factors!$G$2:$AA$2,0)),0) -> 0 | AA23: =IFERROR($I23*INDEX(Func_Classif,MATCH($J23,Func_Factors!$C:$C,0),MATCH(Functionalization!AA$3,Func_Factors!$G$2:$AA$2,0)),0) -> 0 | AB23: =IFERROR($I23*INDEX(Func_Classif,MATCH($J23,Func_Factors!$C:$C,0),MATCH(Functionalization!AB$3,Func_Factors!$G$2:$AA$2,0)),0) -> 0 | AC23: =IFERROR($I23*INDEX(Func_Classif,MATCH($J23,Func_Factors!$C:$C,0),MATCH(Functionalization!AC$3,Func_Factors!$G$2:$AA$2,0)),0) -> 0 | AE23: =I23-SUM(L23:AC23) -> 0 | BB23: 89 | BC23: 0
B24: 19 | C24: Transmission System Net Plant - Allocated | D24: 101/106 | E24: =+SUMIFS(Source_Mapping!$I:$I,Source_Mapping!$H:$H,Functionalization!$C24,Source_Mapping!$F:$F,Functionalization!$D24) -> 1250054434 | G24: 1250054434 | H24: R_DTRA | I24: =IFERROR($G24*INDEX(Func_Classif,MATCH($H24,Func_Factors!$C:$C,0),MATCH(Functionalization!I$3,Func_Factors!$G$2:$AA$2,0)),0) -> 556621000.9 | J24: TRAN_D | L24: =IFERROR($I24*INDEX(Func_Classif,MATCH($J24,Func_Factors!$C:$C,0),MATCH(Functionalization!L$3,Func_Factors!$G$2:$AA$2,0)),0) -> 0 | M24: =IFERROR($I24*INDEX(Func_Classif,MATCH($J24,Func_Factors!$C:$C,0),MATCH(Functionalization!M$3,Func_Factors!$G$2:$AA$2,0)),0) -> 0 | N24: =IFERROR($I24*INDEX(Func_Classif,MATCH($J24,Func_Factors!$C:$C,0),MATCH(Functionalization!N$3,Func_Factors!$G$2:$AA$2,0)),0) -> 0 | O24: =IFERROR($I24*INDEX(Func_Classif,MATCH($J24,Func_Factors!$C:$C,0),MATCH(Functionalization!O$3,Func_Factors!$G$2:$AA$2,0)),0) -> 0 | P24: =IFERROR($I24*INDEX(Func_Classif,MATCH($J24,Func_Factors!$C:$C,0),MATCH(Functionalization!P$3,Func_Factors!$G$2:$AA$2,0)),0) -> 0 | Q24: =IFERROR($I24*INDEX(Func_Classif,MATCH($J24,Func_Factors!$C:$C,0),MATCH(Functionalization!Q$3,Func_Factors!$G$2:$AA$2,0)),0) -> 0 | R24: =IFERROR($I24*INDEX(Func_Classif,MATCH($J24,Func_Factors!$C:$C,0),MATCH(Functionalization!R$3,Func_Factors!$G$2:$AA$2,0)),0) -> 0 | S24: =IFERROR($I24*INDEX(Func_Classif,MATCH($J24,Func_Factors!$C:$C,0),MATCH(Functionalization!S$3,Func_Factors!$G$2:$AA$2,0)),0) -> 0 | T24: =IFERROR($I24*INDEX(Func_Classif,MATCH($J24,Func_Factors!$C:$C,0),MATCH(Functionalization!T$3,Func_Factors!$G$2:$AA$2,0)),0) -> 556621000.9 | U24: =IFERROR($I24*INDEX(Func_Classif,MATCH($J24,Func_Factors!$C:$C,0),MATCH(Functionalization!U$3,Func_Factors!$G$2:$AA$2,0)),0) -> 0 | V24: =IFERROR($I24*INDEX(Func_Classif,MATCH($J24,Func_Factors!$C:$C,0),MATCH(Functionalization!V$3,Func_Factors!$G$2:$AA$2,0)),0) -> 0 | W24: =IFERROR($I24*INDEX(Func_Classif,MATCH($J24,Func_Factors!$C:$C,0),MATCH(Functionalization!W$3,Func_Factors!$G$2:$AA$2,0)),0) -> 0 | X24: =IFERROR($I24*INDEX(Func_Classif,MATCH($J24,Func_Factors!$C:$C,0),MATCH(Functionalization!X$3,Func_Factors!$G$2:$AA$2,0)),0) -> 0 | Y24: =IFERROR($I24*INDEX(Func_Classif,MATCH($J24,Func_Factors!$C:$C,0),MATCH(Functionalization!Y$3,Func_Factors!$G$2:$AA$2,0)),0) -> 0 | Z24: =IFERROR($I24*INDEX(Func_Classif,MATCH($J24,Func_Factors!$C:$C,0),MATCH(Functionalization!Z$3,Func_Factors!$G$2:$AA$2,0)),0) -> 0 | AA24: =IFERROR($I24*INDEX(Func_Classif,MATCH($J24,Func_Factors!$C:$C,0),MATCH(Functionalization!AA$3,Func_Factors!$G$2:$AA$2,0)),0) -> 0 | AB24: =IFERROR($I24*INDEX(Func_Classif,MATCH($J24,Func_Factors!$C:$C,0),MATCH(Functionalization!AB$3,Func_Factors!$G$2:$AA$2,0)),0) -> 0 | AC24: =IFERROR($I24*INDEX(Func_Classif,MATCH($J24,Func_Factors!$C:$C,0),MATCH(Functionalization!AC$3,Func_Factors!$G$2:$AA$2,0)),0) -> 0 | AE24: 0 | BB24: 93 | BC24: 0
B25: 20 | C25: Transmission System Net Plant - FERC Incremental Rates | D25: 101/106 | E25: =+SUMIFS(Source_Mapping!$I:$I,Source_Mapping!$H:$H,Functionalization!$C25,Source_Mapping!$F:$F,Functionalization!$D25) -> 337397140.9 | G25: 337397140.9 | H25: R_EXRET | I25: =IFERROR($G25*INDEX(Func_Classif,MATCH($H25,Func_Factors!$C:$C,0),MATCH(Functionalization!I$3,Func_Factors!$G$2:$AA$2,0)),0) -> 0 | J25: TRAN_D | L25: =IFERROR($I25*INDEX(Func_Classif,MATCH($J25,Func_Factors!$C:$C,0),MATCH(Functionalization!L$3,Func_Factors!$G$2:$AA$2,0)),0) -> 0 | M25: =IFERROR($I25*INDEX(Func_Classif,MATCH($J25,Func_Factors!$C:$C,0),MATCH(Functionalization!M$3,Func_Factors!$G$2:$AA$2,0)),0) -> 0 | N25: =IFERROR($I25*INDEX(Func_Classif,MATCH($J25,Func_Factors!$C:$C,0),MATCH(Functionalization!N$3,Func_Factors!$G$2:$AA$2,0)),0) -> 0 | O25: =IFERROR($I25*INDEX(Func_Classif,MATCH($J25,Func_Factors!$C:$C,0),MATCH(Functionalization!O$3,Func_Factors!$G$2:$AA$2,0)),0) -> 0 | P25: =IFERROR($I25*INDEX(Func_Classif,MATCH($J25,Func_Factors!$C:$C,0),MATCH(Functionalization!P$3,Func_Factors!$G$2:$AA$2,0)),0) -> 0 | Q25: =IFERROR($I25*INDEX(Func_Classif,MATCH($J25,Func_Factors!$C:$C,0),MATCH(Functionalization!Q$3,Func_Factors!$G$2:$AA$2,0)),0) -> 0 | R25: =IFERROR($I25*INDEX(Func_Classif,MATCH($J25,Func_Factors!$C:$C,0),MATCH(Functionalization!R$3,Func_Factors!$G$2:$AA$2,0)),0) -> 0 | S25: =IFERROR($I25*INDEX(Func_Classif,MATCH($J25,Func_Factors!$C:$C,0),MATCH(Functionalization!S$3,Func_Factors!$G$2:$AA$2,0)),0) -> 0 | T25: =IFERROR($I25*INDEX(Func_Classif,MATCH($J25,Func_Factors!$C:$C,0),MATCH(Functionalization!T$3,Func_Factors!$G$2:$AA$2,0)),0) -> 0 | U25: =IFERROR($I25*INDEX(Func_Classif,MATCH($J25,Func_Factors!$C:$C,0),MATCH(Functionalization!U$3,Func_Factors!$G$2:$AA$2,0)),0) -> 0 | V25: =IFERROR($I25*INDEX(Func_Classif,MATCH($J25,Func_Factors!$C:$C,0),MATCH(Functionalization!V$3,Func_Factors!$G$2:$AA$2,0)),0) -> 0 | W25: =IFERROR($I25*INDEX(Func_Classif,MATCH($J25,Func_Factors!$C:$C,0),MATCH(Functionalization!W$3,Func_Factors!$G$2:$AA$2,0)),0) -> 0 | X25: =IFERROR($I25*INDEX(Func_Classif,MATCH($J25,Func_Factors!$C:$C,0),MATCH(Functionalization!X$3,Func_Factors!$G$2:$AA$2,0)),0) -> 0 | Y25: =IFERROR($I25*INDEX(Func_Classif,MATCH($J25,Func_Factors!$C:$C,0),MATCH(Functionalization!Y$3,Func_Factors!$G$2:$AA$2,0)),0) -> 0 | Z25: =IFERROR($I25*INDEX(Func_Classif,MATCH($J25,Func_Factors!$C:$C,0),MATCH(Functionalization!Z$3,Func_Factors!$G$2:$AA$2,0)),0) -> 0 | AA25: =IFERROR($I25*INDEX(Func_Classif,MATCH($J25,Func_Factors!$C:$C,0),MATCH(Functionalization!AA$3,Func_Factors!$G$2:$AA$2,0)),0) -> 0 | AB25: =IFERROR($I25*INDEX(Func_Classif,MATCH($J25,Func_Factors!$C:$C,0),MATCH(Functionalization!AB$3,Func_Factors!$G$2:$AA$2,0)),0) -> 0 | AC25: =IFERROR($I25*INDEX(Func_Classif,MATCH($J25,Func_Factors!$C:$C,0),MATCH(Functionalization!AC$3,Func_Factors!$G$2:$AA$2,0)),0) -> 0 | AE25: 0 | BB25: 97 | BC25: 0
B26: 21 | C26: Transmission System Net Plant - Dedicated Retail | D26: 101/106 | E26: =+SUMIFS(Source_Mapping!$I:$I,Source_Mapping!$H:$H,Functionalization!$C26,Source_Mapping!$F:$F,Functionalization!$D26) -> 6005891.411 | G26: 6005891.411 | H26: R_DIR | I26: =IFERROR($G26*INDEX(Func_Classif,MATCH($H26,Func_Factors!$C:$C,0),MATCH(Functionalization!I$3,Func_Factors!$G$2:$AA$2,0)),0) -> 6005891.411 | J26: TRAN_D | L26: =IFERROR($I26*INDEX(Func_Classif,MATCH($J26,Func_Factors!$C:$C,0),MATCH(Functionalization!L$3,Func_Factors!$G$2:$AA$2,0)),0) -> 0 | M26: =IFERROR($I26*INDEX(Func_Classif,MATCH($J26,Func_Factors!$C:$C,0),MATCH(Functionalization!M$3,Func_Factors!$G$2:$AA$2,0)),0) -> 0 | N26: =IFERROR($I26*INDEX(Func_Classif,MATCH($J26,Func_Factors!$C:$C,0),MATCH(Functionalization!N$3,Func_Factors!$G$2:$AA$2,0)),0) -> 0 | O26: =IFERROR($I26*INDEX(Func_Classif,MATCH($J26,Func_Factors!$C:$C,0),MATCH(Functionalization!O$3,Func_Factors!$G$2:$AA$2,0)),0) -> 0 | P26: =IFERROR($I26*INDEX(Func_Classif,MATCH($J26,Func_Factors!$C:$C,0),MATCH(Functionalization!P$3,Func_Factors!$G$2:$AA$2,0)),0) -> 0 | Q26: =IFERROR($I26*INDEX(Func_Classif,MATCH($J26,Func_Factors!$C:$C,0),MATCH(Functionalization!Q$3,Func_Factors!$G$2:$AA$2,0)),0) -> 0 | R26: =IFERROR($I26*INDEX(Func_Classif,MATCH($J26,Func_Factors!$C:$C,0),MATCH(Functionalization!R$3,Func_Factors!$G$2:$AA$2,0)),0) -> 0 | S26: =IFERROR($I26*INDEX(Func_Classif,MATCH($J26,Func_Factors!$C:$C,0),MATCH(Functionalization!S$3,Func_Factors!$G$2:$AA$2,0)),0) -> 0 | T26: =IFERROR($I26*INDEX(Func_Classif,MATCH($J26,Func_Factors!$C:$C,0),MATCH(Functionalization!T$3,Func_Factors!$G$2:$AA$2,0)),0) -> 6005891.411 | U26: =IFERROR($I26*INDEX(Func_Classif,MATCH($J26,Func_Factors!$C:$C,0),MATCH(Functionalization!U$3,Func_Factors!$G$2:$AA$2,0)),0) -> 0 | V26: =IFERROR($I26*INDEX(Func_Classif,MATCH($J26,Func_Factors!$C:$C,0),MATCH(Functionalization!V$3,Func_Factors!$G$2:$AA$2,0)),0) -> 0 | W26: =IFERROR($I26*INDEX(Func_Classif,MATCH($J26,Func_Factors!$C:$C,0),MATCH(Functionalization!W$3,Func_Factors!$G$2:$AA$2,0)),0) -> 0 | X26: =IFERROR($I26*INDEX(Func_Classif,MATCH($J26,Func_Factors!$C:$C,0),MATCH(Functionalization!X$3,Func_Factors!$G$2:$AA$2,0)),0) -> 0 | Y26: =IFERROR($I26*INDEX(Func_Classif,MATCH($J26,Func_Factors!$C:$C,0),MATCH(Functionalization!Y$3,Func_Factors!$G$2:$AA$2,0)),0) -> 0 | Z26: =IFERROR($I26*INDEX(Func_Classif,MATCH($J26,Func_Factors!$C:$C,0),MATCH(Functionalization!Z$3,Func_Factors!$G$2:$AA$2,0)),0) -> 0 | AA26: =IFERROR($I26*INDEX(Func_Classif,MATCH($J26,Func_Factors!$C:$C,0),MATCH(Functionalization!AA$3,Func_Factors!$G$2:$AA$2,0)),0) -> 0 | AB26: =IFERROR($I26*INDEX(Func_Classif,MATCH($J26,Func_Factors!$C:$C,0),MATCH(Functionalization!AB$3,Func_Factors!$G$2:$AA$2,0)),0) -> 0 | AC26: =IFERROR($I26*INDEX(Func_Classif,MATCH($J26,Func_Factors!$C:$C,0),MATCH(Functionalization!AC$3,Func_Factors!$G$2:$AA$2,0)),0) -> 0 | AE26: 0 | BB26: 101 | BC26: 0
B27: 22 | C27: Transmission System Net Plant - Acq Adj (EIP) | D27: 114 | E27: =+SUMIFS(Source_Mapping!$I:$I,Source_Mapping!$H:$H,Functionalization!$C27,Source_Mapping!$F:$F,Functionalization!$D27) -> 78879.96385 | G27: 78879.96385 | H27: R_DTRA | I27: =IFERROR($G27*INDEX(Func_Classif,MATCH($H27,Func_Factors!$C:$C,0),MATCH(Functionalization!I$3,Func_Factors!$G$2:$AA$2,0)),0) -> 35123.46601 | J27: TRAN_D | L27: =IFERROR($I27*INDEX(Func_Classif,MATCH($J27,Func_Factors!$C:$C,0),MATCH(Functionalization!L$3,Func_Factors!$G$2:$AA$2,0)),0) -> 0 | M27: =IFERROR($I27*INDEX(Func_Classif,MATCH($J27,Func_Factors!$C:$C,0),MATCH(Functionalization!M$3,Func_Factors!$G$2:$AA$2,0)),0) -> 0 | N27: =IFERROR($I27*INDEX(Func_Classif,MATCH($J27,Func_Factors!$C:$C,0),MATCH(Functionalization!N$3,Func_Factors!$G$2:$AA$2,0)),0) -> 0 | O27: =IFERROR($I27*INDEX(Func_Classif,MATCH($J27,Func_Factors!$C:$C,0),MATCH(Functionalization!O$3,Func_Factors!$G$2:$AA$2,0)),0) -> 0 | P27: =IFERROR($I27*INDEX(Func_Classif,MATCH($J27,Func_Factors!$C:$C,0),MATCH(Functionalization!P$3,Func_Factors!$G$2:$AA$2,0)),0) -> 0 | Q27: =IFERROR($I27*INDEX(Func_Classif,MATCH($J27,Func_Factors!$C:$C,0),MATCH(Functionalization!Q$3,Func_Factors!$G$2:$AA$2,0)),0) -> 0 | R27: =IFERROR($I27*INDEX(Func_Classif,MATCH($J27,Func_Factors!$C:$C,0),MATCH(Functionalization!R$3,Func_Factors!$G$2:$AA$2,0)),0) -> 0 | S27: =IFERROR($I27*INDEX(Func_Classif,MATCH($J27,Func_Factors!$C:$C,0),MATCH(Functionalization!S$3,Func_Factors!$G$2:$AA$2,0)),0) -> 0 | T27: =IFERROR($I27*INDEX(Func_Classif,MATCH($J27,Func_Factors!$C:$C,0),MATCH(Functionalization!T$3,Func_Factors!$G$2:$AA$2,0)),0) -> 35123.46601 | U27: =IFERROR($I27*INDEX(Func_Classif,MATCH($J27,Func_Factors!$C:$C,0),MATCH(Functionalization!U$3,Func_Factors!$G$2:$AA$2,0)),0) -> 0 | V27: =IFERROR($I27*INDEX(Func_Classif,MATCH($J27,Func_Factors!$C:$C,0),MATCH(Functionalization!V$3,Func_Factors!$G$2:$AA$2,0)),0) -> 0 | W27: =IFERROR($I27*INDEX(Func_Classif,MATCH($J27,Func_Factors!$C:$C,0),MATCH(Functionalization!W$3,Func_Factors!$G$2:$AA$2,0)),0) -> 0 | X27: =IFERROR($I27*INDEX(Func_Classif,MATCH($J27,Func_Factors!$C:$C,0),MATCH(Functionalization!X$3,Func_Factors!$G$2:$AA$2,0)),0) -> 0 | Y27: =IFERROR($I27*INDEX(Func_Classif,MATCH($J27,Func_Factors!$C:$C,0),MATCH(Functionalization!Y$3,Func_Factors!$G$2:$AA$2,0)),0) -> 0 | Z27: =IFERROR($I27*INDEX(Func_Classif,MATCH($J27,Func_Factors!$C:$C,0),MATCH(Functionalization!Z$3,Func_Factors!$G$2:$AA$2,0)),0) -> 0 | AA27: =IFERROR($I27*INDEX(Func_Classif,MATCH($J27,Func_Factors!$C:$C,0),MATCH(Functionalization!AA$3,Func_Factors!$G$2:$AA$2,0)),0) -> 0 | AB27: =IFERROR($I27*INDEX(Func_Classif,MATCH($J27,Func_Factors!$C:$C,0),MATCH(Functionalization!AB$3,Func_Factors!$G$2:$AA$2,0)),0) -> 0 | AC27: =IFERROR($I27*INDEX(Func_Classif,MATCH($J27,Func_Factors!$C:$C,0),MATCH(Functionalization!AC$3,Func_Factors!$G$2:$AA$2,0)),0) -> 0 | AE27: 0 | BB27: 105 | BC27: 0
B28: 23 | C28: TOTAL NET TRANSMISSION PLANT | E28: =SUM(E23:E27) -> 1597656275 | G28: =SUM(G23:G27) -> 1597656275 | I28: =SUM(I23:I27) -> 566781944 | L28: =SUM(L23:L27) -> 0 | M28: 0 | N28: 0 | O28: 0 | P28: 0 | Q28: 0 | R28: 0 | S28: 0 | T28: 566781944 | U28: 0 | V28: 0 | W28: 0 | X28: 0 | Y28: 0 | Z28: 0 | AA28: 0 | AB28: 0 | AC28: 0 | AE28: 0 | BB28: 109 | BC28: =IF(ISNA(MATCH(ROW(),BA$2:BA$38,0)),0,1) -> 0
B29: 24 | BB29: 113 | BC29: 0
B30: 25 | C30: NET DISTRIBUTION PLANT | BC30: 0
B31: 26 | C31: Distribution Substations Net Plant - PNM | D31: 101/106 | E31: =+SUMIFS(Source_Mapping!$I:$I,Source_Mapping!$H:$H,Functionalization!$C31,Source_Mapping!$F:$F,Functionalization!$D31) -> 199695244.1 | G31: 199695244.1 | H31: R_DIR | I31: =IFERROR($G31*INDEX(Func_Classif,MATCH($H31,Func_Factors!$C:$C,0),MATCH(Functionalization!I$3,Func_Factors!$G$2:$AA$2,0)),0) -> 199695244.1 | J31: DIST_D_SUBS | L31: =IFERROR($I31*INDEX(Func_Classif,MATCH($J31,Func_Factors!$C:$C,0),MATCH(Functionalization!L$3,Func_Factors!$G$2:$AA$2,0)),0) -> 0 | M31: =IFERROR($I31*INDEX(Func_Classif,MATCH($J31,Func_Factors!$C:$C,0),MATCH(Functionalization!M$3,Func_Factors!$G$2:$AA$2,0)),0) -> 0 | N31: =IFERROR($I31*INDEX(Func_Classif,MATCH($J31,Func_Factors!$C:$C,0),MATCH(Functionalization!N$3,Func_Factors!$G$2:$AA$2,0)),0) -> 0 | O31: =IFERROR($I31*INDEX(Func_Classif,MATCH($J31,Func_Factors!$C:$C,0),MATCH(Functionalization!O$3,Func_Factors!$G$2:$AA$2,0)),0) -> 0 | P31: =IFERROR($I31*INDEX(Func_Classif,MATCH($J31,Func_Factors!$C:$C,0),MATCH(Functionalization!P$3,Func_Factors!$G$2:$AA$2,0)),0) -> 0 | Q31: =IFERROR($I31*INDEX(Func_Classif,MATCH($J31,Func_Factors!$C:$C,0),MATCH(Functionalization!Q$3,Func_Factors!$G$2:$AA$2,0)),0) -> 0 | R31: =IFERROR($I31*INDEX(Func_Classif,MATCH($J31,Func_Factors!$C:$C,0),MATCH(Functionalization!R$3,Func_Factors!$G$2:$AA$2,0)),0) -> 0 | S31: =IFERROR($I31*INDEX(Func_Classif,MATCH($J31,Func_Factors!$C:$C,0),MATCH(Functionalization!S$3,Func_Factors!$G$2:$AA$2,0)),0) -> 0 | T31: =IFERROR($I31*INDEX(Func_Classif,MATCH($J31,Func_Factors!$C:$C,0),MATCH(Functionalization!T$3,Func_Factors!$G$2:$AA$2,0)),0) -> 0 | U31: =IFERROR($I31*INDEX(Func_Classif,MATCH($J31,Func_Factors!$C:$C,0),MATCH(Functionalization!U$3,Func_Factors!$G$2:$AA$2,0)),0) -> 199695244.1 | V31: =IFERROR($I31*INDEX(Func_Classif,MATCH($J31,Func_Factors!$C:$C,0),MATCH(Functionalization!V$3,Func_Factors!$G$2:$AA$2,0)),0) -> 0 | W31: =IFERROR($I31*INDEX(Func_Classif,MATCH($J31,Func_Factors!$C:$C,0),MATCH(Functionalization!W$3,Func_Factors!$G$2:$AA$2,0)),0) -> 0 | X31: =IFERROR($I31*INDEX(Func_Classif,MATCH($J31,Func_Factors!$C:$C,0),MATCH(Functionalization!X$3,Func_Factors!$G$2:$AA$2,0)),0) -> 0 | Y31: =IFERROR($I31*INDEX(Func_Classif,MATCH($J31,Func_Factors!$C:$C,0),MATCH(Functionalization!Y$3,Func_Factors!$G$2:$AA$2,0)),0) -> 0 | Z31: =IFERROR($I31*INDEX(Func_Classif,MATCH($J31,Func_Factors!$C:$C,0),MATCH(Functionalization!Z$3,Func_Factors!$G$2:$AA$2,0)),0) -> 0 | AA31: =IFERROR($I31*INDEX(Func_Classif,MATCH($J31,Func_Factors!$C:$C,0),MATCH(Functionalization!AA$3,Func_Factors!$G$2:$AA$2,0)),0) -> 0 | AB31: =IFERROR($I31*INDEX(Func_Classif,MATCH($J31,Func_Factors!$C:$C,0),MATCH(Functionalization!AB$3,Func_Factors!$G$2:$AA$2,0)),0) -> 0 | AC31: =IFERROR($I31*INDEX(Func_Classif,MATCH($J31,Func_Factors!$C:$C,0),MATCH(Functionalization!AC$3,Func_Factors!$G$2:$AA$2,0)),0) -> 0 | AE31: =I31-SUM(L31:AC31) -> 0 | BC31: 0
B32: 27 | C32: Distribution Substations Net Plant - Renewables | D32: 101/106 | E32: =+SUMIFS(Source_Mapping!$I:$I,Source_Mapping!$H:$H,Functionalization!$C32,Source_Mapping!$F:$F,Functionalization!$D32) -> 0 | G32: 0 | H32: R_EXRET | I32: =IFERROR($G32*INDEX(Func_Classif,MATCH($H32,Func_Factors!$C:$C,0),MATCH(Functionalization!I$3,Func_Factors!$G$2:$AA$2,0)),0) -> 0 | J32: DIST_D_SUBS | L32: =IFERROR($I32*INDEX(Func_Classif,MATCH($J32,Func_Factors!$C:$C,0),MATCH(Functionalization!L$3,Func_Factors!$G$2:$AA$2,0)),0) -> 0 | M32: =IFERROR($I32*INDEX(Func_Classif,MATCH($J32,Func_Factors!$C:$C,0),MATCH(Functionalization!M$3,Func_Factors!$G$2:$AA$2,0)),0) -> 0 | N32: =IFERROR($I32*INDEX(Func_Classif,MATCH($J32,Func_Factors!$C:$C,0),MATCH(Functionalization!N$3,Func_Factors!$G$2:$AA$2,0)),0) -> 0 | O32: =IFERROR($I32*INDEX(Func_Classif,MATCH($J32,Func_Factors!$C:$C,0),MATCH(Functionalization!O$3,Func_Factors!$G$2:$AA$2,0)),0) -> 0 | P32: =IFERROR($I32*INDEX(Func_Classif,MATCH($J32,Func_Factors!$C:$C,0),MATCH(Functionalization!P$3,Func_Factors!$G$2:$AA$2,0)),0) -> 0 | Q32: =IFERROR($I32*INDEX(Func_Classif,MATCH($J32,Func_Factors!$C:$C,0),MATCH(Functionalization!Q$3,Func_Factors!$G$2:$AA$2,0)),0) -> 0 | R32: =IFERROR($I32*INDEX(Func_Classif,MATCH($J32,Func_Factors!$C:$C,0),MATCH(Functionalization!R$3,Func_Factors!$G$2:$AA$2,0)),0) -> 0 | S32: =IFERROR($I32*INDEX(Func_Classif,MATCH($J32,Func_Factors!$C:$C,0),MATCH(Functionalization!S$3,Func_Factors!$G$2:$AA$2,0)),0) -> 0 | T32: =IFERROR($I32*INDEX(Func_Classif,MATCH($J32,Func_Factors!$C:$C,0),MATCH(Functionalization!T$3,Func_Factors!$G$2:$AA$2,0)),0) -> 0 | U32: =IFERROR($I32*INDEX(Func_Classif,MATCH($J32,Func_Factors!$C:$C,0),MATCH(Functionalization!U$3,Func_Factors!$G$2:$AA$2,0)),0) -> 0 | V32: =IFERROR($I32*INDEX(Func_Classif,MATCH($J32,Func_Factors!$C:$C,0),MATCH(Functionalization!V$3,Func_Factors!$G$2:$AA$2,0)),0) -> 0 | W32: =IFERROR($I32*INDEX(Func_Classif,MATCH($J32,Func_Factors!$C:$C,0),MATCH(Functionalization!W$3,Func_Factors!$G$2:$AA$2,0)),0) -> 0 | X32: =IFERROR($I32*INDEX(Func_Classif,MATCH($J32,Func_Factors!$C:$C,0),MATCH(Functionalization!X$3,Func_Factors!$G$2:$AA$2,0)),0) -> 0 | Y32: =IFERROR($I32*INDEX(Func_Classif,MATCH($J32,Func_Factors!$C:$C,0),MATCH(Functionalization!Y$3,Func_Factors!$G$2:$AA$2,0)),0) -> 0 | Z32: =IFERROR($I32*INDEX(Func_Classif,MATCH($J32,Func_Factors!$C:$C,0),MATCH(Functionalization!Z$3,Func_Factors!$G$2:$AA$2,0)),0) -> 0 | AA32: =IFERROR($I32*INDEX(Func_Classif,MATCH($J32,Func_Factors!$C:$C,0),MATCH(Functionalization!AA$3,Func_Factors!$G$2:$AA$2,0)),0) -> 0 | AB32: =IFERROR($I32*INDEX(Func_Classif,MATCH($J32,Func_Factors!$C:$C,0),MATCH(Functionalization!AB$3,Func_Factors!$G$2:$AA$2,0)),0) -> 0 | AC32: =IFERROR($I32*INDEX(Func_Classif,MATCH($J32,Func_Factors!$C:$C,0),MATCH(Functionalization!AC$3,Func_Factors!$G$2:$AA$2,0)),0) -> 0 | AE32: 0 | BC32: 0
B33: 28 | C33: Distribution Substations Net Plant - Grid Mod | D33: 101/106 | E33: =+SUMIFS(Source_Mapping!$I:$I,Source_Mapping!$H:$H,Functionalization!$C33,Source_Mapping!$F:$F,Functionalization!$D33) -> 0 | G33: =E33+F33 -> 0 | H33: R_EXRET | I33: =IFERROR($G33*INDEX(Func_Classif,MATCH($H33,Func_Factors!$C:$C,0),MATCH(Functionalization!I$3,Func_Factors!$G$2:$AA$2,0)),0) -> 0 | J33: DIST_D_SUBS | L33: =IFERROR($I33*INDEX(Func_Classif,MATCH($J33,Func_Factors!$C:$C,0),MATCH(Functionalization!L$3,Func_Factors!$G$2:$AA$2,0)),0) -> 0 | M33: =IFERROR($I33*INDEX(Func_Classif,MATCH($J33,Func_Factors!$C:$C,0),MATCH(Functionalization!M$3,Func_Factors!$G$2:$AA$2,0)),0) -> 0 | N33: =IFERROR($I33*INDEX(Func_Classif,MATCH($J33,Func_Factors!$C:$C,0),MATCH(Functionalization!N$3,Func_Factors!$G$2:$AA$2,0)),0) -> 0 | O33: =IFERROR($I33*INDEX(Func_Classif,MATCH($J33,Func_Factors!$C:$C,0),MATCH(Functionalization!O$3,Func_Factors!$G$2:$AA$2,0)),0) -> 0 | P33: =IFERROR($I33*INDEX(Func_Classif,MATCH($J33,Func_Factors!$C:$C,0),MATCH(Functionalization!P$3,Func_Factors!$G$2:$AA$2,0)),0) -> 0 | Q33: =IFERROR($I33*INDEX(Func_Classif,MATCH($J33,Func_Factors!$C:$C,0),MATCH(Functionalization!Q$3,Func_Factors!$G$2:$AA$2,0)),0) -> 0 | R33: =IFERROR($I33*INDEX(Func_Classif,MATCH($J33,Func_Factors!$C:$C,0),MATCH(Functionalization!R$3,Func_Factors!$G$2:$AA$2,0)),0) -> 0 | S33: =IFERROR($I33*INDEX(Func_Classif,MATCH($J33,Func_Factors!$C:$C,0),MATCH(Functionalization!S$3,Func_Factors!$G$2:$AA$2,0)),0) -> 0 | T33: =IFERROR($I33*INDEX(Func_Classif,MATCH($J33,Func_Factors!$C:$C,0),MATCH(Functionalization!T$3,Func_Factors!$G$2:$AA$2,0)),0) -> 0 | U33: =IFERROR($I33*INDEX(Func_Classif,MATCH($J33,Func_Factors!$C:$C,0),MATCH(Functionalization!U$3,Func_Factors!$G$2:$AA$2,0)),0) -> 0 | V33: =IFERROR($I33*INDEX(Func_Classif,MATCH($J33,Func_Factors!$C:$C,0),MATCH(Functionalization!V$3,Func_Factors!$G$2:$AA$2,0)),0) -> 0 | W33: =IFERROR($I33*INDEX(Func_Classif,MATCH($J33,Func_Factors!$C:$C,0),MATCH(Functionalization!W$3,Func_Factors!$G$2:$AA$2,0)),0) -> 0 | X33: =IFERROR($I33*INDEX(Func_Classif,MATCH($J33,Func_Factors!$C:$C,0),MATCH(Functionalization!X$3,Func_Factors!$G$2:$AA$2,0)),0) -> 0 | Y33: =IFERROR($I33*INDEX(Func_Classif,MATCH($J33,Func_Factors!$C:$C,0),MATCH(Functionalization!Y$3,Func_Factors!$G$2:$AA$2,0)),0) -> 0 | Z33: =IFERROR($I33*INDEX(Func_Classif,MATCH($J33,Func_Factors!$C:$C,0),MATCH(Functionalization!Z$3,Func_Factors!$G$2:$AA$2,0)),0) -> 0 | AA33: =IFERROR($I33*INDEX(Func_Classif,MATCH($J33,Func_Factors!$C:$C,0),MATCH(Functionalization!AA$3,Func_Factors!$G$2:$AA$2,0)),0) -> 0 | AB33: =IFERROR($I33*INDEX(Func_Classif,MATCH($J33,Func_Factors!$C:$C,0),MATCH(Functionalization!AB$3,Func_Factors!$G$2:$AA$2,0)),0) -> 0 | AC33: =IFERROR($I33*INDEX(Func_Classif,MATCH($J33,Func_Factors!$C:$C,0),MATCH(Functionalization!AC$3,Func_Factors!$G$2:$AA$2,0)),0) -> 0 | AE33: 0 | BC33: 0
B34: 29 | C34: Primary Distribution System Net Plant - PNM | D34: 101/106 | E34: =+SUMIFS(Source_Mapping!$I:$I,Source_Mapping!$H:$H,Functionalization!$C34,Source_Mapping!$F:$F,Functionalization!$D34) -> 788963635.8 | G34: 788963635.8 | H34: R_DIR | I34: =IFERROR($G34*INDEX(Func_Classif,MATCH($H34,Func_Factors!$C:$C,0),MATCH(Functionalization!I$3,Func_Factors!$G$2:$AA$2,0)),0) -> 788963635.8 | J34: DIST_D_PRIM | L34: =IFERROR($I34*INDEX(Func_Classif,MATCH($J34,Func_Factors!$C:$C,0),MATCH(Functionalization!L$3,Func_Factors!$G$2:$AA$2,0)),0) -> 0 | M34: =IFERROR($I34*INDEX(Func_Classif,MATCH($J34,Func_Factors!$C:$C,0),MATCH(Functionalization!M$3,Func_Factors!$G$2:$AA$2,0)),0) -> 0 | N34: =IFERROR($I34*INDEX(Func_Classif,MATCH($J34,Func_Factors!$C:$C,0),MATCH(Functionalization!N$3,Func_Factors!$G$2:$AA$2,0)),0) -> 0 | O34: =IFERROR($I34*INDEX(Func_Classif,MATCH($J34,Func_Factors!$C:$C,0),MATCH(Functionalization!O$3,Func_Factors!$G$2:$AA$2,0)),0) -> 0 | P34: =IFERROR($I34*INDEX(Func_Classif,MATCH($J34,Func_Factors!$C:$C,0),MATCH(Functionalization!P$3,Func_Factors!$G$2:$AA$2,0)),0) -> 0 | Q34: =IFERROR($I34*INDEX(Func_Classif,MATCH($J34,Func_Factors!$C:$C,0),MATCH(Functionalization!Q$3,Func_Factors!$G$2:$AA$2,0)),0) -> 0 | R34: =IFERROR($I34*INDEX(Func_Classif,MATCH($J34,Func_Factors!$C:$C,0),MATCH(Functionalization!R$3,Func_Factors!$G$2:$AA$2,0)),0) -> 0 | S34: =IFERROR($I34*INDEX(Func_Classif,MATCH($J34,Func_Factors!$C:$C,0),MATCH(Functionalization!S$3,Func_Factors!$G$2:$AA$2,0)),0) -> 0 | T34: =IFERROR($I34*INDEX(Func_Classif,MATCH($J34,Func_Factors!$C:$C,0),MATCH(Functionalization!T$3,Func_Factors!$G$2:$AA$2,0)),0) -> 0 | U34: =IFERROR($I34*INDEX(Func_Classif,MATCH($J34,Func_Factors!$C:$C,0),MATCH(Functionalization!U$3,Func_Factors!$G$2:$AA$2,0)),0) -> 0 | V34: =IFERROR($I34*INDEX(Func_Classif,MATCH($J34,Func_Factors!$C:$C,0),MATCH(Functionalization!V$3,Func_Factors!$G$2:$AA$2,0)),0) -> 788963635.8 | W34: =IFERROR($I34*INDEX(Func_Classif,MATCH($J34,Func_Factors!$C:$C,0),MATCH(Functionalization!W$3,Func_Factors!$G$2:$AA$2,0)),0) -> 0 | X34: =IFERROR($I34*INDEX(Func_Classif,MATCH($J34,Func_Factors!$C:$C,0),MATCH(Functionalization!X$3,Func_Factors!$G$2:$AA$2,0)),0) -> 0 | Y34: =IFERROR($I34*INDEX(Func_Classif,MATCH($J34,Func_Factors!$C:$C,0),MATCH(Functionalization!Y$3,Func_Factors!$G$2:$AA$2,0)),0) -> 0 | Z34: =IFERROR($I34*INDEX(Func_Classif,MATCH($J34,Func_Factors!$C:$C,0),MATCH(Functionalization!Z$3,Func_Factors!$G$2:$AA$2,0)),0) -> 0 | AA34: =IFERROR($I34*INDEX(Func_Classif,MATCH($J34,Func_Factors!$C:$C,0),MATCH(Functionalization!AA$3,Func_Factors!$G$2:$AA$2,0)),0) -> 0 | AB34: =IFERROR($I34*INDEX(Func_Classif,MATCH($J34,Func_Factors!$C:$C,0),MATCH(Functionalization!AB$3,Func_Factors!$G$2:$AA$2,0)),0) -> 0 | AC34: =IFERROR($I34*INDEX(Func_Classif,MATCH($J34,Func_Factors!$C:$C,0),MATCH(Functionalization!AC$3,Func_Factors!$G$2:$AA$2,0)),0) -> 0 | AE34: 0 | BC34: 0
